Workbook

Sheet GUIA PARA PREENCHIMENTO
A1: GUIA PARA PREENCHIMENTO
A3: 1 - Preencher apenas as guias azuis:
A5: 2 - Recomendamos preencher somente as células com fundo azul claro. As demais possuem fórmulas e sugerimos não alterá-las.

Sheet MODELO PROPOSTA
B2: MODELO DA PROPOSTA COMPLETA
B4: .
B5: I – FORMALIZAÇÃO
B7: PREGÃO ELETRÔNICO N. 90099/2025
B8: OBJETO: Prestação de serviços continuados de apoio técnico para execução de atividades auxiliares, instrumentais e acessórias para a Câmara dos Deputados, a serem realizados com regime de dedicação exclusiva de mão de obra, pelo período de 24 (vinte e quatro) meses.
B10: LICITANTE: _____________________________________________________
B11: CNPJ: ________________________________________________________
B12: ENDEREÇO COMPLETO: _________________________________________
B13: TELEFONE:_____________________________________________________
B14: E-MAIL: ________________________________________________________
B16: Apresentamos nossa proposta para o item único da presente licitação, de acordo com as disposições do Edital.
B17: Decorre do conteúdo da presente proposta a explicitação do seguinte PREÇO DE JULGAMENTO (GLOBAL) PARA O ITEM ÚNICO (24 MESES):
B18: =Resumo!F74 -> 47235831.6
B19: =Extenso_Valor(B18) -> quarenta e sete milhões, duzentos e trinta e cinco mil, oitocentos e trinta e um reais e sessenta centavos
B21: (por extenso)
B23: No valor proposto estão incluídos todos os custos e todas as despesas, diretas e indiretas, para a execução dos serviços objeto da licitação, em conformidade com as especificações e demais condições e exigências constantes do Edital.
B24: Informamos que eventuais rubricas dispostas em Acordo ou Convenção Coletiva de Trabalho que não se relacionem ao custo direto da venda do serviço, tais como “Participação nos Resultados” e “Abono substitutivo de Participação nos Resultados”, serão consideradas nos custos indiretos da proposta.
B25: O prazo de validade da presente proposta é de ______ (por extenso) dias. (observado o disposto no Título 4 do Edital).
B27: Convenção coletiva de trabalho ou a norma coletiva a que estamos obrigados:
B28: Justificativa para a adoção da Convenção:
B29: Data-Base:
B30: Número do Registro MTE:
B31: Atividade econômica preponderante (indicar conforme CNAE):
B33: Enquadramento Sindical (quem a representa legalmente):
B35: Cópia da carta ou registro sindical do sindicato ao qual ele declara ser enquadrado, em razão do regramento sindical previsto na CLT ou por força de decisão judicial:
B38: Regime de tributação da empresa:
B39: Empresa é beneficiada pela desoneração da folha de pagamento instituída pela Lei n. 12.546/2001, alterada pela Lei n. 13.161/2015 e pela Lei n. 14.973/2024?
B40: Empresa adere ao PAT (Programa de Alimentação do Trabalhador)?
B41: Na hipótese de adesão ao PAT e de previsão de qualquer desconto no valor do auxílio-alimentação em norma coletiva, os valores do auxílio-alimentação apresentados nesta proposta deverão corresponder aos valores líquidos efetivamente pagos pela empresa aos seus empregados.
B43: MODALIDADE DE GARANTIA
B44: De acordo com o disposto no Termo de Referência, informamos que, caso o objeto nos seja adjudicado, optaremos pela seguinte modalidade de garantia de execução do contrato (artigos 96 e seguintes da Lei 14.133/2021):
B47: DECLARAÇÕES
B48: Declaramos que: a) Disponibilizaremos todos os itens necessários à execução dos serviços, sejam eles insumos ou materiais, bem como pessoal técnico adequado para a realização do objeto da presente licitação;
B49: b) Seremos responsáveis pelo descarte ambientalmente adequado de todos os resíduos gerados durante a execução dos serviços contratados – incluindo consumíveis, peças substituídas, embalagens e demais materiais – em conformidade com a legislação ambiental vigente, especialmente a Lei n. 9.605/1998 (Lei de Crimes Ambientais), a Lei n. 12.305/2010 (Política Nacional de Resíduos Sólidos) e a NBR 10.004 (classificação de resíduos sólidos).
B50: A SEREM PRESTADAS SOMENTE NA HIPÓTESE DE LICITANTE MICROEMPRESA OU EMPRESA DE PEQUENO PORTE, EM CONFORMIDADE COM OS ARTIGOS 17, 18, 30 E 31 DA LEI COMPLEMENTAR N. 123/2006, E O ACÓRDÃO TCU 2798/2010-PLENÁRIO Declaramos que: a) em se tratando dos serviços vedados descritos no artigo 17 da Lei Complementar n. 123/2006, notadamente os descritos no inciso XII (cessão ou locação de mão de obra), ressalvados os serviços listados nos § 5º-C, inciso VI, c/c § 5º-H do art. 18 ou no § 1º do art. 17 da referida Lei, a proposta apresentada não contempla qualquer benefício tributário referente ao SIMPLES NACIONAL, conforme os itens 4.20 e 4.21 do Edital; b) na hipótese de contratação desta Microempresa ou Empresa de Pequeno Porte inscrita no SIMPLES NACIONAL e executora de atividade vedada, ficamos sujeitos à exclusão obrigatória no SIMPLES NACIONAL a contar do mês seguinte ao da contratação, em consequência do que dispõem o artigo 17, inciso XII e o artigo 31, inciso II da Lei Complementar n, 123/2006, devendo entregar à Câmara dos Deputados, à título de comprovação, cópia de ofício – com comprovante de entrega e recebimento, que comunique a assinatura do contrato de prestação de serviços mediante cessão de mão de obra e encaminhado pela contratada à Secretaria Especial da Receita Federal do Brasil até o último dia útil do mês subsequente ao da contratação, consoante artigo 30, § 1º, inciso II da Lei Complementar n. 123/2006.
B54: A SEREM PRESTADAS SOMENTE NA HIPÓTESE DE LICITANTE BENEFICIADA PELA DESONERAÇÃO DA FOLHA DE PAGAMENTO INSTITUÍDA PELA LEI N. 12.546/2011, ALTERADA PELA LEI N. 13.161/2015 E PELA LEI N. 14.973/2024. Declaramos, sob as penas da Lei, que: a) recolhemos a contribuição previdenciária incidente sobre o valor da receita bruta, em substituição às contribuições previdenciárias incidentes sobre a folha de pagamento, previstas nos incisos I e III do caput do artigo 22 da Lei n. 8.212/1991, na forma do caput do artigo 9º-A da Lei n. 12.546/2011, alteradas pela Lei n. 13.161/2015 e pela Lei n. 14.973/2024; b) temos ciência que nossa manifestação, conforme alínea “a” anterior, será remetida à Secretaria Especial da Receita Federal do Brasil e que, em caso de constatação de falsidade, estará sujeita às sanções administrativas cabíveis, sem prejuízo do encaminhamento dos documentos ao Ministério Público para apuração de eventual responsabilidade criminal desta declarante; c) temos ciência de que a variação das alíquotas previstas no art. 9º-A da Lei n. 12.546/2011, incluído pela Lei n. 14.973/2024, bem como a transição gradual de reoneração da folha de pagamento, foram integralmente consideradas na formulação da presente proposta, não cabendo, em nenhuma hipótese, pedido de reequilíbrio econômico-financeiro, repactuação ou apostilamento, durante a vigência contratual ou em eventuais prorrogações, por se tratar de fato previsível e anterior à apresentação da proposta.
B58: NOTAS EXPLICATIVAS – PREMISSAS DE CÁLCULO (Conforme o item 4.5.1.4 do Termo de Referência) Abaixo apresentamos as notas explicativas com as premissas adotadas no cálculo dos encargos sociais e tributários, especialmente quanto à aplicação da Lei n. 14.973/2024, que trata da reoneração gradual da folha de pagamento. As informações apresentadas visam garantir a transparência e exequibilidade da proposta, demonstrando como os efeitos da referida lei foram integralmente considerados na composição dos preços. ________________________________________________________________________________________________________________________________________________________________________________________________________________ (Indicar os marcos anuais de transição das alíquotas considerados no cálculo; Descrever a metodologia de projeção dos custos até a reoneração total da folha; Confirmar que todos os impactos foram internalizados na proposta e não ensejarão pedido de reequilíbrio, repactuação ou apostilamento durante a vigência contratual ou prorrogações.)
B62: OU A SEREM PRESTADAS SOMENTE NA HIPÓTESE DE LICITANTE NÃO BENEFICIADA PELA DESONERAÇÃO DA FOLHA DE PAGAMENTO INSTITUÍDA PELA LEI N. 12.546, DE 2011, ALTERADA PELA LEI N. 13.161, DE 2015 Declaramos, sob as penas da Lei, que: a) não recolhemos a contribuição previdenciária incidente sobre o valor da receita bruta, em substituição às contribuições previdenciárias incidentes sobre a folha de pagamento, previstas nos incisos I e III do caput do artigo 22 da Lei n. 8.212/1991, na forma do caput do artigo 7º (ou 8º) da Lei n. 12.546/2011, alterada pela Lei n. 13.161/2015; b) temos ciência que nossa manifestação, conforme alínea “a” anterior, será remetida à Secretaria Especial da Receita Federal do Brasil e que, em caso de constatação de falsidade, estará sujeita às sanções administrativas cabíveis, sem prejuízo do encaminhamento dos documentos ao Ministério Público para apuração de eventual responsabilidade criminal desta declarante.
B65: A SEREM PRESTADAS SOMENTE PARA A LICITANTE QUE SEJA A ATUAL TITULAR DO CONTRATO QUE SERÁ SUCEDIDO PELA CONTRATAÇÃO DECORRENTE DO PREGÃO EM EPÍGRAFE, NA HIPÓTESE DE HAVER SALÁRIO(S) PRATICADO(S) NO CONTRATO VIGENTE SUPERIOR(ES) AOS MÍNIMOS FIXADOS NO EDITAL E QUE TENHA OPTADO POR TOMAR COMO BASE EM SEUS LANCES E NA PRESENTE PROPOSTA DE PREÇOS SALÁRIO(S) FIXADO(S) NESTE EDITAL: Declaramos que: a) estamos cientes de que deveremos apresentar à Câmara dos Deputados, no prazo improrrogável de 60 (sessenta) dias, contado da data de início da vigência do contrato, a convenção ou o acordo coletivo de trabalho, entabulado com a participação do sindicato dos trabalhadores, em que se autoriza a redução salarial, na forma do art. 7°, VI, da Constituição Federal, considerado, ainda, o disposto no subitem 10.10.2.1 do Título 10 da minuta do Termo de Contrato anexa; b) estamos cientes de que, na hipótese de não cumprirmos o disposto no teor da declaração da alínea anterior (“a”) e não logrado êxito na contratação de remanescente, sendo necessária a realização de nova licitação, caso participemos do certame, deveremos tomar como base em nossos lances e em nossa proposta de preços o(s) salário(s) maior(es), absorvendo ou acrescentando eventual diferença no BDI, sob pena de desclassificação.
B68: É OBRIGATÓRIA A COMPROVAÇÃO A QUE SE REFERE O ITEM 4.3 DO TÍTULO 4 DO TERMO DE REFERÊNCIA (referente ao valor do Fator Acidentário de Prevenção (FAP)).
B71: DADOS PARA ASSINATURA DO CONTRATO
B72: Nome do signatário
B73: Cargo
B74: Qualificação (naturalidade e domicílio)
B75: OBS.: O signatário deve possuir poderes de administração estabelecidos em contrato social e/ou possuir procuração com poderes para assinar contratos em nome da empresa. A documentação comprobatória deverá ser encaminhada quando da assinatura do contrato.
B78: Brasília, de de 2025.
B80: Assinatura do representante legal da empresa
B83: Nome do representante legal da empresa

Sheet Remunerações
B1: QUADRO DE REMUNERAÇÕES
C3: ITEM | D3: POSTO DE TRABALHO | E3: QUANTIDADE | F3: SALÁRIO | G3: ADICIONAL DE PERICULOSIDADE | H3: ADICIONAL DE INSALUBRIDADE | I3: ADICIONAL NOTURNO | J3: SOBREAVISO OU HORA EXTRA | K3: SALÁRIO COM ADICIONAIS
C4: 1 | D4: =HLOOKUP(C4,'Dados Gerais'!$D$6:$BI$11,6) -> TÉCNICO DE APOIO ADMINISTRATIVO | E4: =HLOOKUP($C4,'Dados Gerais'!$D$6:$BI$15,10) -> 168 | F4: ='1'!$F$9 -> 4932.41 | G4: ='1'!$F$10 -> 0 | H4: ='1'!$F$11 -> 0 | I4: ='1'!$F$12 -> 0 | J4: ='1'!$F$13+'1'!$F$15 -> 0 | K4: =SUM(F4:J4) -> 4932.41
C5: =C4+1 -> 2 | D5: =HLOOKUP(C5,'Dados Gerais'!$D$6:$BI$11,6) -> ENCARREGADO GERAL | E5: =HLOOKUP($C5,'Dados Gerais'!$D$6:$BI$15,10) -> 1 | F5: ='2'!$F$9 -> 6937.73 | G5: ='2'!$F$10 -> 0 | H5: ='2'!$F$11 -> 0 | I5: ='2'!$F$12 -> 0 | J5: ='2'!$F$13+'2'!$F$15 -> 0 | K5: 6937.73
C6: =C5+1 -> 3 | D6: =HLOOKUP(C6,'Dados Gerais'!$D$6:$BI$11,6) -> 0 | E6: =HLOOKUP($C6,'Dados Gerais'!$D$6:$BI$15,10) -> 0 | F6: ='3'!$F$9 -> 0 | G6: ='3'!$F$10 -> 0 | H6: ='3'!$F$11 -> 0 | I6: ='3'!$F$12 -> 0 | J6: ='3'!$F$13+'3'!$F$15 -> 0 | K6: 0
C7: 4 | D7: =HLOOKUP(C7,'Dados Gerais'!$D$6:$BI$11,6) -> 0 | E7: =HLOOKUP($C7,'Dados Gerais'!$D$6:$BI$15,10) -> 0 | F7: ='4'!$F$9 -> 0 | G7: ='4'!$F$10 -> 0 | H7: ='4'!$F$11 -> 0 | I7: ='4'!$F$12 -> 0 | J7: ='4'!$F$13+'4'!$F$15 -> 0 | K7: =SUM(F7:J7) -> 0
C8: 5 | D8: =HLOOKUP(C8,'Dados Gerais'!$D$6:$BI$11,6) -> 0 | E8: =HLOOKUP($C8,'Dados Gerais'!$D$6:$BI$15,10) -> 0 | F8: ='5'!$F$9 -> 0 | G8: ='5'!$F$10 -> 0 | H8: ='5'!$F$11 -> 0 | I8: ='5'!$F$12 -> 0 | J8: ='5'!$F$13+'5'!$F$15 -> 0 | K8: 0
C9: 6 | D9: =HLOOKUP(C9,'Dados Gerais'!$D$6:$BI$11,6) -> 0 | E9: =HLOOKUP($C9,'Dados Gerais'!$D$6:$BI$15,10) -> 0 | F9: ='6'!$F$9 -> 0 | G9: ='6'!$F$10 -> 0 | H9: ='6'!$F$11 -> 0 | I9: ='6'!$F$12 -> 0 | J9: ='6'!$F$13+'6'!$F$15 -> 0 | K9: 0
C10: 7 | D10: =HLOOKUP(C10,'Dados Gerais'!$D$6:$BI$11,6) -> 0 | E10: =HLOOKUP($C10,'Dados Gerais'!$D$6:$BI$15,10) -> 0 | F10: ='7'!$F$9 -> 0 | G10: ='7'!$F$10 -> 0 | H10: ='7'!$F$11 -> 0 | I10: ='7'!$F$12 -> 0 | J10: ='7'!$F$13+'7'!$F$15 -> 0 | K10: 0
C11: 8 | D11: =HLOOKUP(C11,'Dados Gerais'!$D$6:$BI$11,6) -> 0 | E11: =HLOOKUP($C11,'Dados Gerais'!$D$6:$BI$15,10) -> 0 | F11: ='8'!$F$9 -> 0 | G11: ='8'!$F$10 -> 0 | H11: ='8'!$F$11 -> 0 | I11: ='8'!$F$12 -> 0 | J11: ='8'!$F$13+'8'!$F$15 -> 0 | K11: 0
C12: 9 | D12: =HLOOKUP(C12,'Dados Gerais'!$D$6:$BI$11,6) -> 0 | E12: =HLOOKUP($C12,'Dados Gerais'!$D$6:$BI$15,10) -> 0 | F12: ='9'!$F$9 -> 0 | G12: ='9'!$F$10 -> 0 | H12: ='9'!$F$11 -> 0 | I12: ='9'!$F$12 -> 0 | J12: ='9'!$F$13+'9'!$F$15 -> 0 | K12: 0
C13: 10 | D13: =HLOOKUP(C13,'Dados Gerais'!$D$6:$BI$11,6) -> 0 | E13: =HLOOKUP($C13,'Dados Gerais'!$D$6:$BI$15,10) -> 0 | F13: ='10'!$F$9 -> 0 | G13: ='10'!$F$10 -> 0 | H13: ='10'!$F$11 -> 0 | I13: ='10'!$F$12 -> 0 | J13: ='10'!$F$13+'10'!$F$15 -> 0 | K13: 0
C14: 11 | D14: =HLOOKUP(C14,'Dados Gerais'!$D$6:$BI$11,6) -> 0 | E14: =HLOOKUP($C14,'Dados Gerais'!$D$6:$BI$15,10) -> 0 | F14: ='11'!$F$9 -> 0 | G14: ='11'!$F$10 -> 0 | H14: ='11'!$F$11 -> 0 | I14: ='11'!$F$12 -> 0 | J14: ='11'!$F$13+'11'!$F$15 -> 0 | K14: 0
C15: 12 | D15: =HLOOKUP(C15,'Dados Gerais'!$D$6:$BI$11,6) -> 0 | E15: =HLOOKUP($C15,'Dados Gerais'!$D$6:$BI$15,10) -> 0 | F15: ='12'!$F$9 -> 0 | G15: ='12'!$F$10 -> 0 | H15: ='12'!$F$11 -> 0 | I15: ='12'!$F$12 -> 0 | J15: ='12'!$F$13+'12'!$F$15 -> 0 | K15: 0
C16: 13 | D16: =HLOOKUP(C16,'Dados Gerais'!$D$6:$BI$11,6) -> 0 | E16: =HLOOKUP($C16,'Dados Gerais'!$D$6:$BI$15,10) -> 0 | F16: ='13'!$F$9 -> 0 | G16: ='13'!$F$10 -> 0 | H16: ='13'!$F$11 -> 0 | I16: ='13'!$F$12 -> 0 | J16: ='13'!$F$13+'13'!$F$15 -> 0 | K16: 0
C17: 14 | D17: =HLOOKUP(C17,'Dados Gerais'!$D$6:$BI$11,6) -> 0 | E17: =HLOOKUP($C17,'Dados Gerais'!$D$6:$BI$15,10) -> 0 | F17: ='14'!$F$9 -> 0 | G17: ='14'!$F$10 -> 0 | H17: ='14'!$F$11 -> 0 | I17: ='14'!$F$12 -> 0 | J17: ='14'!$F$13+'14'!$F$15 -> 0 | K17: 0
C18: 15 | D18: =HLOOKUP(C18,'Dados Gerais'!$D$6:$BI$11,6) -> 0 | E18: =HLOOKUP($C18,'Dados Gerais'!$D$6:$BI$15,10) -> 0 | F18: ='15'!$F$9 -> 0 | G18: ='15'!$F$10 -> 0 | H18: ='15'!$F$11 -> 0 | I18: ='15'!$F$12 -> 0 | J18: ='15'!$F$13+'15'!$F$15 -> 0 | K18: 0
C19: 16 | D19: =HLOOKUP(C19,'Dados Gerais'!$D$6:$BI$11,6) -> 0 | E19: =HLOOKUP($C19,'Dados Gerais'!$D$6:$BI$15,10) -> 0 | F19: ='16'!$F$9 -> 0 | G19: ='16'!$F$10 -> 0 | H19: ='16'!$F$11 -> 0 | I19: ='16'!$F$12 -> 0 | J19: ='16'!$F$13+'16'!$F$15 -> 0 | K19: 0
C20: 17 | D20: =HLOOKUP(C20,'Dados Gerais'!$D$6:$BI$11,6) -> 0 | E20: =HLOOKUP($C20,'Dados Gerais'!$D$6:$BI$15,10) -> 0 | F20: ='17'!$F$9 -> 0 | G20: ='17'!$F$10 -> 0 | H20: ='17'!$F$11 -> 0 | I20: ='17'!$F$12 -> 0 | J20: ='17'!$F$13+'17'!$F$15 -> 0 | K20: 0
C21: 18 | D21: =HLOOKUP(C21,'Dados Gerais'!$D$6:$BI$11,6) -> 0 | E21: =HLOOKUP($C21,'Dados Gerais'!$D$6:$BI$15,10) -> 0 | F21: ='18'!$F$9 -> 0 | G21: ='18'!$F$10 -> 0 | H21: ='18'!$F$11 -> 0 | I21: ='18'!$F$12 -> 0 | J21: ='18'!$F$13+'18'!$F$15 -> 0 | K21: 0
C22: 19 | D22: =HLOOKUP(C22,'Dados Gerais'!$D$6:$BI$11,6) -> 0 | E22: =HLOOKUP($C22,'Dados Gerais'!$D$6:$BI$15,10) -> 0 | F22: ='19'!$F$9 -> 0 | G22: ='19'!$F$10 -> 0 | H22: ='19'!$F$11 -> 0 | I22: ='19'!$F$12 -> 0 | J22: ='19'!$F$13+'19'!$F$15 -> 0 | K22: 0
C23: =#REF!+1 ->  | D23: =HLOOKUP(C23,'Dados Gerais'!$D$6:$BI$11,6) ->  | E23: =HLOOKUP($C23,'Dados Gerais'!$D$6:$BI$15,10) ->  | F23: =#REF! ->  | G23: =#REF! ->  | H23: =#REF! ->  | I23: =#REF! ->  | J23: =#REF!+#REF! -> 
D24: =HLOOKUP(C24,'Dados Gerais'!$D$6:$BI$11,6) ->  | E24: =HLOOKUP($C24,'Dados Gerais'!$D$6:$BI$15,10) ->  | F24: =#REF! ->  | G24: =#REF! ->  | H24: =#REF! ->  | I24: =#REF! ->  | J24: =#REF!+#REF! -> 
D25: =HLOOKUP(C25,'Dados Gerais'!$D$6:$BI$11,6) ->  | E25: =HLOOKUP($C25,'Dados Gerais'!$D$6:$BI$15,10) ->  | F25: =#REF! ->  | G25: =#REF! ->  | H25: =#REF! ->  | I25: =#REF! ->  | J25: =#REF!+#REF! -> 
D26: =HLOOKUP(C26,'Dados Gerais'!$D$6:$BI$11,6) ->  | E26: =HLOOKUP($C26,'Dados Gerais'!$D$6:$BI$15,10) ->  | F26: =#REF! ->  | G26: =#REF! ->  | H26: =#REF! ->  | I26: =#REF! ->  | J26: =#REF!+#REF! -> 
D27: =HLOOKUP(C27,'Dados Gerais'!$D$6:$BI$11,6) ->  | E27: =HLOOKUP($C27,'Dados Gerais'!$D$6:$BI$15,10) ->  | F27: =#REF! ->  | G27: =#REF! ->  | H27: =#REF! ->  | I27: =#REF! ->  | J27: =#REF!+#REF! -> 
D28: =HLOOKUP(C28,'Dados Gerais'!$D$6:$BI$11,6) ->  | E28: =HLOOKUP($C28,'Dados Gerais'!$D$6:$BI$15,10) ->  | F28: =#REF! ->  | G28: =#REF! ->  | H28: =#REF! ->  | I28: =#REF! ->  | J28: =#REF!+#REF! -> 
D29: =HLOOKUP(C29,'Dados Gerais'!$D$6:$BI$11,6) ->  | E29: =HLOOKUP($C29,'Dados Gerais'!$D$6:$BI$15,10) ->  | F29: =#REF! ->  | G29: =#REF! ->  | H29: =#REF! ->  | I29: =#REF! ->  | J29: =#REF!+#REF! -> 
D30: =HLOOKUP(C30,'Dados Gerais'!$D$6:$BI$11,6) ->  | E30: =HLOOKUP($C30,'Dados Gerais'!$D$6:$BI$15,10) ->  | F30: =#REF! ->  | G30: =#REF! ->  | H30: =#REF! ->  | I30: =#REF! ->  | J30: =#REF!+#REF! -> 
D31: =HLOOKUP(C31,'Dados Gerais'!$D$6:$BI$11,6) ->  | E31: =HLOOKUP($C31,'Dados Gerais'!$D$6:$BI$15,10) ->  | F31: =#REF! ->  | G31: =#REF! ->  | H31: =#REF! ->  | I31: =#REF! ->  | J31: =#REF!+#REF! -> 
D32: =HLOOKUP(C32,'Dados Gerais'!$D$6:$BI$11,6) ->  | E32: =HLOOKUP($C32,'Dados Gerais'!$D$6:$BI$15,10) ->  | F32: =#REF! ->  | G32: =#REF! ->  | H32: =#REF! ->  | I32: =#REF! ->  | J32: =#REF!+#REF! -> 
D33: =HLOOKUP(C33,'Dados Gerais'!$D$6:$BI$11,6) ->  | E33: =HLOOKUP($C33,'Dados Gerais'!$D$6:$BI$15,10) ->  | F33: =#REF! ->  | G33: =#REF! ->  | H33: =#REF! ->  | I33: =#REF! ->  | J33: =#REF!+#REF! -> 
D34: =HLOOKUP(C34,'Dados Gerais'!$D$6:$BI$11,6) ->  | E34: =HLOOKUP($C34,'Dados Gerais'!$D$6:$BI$15,10) ->  | F34: =#REF! ->  | G34: =#REF! ->  | H34: =#REF! ->  | I34: =#REF! ->  | J34: =#REF!+#REF! -> 
D35: =HLOOKUP(C35,'Dados Gerais'!$D$6:$BI$11,6) ->  | E35: =HLOOKUP($C35,'Dados Gerais'!$D$6:$BI$15,10) ->  | F35: =#REF! ->  | G35: =#REF! ->  | H35: =#REF! ->  | I35: =#REF! ->  | J35: =#REF!+#REF! -> 
D36: =HLOOKUP(C36,'Dados Gerais'!$D$6:$BI$11,6) ->  | E36: =HLOOKUP($C36,'Dados Gerais'!$D$6:$BI$15,10) ->  | F36: =#REF! ->  | G36: =#REF! ->  | H36: =#REF! ->  | I36: =#REF! ->  | J36: =#REF!+#REF! -> 
D37: =HLOOKUP(C37,'Dados Gerais'!$D$6:$BI$11,6) ->  | E37: =HLOOKUP($C37,'Dados Gerais'!$D$6:$BI$15,10) ->  | F37: =#REF! ->  | G37: =#REF! ->  | H37: =#REF! ->  | I37: =#REF! ->  | J37: =#REF!+#REF! -> 
D38: =HLOOKUP(C38,'Dados Gerais'!$D$6:$BI$11,6) ->  | E38: =HLOOKUP($C38,'Dados Gerais'!$D$6:$BI$15,10) ->  | F38: =#REF! ->  | G38: =#REF! ->  | H38: =#REF! ->  | I38: =#REF! ->  | J38: =#REF!+#REF! -> 
D39: =HLOOKUP(C39,'Dados Gerais'!$D$6:$BI$11,6) ->  | E39: =HLOOKUP($C39,'Dados Gerais'!$D$6:$BI$15,10) ->  | F39: =#REF! ->  | G39: =#REF! ->  | H39: =#REF! ->  | I39: =#REF! ->  | J39: =#REF!+#REF! -> 
D40: =HLOOKUP(C40,'Dados Gerais'!$D$6:$BI$11,6) ->  | E40: =HLOOKUP($C40,'Dados Gerais'!$D$6:$BI$15,10) ->  | F40: =#REF! ->  | G40: =#REF! ->  | H40: =#REF! ->  | I40: =#REF! ->  | J40: =#REF!+#REF! -> 
D41: =HLOOKUP(C41,'Dados Gerais'!$D$6:$BI$11,6) ->  | E41: =HLOOKUP($C41,'Dados Gerais'!$D$6:$BI$15,10) ->  | F41: =#REF! ->  | G41: =#REF! ->  | H41: =#REF! ->  | I41: =#REF! ->  | J41: =#REF!+#REF! -> 
D42: =HLOOKUP(C42,'Dados Gerais'!$D$6:$BI$11,6) ->  | E42: =HLOOKUP($C42,'Dados Gerais'!$D$6:$BI$15,10) ->  | F42: =#REF! ->  | G42: =#REF! ->  | H42: =#REF! ->  | I42: =#REF! ->  | J42: =#REF!+#REF! -> 
D43: =HLOOKUP(C43,'Dados Gerais'!$D$6:$BI$11,6) ->  | E43: =HLOOKUP($C43,'Dados Gerais'!$D$6:$BI$15,10) ->  | F43: =#REF! ->  | G43: =#REF! ->  | H43: =#REF! ->  | I43: =#REF! ->  | J43: =#REF!+#REF! -> 
D44: =HLOOKUP(C44,'Dados Gerais'!$D$6:$BI$11,6) ->  | E44: =HLOOKUP($C44,'Dados Gerais'!$D$6:$BI$15,10) ->  | F44: =#REF! ->  | G44: =#REF! ->  | H44: =#REF! ->  | I44: =#REF! ->  | J44: =#REF!+#REF! -> 
D45: =HLOOKUP(C45,'Dados Gerais'!$D$6:$BI$11,6) ->  | E45: =HLOOKUP($C45,'Dados Gerais'!$D$6:$BI$15,10) ->  | F45: =#REF! ->  | G45: =#REF! ->  | H45: =#REF! ->  | I45: =#REF! ->  | J45: =#REF!+#REF! -> 
D46: =HLOOKUP(C46,'Dados Gerais'!$D$6:$BI$11,6) ->  | E46: =HLOOKUP($C46,'Dados Gerais'!$D$6:$BI$15,10) ->  | F46: =#REF! ->  | G46: =#REF! ->  | H46: =#REF! ->  | I46: =#REF! ->  | J46: =#REF!+#REF! -> 
D47: =HLOOKUP(C47,'Dados Gerais'!$D$6:$BI$11,6) ->  | E47: =HLOOKUP($C47,'Dados Gerais'!$D$6:$BI$15,10) ->  | F47: =#REF! ->  | G47: =#REF! ->  | H47: =#REF! ->  | I47: =#REF! ->  | J47: =#REF!+#REF! -> 
D48: =HLOOKUP(C48,'Dados Gerais'!$D$6:$BI$11,6) ->  | E48: =HLOOKUP($C48,'Dados Gerais'!$D$6:$BI$15,10) ->  | F48: =#REF! ->  | G48: =#REF! ->  | H48: =#REF! ->  | I48: =#REF! ->  | J48: =#REF!+#REF! -> 
D49: =HLOOKUP(C49,'Dados Gerais'!$D$6:$BI$11,6) ->  | E49: =HLOOKUP($C49,'Dados Gerais'!$D$6:$BI$15,10) ->  | F49: =#REF! ->  | G49: =#REF! ->  | H49: =#REF! ->  | I49: =#REF! ->  | J49: =#REF!+#REF! -> 
D51: TOTAL | E51: =SUM(E4:E22) -> 169

Sheet Resumo
B4: RESUMO - TOTAIS MENSAIS - FATURA ORDINÁRIA TOTAL (SEM OS ITENS SOB DEMANDA)
C7: ITEM | D7: POSTO DE TRABALHO | E7: QUANTIDADE | F7: PREÇO POR EMPREGADO | G7: PREÇO TOTAL (MENSAL)
C8: 1 | D8: =HLOOKUP(C8,'Dados Gerais'!$D$6:$BI$11,6) -> TÉCNICO DE APOIO ADMINISTRATIVO | E8: ='Dados Gerais'!D$15 -> 168 | F8: ='1'!$E$112 -> 11615.45 | G8: =F8*E8 -> 1951395.6
C9: 2 | D9: =HLOOKUP(C9,'Dados Gerais'!$D$6:$BI$11,6) -> ENCARREGADO GERAL | E9: ='Dados Gerais'!E$15 -> 1 | F9: ='2'!$E$112 -> 15816.55 | G9: =F9*E9 -> 15816.55
D11: TOTAL MENSAL - SALÁRIOS | G11: =SUM(G8:G10) -> 1967212.15
B15: RESUMO - TOTAIS MENSAIS - ITENS COMPLEMENTARES À FOLHA
C18: ITEM | D18: DESCRIÇÃO | G18: PREÇO TOTAL (MENSAL)
C19: SREP | D19: SISTEMA DE REGISTRO ELETRÔNICO DE PRESENÇA - SREP | G19: =SREP!M46 -> 830.59
C20: NOTURNAS | D20: HORAS NOTURNAS SOB DEMANDA | G20: 116.91
C21: EPI - N.REL | D21: EPI NÃO RELACIONADOS DIRETAMENTE A UM POSTO DE TRABALHO | G21: ='EPI - N.Rel'!J12 -> 0
C22: MATERIAIS - CONSUMO | D22: MATERIAIS DE CONSUMO NÃO RELACIONADOS DIRETAMENTE A UM POSTO DE TRABALHO | G22: ='Materiais - Consumo'!J48 -> 0
C23: FERRAM. | D23: FERRAMENTAS NÃO RELACIONADAS DIRETAMENTE A UM POSTO DE TRABALHO | G23: =Ferramentas!M240 -> 0
C24: EQUIPAM | D24: EQUIPAMENTOS NÃO RELACIONADOS DIRETAMENTE A UM POSTO DE TRABALHO | G24: =Equipamentos!M43 -> 0
C25: CONSUMO | D25: MATERIAIS DE CONSUMO | G25: ='Mat Consumo'!J76 -> 0
C26: PROF.NÃO.RESID | D26: PROFISSIONAL NÃO-RESIDENTE | G26: =Prof.N.Resid!J11 -> 0
C27: VEÍCULOS | D27: VEÍCULOS PARA TRANSPORTE DE COLABORADORES E DE MATERIAIS | G27: =Veículos!J25 -> 0
C28: SERV.ADIC | D28: SERVIÇOS ADICIONAIS | G28: =Serv.Adicionais!J14 -> 0
D30: TOTAL MENSAL - ITENS COMPLEMENTARES À FOLHA | G30: =SUM(G19:G29) -> 947.5
B34: RESUMO - TOTAIS MENSAIS - ITENS SOB DEMANDA
C37: ITEM | D37: DESCRIÇÃO | G37: PREÇO TOTAL (MENSAL)
C38: TRANSP. | D38: PREVISÃO DE MOVIMENTAÇÕES EM TRANSPORTE POR CHAMADO | G38: ='Demanda - Transp. p. chamado'!J16 -> 0
C39: DEMANDA - MATERIAIS | D39: EPIs, MATERIAIS E UNIFORMES - SOB DEMANDA | G39: 0
C40: DEMANDA - SERVIÇOS | D40: SERVIÇOS - SOB DEMANDA | G40: ='Demanda - Serviços'!J31 -> 0
D42: TOTAL MENSAL - ITENS SOB DEMANDA | G42: =SUM(G38:G41) -> 0
D44: TOTAL MENSAL
D45: DESCRIÇÃO | F45: VALOR
D46: FATURA MENSAL ORDINÁRIA | F46: =G11 -> 1967212.15
D47: ESTIMATIVA MENSAL - ITENS COMPLEMENTARES À FOLHA | F47: =$G$30 -> 947.5
D48: ESTIMATIVA MENSAL - ITENS SOB DEMANDA | F48: =G42 -> 0
E50: TOTAL MENSAL DA CONTRATAÇÃO | F50: =TRUNC(SUM(F46:F49),2) -> 1968159.65 | I50: =Extenso_Valor(F50) -> um milhão, novecentos e sessenta e oito mil, cento e cinquenta e nove reais e sessenta e cinco centavos
D52: TOTAL GLOBAL DA CONTRATAÇÃO - 12 MESES
E54: 12 x TOTAL MENSAL | F54: =TRUNC(F50*12,2) -> 23617915.8 | I54: =Extenso_Valor(F54) -> vinte e três milhões, seiscentos e dezessete mil, novecentos e quinze reais e oitenta centavos
D56: TOTAL MENSAL - ITENS SOB DEMANDA
D57: DESCRIÇÃO | F57: VALOR
D58: Materiais não relacionados diretamente a um posto de trabalho - AQUISIÇÃO SOB DEMANDA | F58: =#REF! -> 
D59: Equipamentos não relacionados diretamente a um posto de trabalho - AQUISIÇÃO SOB DEMANDA | F59: =#REF! -> 
F61: =SUM(F58:F60) -> 
D63: TOTAL ANUAL - ITENS SOB DEMANDA
F65: =F61*12 -> 
D67: TOTAL ANUAL GLOBAL DA CONTRATAÇÃO
F69: =F65+F54 -> 
D72: TOTAL GLOBAL DA CONTRATAÇÃO - 24 MESES
E74: 24 x TOTAL MENSAL | F74: =TRUNC(F50*24,2) -> 47235831.6 | I74: =Extenso_Valor(F74) -> quarenta e sete milhões, duzentos e trinta e cinco mil, oitocentos e trinta e um reais e sessenta centavos
D76: TOTAL MENSAL - ITENS SOB DEMANDA
D77: DESCRIÇÃO | F77: VALOR
D78: Materiais não relacionados diretamente a um posto de trabalho - AQUISIÇÃO SOB DEMANDA | F78: =#REF! -> 
D79: Equipamentos não relacionados diretamente a um posto de trabalho - AQUISIÇÃO SOB DEMANDA | F79: =#REF! -> 
F81: =SUM(F78:F80) -> 
D83: TOTAL ANUAL - ITENS SOB DEMANDA
F85: =F81*12 -> 
D87: TOTAL ANUAL GLOBAL DA CONTRATAÇÃO
F89: =F85+F74 -> 

Sheet 1
B2: PLANILHA DE ESTIMATIVA DE CUSTOS
B3: Padrão IN 05/2017 e IN 07/2018 - MPDG - Medição por posto presente
B5: 1 | D5: =HLOOKUP($B$5,'Dados Gerais'!$D$6:$BI$22,6) -> TÉCNICO DE APOIO ADMINISTRATIVO | E5: QUANTIDADE | F5: =HLOOKUP($B$5,'Dados Gerais'!$D$6:$BI$22,10) -> 168
B6: CCT | D6: =HLOOKUP($B$5,'Dados Gerais'!$D$6:$BI$22,16) -> SEAC/DF x SINDISERVIÇOS/DF CCT 2025/2026 N.º DF000042/2025 | E6: DATA-BASE | F6: =HLOOKUP($B$5,'Dados Gerais'!$D$6:$BI$22,17) -> 2025-01-01
B8: MÓDULO 1 - COMPOSIÇÃO DA REMUNERAÇÃO | F8: Valor
C9: A | D9: Salário-Base | F9: =HLOOKUP($B$5,'Dados Gerais'!$D$6:$BI$22,8) -> 4932.41
C10: B | D10: Adicional de Periculosidade | F10: =HLOOKUP($B$5,'Dados Gerais'!$D$6:$BI$41,26) -> 0
C11: C | D11: Adicional de Insalubridade | F11: =HLOOKUP($B$5,'Dados Gerais'!$D$6:$BI$41,32) -> 0
C12: D | D12: Adicional Noturno | F12: =HLOOKUP($B$5,'Dados Gerais'!$D$6:$BI$54,49) -> 0 | H12: * Nota 1 - O Módulo 1 refere-se ao valor mensal devido ao empregado pela prestação do serviço no período de 12 meses.
C13: E | D13: Adicional de Hora Extra | F13: =HLOOKUP($B$5,'Dados Gerais'!$D$6:$BI$71,66) -> 0 | H13: * Nota 2 - O adicional de hora extra no feriado trabalhado foi suprimido pela Lei 13.467/17
C14: F | D14: Gratificação | F14: =HLOOKUP($B$5,'Dados Gerais'!$D$6:$BI$71,34) -> 0 | H14: * Nota 3 - ART. 7º, § 2º, DA LEI Nº 605/49.Sendo mensalista o obreiro, o adicional noturno pago de forma fixa já é considerado integrado para os efeitos do pagamento do repouso semanal remunerado, nos termos do art. 7º, § 2º, da Lei nº 605/49.
C15: G | D15: Sobraviso | F15: =HLOOKUP($B$5,'Dados Gerais'!$D$6:$BI$71,36) -> 0
D17: TOTAL DA REMUNERAÇÃO | F17: =TRUNC(SUM(F9:F15),2) -> 4932.41
B19: MÓDULO 2 - ENCARGOS E BENEFÍCIOS ANUAIS, MENSAIS E DIÁRIOS | E19: Percentuais | F19: Valor
B20: Submódulo 2.1 - Férias e Adicional de Férias
C21: A | D21: 13º Salário | E21: ='Encargos Sociais'!$E$32 -> 0.0909 | F21: =ROUND(E21*F$17,2) -> 448.36 | H21: * Nota 1 - O 13º salário foi calculado dividindo-se por 11, para comportar os 11 meses presentes e ainda o ausente do posto
C22: B | D22: Adicional de Férias | E22: ='Encargos Sociais'!E31 -> 0.0303 | F22: =TRUNC(E22*(F$17),2) -> 149.45 | H22: * Nota 2 - O adicional de férias foi calculado dividindo-se por 11, para comportar os 11 meses presentes e ainda o ausente do posto
B24: Submódulo 2.2 - Encargos Previdenciários (GPS), Fundo de Garantia por Tempo de Serviço (FGTS) e Outras Contribuições
C25: A | D25: ='Encargos Sociais'!D14 -> INSS (art. 22, inciso I, Lei nº 8.212/91) | E25: ='Encargos Sociais'!E14 -> 0.2 | F25: =TRUNC(E25*($F$17+$F$21+$F$22+$F$80-$F$69),2) -> 1214.55 | H25: * Nota 1 - Os percentuais dos encargos previdenciários, do FGTS e demais contribuições são estabelecidos por legislação vigente.
C26: B | D26: ='Encargos Sociais'!D15 -> Salário Educação (art. 3º, inciso I, Decreto nº 87.043/82) | E26: ='Encargos Sociais'!E15 -> 0.025 | F26: =TRUNC(E26*($F$17+$F$21+$F$22+$F$80),2) -> 151.92 | H26: * Nota 2 - O SAT, a depender do grau de risco do serviço, irá variar entre 1%, para risco leve, de 2%, para risco médio, e de 3% para risco grave.
C27: C | D27: ='Encargos Sociais'!D16 -> SAT/RAT (art. 22, II, Lei 8.212/91 e Anexo V, Decreto 6.042/07) - Enquadramento 8211-3/00 | E27: ='Encargos Sociais'!E16 -> 0.01 | F27: =TRUNC(E27*($F$17+$F$21+$F$22+$F$80),2) -> 60.77 | H27: * Nota 3 - Base de cálculo - remuneração + ausências + 13º salário + terço constitucional (férias) - exceto INSS sobre ausência por acidente de trabalho
C28: D | D28: ='Encargos Sociais'!D17 -> SESC ou SESI (art. 30, Lei nº 8.036/90 e art. 1º, Lei 8.154/90) | E28: ='Encargos Sociais'!E17 -> 0.015 | F28: 91.15
C29: E | D29: ='Encargos Sociais'!D18 -> SENAI ou SENAC (Decreto nº 2.318/86) | E29: ='Encargos Sociais'!E18 -> 0.01 | F29: 60.77
C30: F | D30: ='Encargos Sociais'!D19 -> SEBRAE (§ 3º, art. 8º, Lei 8.029/90, alterada pela Lei nº 8.154/90) | E30: ='Encargos Sociais'!E19 -> 0.006 | F30: 36.46
C31: G | D31: ='Encargos Sociais'!D20 -> INCRA (art. 1º, I, Decreto Lei 1.146/70 e Lei 7.787, de 30/06/89) | E31: ='Encargos Sociais'!E20 -> 0.002 | F31: 12.15
C32: H | D32: ='Encargos Sociais'!D21 -> FGTS (Lei Complementar nº 110/01 e art. 30, Lei nº 8.036/90) | E32: ='Encargos Sociais'!E21 -> 0.08 | F32: 486.17
C33: I | D33: ='Encargos Sociais'!D22 -> SECONCI (Convenções Coletivas de Trabalho da construção) | E33: ='Encargos Sociais'!E22 -> 0 | F33: 0
B35: Submódulo 2.3 - Benefícios Mensais e Diários
C36: A | D36: Auxílio Transporte | F36: =HLOOKUP($B$5,'Dados Gerais'!$D$6:$BI$144,85) -> 0 | H36: * Nota 1 - O valor informado deverá ser o custo real do benefício (descontado o valor eventualmente pago pelo empregado).
C37: B | D37: Auxílio Alimentação | F37: =HLOOKUP($B$5,'Dados Gerais'!$D$6:$BI$144,96) -> 1048.3 | H37: * Nota 2 - Observar a previsão dos benefícios contidos em Acordos, Convenções e Dissídios Coletivos de Trabalho e o disposto no art. 6º da IN 5/2017
C38: C | D38: Assistência Médica e Familiar | F38: =HLOOKUP($B$5,'Dados Gerais'!$D$6:$BI$144,104) -> 0
C39: D | D39: Seguro de vida / auxílio funeral | F39: =HLOOKUP($B$5,'Dados Gerais'!$D$6:$BI$144,113) -> 3.61
C40: E | D40: Assistência odontológica | F40: =HLOOKUP($B$5,'Dados Gerais'!$D$6:$BI$144,119) -> 0
C41: F | D41: Auxílio creche | F41: =HLOOKUP($B$5,'Dados Gerais'!$D$6:$BI$144,125) -> 0
C42: G | D42: Auxílio vestuário especial | F42: =HLOOKUP($B$5,'Dados Gerais'!$D$6:$BI$144,130) -> 0
C43: H | D43: Benefício social familiar | F43: =HLOOKUP($B$5,'Dados Gerais'!$D$6:$BI$144,137) -> 0
C44: I | D44: Outros (especificar) | F44: 0
C45: J | D45: Outros (especificar) | F45: 0
D47: QUADRO-RESUMO DO MÓDULO 2
D48: 2.1 - 13º salário e Adicional de Férias | E48: =SUM(E21:E22) -> 0.1212 | F48: =F21+F22 -> 597.81
D49: 2.2 - Encargos Previdenciários (GPS), Fundo de Garantia por Tempo de Serviço (FGTS) e Contribuições | E49: =SUM(E25:E33) -> 0.348 | F49: =SUM(F25:F33) -> 2113.94
D50: 2.3 - Benefícios Mensais e Diários | F50: =SUM(F36:F45) -> 1051.91
D52: TOTAL DOS ENCARGOS E BENEFÍCIOS | F52: =TRUNC(SUM(F48:F50),2) -> 3763.66
B54: MÓDULO 3 - PROVISÃO PARA RESCISÃO | E54: Percentuais | F54: Valor
C55: A | D55: ='Encargos Sociais'!D36 -> Aviso Prévio Indenizado (Art. 7º, inciso XXI, da CF/1988 e arts. 477, 487, §1º, e 491 da CLT) | E55: ='Encargos Sociais'!E36 -> 0.0042 | F55: =TRUNC(E55*($F$17+$F$48+$F$80),2) -> 25.52 | H55: * Nota 1 - Base de cálculo - remuneração + ausências + 1/3 férias + 13º
C56: B | D56: ='Encargos Sociais'!D37 -> Incidência do FGTS sobre o Aviso Prévio Indenizado (Súmula 305 TST) | E56: ='Encargos Sociais'!E37 -> 0.0003 | F56: =TRUNC(E56*($F$17+$F$48+$F$80),2) -> 1.82
C57: C | D57: ='Encargos Sociais'!D38 -> Multa do FGTS sobre o Aviso Prévio Indenizado (Art. 18, §1º, da Lei 8.036/1990) | E57: ='Encargos Sociais'!E38 -> 0 | F57: =TRUNC(E57*($F$17+$F$48+$F$80),2) -> 0 | H57: * Nota 2 - zerado pois foi considerada toda a incidência da multa do FGTS na letra F
C58: D | D58: ='Encargos Sociais'!D39 -> Aviso Prévio Trabalhado (Art. 488, parágrafo único, CLT) | E58: ='Encargos Sociais'!E39 -> 0.0097 | F58: =TRUNC(E58*($F$17),2) -> 47.84
C59: E | D59: ='Encargos Sociais'!D40 -> Incidência de GPS, FGTS e outras contribuições sobre o Aviso Prévio Trabalhado | E59: ='Encargos Sociais'!E40 -> 0.0034 | F59: =TRUNC(E59*($F$17),2) -> 16.77
C60: F | D60: ='Encargos Sociais'!D41 -> Multa do FGTS | E60: ='Encargos Sociais'!E41 -> 0.032 | F60: =TRUNC(E60*($F$17+$F$48+$F$80),2) -> 194.47
D62: TOTAL DE PROVISÃO PARA RESCISÃO | F62: =TRUNC(SUM(F55:F60),2) -> 286.42
B64: MÓDULO 4 - CUSTO DO PROFISSIONAL AUSENTE | E64: Percentuais | F64: Valor
B65: Submódulo 4.1 - Ausências Legais
C66: A | D66: ='Encargos Sociais'!D25 -> Férias (Arts. 129 e 130, inc. I, da CLT) | E66: ='Encargos Sociais'!E25 -> 0.0909 | F66: =TRUNC(E66*$F$17,2) -> 448.35 | H66: * Nota 1 - O Módulo 4 refere-se às previsões para custear ausências do próprio profissional (titular do cargo)
C67: B | D67: ='Encargos Sociais'!D26 -> Ausências Legais (Arts. 131 e 473 da CLT) | E67: ='Encargos Sociais'!E26 -> 0.0079 | F67: 38.96 | H67: * Nota 2 - As férias foram calculadas dividindo-se por 11, para comportar os 11 meses presentes e ainda o ausente do posto
C68: C | D68: ='Encargos Sociais'!D27 -> Licença-Paternidade (Art. 7º, XIX, e art. 10, §1º, do ADCT, CF/1988 e Art. 1º, II, da Lei 11.770/2008) | E68: ='Encargos Sociais'!E27 -> 0.0008 | F68: 3.94
C69: D | D69: ='Encargos Sociais'!D28 -> Ausência por Acidente de Trabalho (Art. 131, III, da CLT) | E69: ='Encargos Sociais'!E28 -> 0.0009 | F69: 4.43
C70: E | D70: ='Encargos Sociais'!D29 -> Afastamento Maternidade (Art. 71 da Lei nº 8.213/1991) | E70: ='Encargos Sociais'!E29 -> 0.0033 | F70: 16.27
C71: F | D71: ='Encargos Sociais'!D30 -> Auxílio Enfermidade - Doença (Art. 59 da Lei nº 8.213/1991) | E71: ='Encargos Sociais'!E30 -> 0.0071 | F71: 35.02
B73: Submódulo 4.2 - Intrajornada
C74: A | D74: Intervalo para repouso ou alimentação | E74: ='Encargos Sociais'!E33 -> 0 | F74: =ROUND(E74*$F$17,2) -> 0
D76: QUADRO-RESUMO DO MÓDULO 4 | F76: Valor
D77: 4.1 - Ausências Legais | E77: =SUM(E66:E71) -> 0.1109 | F77: =SUM(F66:F71) -> 546.97
D78: 4.2 - Intrajornada | E78: =E74 -> 0 | F78: =ROUND(E78*$F$17,2) -> 0
D80: TOTAL DE CUSTO DO PROFISSIONAL AUSENTE E INTERVALO INTRAJORNADA | F80: =TRUNC(SUM(F77:F78),2) -> 546.97
B82: MÓDULO 5 - INSUMOS DIVERSOS | F82: Valor
C83: A | D83: Uniformes - aquisição | F83: =TRUNC(HLOOKUP($B$5,Uniformes!$J$3:$DY$5,3,0)/12,2) -> 0
C84: B | D84: Materiais de consumo relacionados ao posto - aquisição | F84: 0
C85: C | D85: Ferramentas relacionadas ao posto - remuneração da sua depreciação / manutenção | F85: 0
C86: D | D86: Equipamentos relacionados ao posto - remuneração da sua depreciação / manutenção | F86: 0
C87: E | D87: Equipamentos de Proteção Individual - EPI - aquisição | F87: =TRUNC(HLOOKUP($B$5,EPI!$J$3:$DX$5,3,0)/12,2) -> 0
D89: TOTAL DE INSUMOS DIVERSOS | F89: =SUM(F83:F88) -> 0 | H89: * Nota - Valores mensais por empregado
B91: MÓDULO 6 - CUSTOS INDIRETOS, TRIBUTOS E LUCRO - BDI | E91: Percentuais | F91: Valor
C92: A | D92: Custos Indiretos | E92: ='BDI - Geral'!E7 -> 0.027
C93: A.1 | D93: Administração Central | E93: ='BDI - Geral'!E8 -> 0.0216
C94: A.2 | D94: Seguros, Garantias e Riscos | E94: ='BDI - Geral'!E9 -> 0.0054
C95: B | D95: Lucro | E95: ='BDI - Geral'!E11 -> 0.0334
C96: C | D96: Tributos | E96: =SUM(E97:E98) -> 0.124
C97: C.1 | D97: Tributos Federais (COFINS, PIS e CPRB) | E97: ='BDI - Geral'!E19 -> 0.074
C98: C.2 | D98: Tributos Distritais (ISS) | E98: ='BDI - Geral'!E24 -> 0.05
C99: D | D99: Despesas Financeiras | E99: ='BDI - Geral'!E14 -> 0.0061
D101: TOTAL DE BDI | E101: ='BDI - Geral'!E27 -> 0.2189 | F101: =TRUNC(E101*E109,2) -> 2085.99
D103: QUADRO-RESUMO DO CUSTO MENSAL POR EMPREGADO | E103: Valor
D104: Módulo 1 - Composição da Remuneração | E104: =F17 -> 4932.41
D105: Módulo 2 - Encargos e Benefícios Anuais, Mensais e Diários | E105: =F52 -> 3763.66
D106: Módulo 3 - Provisão para Rescisão | E106: =F62 -> 286.42
D107: Módulo 4 - Custo do Profissional Ausente | E107: =F80 -> 546.97
D108: Módulo 5 - Insumos Diversos | E108: =F89 -> 0
D109: SUBTOTAL (A+B+C+D+E) | E109: =SUM(E104:E108) -> 9529.46
D110: Módulo 6 - Custos Indiretos, Tributos e Lucro | E110: =F101 -> 2085.99
D112: TOTAL DO POSTO | E112: =SUM(E109:E110) -> 11615.45

Sheet 3 (hidden)
B2: PLANILHA DE ESTIMATIVA DE CUSTOS
B3: Padrão IN 05/2017 e IN 07/2018 - MPDG - Medição por posto presente
B5: 3 | D5: =HLOOKUP($B$5,'Dados Gerais'!$D$6:$BI$22,6) -> 0 | E5: QUANTIDADE | F5: =HLOOKUP($B$5,'Dados Gerais'!$D$6:$BI$22,10) -> 0
B6: CCT | D6: =HLOOKUP($B$5,'Dados Gerais'!$D$6:$BI$22,16) -> 0 | E6: DATA-BASE | F6: =HLOOKUP($B$5,'Dados Gerais'!$D$6:$BI$22,17) -> 00:00:00
B8: MÓDULO 1 - COMPOSIÇÃO DA REMUNERAÇÃO | F8: Valor
C9: A | D9: Salário-Base | F9: =HLOOKUP($B$5,'Dados Gerais'!$D$6:$BI$22,8) -> 0
C10: B | D10: Adicional de Periculosidade | F10: =HLOOKUP($B$5,'Dados Gerais'!$D$6:$BI$41,26) -> 0
C11: C | D11: Adicional de Insalubridade | F11: =HLOOKUP($B$5,'Dados Gerais'!$D$6:$BI$41,32) -> 0
C12: D | D12: Adicional Noturno | F12: =HLOOKUP($B$5,'Dados Gerais'!$D$6:$BI$54,49) -> 0 | H12: * Nota 1 - O Módulo 1 refere-se ao valor mensal devido ao empregado pela prestação do serviço no período de 12 meses.
C13: E | D13: Adicional de Hora Extra | F13: =HLOOKUP($B$5,'Dados Gerais'!$D$6:$BI$71,66) -> 0 | H13: * Nota 2 - O adicional de hora extra no feriado trabalhado foi suprimido pela Lei 13.467/17
C14: F | D14: Gratificação | F14: =HLOOKUP($B$5,'Dados Gerais'!$D$6:$BI$71,34) -> 0 | H14: * Nota 3 - ART. 7º, § 2º, DA LEI Nº 605/49.Sendo mensalista o obreiro, o adicional noturno pago de forma fixa já é considerado integrado para os efeitos do pagamento do repouso semanal remunerado, nos termos do art. 7º, § 2º, da Lei nº 605/49.
C15: G | D15: Sobraviso | F15: =HLOOKUP($B$5,'Dados Gerais'!$D$6:$BI$71,36) -> 0 | H15: * Nota 3 - ART. 7º, § 2º, DA LEI Nº 605/49.Sendo mensalista o obreiro, o adicional noturno pago de forma fixa já é considerado integrado para os efeitos do pagamento do repouso semanal remunerado, nos termos do art. 7º, § 2º, da Lei nº 605/49.
D17: TOTAL DA REMUNERAÇÃO | F17: =TRUNC(SUM(F9:F15),2) -> 0
B19: MÓDULO 2 - ENCARGOS E BENEFÍCIOS ANUAIS, MENSAIS E DIÁRIOS | E19: Percentuais | F19: Valor
B20: Submódulo 2.1 - 13º Salário, Férias e Adicional de Férias
C21: A | D21: 13º Salário - Calculado no Módulo 7 - Destacado | E21: 0 | F21: =TRUNC(E21*F$17,2) -> 0
C22: B | D22: Adicional de Férias | E22: ='Encargos Sociais'!E31 -> 0.0303 | F22: =TRUNC(E22*(F$17),2) -> 0 | H22: * Nota 1 - O adicional de férias foi calculado dividindo-se por 11, para comportar os 11 meses presentes e ainda o ausente do posto
B24: Submódulo 2.2 - Encargos Previdenciários (GPS), Fundo de Garantia por Tempo de Serviço (FGTS) e Outras Contribuições
C25: A | D25: ='Encargos Sociais'!D14 -> INSS (art. 22, inciso I, Lei nº 8.212/91) | E25: ='Encargos Sociais'!E14 -> 0.2 | F25: =TRUNC(E25*($F$17+$F$80+$F$22-F69),2) -> 0 | H25: * Nota 1 - Os percentuais dos encargos previdenciários, do FGTS e demais contribuições são estabelecidos por legislação vigente.
C26: B | D26: ='Encargos Sociais'!D15 -> Salário Educação (art. 3º, inciso I, Decreto nº 87.043/82) | E26: ='Encargos Sociais'!E15 -> 0.025 | F26: =TRUNC(E26*($F$17+$F$80+$F$22),2) -> 0 | H26: * Nota 2 - O SAT, a depender do grau de risco do serviço, irá variar entre 1%, para risco leve, de 2%, para risco médio, e de 3% para risco grave.
C27: C | D27: ='Encargos Sociais'!D16 -> SAT/RAT (art. 22, II, Lei 8.212/91 e Anexo V, Decreto 6.042/07) - Enquadramento 8211-3/00 | E27: ='Encargos Sociais'!E16 -> 0.01 | F27: 0 | H27: * Nota 3 - Base de cálculo - remuneração + ausências + terço constitucional (férias) - exceto INSS sobre ausência por acidente de trabalho
C28: D | D28: ='Encargos Sociais'!D17 -> SESC ou SESI (art. 30, Lei nº 8.036/90 e art. 1º, Lei 8.154/90) | E28: ='Encargos Sociais'!E17 -> 0.015 | F28: 0
C29: E | D29: ='Encargos Sociais'!D18 -> SENAI ou SENAC (Decreto nº 2.318/86) | E29: ='Encargos Sociais'!E18 -> 0.01 | F29: 0
C30: F | D30: ='Encargos Sociais'!D19 -> SEBRAE (§ 3º, art. 8º, Lei 8.029/90, alterada pela Lei nº 8.154/90) | E30: ='Encargos Sociais'!E19 -> 0.006 | F30: 0
C31: G | D31: ='Encargos Sociais'!D20 -> INCRA (art. 1º, I, Decreto Lei 1.146/70 e Lei 7.787, de 30/06/89) | E31: ='Encargos Sociais'!E20 -> 0.002 | F31: 0
C32: H | D32: ='Encargos Sociais'!D21 -> FGTS (Lei Complementar nº 110/01 e art. 30, Lei nº 8.036/90) | E32: ='Encargos Sociais'!E21 -> 0.08 | F32: 0
C33: I | D33: ='Encargos Sociais'!D22 -> SECONCI (Convenções Coletivas de Trabalho da construção) | E33: ='Encargos Sociais'!E22 -> 0 | F33: 0
B35: Submódulo 2.3 - Benefícios Mensais e Diários
C36: A | D36: Auxílio Transporte | F36: =HLOOKUP($B$5,'Dados Gerais'!$D$6:$BI$101,85) -> 0 | H36: * Nota 1 - O valor informado deverá ser o custo real do benefício (descontado o valor eventualmente pago pelo empregado).
C37: B | D37: Auxílio Alimentação | F37: =HLOOKUP($B$5,'Dados Gerais'!$D$6:$BI$101,92) -> 0 | H37: * Nota 2 - Observar a previsão dos benefícios contidos em Acordos, Convenções e Dissídios Coletivos de Trabalho e o disposto no art. 6º da IN 5/2017
C38: C | D38: Assistência Médica e Familiar | F38: =HLOOKUP($B$5,'Dados Gerais'!$D$6:$BI$109,100) -> 0
C39: D | D39: Seguro de vida / auxílio funeral | F39: =HLOOKUP($B$5,'Dados Gerais'!$D$6:$BI$145,109) -> 0
C40: E | D40: Assistência odontológica | F40: =HLOOKUP($B$5,'Dados Gerais'!$D$6:$BI$145,115) -> 0
C41: F | D41: Auxílio creche | F41: =HLOOKUP($B$5,'Dados Gerais'!$D$6:$BI$145,121) -> 0
C42: G | D42: Auxílio vestuário especial | F42: =HLOOKUP($B$5,'Dados Gerais'!$D$6:$BI$145,127) -> 0
C43: H | D43: Benefício social familiar | F43: =HLOOKUP($B$5,'Dados Gerais'!$D$6:$BI$145,133) -> 0
C44: I | D44: Outros (especificar) | F44: =HLOOKUP($B$5,'Dados Gerais'!$D$6:$BI$145,115) -> 0
C45: J | D45: Outros (especificar) | F45: =HLOOKUP($B$5,'Dados Gerais'!$D$6:$BI$145,115) -> 0
D47: QUADRO-RESUMO DO MÓDULO 2
D48: 2.1 - Adicional de Férias | E48: =SUM(E21:E22) -> 0.0303 | F48: =F21+F22 -> 0
D49: 2.2 - Encargos Previdenciários (GPS), Fundo de Garantia por Tempo de Serviço (FGTS) e Contribuições | E49: =SUM(E25:E33) -> 0.348 | F49: =SUM(F25:F33) -> 0
D50: 2.3 - Benefícios Mensais e Diários | F50: =SUM(F36:F45) -> 0
D52: TOTAL DOS ENCARGOS E BENEFÍCIOS | F52: =TRUNC(SUM(F48:F50),2) -> 0
B54: MÓDULO 3 - PREVISÃO PARA RESCISÃO | E54: Percentuais | F54: Valor
C55: A | D55: ='Encargos Sociais'!D36 -> Aviso Prévio Indenizado (Art. 7º, inciso XXI, da CF/1988 e arts. 477, 487, §1º, e 491 da CLT) | E55: ='Encargos Sociais'!E36 -> 0.0042 | F55: =TRUNC(E55*($F$17+$F$48+$F$80),2) -> 0 | H55: * Nota 1 - Base de cálculo - remuneração + ausências + 1/3 férias
C56: B | D56: ='Encargos Sociais'!D37 -> Incidência do FGTS sobre o Aviso Prévio Indenizado (Súmula 305 TST) | E56: ='Encargos Sociais'!E37 -> 0.0003 | F56: 0
C57: C | D57: ='Encargos Sociais'!D38 -> Multa do FGTS sobre o Aviso Prévio Indenizado (Art. 18, §1º, da Lei 8.036/1990) | E57: ='Encargos Sociais'!E38 -> 0 | F57: 0
C58: D | D58: ='Encargos Sociais'!D39 -> Aviso Prévio Trabalhado (Art. 488, parágrafo único, CLT) | E58: ='Encargos Sociais'!E39 -> 0.0097 | F58: 0
C59: E | D59: ='Encargos Sociais'!D40 -> Incidência de GPS, FGTS e outras contribuições sobre o Aviso Prévio Trabalhado | E59: ='Encargos Sociais'!E40 -> 0.0034 | F59: 0
C60: F | D60: ='Encargos Sociais'!D41 -> Multa do FGTS | E60: ='Encargos Sociais'!E41 -> 0.032 | F60: 0
D62: TOTAL DE PREVISÃO PARA RESCISÃO | F62: =TRUNC(SUM(F55:F60),2) -> 0
B64: MÓDULO 4 - CUSTO DO PROFISSIONAL AUSENTE | E64: Percentuais | F64: Valor
B65: Submódulo 4.1 - Ausências Legais
C66: A | D66: ='Encargos Sociais'!D25 -> Férias (Arts. 129 e 130, inc. I, da CLT) | E66: ='Encargos Sociais'!E25 -> 0.0909 | F66: =TRUNC(E66*$F$17,2) -> 0 | H66: * Nota 1 - O Módulo 4 refere-se às previsões para custear ausências do próprio profissional (titular do cargo)
C67: B | D67: ='Encargos Sociais'!D26 -> Ausências Legais (Arts. 131 e 473 da CLT) | E67: ='Encargos Sociais'!E26 -> 0.0079 | F67: 0 | H67: * Nota 2 - As férias foram calculadas dividindo-se por 11, para comportar os 11 meses presentes e ainda o ausente do posto
C68: C | D68: ='Encargos Sociais'!D27 -> Licença-Paternidade (Art. 7º, XIX, e art. 10, §1º, do ADCT, CF/1988 e Art. 1º, II, da Lei 11.770/2008) | E68: ='Encargos Sociais'!E27 -> 0.0008 | F68: 0
C69: D | D69: ='Encargos Sociais'!D28 -> Ausência por Acidente de Trabalho (Art. 131, III, da CLT) | E69: ='Encargos Sociais'!E28 -> 0.0009 | F69: 0
C70: E | D70: ='Encargos Sociais'!D29 -> Afastamento Maternidade (Art. 71 da Lei nº 8.213/1991) | E70: ='Encargos Sociais'!E29 -> 0.0033 | F70: 0
C71: F | D71: ='Encargos Sociais'!D30 -> Auxílio Enfermidade - Doença (Art. 59 da Lei nº 8.213/1991) | E71: ='Encargos Sociais'!E30 -> 0.0071 | F71: 0
B73: Submódulo 4.2 - Intrajornada
C74: A | D74: Intervalo para repouso ou alimentação | E74: ='Encargos Sociais'!E33 -> 0 | F74: =ROUND(E74*$F$17,2) -> 0
D76: QUADRO-RESUMO DO MÓDULO 4 | F76: Valor
D77: 4.1 - Ausências Legais | E77: =SUM(E66:E71) -> 0.1109 | F77: =SUM(F66:F71) -> 0
D78: 4.2 - Intrajornada | E78: =E74 -> 0 | F78: =ROUND(E78*$F$17,2) -> 0
D80: TOTAL DE CUSTO DO PROFFIONAL AUSENTE E INTERVALO INTRAJORNADA | F80: =TRUNC(SUM(F77:F78),2) -> 0
B82: MÓDULO 5 - INSUMOS DIVERSOS | F82: Valor
C83: A | D83: Uniformes - aquisição | F83: =TRUNC(HLOOKUP($B$5,Uniformes!$J$3:$DY$5,3,0)/12,2) -> 0
C84: B | D84: Materiais de consumo relacionados ao posto - aquisição | F84: 0
C85: C | D85: Ferramentas relacionadas ao posto - remuneração da sua depreciação / manutenção | F85: 0
C86: D | D86: Equipamentos relacionados ao posto - remuneração da sua depreciação / manutenção | F86: 0
C87: E | D87: Equipamentos de Proteção Individual - EPI - aquisição | F87: =TRUNC(HLOOKUP($B$5,EPI!$J$3:$DX$5,3,0)/12,2) -> 0
D89: TOTAL DE INSUMOS DIVERSOS | F89: =SUM(F83:F88) -> 0 | H89: * Nota - Valores mensais por empregado
B91: MÓDULO 6 - CUSTOS INDIRETOS, TRIBUTOS E LUCRO - BDI | E91: Percentuais | F91: Valor
C92: A | D92: Custos Indiretos | E92: ='BDI - Geral'!E7 -> 0.027
C93: A.1 | D93: Administração Central | E93: ='BDI - Geral'!E8 -> 0.0216
C94: A.2 | D94: Seguros, Garantias e Riscos | E94: ='BDI - Geral'!E9 -> 0.0054
C95: B | D95: Lucro | E95: ='BDI - Geral'!E11 -> 0.0334
C96: C | D96: Tributos | E96: =SUM(E97:E98) -> 0.124
C97: C.1 | D97: Tributos Federais (COFINS, PIS e CPRB) | E97: ='BDI - Geral'!E19 -> 0.074
C98: C.2 | D98: Tributos Distritais (ISS) | E98: ='BDI - Geral'!E24 -> 0.05
C99: D | D99: Despesas Financeiras | E99: ='BDI - Geral'!E14 -> 0.0061
D101: TOTAL DE BDI | E101: ='BDI - Geral'!E27 -> 0.2189 | F101: =TRUNC(E101*E109,2) -> 0
D103: QUADRO-RESUMO DO CUSTO MENSAL POR EMPREGADO - SEM O 13º | E103: Valor
D104: Módulo 1 - Composição da Remuneração | E104: =F17 -> 0
D105: Módulo 2 - Encargos e Benefícios Anuais, Mensais e Diários | E105: =F52 -> 0
D106: Módulo 3 - Provisão para Rescisão | E106: =F62 -> 0
D107: Módulo 4 - Custo de Reposição do Profissional Ausente | E107: =F80 -> 0
D108: Módulo 5 - Insumos Diversos | E108: =F89 -> 0
D109: SUBTOTAL (A+B+C+D+E) | E109: =SUM(E104:E108) -> 0
D110: Módulo 6 - Custos Indiretos, Tributos e Lucro | E110: =F101 -> 0
D112: TOTAL DO POSTO | E112: =SUM(E109:E110) -> 0
B114: MÓDULO 7 - DESTAQUE DO MÓDULO 2 - 13º SALÁRIO | E114: Percentuais | F114: Valor
C115: A | D115: 13º Salário | E115: ='[1]Encargos Sociais'!E32*12/11 -> 0.09916363636 | F115: =ROUND(E115*F$17,2) -> 0 | H115: * Nota 1 - Incluindo-se a reincidência das férias do substituto sobre o titular
C116: B | D116: Encargos Sociais sobre o 13º Salário (submódulo 2.2 e módulo 3) | E116: =SUM($E$25:$E$33)+SUM($E$55:$E$60) -> 0.3976 | F116: =ROUND(E116*$F$115,2) -> 0 | H116: * Nota 2 - 13º e reflexos calculados à parte a fim de aprovisionamento
C117: C | D117: BDI sobre o 13º Salário | E117: =E101 -> 0.2189 | F117: =ROUND(E117*($F$115+$F$116),2) -> 0
D119: TOTAL DO DESTAQUE DO 13º SALÁRIO | F119: =SUM(F115:F117) -> 0
D121: QUADRO-RESUMO DO CUSTO MENSAL POR EMPREGADO | E121: Valor
D122: Custo total - sem o 13º Salário | E122: =ROUND(E112,2) -> 0
D123: Destaque do 13º Salário (valor mensal) | E123: =ROUND(F119,2) -> 0
D125: TOTAL DO POSTO | E125: =E122+E123 -> 0

Sheet 4 (hidden)
B2: PLANILHA DE ESTIMATIVA DE CUSTOS
B3: Padrão IN 05/2017 e IN 07/2018 - MPDG - Medição por posto presente
B5: 4 | D5: =HLOOKUP($B$5,'Dados Gerais'!$D$6:$BI$22,6) -> 0 | E5: QUANTIDADE | F5: =HLOOKUP($B$5,'Dados Gerais'!$D$6:$BI$22,10) -> 0
B6: CCT | D6: =HLOOKUP($B$5,'Dados Gerais'!$D$6:$BI$22,16) -> 0 | E6: DATA-BASE | F6: =HLOOKUP($B$5,'Dados Gerais'!$D$6:$BI$22,17) -> 00:00:00
B8: MÓDULO 1 - COMPOSIÇÃO DA REMUNERAÇÃO | F8: Valor
C9: A | D9: Salário-Base | F9: =HLOOKUP($B$5,'Dados Gerais'!$D$6:$BI$22,8) -> 0
C10: B | D10: Adicional de Periculosidade | F10: =HLOOKUP($B$5,'Dados Gerais'!$D$6:$BI$41,26) -> 0
C11: C | D11: Adicional de Insalubridade | F11: =HLOOKUP($B$5,'Dados Gerais'!$D$6:$BI$41,32) -> 0
C12: D | D12: Adicional Noturno | F12: =HLOOKUP($B$5,'Dados Gerais'!$D$6:$BI$54,49) -> 0 | H12: * Nota 1 - O Módulo 1 refere-se ao valor mensal devido ao empregado pela prestação do serviço no período de 12 meses.
C13: E | D13: Adicional de Hora Extra | F13: =HLOOKUP($B$5,'Dados Gerais'!$D$6:$BI$71,66) -> 0 | H13: * Nota 2 - O adicional de hora extra no feriado trabalhado foi suprimido pela Lei 13.467/17
C14: F | D14: Gratificação | F14: =HLOOKUP($B$5,'Dados Gerais'!$D$6:$BI$71,34) -> 0 | H14: * Nota 3 - ART. 7º, § 2º, DA LEI Nº 605/49.Sendo mensalista o obreiro, o adicional noturno pago de forma fixa já é considerado integrado para os efeitos do pagamento do repouso semanal remunerado, nos termos do art. 7º, § 2º, da Lei nº 605/49.
C15: G | D15: Sobraviso | F15: =HLOOKUP($B$5,'Dados Gerais'!$D$6:$BI$71,36) -> 0 | H15: * Nota 3 - ART. 7º, § 2º, DA LEI Nº 605/49.Sendo mensalista o obreiro, o adicional noturno pago de forma fixa já é considerado integrado para os efeitos do pagamento do repouso semanal remunerado, nos termos do art. 7º, § 2º, da Lei nº 605/49.
D17: TOTAL DA REMUNERAÇÃO | F17: =TRUNC(SUM(F9:F15),2) -> 0
B19: MÓDULO 2 - ENCARGOS E BENEFÍCIOS ANUAIS, MENSAIS E DIÁRIOS | E19: Percentuais | F19: Valor
B20: Submódulo 2.1 - 13º Salário, Férias e Adicional de Férias
C21: A | D21: 13º Salário - Calculado no Módulo 7 - Destacado | E21: 0 | F21: =TRUNC(E21*F$17,2) -> 0
C22: B | D22: Adicional de Férias | E22: ='Encargos Sociais'!E31 -> 0.0303 | F22: =TRUNC(E22*(F$17),2) -> 0 | H22: * Nota 1 - O adicional de férias foi calculado dividindo-se por 11, para comportar os 11 meses presentes e ainda o ausente do posto
B24: Submódulo 2.2 - Encargos Previdenciários (GPS), Fundo de Garantia por Tempo de Serviço (FGTS) e Outras Contribuições
C25: A | D25: ='Encargos Sociais'!D14 -> INSS (art. 22, inciso I, Lei nº 8.212/91) | E25: ='Encargos Sociais'!E14 -> 0.2 | F25: =TRUNC(E25*($F$17+$F$80+$F$22-F69),2) -> 0 | H25: * Nota 1 - Os percentuais dos encargos previdenciários, do FGTS e demais contribuições são estabelecidos por legislação vigente.
C26: B | D26: ='Encargos Sociais'!D15 -> Salário Educação (art. 3º, inciso I, Decreto nº 87.043/82) | E26: ='Encargos Sociais'!E15 -> 0.025 | F26: =TRUNC(E26*($F$17+$F$80+$F$22),2) -> 0 | H26: * Nota 2 - O SAT, a depender do grau de risco do serviço, irá variar entre 1%, para risco leve, de 2%, para risco médio, e de 3% para risco grave.
C27: C | D27: ='Encargos Sociais'!D16 -> SAT/RAT (art. 22, II, Lei 8.212/91 e Anexo V, Decreto 6.042/07) - Enquadramento 8211-3/00 | E27: ='Encargos Sociais'!E16 -> 0.01 | F27: 0 | H27: * Nota 3 - Base de cálculo - remuneração + ausências + terço constitucional (férias) - exceto INSS sobre ausência por acidente de trabalho
C28: D | D28: ='Encargos Sociais'!D17 -> SESC ou SESI (art. 30, Lei nº 8.036/90 e art. 1º, Lei 8.154/90) | E28: ='Encargos Sociais'!E17 -> 0.015 | F28: 0
C29: E | D29: ='Encargos Sociais'!D18 -> SENAI ou SENAC (Decreto nº 2.318/86) | E29: ='Encargos Sociais'!E18 -> 0.01 | F29: 0
C30: F | D30: ='Encargos Sociais'!D19 -> SEBRAE (§ 3º, art. 8º, Lei 8.029/90, alterada pela Lei nº 8.154/90) | E30: ='Encargos Sociais'!E19 -> 0.006 | F30: 0
C31: G | D31: ='Encargos Sociais'!D20 -> INCRA (art. 1º, I, Decreto Lei 1.146/70 e Lei 7.787, de 30/06/89) | E31: ='Encargos Sociais'!E20 -> 0.002 | F31: 0
C32: H | D32: ='Encargos Sociais'!D21 -> FGTS (Lei Complementar nº 110/01 e art. 30, Lei nº 8.036/90) | E32: ='Encargos Sociais'!E21 -> 0.08 | F32: 0
C33: I | D33: ='Encargos Sociais'!D22 -> SECONCI (Convenções Coletivas de Trabalho da construção) | E33: ='Encargos Sociais'!E22 -> 0 | F33: 0
B35: Submódulo 2.3 - Benefícios Mensais e Diários
C36: A | D36: Auxílio Transporte | F36: =HLOOKUP($B$5,'Dados Gerais'!$D$6:$BI$101,85) -> 0 | H36: * Nota 1 - O valor informado deverá ser o custo real do benefício (descontado o valor eventualmente pago pelo empregado).
C37: B | D37: Auxílio Alimentação | F37: =HLOOKUP($B$5,'Dados Gerais'!$D$6:$BI$101,92) -> 0 | H37: * Nota 2 - Observar a previsão dos benefícios contidos em Acordos, Convenções e Dissídios Coletivos de Trabalho e o disposto no art. 6º da IN 5/2017
C38: C | D38: Assistência Médica e Familiar | F38: =HLOOKUP($B$5,'Dados Gerais'!$D$6:$BI$109,100) -> 0
C39: D | D39: Seguro de vida / auxílio funeral | F39: =HLOOKUP($B$5,'Dados Gerais'!$D$6:$BI$145,109) -> 0
C40: E | D40: Assistência odontológica | F40: =HLOOKUP($B$5,'Dados Gerais'!$D$6:$BI$145,115) -> 0
C41: F | D41: Auxílio creche | F41: =HLOOKUP($B$5,'Dados Gerais'!$D$6:$BI$145,121) -> 0
C42: G | D42: Auxílio vestuário especial | F42: =HLOOKUP($B$5,'Dados Gerais'!$D$6:$BI$145,127) -> 0
C43: H | D43: Benefício social familiar | F43: =HLOOKUP($B$5,'Dados Gerais'!$D$6:$BI$145,133) -> 0
C44: I | D44: Outros (especificar) | F44: =HLOOKUP($B$5,'Dados Gerais'!$D$6:$BI$145,115) -> 0
C45: J | D45: Outros (especificar) | F45: =HLOOKUP($B$5,'Dados Gerais'!$D$6:$BI$145,115) -> 0
D47: QUADRO-RESUMO DO MÓDULO 2
D48: 2.1 - Adicional de Férias | E48: =SUM(E21:E22) -> 0.0303 | F48: =F21+F22 -> 0
D49: 2.2 - Encargos Previdenciários (GPS), Fundo de Garantia por Tempo de Serviço (FGTS) e Contribuições | E49: =SUM(E25:E33) -> 0.348 | F49: =SUM(F25:F33) -> 0
D50: 2.3 - Benefícios Mensais e Diários | F50: =SUM(F36:F45) -> 0
D52: TOTAL DOS ENCARGOS E BENEFÍCIOS | F52: =TRUNC(SUM(F48:F50),2) -> 0
B54: MÓDULO 3 - PREVISÃO PARA RESCISÃO | E54: Percentuais | F54: Valor
C55: A | D55: ='Encargos Sociais'!D36 -> Aviso Prévio Indenizado (Art. 7º, inciso XXI, da CF/1988 e arts. 477, 487, §1º, e 491 da CLT) | E55: ='Encargos Sociais'!E36 -> 0.0042 | F55: =TRUNC(E55*($F$17+$F$48+$F$80),2) -> 0 | H55: * Nota 1 - Base de cálculo - remuneração + ausências + 1/3 férias
C56: B | D56: ='Encargos Sociais'!D37 -> Incidência do FGTS sobre o Aviso Prévio Indenizado (Súmula 305 TST) | E56: ='Encargos Sociais'!E37 -> 0.0003 | F56: 0
C57: C | D57: ='Encargos Sociais'!D38 -> Multa do FGTS sobre o Aviso Prévio Indenizado (Art. 18, §1º, da Lei 8.036/1990) | E57: ='Encargos Sociais'!E38 -> 0 | F57: 0
C58: D | D58: ='Encargos Sociais'!D39 -> Aviso Prévio Trabalhado (Art. 488, parágrafo único, CLT) | E58: ='Encargos Sociais'!E39 -> 0.0097 | F58: 0
C59: E | D59: ='Encargos Sociais'!D40 -> Incidência de GPS, FGTS e outras contribuições sobre o Aviso Prévio Trabalhado | E59: ='Encargos Sociais'!E40 -> 0.0034 | F59: 0
C60: F | D60: ='Encargos Sociais'!D41 -> Multa do FGTS | E60: ='Encargos Sociais'!E41 -> 0.032 | F60: 0
D62: TOTAL DE PREVISÃO PARA RESCISÃO | F62: =TRUNC(SUM(F55:F60),2) -> 0
B64: MÓDULO 4 - CUSTO DO PROFISSIONAL AUSENTE | E64: Percentuais | F64: Valor
B65: Submódulo 4.1 - Ausências Legais
C66: A | D66: ='Encargos Sociais'!D25 -> Férias (Arts. 129 e 130, inc. I, da CLT) | E66: ='Encargos Sociais'!E25 -> 0.0909 | F66: =TRUNC(E66*$F$17,2) -> 0 | H66: * Nota 1 - O Módulo 4 refere-se às previsões para custear ausências do próprio profissional (titular do cargo)
C67: B | D67: ='Encargos Sociais'!D26 -> Ausências Legais (Arts. 131 e 473 da CLT) | E67: ='Encargos Sociais'!E26 -> 0.0079 | F67: 0 | H67: * Nota 2 - As férias foram calculadas dividindo-se por 11, para comportar os 11 meses presentes e ainda o ausente do posto
C68: C | D68: ='Encargos Sociais'!D27 -> Licença-Paternidade (Art. 7º, XIX, e art. 10, §1º, do ADCT, CF/1988 e Art. 1º, II, da Lei 11.770/2008) | E68: ='Encargos Sociais'!E27 -> 0.0008 | F68: 0
C69: D | D69: ='Encargos Sociais'!D28 -> Ausência por Acidente de Trabalho (Art. 131, III, da CLT) | E69: ='Encargos Sociais'!E28 -> 0.0009 | F69: 0
C70: E | D70: ='Encargos Sociais'!D29 -> Afastamento Maternidade (Art. 71 da Lei nº 8.213/1991) | E70: ='Encargos Sociais'!E29 -> 0.0033 | F70: 0
C71: F | D71: ='Encargos Sociais'!D30 -> Auxílio Enfermidade - Doença (Art. 59 da Lei nº 8.213/1991) | E71: ='Encargos Sociais'!E30 -> 0.0071 | F71: 0
B73: Submódulo 4.2 - Intrajornada
C74: A | D74: Intervalo para repouso ou alimentação | E74: ='Encargos Sociais'!E33 -> 0 | F74: =ROUND(E74*$F$17,2) -> 0
D76: QUADRO-RESUMO DO MÓDULO 4 | F76: Valor
D77: 4.1 - Ausências Legais | E77: =SUM(E66:E71) -> 0.1109 | F77: =SUM(F66:F71) -> 0
D78: 4.2 - Intrajornada | E78: =E74 -> 0 | F78: =ROUND(E78*$F$17,2) -> 0
D80: TOTAL DE CUSTO DO PROFFIONAL AUSENTE E INTERVALO INTRAJORNADA | F80: =TRUNC(SUM(F77:F78),2) -> 0
B82: MÓDULO 5 - INSUMOS DIVERSOS | F82: Valor
C83: A | D83: Uniformes - aquisição | F83: =TRUNC(HLOOKUP($B$5,Uniformes!$J$3:$DY$5,3,0)/12,2) -> 0
C84: B | D84: Materiais de consumo relacionados ao posto - aquisição | F84: 0
C85: C | D85: Ferramentas relacionadas ao posto - remuneração da sua depreciação / manutenção | F85: 0
C86: D | D86: Equipamentos relacionados ao posto - remuneração da sua depreciação / manutenção | F86: 0
C87: E | D87: Equipamentos de Proteção Individual - EPI - aquisição | F87: =TRUNC(HLOOKUP($B$5,EPI!$J$3:$DX$5,3,0)/12,2) -> 0
D89: TOTAL DE INSUMOS DIVERSOS | F89: =SUM(F83:F88) -> 0 | H89: * Nota - Valores mensais por empregado
B91: MÓDULO 6 - CUSTOS INDIRETOS, TRIBUTOS E LUCRO - BDI | E91: Percentuais | F91: Valor
C92: A | D92: Custos Indiretos | E92: ='BDI - Geral'!E7 -> 0.027
C93: A.1 | D93: Administração Central | E93: ='BDI - Geral'!E8 -> 0.0216
C94: A.2 | D94: Seguros, Garantias e Riscos | E94: ='BDI - Geral'!E9 -> 0.0054
C95: B | D95: Lucro | E95: ='BDI - Geral'!E11 -> 0.0334
C96: C | D96: Tributos | E96: =SUM(E97:E98) -> 0.124
C97: C.1 | D97: Tributos Federais (COFINS, PIS e CPRB) | E97: ='BDI - Geral'!E19 -> 0.074
C98: C.2 | D98: Tributos Distritais (ISS) | E98: ='BDI - Geral'!E24 -> 0.05
C99: D | D99: Despesas Financeiras | E99: ='BDI - Geral'!E14 -> 0.0061
D101: TOTAL DE BDI | E101: ='BDI - Geral'!E27 -> 0.2189 | F101: =TRUNC(E101*E109,2) -> 0
D103: QUADRO-RESUMO DO CUSTO MENSAL POR EMPREGADO - SEM O 13º | E103: Valor
D104: Módulo 1 - Composição da Remuneração | E104: =F17 -> 0
D105: Módulo 2 - Encargos e Benefícios Anuais, Mensais e Diários | E105: =F52 -> 0
D106: Módulo 3 - Provisão para Rescisão | E106: =F62 -> 0
D107: Módulo 4 - Custo de Reposição do Profissional Ausente | E107: =F80 -> 0
D108: Módulo 5 - Insumos Diversos | E108: =F89 -> 0
D109: SUBTOTAL (A+B+C+D+E) | E109: =SUM(E104:E108) -> 0
D110: Módulo 6 - Custos Indiretos, Tributos e Lucro | E110: =F101 -> 0
D112: TOTAL DO POSTO | E112: =SUM(E109:E110) -> 0
B114: MÓDULO 7 - DESTAQUE DO MÓDULO 2 - 13º SALÁRIO | E114: Percentuais | F114: Valor
C115: A | D115: 13º Salário | E115: ='[1]Encargos Sociais'!E32*12/11 -> 0.09916363636 | F115: =ROUND(E115*F$17,2) -> 0 | H115: * Nota 1 - Incluindo-se a reincidência das férias do substituto sobre o titular
C116: B | D116: Encargos Sociais sobre o 13º Salário (submódulo 2.2 e módulo 3) | E116: =SUM($E$25:$E$33)+SUM($E$55:$E$60) -> 0.3976 | F116: =ROUND(E116*$F$115,2) -> 0 | H116: * Nota 2 - 13º e reflexos calculados à parte a fim de aprovisionamento
C117: C | D117: BDI sobre o 13º Salário | E117: =E101 -> 0.2189 | F117: =ROUND(E117*($F$115+$F$116),2) -> 0
D119: TOTAL DO DESTAQUE DO 13º SALÁRIO | F119: =SUM(F115:F117) -> 0
D121: QUADRO-RESUMO DO CUSTO MENSAL POR EMPREGADO | E121: Valor
D122: Custo total - sem o 13º Salário | E122: =ROUND(E112,2) -> 0
D123: Destaque do 13º Salário (valor mensal) | E123: =ROUND(F119,2) -> 0
D125: TOTAL DO POSTO | E125: =E122+E123 -> 0

Sheet 5 (hidden)
B2: PLANILHA DE ESTIMATIVA DE CUSTOS
B3: Padrão IN 05/2017 e IN 07/2018 - MPDG - Medição por posto presente
B5: 5 | D5: =HLOOKUP($B$5,'Dados Gerais'!$D$6:$BI$22,6) -> 0 | E5: QUANTIDADE | F5: =HLOOKUP($B$5,'Dados Gerais'!$D$6:$BI$22,10) -> 0
B6: CCT | D6: =HLOOKUP($B$5,'Dados Gerais'!$D$6:$BI$22,16) -> 0 | E6: DATA-BASE | F6: =HLOOKUP($B$5,'Dados Gerais'!$D$6:$BI$22,17) -> 00:00:00
B8: MÓDULO 1 - COMPOSIÇÃO DA REMUNERAÇÃO | F8: Valor
C9: A | D9: Salário-Base | F9: =HLOOKUP($B$5,'Dados Gerais'!$D$6:$BI$22,8) -> 0
C10: B | D10: Adicional de Periculosidade | F10: =HLOOKUP($B$5,'Dados Gerais'!$D$6:$BI$41,26) -> 0
C11: C | D11: Adicional de Insalubridade | F11: =HLOOKUP($B$5,'Dados Gerais'!$D$6:$BI$41,32) -> 0
C12: D | D12: Adicional Noturno | F12: =HLOOKUP($B$5,'Dados Gerais'!$D$6:$BI$54,49) -> 0 | H12: * Nota 1 - O Módulo 1 refere-se ao valor mensal devido ao empregado pela prestação do serviço no período de 12 meses.
C13: E | D13: Adicional de Hora Extra | F13: =HLOOKUP($B$5,'Dados Gerais'!$D$6:$BI$71,66) -> 0 | H13: * Nota 2 - O adicional de hora extra no feriado trabalhado foi suprimido pela Lei 13.467/17
C14: F | D14: Gratificação | F14: =HLOOKUP($B$5,'Dados Gerais'!$D$6:$BI$71,34) -> 0 | H14: * Nota 3 - ART. 7º, § 2º, DA LEI Nº 605/49.Sendo mensalista o obreiro, o adicional noturno pago de forma fixa já é considerado integrado para os efeitos do pagamento do repouso semanal remunerado, nos termos do art. 7º, § 2º, da Lei nº 605/49.
C15: G | D15: Sobraviso | F15: =HLOOKUP($B$5,'Dados Gerais'!$D$6:$BI$71,36) -> 0 | H15: * Nota 3 - ART. 7º, § 2º, DA LEI Nº 605/49.Sendo mensalista o obreiro, o adicional noturno pago de forma fixa já é considerado integrado para os efeitos do pagamento do repouso semanal remunerado, nos termos do art. 7º, § 2º, da Lei nº 605/49.
D17: TOTAL DA REMUNERAÇÃO | F17: =TRUNC(SUM(F9:F15),2) -> 0
B19: MÓDULO 2 - ENCARGOS E BENEFÍCIOS ANUAIS, MENSAIS E DIÁRIOS | E19: Percentuais | F19: Valor
B20: Submódulo 2.1 - 13º Salário, Férias e Adicional de Férias
C21: A | D21: 13º Salário - Calculado no Módulo 7 - Destacado | E21: 0 | F21: =TRUNC(E21*F$17,2) -> 0
C22: B | D22: Adicional de Férias | E22: ='Encargos Sociais'!E31 -> 0.0303 | F22: =TRUNC(E22*(F$17),2) -> 0 | H22: * Nota 1 - O adicional de férias foi calculado dividindo-se por 11, para comportar os 11 meses presentes e ainda o ausente do posto
B24: Submódulo 2.2 - Encargos Previdenciários (GPS), Fundo de Garantia por Tempo de Serviço (FGTS) e Outras Contribuições
C25: A | D25: ='Encargos Sociais'!D14 -> INSS (art. 22, inciso I, Lei nº 8.212/91) | E25: ='Encargos Sociais'!E14 -> 0.2 | F25: =TRUNC(E25*($F$17+$F$80+$F$22-F69),2) -> 0 | H25: * Nota 1 - Os percentuais dos encargos previdenciários, do FGTS e demais contribuições são estabelecidos por legislação vigente.
C26: B | D26: ='Encargos Sociais'!D15 -> Salário Educação (art. 3º, inciso I, Decreto nº 87.043/82) | E26: ='Encargos Sociais'!E15 -> 0.025 | F26: =TRUNC(E26*($F$17+$F$80+$F$22),2) -> 0 | H26: * Nota 2 - O SAT, a depender do grau de risco do serviço, irá variar entre 1%, para risco leve, de 2%, para risco médio, e de 3% para risco grave.
C27: C | D27: ='Encargos Sociais'!D16 -> SAT/RAT (art. 22, II, Lei 8.212/91 e Anexo V, Decreto 6.042/07) - Enquadramento 8211-3/00 | E27: ='Encargos Sociais'!E16 -> 0.01 | F27: 0 | H27: * Nota 3 - Base de cálculo - remuneração + ausências + terço constitucional (férias) - exceto INSS sobre ausência por acidente de trabalho
C28: D | D28: ='Encargos Sociais'!D17 -> SESC ou SESI (art. 30, Lei nº 8.036/90 e art. 1º, Lei 8.154/90) | E28: ='Encargos Sociais'!E17 -> 0.015 | F28: 0
C29: E | D29: ='Encargos Sociais'!D18 -> SENAI ou SENAC (Decreto nº 2.318/86) | E29: ='Encargos Sociais'!E18 -> 0.01 | F29: 0
C30: F | D30: ='Encargos Sociais'!D19 -> SEBRAE (§ 3º, art. 8º, Lei 8.029/90, alterada pela Lei nº 8.154/90) | E30: ='Encargos Sociais'!E19 -> 0.006 | F30: 0
C31: G | D31: ='Encargos Sociais'!D20 -> INCRA (art. 1º, I, Decreto Lei 1.146/70 e Lei 7.787, de 30/06/89) | E31: ='Encargos Sociais'!E20 -> 0.002 | F31: 0
C32: H | D32: ='Encargos Sociais'!D21 -> FGTS (Lei Complementar nº 110/01 e art. 30, Lei nº 8.036/90) | E32: ='Encargos Sociais'!E21 -> 0.08 | F32: 0
C33: I | D33: ='Encargos Sociais'!D22 -> SECONCI (Convenções Coletivas de Trabalho da construção) | E33: ='Encargos Sociais'!E22 -> 0 | F33: 0
B35: Submódulo 2.3 - Benefícios Mensais e Diários
C36: A | D36: Auxílio Transporte | F36: =HLOOKUP($B$5,'Dados Gerais'!$D$6:$BI$101,85) -> 0 | H36: * Nota 1 - O valor informado deverá ser o custo real do benefício (descontado o valor eventualmente pago pelo empregado).
C37: B | D37: Auxílio Alimentação | F37: =HLOOKUP($B$5,'Dados Gerais'!$D$6:$BI$101,92) -> 0 | H37: * Nota 2 - Observar a previsão dos benefícios contidos em Acordos, Convenções e Dissídios Coletivos de Trabalho e o disposto no art. 6º da IN 5/2017
C38: C | D38: Assistência Médica e Familiar | F38: =HLOOKUP($B$5,'Dados Gerais'!$D$6:$BI$109,100) -> 0
C39: D | D39: Seguro de vida / auxílio funeral | F39: =HLOOKUP($B$5,'Dados Gerais'!$D$6:$BI$145,109) -> 0
C40: E | D40: Assistência odontológica | F40: =HLOOKUP($B$5,'Dados Gerais'!$D$6:$BI$145,115) -> 0
C41: F | D41: Auxílio creche | F41: =HLOOKUP($B$5,'Dados Gerais'!$D$6:$BI$145,121) -> 0
C42: G | D42: Auxílio vestuário especial | F42: =HLOOKUP($B$5,'Dados Gerais'!$D$6:$BI$145,127) -> 0
C43: H | D43: Benefício social familiar | F43: =HLOOKUP($B$5,'Dados Gerais'!$D$6:$BI$145,133) -> 0
C44: I | D44: Outros (especificar) | F44: =HLOOKUP($B$5,'Dados Gerais'!$D$6:$BI$145,115) -> 0
C45: J | D45: Outros (especificar) | F45: =HLOOKUP($B$5,'Dados Gerais'!$D$6:$BI$145,115) -> 0
D47: QUADRO-RESUMO DO MÓDULO 2
D48: 2.1 - Adicional de Férias | E48: =SUM(E21:E22) -> 0.0303 | F48: =F21+F22 -> 0
D49: 2.2 - Encargos Previdenciários (GPS), Fundo de Garantia por Tempo de Serviço (FGTS) e Contribuições | E49: =SUM(E25:E33) -> 0.348 | F49: =SUM(F25:F33) -> 0
D50: 2.3 - Benefícios Mensais e Diários | F50: =SUM(F36:F45) -> 0
D52: TOTAL DOS ENCARGOS E BENEFÍCIOS | F52: =TRUNC(SUM(F48:F50),2) -> 0
B54: MÓDULO 3 - PREVISÃO PARA RESCISÃO | E54: Percentuais | F54: Valor
C55: A | D55: ='Encargos Sociais'!D36 -> Aviso Prévio Indenizado (Art. 7º, inciso XXI, da CF/1988 e arts. 477, 487, §1º, e 491 da CLT) | E55: ='Encargos Sociais'!E36 -> 0.0042 | F55: =TRUNC(E55*($F$17+$F$48+$F$80),2) -> 0 | H55: * Nota 1 - Base de cálculo - remuneração + ausências + 1/3 férias
C56: B | D56: ='Encargos Sociais'!D37 -> Incidência do FGTS sobre o Aviso Prévio Indenizado (Súmula 305 TST) | E56: ='Encargos Sociais'!E37 -> 0.0003 | F56: 0
C57: C | D57: ='Encargos Sociais'!D38 -> Multa do FGTS sobre o Aviso Prévio Indenizado (Art. 18, §1º, da Lei 8.036/1990) | E57: ='Encargos Sociais'!E38 -> 0 | F57: 0
C58: D | D58: ='Encargos Sociais'!D39 -> Aviso Prévio Trabalhado (Art. 488, parágrafo único, CLT) | E58: ='Encargos Sociais'!E39 -> 0.0097 | F58: 0
C59: E | D59: ='Encargos Sociais'!D40 -> Incidência de GPS, FGTS e outras contribuições sobre o Aviso Prévio Trabalhado | E59: ='Encargos Sociais'!E40 -> 0.0034 | F59: 0
C60: F | D60: ='Encargos Sociais'!D41 -> Multa do FGTS | E60: ='Encargos Sociais'!E41 -> 0.032 | F60: 0
D62: TOTAL DE PREVISÃO PARA RESCISÃO | F62: =TRUNC(SUM(F55:F60),2) -> 0
B64: MÓDULO 4 - CUSTO DO PROFISSIONAL AUSENTE | E64: Percentuais | F64: Valor
B65: Submódulo 4.1 - Ausências Legais
C66: A | D66: ='Encargos Sociais'!D25 -> Férias (Arts. 129 e 130, inc. I, da CLT) | E66: ='Encargos Sociais'!E25 -> 0.0909 | F66: =TRUNC(E66*$F$17,2) -> 0 | H66: * Nota 1 - O Módulo 4 refere-se às previsões para custear ausências do próprio profissional (titular do cargo)
C67: B | D67: ='Encargos Sociais'!D26 -> Ausências Legais (Arts. 131 e 473 da CLT) | E67: ='Encargos Sociais'!E26 -> 0.0079 | F67: 0 | H67: * Nota 2 - As férias foram calculadas dividindo-se por 11, para comportar os 11 meses presentes e ainda o ausente do posto
C68: C | D68: ='Encargos Sociais'!D27 -> Licença-Paternidade (Art. 7º, XIX, e art. 10, §1º, do ADCT, CF/1988 e Art. 1º, II, da Lei 11.770/2008) | E68: ='Encargos Sociais'!E27 -> 0.0008 | F68: 0
C69: D | D69: ='Encargos Sociais'!D28 -> Ausência por Acidente de Trabalho (Art. 131, III, da CLT) | E69: ='Encargos Sociais'!E28 -> 0.0009 | F69: 0
C70: E | D70: ='Encargos Sociais'!D29 -> Afastamento Maternidade (Art. 71 da Lei nº 8.213/1991) | E70: ='Encargos Sociais'!E29 -> 0.0033 | F70: 0
C71: F | D71: ='Encargos Sociais'!D30 -> Auxílio Enfermidade - Doença (Art. 59 da Lei nº 8.213/1991) | E71: ='Encargos Sociais'!E30 -> 0.0071 | F71: 0
B73: Submódulo 4.2 - Intrajornada
C74: A | D74: Intervalo para repouso ou alimentação | E74: ='Encargos Sociais'!E33 -> 0 | F74: =ROUND(E74*$F$17,2) -> 0
D76: QUADRO-RESUMO DO MÓDULO 4 | F76: Valor
D77: 4.1 - Ausências Legais | E77: =SUM(E66:E71) -> 0.1109 | F77: =SUM(F66:F71) -> 0
D78: 4.2 - Intrajornada | E78: =E74 -> 0 | F78: =ROUND(E78*$F$17,2) -> 0
D80: TOTAL DE CUSTO DO PROFFIONAL AUSENTE E INTERVALO INTRAJORNADA | F80: =TRUNC(SUM(F77:F78),2) -> 0
B82: MÓDULO 5 - INSUMOS DIVERSOS | F82: Valor
C83: A | D83: Uniformes - aquisição | F83: =TRUNC(HLOOKUP($B$5,Uniformes!$J$3:$DY$5,3,0)/12,2) -> 0
C84: B | D84: Materiais de consumo relacionados ao posto - aquisição | F84: 0
C85: C | D85: Ferramentas relacionadas ao posto - remuneração da sua depreciação / manutenção | F85: 0
C86: D | D86: Equipamentos relacionados ao posto - remuneração da sua depreciação / manutenção | F86: 0
C87: E | D87: Equipamentos de Proteção Individual - EPI - aquisição | F87: =TRUNC(HLOOKUP($B$5,EPI!$J$3:$DX$5,3,0)/12,2) -> 0
D89: TOTAL DE INSUMOS DIVERSOS | F89: =SUM(F83:F88) -> 0 | H89: * Nota - Valores mensais por empregado
B91: MÓDULO 6 - CUSTOS INDIRETOS, TRIBUTOS E LUCRO - BDI | E91: Percentuais | F91: Valor
C92: A | D92: Custos Indiretos | E92: ='BDI - Geral'!E7 -> 0.027
C93: A.1 | D93: Administração Central | E93: ='BDI - Geral'!E8 -> 0.0216
C94: A.2 | D94: Seguros, Garantias e Riscos | E94: ='BDI - Geral'!E9 -> 0.0054
C95: B | D95: Lucro | E95: ='BDI - Geral'!E11 -> 0.0334
C96: C | D96: Tributos | E96: =SUM(E97:E98) -> 0.124
C97: C.1 | D97: Tributos Federais (COFINS, PIS e CPRB) | E97: ='BDI - Geral'!E19 -> 0.074
C98: C.2 | D98: Tributos Distritais (ISS) | E98: ='BDI - Geral'!E24 -> 0.05
C99: D | D99: Despesas Financeiras | E99: ='BDI - Geral'!E14 -> 0.0061
D101: TOTAL DE BDI | E101: ='BDI - Geral'!E27 -> 0.2189 | F101: =TRUNC(E101*E109,2) -> 0
D103: QUADRO-RESUMO DO CUSTO MENSAL POR EMPREGADO - SEM O 13º | E103: Valor
D104: Módulo 1 - Composição da Remuneração | E104: =F17 -> 0
D105: Módulo 2 - Encargos e Benefícios Anuais, Mensais e Diários | E105: =F52 -> 0
D106: Módulo 3 - Provisão para Rescisão | E106: =F62 -> 0
D107: Módulo 4 - Custo de Reposição do Profissional Ausente | E107: =F80 -> 0
D108: Módulo 5 - Insumos Diversos | E108: =F89 -> 0
D109: SUBTOTAL (A+B+C+D+E) | E109: =SUM(E104:E108) -> 0
D110: Módulo 6 - Custos Indiretos, Tributos e Lucro | E110: =F101 -> 0
D112: TOTAL DO POSTO | E112: =SUM(E109:E110) -> 0
B114: MÓDULO 7 - DESTAQUE DO MÓDULO 2 - 13º SALÁRIO | E114: Percentuais | F114: Valor
C115: A | D115: 13º Salário | E115: ='[1]Encargos Sociais'!E32*12/11 -> 0.09916363636 | F115: =ROUND(E115*F$17,2) -> 0 | H115: * Nota 1 - Incluindo-se a reincidência das férias do substituto sobre o titular
C116: B | D116: Encargos Sociais sobre o 13º Salário (submódulo 2.2 e módulo 3) | E116: =SUM($E$25:$E$33)+SUM($E$55:$E$60) -> 0.3976 | F116: =ROUND(E116*$F$115,2) -> 0 | H116: * Nota 2 - 13º e reflexos calculados à parte a fim de aprovisionamento
C117: C | D117: BDI sobre o 13º Salário | E117: =E101 -> 0.2189 | F117: =ROUND(E117*($F$115+$F$116),2) -> 0
D119: TOTAL DO DESTAQUE DO 13º SALÁRIO | F119: =SUM(F115:F117) -> 0
D121: QUADRO-RESUMO DO CUSTO MENSAL POR EMPREGADO | E121: Valor
D122: Custo total - sem o 13º Salário | E122: =ROUND(E112,2) -> 0
D123: Destaque do 13º Salário (valor mensal) | E123: =ROUND(F119,2) -> 0
D125: TOTAL DO POSTO | E125: =E122+E123 -> 0

Sheet 6 (hidden)
B2: PLANILHA DE ESTIMATIVA DE CUSTOS
B3: Padrão IN 05/2017 e IN 07/2018 - MPDG - Medição por posto presente
B5: 6 | D5: =HLOOKUP($B$5,'Dados Gerais'!$D$6:$BI$22,6) -> 0 | E5: QUANTIDADE | F5: =HLOOKUP($B$5,'Dados Gerais'!$D$6:$BI$22,10) -> 0
B6: CCT | D6: =HLOOKUP($B$5,'Dados Gerais'!$D$6:$BI$22,16) -> 0 | E6: DATA-BASE | F6: =HLOOKUP($B$5,'Dados Gerais'!$D$6:$BI$22,17) -> 00:00:00
B8: MÓDULO 1 - COMPOSIÇÃO DA REMUNERAÇÃO | F8: Valor
C9: A | D9: Salário-Base | F9: =HLOOKUP($B$5,'Dados Gerais'!$D$6:$BI$22,8) -> 0
C10: B | D10: Adicional de Periculosidade | F10: =HLOOKUP($B$5,'Dados Gerais'!$D$6:$BI$41,26) -> 0
C11: C | D11: Adicional de Insalubridade | F11: =HLOOKUP($B$5,'Dados Gerais'!$D$6:$BI$41,32) -> 0
C12: D | D12: Adicional Noturno | F12: =HLOOKUP($B$5,'Dados Gerais'!$D$6:$BI$54,49) -> 0 | H12: * Nota 1 - O Módulo 1 refere-se ao valor mensal devido ao empregado pela prestação do serviço no período de 12 meses.
C13: E | D13: Adicional de Hora Extra | F13: =HLOOKUP($B$5,'Dados Gerais'!$D$6:$BI$71,66) -> 0 | H13: * Nota 2 - O adicional de hora extra no feriado trabalhado foi suprimido pela Lei 13.467/17
C14: F | D14: Gratificação | F14: =HLOOKUP($B$5,'Dados Gerais'!$D$6:$BI$71,34) -> 0 | H14: * Nota 3 - ART. 7º, § 2º, DA LEI Nº 605/49.Sendo mensalista o obreiro, o adicional noturno pago de forma fixa já é considerado integrado para os efeitos do pagamento do repouso semanal remunerado, nos termos do art. 7º, § 2º, da Lei nº 605/49.
C15: G | D15: Sobraviso | F15: =HLOOKUP($B$5,'Dados Gerais'!$D$6:$BI$71,36) -> 0 | H15: * Nota 3 - ART. 7º, § 2º, DA LEI Nº 605/49.Sendo mensalista o obreiro, o adicional noturno pago de forma fixa já é considerado integrado para os efeitos do pagamento do repouso semanal remunerado, nos termos do art. 7º, § 2º, da Lei nº 605/49.
D17: TOTAL DA REMUNERAÇÃO | F17: =TRUNC(SUM(F9:F15),2) -> 0
B19: MÓDULO 2 - ENCARGOS E BENEFÍCIOS ANUAIS, MENSAIS E DIÁRIOS | E19: Percentuais | F19: Valor
B20: Submódulo 2.1 - 13º Salário, Férias e Adicional de Férias
C21: A | D21: 13º Salário - Calculado no Módulo 7 - Destacado | E21: 0 | F21: =TRUNC(E21*F$17,2) -> 0
C22: B | D22: Adicional de Férias | E22: ='Encargos Sociais'!E31 -> 0.0303 | F22: =TRUNC(E22*(F$17),2) -> 0 | H22: * Nota 1 - O adicional de férias foi calculado dividindo-se por 11, para comportar os 11 meses presentes e ainda o ausente do posto
B24: Submódulo 2.2 - Encargos Previdenciários (GPS), Fundo de Garantia por Tempo de Serviço (FGTS) e Outras Contribuições
C25: A | D25: ='Encargos Sociais'!D14 -> INSS (art. 22, inciso I, Lei nº 8.212/91) | E25: ='Encargos Sociais'!E14 -> 0.2 | F25: =TRUNC(E25*($F$17+$F$80+$F$22-F69),2) -> 0 | H25: * Nota 1 - Os percentuais dos encargos previdenciários, do FGTS e demais contribuições são estabelecidos por legislação vigente.
C26: B | D26: ='Encargos Sociais'!D15 -> Salário Educação (art. 3º, inciso I, Decreto nº 87.043/82) | E26: ='Encargos Sociais'!E15 -> 0.025 | F26: =TRUNC(E26*($F$17+$F$80+$F$22),2) -> 0 | H26: * Nota 2 - O SAT, a depender do grau de risco do serviço, irá variar entre 1%, para risco leve, de 2%, para risco médio, e de 3% para risco grave.
C27: C | D27: ='Encargos Sociais'!D16 -> SAT/RAT (art. 22, II, Lei 8.212/91 e Anexo V, Decreto 6.042/07) - Enquadramento 8211-3/00 | E27: ='Encargos Sociais'!E16 -> 0.01 | F27: 0 | H27: * Nota 3 - Base de cálculo - remuneração + ausências + terço constitucional (férias) - exceto INSS sobre ausência por acidente de trabalho
C28: D | D28: ='Encargos Sociais'!D17 -> SESC ou SESI (art. 30, Lei nº 8.036/90 e art. 1º, Lei 8.154/90) | E28: ='Encargos Sociais'!E17 -> 0.015 | F28: 0
C29: E | D29: ='Encargos Sociais'!D18 -> SENAI ou SENAC (Decreto nº 2.318/86) | E29: ='Encargos Sociais'!E18 -> 0.01 | F29: 0
C30: F | D30: ='Encargos Sociais'!D19 -> SEBRAE (§ 3º, art. 8º, Lei 8.029/90, alterada pela Lei nº 8.154/90) | E30: ='Encargos Sociais'!E19 -> 0.006 | F30: 0
C31: G | D31: ='Encargos Sociais'!D20 -> INCRA (art. 1º, I, Decreto Lei 1.146/70 e Lei 7.787, de 30/06/89) | E31: ='Encargos Sociais'!E20 -> 0.002 | F31: 0
C32: H | D32: ='Encargos Sociais'!D21 -> FGTS (Lei Complementar nº 110/01 e art. 30, Lei nº 8.036/90) | E32: ='Encargos Sociais'!E21 -> 0.08 | F32: 0
C33: I | D33: ='Encargos Sociais'!D22 -> SECONCI (Convenções Coletivas de Trabalho da construção) | E33: ='Encargos Sociais'!E22 -> 0 | F33: 0
B35: Submódulo 2.3 - Benefícios Mensais e Diários
C36: A | D36: Auxílio Transporte | F36: =HLOOKUP($B$5,'Dados Gerais'!$D$6:$BI$101,85) -> 0 | H36: * Nota 1 - O valor informado deverá ser o custo real do benefício (descontado o valor eventualmente pago pelo empregado).
C37: B | D37: Auxílio Alimentação | F37: =HLOOKUP($B$5,'Dados Gerais'!$D$6:$BI$101,92) -> 0 | H37: * Nota 2 - Observar a previsão dos benefícios contidos em Acordos, Convenções e Dissídios Coletivos de Trabalho e o disposto no art. 6º da IN 5/2017
C38: C | D38: Assistência Médica e Familiar | F38: =HLOOKUP($B$5,'Dados Gerais'!$D$6:$BI$109,100) -> 0
C39: D | D39: Seguro de vida / auxílio funeral | F39: =HLOOKUP($B$5,'Dados Gerais'!$D$6:$BI$145,109) -> 0
C40: E | D40: Assistência odontológica | F40: =HLOOKUP($B$5,'Dados Gerais'!$D$6:$BI$145,115) -> 0
C41: F | D41: Auxílio creche | F41: =HLOOKUP($B$5,'Dados Gerais'!$D$6:$BI$145,121) -> 0
C42: G | D42: Auxílio vestuário especial | F42: =HLOOKUP($B$5,'Dados Gerais'!$D$6:$BI$145,127) -> 0
C43: H | D43: Benefício social familiar | F43: =HLOOKUP($B$5,'Dados Gerais'!$D$6:$BI$145,133) -> 0
C44: I | D44: Outros (especificar) | F44: =HLOOKUP($B$5,'Dados Gerais'!$D$6:$BI$145,115) -> 0
C45: J | D45: Outros (especificar) | F45: =HLOOKUP($B$5,'Dados Gerais'!$D$6:$BI$145,115) -> 0
D47: QUADRO-RESUMO DO MÓDULO 2
D48: 2.1 - Adicional de Férias | E48: =SUM(E21:E22) -> 0.0303 | F48: =F21+F22 -> 0
D49: 2.2 - Encargos Previdenciários (GPS), Fundo de Garantia por Tempo de Serviço (FGTS) e Contribuições | E49: =SUM(E25:E33) -> 0.348 | F49: =SUM(F25:F33) -> 0
D50: 2.3 - Benefícios Mensais e Diários | F50: =SUM(F36:F45) -> 0
D52: TOTAL DOS ENCARGOS E BENEFÍCIOS | F52: =TRUNC(SUM(F48:F50),2) -> 0
B54: MÓDULO 3 - PREVISÃO PARA RESCISÃO | E54: Percentuais | F54: Valor
C55: A | D55: ='Encargos Sociais'!D36 -> Aviso Prévio Indenizado (Art. 7º, inciso XXI, da CF/1988 e arts. 477, 487, §1º, e 491 da CLT) | E55: ='Encargos Sociais'!E36 -> 0.0042 | F55: =TRUNC(E55*($F$17+$F$48+$F$80),2) -> 0 | H55: * Nota 1 - Base de cálculo - remuneração + ausências + 1/3 férias
C56: B | D56: ='Encargos Sociais'!D37 -> Incidência do FGTS sobre o Aviso Prévio Indenizado (Súmula 305 TST) | E56: ='Encargos Sociais'!E37 -> 0.0003 | F56: 0
C57: C | D57: ='Encargos Sociais'!D38 -> Multa do FGTS sobre o Aviso Prévio Indenizado (Art. 18, §1º, da Lei 8.036/1990) | E57: ='Encargos Sociais'!E38 -> 0 | F57: 0
C58: D | D58: ='Encargos Sociais'!D39 -> Aviso Prévio Trabalhado (Art. 488, parágrafo único, CLT) | E58: ='Encargos Sociais'!E39 -> 0.0097 | F58: 0
C59: E | D59: ='Encargos Sociais'!D40 -> Incidência de GPS, FGTS e outras contribuições sobre o Aviso Prévio Trabalhado | E59: ='Encargos Sociais'!E40 -> 0.0034 | F59: 0
C60: F | D60: ='Encargos Sociais'!D41 -> Multa do FGTS | E60: ='Encargos Sociais'!E41 -> 0.032 | F60: 0
D62: TOTAL DE PREVISÃO PARA RESCISÃO | F62: =TRUNC(SUM(F55:F60),2) -> 0
B64: MÓDULO 4 - CUSTO DO PROFISSIONAL AUSENTE | E64: Percentuais | F64: Valor
B65: Submódulo 4.1 - Ausências Legais
C66: A | D66: ='Encargos Sociais'!D25 -> Férias (Arts. 129 e 130, inc. I, da CLT) | E66: ='Encargos Sociais'!E25 -> 0.0909 | F66: =TRUNC(E66*$F$17,2) -> 0 | H66: * Nota 1 - O Módulo 4 refere-se às previsões para custear ausências do próprio profissional (titular do cargo)
C67: B | D67: ='Encargos Sociais'!D26 -> Ausências Legais (Arts. 131 e 473 da CLT) | E67: ='Encargos Sociais'!E26 -> 0.0079 | F67: 0 | H67: * Nota 2 - As férias foram calculadas dividindo-se por 11, para comportar os 11 meses presentes e ainda o ausente do posto
C68: C | D68: ='Encargos Sociais'!D27 -> Licença-Paternidade (Art. 7º, XIX, e art. 10, §1º, do ADCT, CF/1988 e Art. 1º, II, da Lei 11.770/2008) | E68: ='Encargos Sociais'!E27 -> 0.0008 | F68: 0
C69: D | D69: ='Encargos Sociais'!D28 -> Ausência por Acidente de Trabalho (Art. 131, III, da CLT) | E69: ='Encargos Sociais'!E28 -> 0.0009 | F69: 0
C70: E | D70: ='Encargos Sociais'!D29 -> Afastamento Maternidade (Art. 71 da Lei nº 8.213/1991) | E70: ='Encargos Sociais'!E29 -> 0.0033 | F70: 0
C71: F | D71: ='Encargos Sociais'!D30 -> Auxílio Enfermidade - Doença (Art. 59 da Lei nº 8.213/1991) | E71: ='Encargos Sociais'!E30 -> 0.0071 | F71: 0
B73: Submódulo 4.2 - Intrajornada
C74: A | D74: Intervalo para repouso ou alimentação | E74: ='Encargos Sociais'!E33 -> 0 | F74: =ROUND(E74*$F$17,2) -> 0
D76: QUADRO-RESUMO DO MÓDULO 4 | F76: Valor
D77: 4.1 - Ausências Legais | E77: =SUM(E66:E71) -> 0.1109 | F77: =SUM(F66:F71) -> 0
D78: 4.2 - Intrajornada | E78: =E74 -> 0 | F78: =ROUND(E78*$F$17,2) -> 0
D80: TOTAL DE CUSTO DO PROFFIONAL AUSENTE E INTERVALO INTRAJORNADA | F80: =TRUNC(SUM(F77:F78),2) -> 0
B82: MÓDULO 5 - INSUMOS DIVERSOS | F82: Valor
C83: A | D83: Uniformes - aquisição | F83: =TRUNC(HLOOKUP($B$5,Uniformes!$J$3:$DY$5,3,0)/12,2) -> 0
C84: B | D84: Materiais de consumo relacionados ao posto - aquisição | F84: 0
C85: C | D85: Ferramentas relacionadas ao posto - remuneração da sua depreciação / manutenção | F85: 0
C86: D | D86: Equipamentos relacionados ao posto - remuneração da sua depreciação / manutenção | F86: 0
C87: E | D87: Equipamentos de Proteção Individual - EPI - aquisição | F87: =TRUNC(HLOOKUP($B$5,EPI!$J$3:$DX$5,3,0)/12,2) -> 0
D89: TOTAL DE INSUMOS DIVERSOS | F89: =SUM(F83:F88) -> 0 | H89: * Nota - Valores mensais por empregado
B91: MÓDULO 6 - CUSTOS INDIRETOS, TRIBUTOS E LUCRO - BDI | E91: Percentuais | F91: Valor
C92: A | D92: Custos Indiretos | E92: ='BDI - Geral'!E7 -> 0.027
C93: A.1 | D93: Administração Central | E93: ='BDI - Geral'!E8 -> 0.0216
C94: A.2 | D94: Seguros, Garantias e Riscos | E94: ='BDI - Geral'!E9 -> 0.0054
C95: B | D95: Lucro | E95: ='BDI - Geral'!E11 -> 0.0334
C96: C | D96: Tributos | E96: =SUM(E97:E98) -> 0.124
C97: C.1 | D97: Tributos Federais (COFINS, PIS e CPRB) | E97: ='BDI - Geral'!E19 -> 0.074
C98: C.2 | D98: Tributos Distritais (ISS) | E98: ='BDI - Geral'!E24 -> 0.05
C99: D | D99: Despesas Financeiras | E99: ='BDI - Geral'!E14 -> 0.0061
D101: TOTAL DE BDI | E101: ='BDI - Geral'!E27 -> 0.2189 | F101: =TRUNC(E101*E109,2) -> 0
D103: QUADRO-RESUMO DO CUSTO MENSAL POR EMPREGADO - SEM O 13º | E103: Valor
D104: Módulo 1 - Composição da Remuneração | E104: =F17 -> 0
D105: Módulo 2 - Encargos e Benefícios Anuais, Mensais e Diários | E105: =F52 -> 0
D106: Módulo 3 - Provisão para Rescisão | E106: =F62 -> 0
D107: Módulo 4 - Custo de Reposição do Profissional Ausente | E107: =F80 -> 0
D108: Módulo 5 - Insumos Diversos | E108: =F89 -> 0
D109: SUBTOTAL (A+B+C+D+E) | E109: =SUM(E104:E108) -> 0
D110: Módulo 6 - Custos Indiretos, Tributos e Lucro | E110: =F101 -> 0
D112: TOTAL DO POSTO | E112: =SUM(E109:E110) -> 0
B114: MÓDULO 7 - DESTAQUE DO MÓDULO 2 - 13º SALÁRIO | E114: Percentuais | F114: Valor
C115: A | D115: 13º Salário | E115: ='[1]Encargos Sociais'!E32*12/11 -> 0.09916363636 | F115: =ROUND(E115*F$17,2) -> 0 | H115: * Nota 1 - Incluindo-se a reincidência das férias do substituto sobre o titular
C116: B | D116: Encargos Sociais sobre o 13º Salário (submódulo 2.2 e módulo 3) | E116: =SUM($E$25:$E$33)+SUM($E$55:$E$60) -> 0.3976 | F116: =ROUND(E116*$F$115,2) -> 0 | H116: * Nota 2 - 13º e reflexos calculados à parte a fim de aprovisionamento
C117: C | D117: BDI sobre o 13º Salário | E117: =E101 -> 0.2189 | F117: =ROUND(E117*($F$115+$F$116),2) -> 0
D119: TOTAL DO DESTAQUE DO 13º SALÁRIO | F119: =SUM(F115:F117) -> 0
D121: QUADRO-RESUMO DO CUSTO MENSAL POR EMPREGADO | E121: Valor
D122: Custo total - sem o 13º Salário | E122: =ROUND(E112,2) -> 0
D123: Destaque do 13º Salário (valor mensal) | E123: =ROUND(F119,2) -> 0
D125: TOTAL DO POSTO | E125: =E122+E123 -> 0

Sheet 7 (hidden)
B2: PLANILHA DE ESTIMATIVA DE CUSTOS
B3: Padrão IN 05/2017 e IN 07/2018 - MPDG - Medição por posto presente
B5: 7 | D5: =HLOOKUP($B$5,'Dados Gerais'!$D$6:$BI$22,6) -> 0 | E5: QUANTIDADE | F5: =HLOOKUP($B$5,'Dados Gerais'!$D$6:$BI$22,10) -> 0
B6: CCT | D6: =HLOOKUP($B$5,'Dados Gerais'!$D$6:$BI$22,16) -> 0 | E6: DATA-BASE | F6: =HLOOKUP($B$5,'Dados Gerais'!$D$6:$BI$22,17) -> 00:00:00
B8: MÓDULO 1 - COMPOSIÇÃO DA REMUNERAÇÃO | F8: Valor
C9: A | D9: Salário-Base | F9: =HLOOKUP($B$5,'Dados Gerais'!$D$6:$BI$22,8) -> 0
C10: B | D10: Adicional de Periculosidade | F10: =HLOOKUP($B$5,'Dados Gerais'!$D$6:$BI$41,26) -> 0
C11: C | D11: Adicional de Insalubridade | F11: =HLOOKUP($B$5,'Dados Gerais'!$D$6:$BI$41,32) -> 0
C12: D | D12: Adicional Noturno | F12: =HLOOKUP($B$5,'Dados Gerais'!$D$6:$BI$54,49) -> 0 | H12: * Nota 1 - O Módulo 1 refere-se ao valor mensal devido ao empregado pela prestação do serviço no período de 12 meses.
C13: E | D13: Adicional de Hora Extra | F13: =HLOOKUP($B$5,'Dados Gerais'!$D$6:$BI$71,66) -> 0 | H13: * Nota 2 - O adicional de hora extra no feriado trabalhado foi suprimido pela Lei 13.467/17
C14: F | D14: Gratificação | F14: =HLOOKUP($B$5,'Dados Gerais'!$D$6:$BI$71,34) -> 0 | H14: * Nota 3 - ART. 7º, § 2º, DA LEI Nº 605/49.Sendo mensalista o obreiro, o adicional noturno pago de forma fixa já é considerado integrado para os efeitos do pagamento do repouso semanal remunerado, nos termos do art. 7º, § 2º, da Lei nº 605/49.
C15: G | D15: Sobraviso | F15: =HLOOKUP($B$5,'Dados Gerais'!$D$6:$BI$71,36) -> 0 | H15: * Nota 3 - ART. 7º, § 2º, DA LEI Nº 605/49.Sendo mensalista o obreiro, o adicional noturno pago de forma fixa já é considerado integrado para os efeitos do pagamento do repouso semanal remunerado, nos termos do art. 7º, § 2º, da Lei nº 605/49.
D17: TOTAL DA REMUNERAÇÃO | F17: =TRUNC(SUM(F9:F15),2) -> 0
B19: MÓDULO 2 - ENCARGOS E BENEFÍCIOS ANUAIS, MENSAIS E DIÁRIOS | E19: Percentuais | F19: Valor
B20: Submódulo 2.1 - 13º Salário, Férias e Adicional de Férias
C21: A | D21: 13º Salário - Calculado no Módulo 7 - Destacado | E21: 0 | F21: =TRUNC(E21*F$17,2) -> 0
C22: B | D22: Adicional de Férias | E22: ='Encargos Sociais'!E31 -> 0.0303 | F22: =TRUNC(E22*(F$17),2) -> 0 | H22: * Nota 1 - O adicional de férias foi calculado dividindo-se por 11, para comportar os 11 meses presentes e ainda o ausente do posto
B24: Submódulo 2.2 - Encargos Previdenciários (GPS), Fundo de Garantia por Tempo de Serviço (FGTS) e Outras Contribuições
C25: A | D25: ='Encargos Sociais'!D14 -> INSS (art. 22, inciso I, Lei nº 8.212/91) | E25: ='Encargos Sociais'!E14 -> 0.2 | F25: =TRUNC(E25*($F$17+$F$80+$F$22-F69),2) -> 0 | H25: * Nota 1 - Os percentuais dos encargos previdenciários, do FGTS e demais contribuições são estabelecidos por legislação vigente.
C26: B | D26: ='Encargos Sociais'!D15 -> Salário Educação (art. 3º, inciso I, Decreto nº 87.043/82) | E26: ='Encargos Sociais'!E15 -> 0.025 | F26: =TRUNC(E26*($F$17+$F$80+$F$22),2) -> 0 | H26: * Nota 2 - O SAT, a depender do grau de risco do serviço, irá variar entre 1%, para risco leve, de 2%, para risco médio, e de 3% para risco grave.
C27: C | D27: ='Encargos Sociais'!D16 -> SAT/RAT (art. 22, II, Lei 8.212/91 e Anexo V, Decreto 6.042/07) - Enquadramento 8211-3/00 | E27: ='Encargos Sociais'!E16 -> 0.01 | F27: 0 | H27: * Nota 3 - Base de cálculo - remuneração + ausências + terço constitucional (férias) - exceto INSS sobre ausência por acidente de trabalho
C28: D | D28: ='Encargos Sociais'!D17 -> SESC ou SESI (art. 30, Lei nº 8.036/90 e art. 1º, Lei 8.154/90) | E28: ='Encargos Sociais'!E17 -> 0.015 | F28: 0
C29: E | D29: ='Encargos Sociais'!D18 -> SENAI ou SENAC (Decreto nº 2.318/86) | E29: ='Encargos Sociais'!E18 -> 0.01 | F29: 0
C30: F | D30: ='Encargos Sociais'!D19 -> SEBRAE (§ 3º, art. 8º, Lei 8.029/90, alterada pela Lei nº 8.154/90) | E30: ='Encargos Sociais'!E19 -> 0.006 | F30: 0
C31: G | D31: ='Encargos Sociais'!D20 -> INCRA (art. 1º, I, Decreto Lei 1.146/70 e Lei 7.787, de 30/06/89) | E31: ='Encargos Sociais'!E20 -> 0.002 | F31: 0
C32: H | D32: ='Encargos Sociais'!D21 -> FGTS (Lei Complementar nº 110/01 e art. 30, Lei nº 8.036/90) | E32: ='Encargos Sociais'!E21 -> 0.08 | F32: 0
C33: I | D33: ='Encargos Sociais'!D22 -> SECONCI (Convenções Coletivas de Trabalho da construção) | E33: ='Encargos Sociais'!E22 -> 0 | F33: 0
B35: Submódulo 2.3 - Benefícios Mensais e Diários
C36: A | D36: Auxílio Transporte | F36: =HLOOKUP($B$5,'Dados Gerais'!$D$6:$BI$101,85) -> 0 | H36: * Nota 1 - O valor informado deverá ser o custo real do benefício (descontado o valor eventualmente pago pelo empregado).
C37: B | D37: Auxílio Alimentação | F37: =HLOOKUP($B$5,'Dados Gerais'!$D$6:$BI$101,92) -> 0 | H37: * Nota 2 - Observar a previsão dos benefícios contidos em Acordos, Convenções e Dissídios Coletivos de Trabalho e o disposto no art. 6º da IN 5/2017
C38: C | D38: Assistência Médica e Familiar | F38: =HLOOKUP($B$5,'Dados Gerais'!$D$6:$BI$109,100) -> 0
C39: D | D39: Seguro de vida / auxílio funeral | F39: =HLOOKUP($B$5,'Dados Gerais'!$D$6:$BI$145,109) -> 0
C40: E | D40: Assistência odontológica | F40: =HLOOKUP($B$5,'Dados Gerais'!$D$6:$BI$145,115) -> 0
C41: F | D41: Auxílio creche | F41: =HLOOKUP($B$5,'Dados Gerais'!$D$6:$BI$145,121) -> 0
C42: G | D42: Auxílio vestuário especial | F42: =HLOOKUP($B$5,'Dados Gerais'!$D$6:$BI$145,127) -> 0
C43: H | D43: Benefício social familiar | F43: =HLOOKUP($B$5,'Dados Gerais'!$D$6:$BI$145,133) -> 0
C44: I | D44: Outros (especificar) | F44: =HLOOKUP($B$5,'Dados Gerais'!$D$6:$BI$145,115) -> 0
C45: J | D45: Outros (especificar) | F45: =HLOOKUP($B$5,'Dados Gerais'!$D$6:$BI$145,115) -> 0
D47: QUADRO-RESUMO DO MÓDULO 2
D48: 2.1 - Adicional de Férias | E48: =SUM(E21:E22) -> 0.0303 | F48: =F21+F22 -> 0
D49: 2.2 - Encargos Previdenciários (GPS), Fundo de Garantia por Tempo de Serviço (FGTS) e Contribuições | E49: =SUM(E25:E33) -> 0.348 | F49: =SUM(F25:F33) -> 0
D50: 2.3 - Benefícios Mensais e Diários | F50: =SUM(F36:F45) -> 0
D52: TOTAL DOS ENCARGOS E BENEFÍCIOS | F52: =TRUNC(SUM(F48:F50),2) -> 0
B54: MÓDULO 3 - PREVISÃO PARA RESCISÃO | E54: Percentuais | F54: Valor
C55: A | D55: ='Encargos Sociais'!D36 -> Aviso Prévio Indenizado (Art. 7º, inciso XXI, da CF/1988 e arts. 477, 487, §1º, e 491 da CLT) | E55: ='Encargos Sociais'!E36 -> 0.0042 | F55: =TRUNC(E55*($F$17+$F$48+$F$80),2) -> 0 | H55: * Nota 1 - Base de cálculo - remuneração + ausências + 1/3 férias
C56: B | D56: ='Encargos Sociais'!D37 -> Incidência do FGTS sobre o Aviso Prévio Indenizado (Súmula 305 TST) | E56: ='Encargos Sociais'!E37 -> 0.0003 | F56: 0
C57: C | D57: ='Encargos Sociais'!D38 -> Multa do FGTS sobre o Aviso Prévio Indenizado (Art. 18, §1º, da Lei 8.036/1990) | E57: ='Encargos Sociais'!E38 -> 0 | F57: 0
C58: D | D58: ='Encargos Sociais'!D39 -> Aviso Prévio Trabalhado (Art. 488, parágrafo único, CLT) | E58: ='Encargos Sociais'!E39 -> 0.0097 | F58: 0
C59: E | D59: ='Encargos Sociais'!D40 -> Incidência de GPS, FGTS e outras contribuições sobre o Aviso Prévio Trabalhado | E59: ='Encargos Sociais'!E40 -> 0.0034 | F59: 0
C60: F | D60: ='Encargos Sociais'!D41 -> Multa do FGTS | E60: ='Encargos Sociais'!E41 -> 0.032 | F60: 0
D62: TOTAL DE PREVISÃO PARA RESCISÃO | F62: =TRUNC(SUM(F55:F60),2) -> 0
B64: MÓDULO 4 - CUSTO DO PROFISSIONAL AUSENTE | E64: Percentuais | F64: Valor
B65: Submódulo 4.1 - Ausências Legais
C66: A | D66: ='Encargos Sociais'!D25 -> Férias (Arts. 129 e 130, inc. I, da CLT) | E66: ='Encargos Sociais'!E25 -> 0.0909 | F66: =TRUNC(E66*$F$17,2) -> 0 | H66: * Nota 1 - O Módulo 4 refere-se às previsões para custear ausências do próprio profissional (titular do cargo)
C67: B | D67: ='Encargos Sociais'!D26 -> Ausências Legais (Arts. 131 e 473 da CLT) | E67: ='Encargos Sociais'!E26 -> 0.0079 | F67: 0 | H67: * Nota 2 - As férias foram calculadas dividindo-se por 11, para comportar os 11 meses presentes e ainda o ausente do posto
C68: C | D68: ='Encargos Sociais'!D27 -> Licença-Paternidade (Art. 7º, XIX, e art. 10, §1º, do ADCT, CF/1988 e Art. 1º, II, da Lei 11.770/2008) | E68: ='Encargos Sociais'!E27 -> 0.0008 | F68: 0
C69: D | D69: ='Encargos Sociais'!D28 -> Ausência por Acidente de Trabalho (Art. 131, III, da CLT) | E69: ='Encargos Sociais'!E28 -> 0.0009 | F69: 0
C70: E | D70: ='Encargos Sociais'!D29 -> Afastamento Maternidade (Art. 71 da Lei nº 8.213/1991) | E70: ='Encargos Sociais'!E29 -> 0.0033 | F70: 0
C71: F | D71: ='Encargos Sociais'!D30 -> Auxílio Enfermidade - Doença (Art. 59 da Lei nº 8.213/1991) | E71: ='Encargos Sociais'!E30 -> 0.0071 | F71: 0
B73: Submódulo 4.2 - Intrajornada
C74: A | D74: Intervalo para repouso ou alimentação | E74: ='Encargos Sociais'!E33 -> 0 | F74: =ROUND(E74*$F$17,2) -> 0
D76: QUADRO-RESUMO DO MÓDULO 4 | F76: Valor
D77: 4.1 - Ausências Legais | E77: =SUM(E66:E71) -> 0.1109 | F77: =SUM(F66:F71) -> 0
D78: 4.2 - Intrajornada | E78: =E74 -> 0 | F78: =ROUND(E78*$F$17,2) -> 0
D80: TOTAL DE CUSTO DO PROFFIONAL AUSENTE E INTERVALO INTRAJORNADA | F80: =TRUNC(SUM(F77:F78),2) -> 0
B82: MÓDULO 5 - INSUMOS DIVERSOS | F82: Valor
C83: A | D83: Uniformes - aquisição | F83: =TRUNC(HLOOKUP($B$5,Uniformes!$J$3:$DY$5,3,0)/12,2) -> 0
C84: B | D84: Materiais de consumo relacionados ao posto - aquisição | F84: 0
C85: C | D85: Ferramentas relacionadas ao posto - remuneração da sua depreciação / manutenção | F85: 0
C86: D | D86: Equipamentos relacionados ao posto - remuneração da sua depreciação / manutenção | F86: 0
C87: E | D87: Equipamentos de Proteção Individual - EPI - aquisição | F87: =TRUNC(HLOOKUP($B$5,EPI!$J$3:$DX$5,3,0)/12,2) -> 0
D89: TOTAL DE INSUMOS DIVERSOS | F89: =SUM(F83:F88) -> 0 | H89: * Nota - Valores mensais por empregado
B91: MÓDULO 6 - CUSTOS INDIRETOS, TRIBUTOS E LUCRO - BDI | E91: Percentuais | F91: Valor
C92: A | D92: Custos Indiretos | E92: ='BDI - Geral'!E7 -> 0.027
C93: A.1 | D93: Administração Central | E93: ='BDI - Geral'!E8 -> 0.0216
C94: A.2 | D94: Seguros, Garantias e Riscos | E94: ='BDI - Geral'!E9 -> 0.0054
C95: B | D95: Lucro | E95: ='BDI - Geral'!E11 -> 0.0334
C96: C | D96: Tributos | E96: =SUM(E97:E98) -> 0.124
C97: C.1 | D97: Tributos Federais (COFINS, PIS e CPRB) | E97: ='BDI - Geral'!E19 -> 0.074
C98: C.2 | D98: Tributos Distritais (ISS) | E98: ='BDI - Geral'!E24 -> 0.05
C99: D | D99: Despesas Financeiras | E99: ='BDI - Geral'!E14 -> 0.0061
D101: TOTAL DE BDI | E101: ='BDI - Geral'!E27 -> 0.2189 | F101: =TRUNC(E101*E109,2) -> 0
D103: QUADRO-RESUMO DO CUSTO MENSAL POR EMPREGADO - SEM O 13º | E103: Valor
D104: Módulo 1 - Composição da Remuneração | E104: =F17 -> 0
D105: Módulo 2 - Encargos e Benefícios Anuais, Mensais e Diários | E105: =F52 -> 0
D106: Módulo 3 - Provisão para Rescisão | E106: =F62 -> 0
D107: Módulo 4 - Custo de Reposição do Profissional Ausente | E107: =F80 -> 0
D108: Módulo 5 - Insumos Diversos | E108: =F89 -> 0
D109: SUBTOTAL (A+B+C+D+E) | E109: =SUM(E104:E108) -> 0
D110: Módulo 6 - Custos Indiretos, Tributos e Lucro | E110: =F101 -> 0
D112: TOTAL DO POSTO | E112: =SUM(E109:E110) -> 0
B114: MÓDULO 7 - DESTAQUE DO MÓDULO 2 - 13º SALÁRIO | E114: Percentuais | F114: Valor
C115: A | D115: 13º Salário | E115: ='[1]Encargos Sociais'!E32*12/11 -> 0.09916363636 | F115: =ROUND(E115*F$17,2) -> 0 | H115: * Nota 1 - Incluindo-se a reincidência das férias do substituto sobre o titular
C116: B | D116: Encargos Sociais sobre o 13º Salário (submódulo 2.2 e módulo 3) | E116: =SUM($E$25:$E$33)+SUM($E$55:$E$60) -> 0.3976 | F116: =ROUND(E116*$F$115,2) -> 0 | H116: * Nota 2 - 13º e reflexos calculados à parte a fim de aprovisionamento
C117: C | D117: BDI sobre o 13º Salário | E117: =E101 -> 0.2189 | F117: =ROUND(E117*($F$115+$F$116),2) -> 0
D119: TOTAL DO DESTAQUE DO 13º SALÁRIO | F119: =SUM(F115:F117) -> 0
D121: QUADRO-RESUMO DO CUSTO MENSAL POR EMPREGADO | E121: Valor
D122: Custo total - sem o 13º Salário | E122: =ROUND(E112,2) -> 0
D123: Destaque do 13º Salário (valor mensal) | E123: =ROUND(F119,2) -> 0
D125: TOTAL DO POSTO | E125: =E122+E123 -> 0

Sheet 8 (hidden)
B2: PLANILHA DE ESTIMATIVA DE CUSTOS
B3: Padrão IN 05/2017 e IN 07/2018 - MPDG - Medição por posto presente
B5: 8 | D5: =HLOOKUP($B$5,'Dados Gerais'!$D$6:$BI$22,6) -> 0 | E5: QUANTIDADE | F5: =HLOOKUP($B$5,'Dados Gerais'!$D$6:$BI$22,10) -> 0
B6: CCT | D6: =HLOOKUP($B$5,'Dados Gerais'!$D$6:$BI$22,16) -> 0 | E6: DATA-BASE | F6: =HLOOKUP($B$5,'Dados Gerais'!$D$6:$BI$22,17) -> 00:00:00
B8: MÓDULO 1 - COMPOSIÇÃO DA REMUNERAÇÃO | F8: Valor
C9: A | D9: Salário-Base | F9: =HLOOKUP($B$5,'Dados Gerais'!$D$6:$BI$22,8) -> 0
C10: B | D10: Adicional de Periculosidade | F10: =HLOOKUP($B$5,'Dados Gerais'!$D$6:$BI$41,26) -> 0
C11: C | D11: Adicional de Insalubridade | F11: =HLOOKUP($B$5,'Dados Gerais'!$D$6:$BI$41,32) -> 0
C12: D | D12: Adicional Noturno | F12: =HLOOKUP($B$5,'Dados Gerais'!$D$6:$BI$54,49) -> 0 | H12: * Nota 1 - O Módulo 1 refere-se ao valor mensal devido ao empregado pela prestação do serviço no período de 12 meses.
C13: E | D13: Adicional de Hora Extra | F13: =HLOOKUP($B$5,'Dados Gerais'!$D$6:$BI$71,66) -> 0 | H13: * Nota 2 - O adicional de hora extra no feriado trabalhado foi suprimido pela Lei 13.467/17
C14: F | D14: Gratificação | F14: =HLOOKUP($B$5,'Dados Gerais'!$D$6:$BI$71,34) -> 0 | H14: * Nota 3 - ART. 7º, § 2º, DA LEI Nº 605/49.Sendo mensalista o obreiro, o adicional noturno pago de forma fixa já é considerado integrado para os efeitos do pagamento do repouso semanal remunerado, nos termos do art. 7º, § 2º, da Lei nº 605/49.
C15: G | D15: Sobraviso | F15: =HLOOKUP($B$5,'Dados Gerais'!$D$6:$BI$71,36) -> 0 | H15: * Nota 3 - ART. 7º, § 2º, DA LEI Nº 605/49.Sendo mensalista o obreiro, o adicional noturno pago de forma fixa já é considerado integrado para os efeitos do pagamento do repouso semanal remunerado, nos termos do art. 7º, § 2º, da Lei nº 605/49.
D17: TOTAL DA REMUNERAÇÃO | F17: =TRUNC(SUM(F9:F15),2) -> 0
B19: MÓDULO 2 - ENCARGOS E BENEFÍCIOS ANUAIS, MENSAIS E DIÁRIOS | E19: Percentuais | F19: Valor
B20: Submódulo 2.1 - 13º Salário, Férias e Adicional de Férias
C21: A | D21: 13º Salário - Calculado no Módulo 7 - Destacado | E21: 0 | F21: =TRUNC(E21*F$17,2) -> 0
C22: B | D22: Adicional de Férias | E22: ='Encargos Sociais'!E31 -> 0.0303 | F22: =TRUNC(E22*(F$17),2) -> 0 | H22: * Nota 1 - O adicional de férias foi calculado dividindo-se por 11, para comportar os 11 meses presentes e ainda o ausente do posto
B24: Submódulo 2.2 - Encargos Previdenciários (GPS), Fundo de Garantia por Tempo de Serviço (FGTS) e Outras Contribuições
C25: A | D25: ='Encargos Sociais'!D14 -> INSS (art. 22, inciso I, Lei nº 8.212/91) | E25: ='Encargos Sociais'!E14 -> 0.2 | F25: =TRUNC(E25*($F$17+$F$80+$F$22-F69),2) -> 0 | H25: * Nota 1 - Os percentuais dos encargos previdenciários, do FGTS e demais contribuições são estabelecidos por legislação vigente.
C26: B | D26: ='Encargos Sociais'!D15 -> Salário Educação (art. 3º, inciso I, Decreto nº 87.043/82) | E26: ='Encargos Sociais'!E15 -> 0.025 | F26: =TRUNC(E26*($F$17+$F$80+$F$22),2) -> 0 | H26: * Nota 2 - O SAT, a depender do grau de risco do serviço, irá variar entre 1%, para risco leve, de 2%, para risco médio, e de 3% para risco grave.
C27: C | D27: ='Encargos Sociais'!D16 -> SAT/RAT (art. 22, II, Lei 8.212/91 e Anexo V, Decreto 6.042/07) - Enquadramento 8211-3/00 | E27: ='Encargos Sociais'!E16 -> 0.01 | F27: 0 | H27: * Nota 3 - Base de cálculo - remuneração + ausências + terço constitucional (férias) - exceto INSS sobre ausência por acidente de trabalho
C28: D | D28: ='Encargos Sociais'!D17 -> SESC ou SESI (art. 30, Lei nº 8.036/90 e art. 1º, Lei 8.154/90) | E28: ='Encargos Sociais'!E17 -> 0.015 | F28: 0
C29: E | D29: ='Encargos Sociais'!D18 -> SENAI ou SENAC (Decreto nº 2.318/86) | E29: ='Encargos Sociais'!E18 -> 0.01 | F29: 0
C30: F | D30: ='Encargos Sociais'!D19 -> SEBRAE (§ 3º, art. 8º, Lei 8.029/90, alterada pela Lei nº 8.154/90) | E30: ='Encargos Sociais'!E19 -> 0.006 | F30: 0
C31: G | D31: ='Encargos Sociais'!D20 -> INCRA (art. 1º, I, Decreto Lei 1.146/70 e Lei 7.787, de 30/06/89) | E31: ='Encargos Sociais'!E20 -> 0.002 | F31: 0
C32: H | D32: ='Encargos Sociais'!D21 -> FGTS (Lei Complementar nº 110/01 e art. 30, Lei nº 8.036/90) | E32: ='Encargos Sociais'!E21 -> 0.08 | F32: 0
C33: I | D33: ='Encargos Sociais'!D22 -> SECONCI (Convenções Coletivas de Trabalho da construção) | E33: ='Encargos Sociais'!E22 -> 0 | F33: 0
B35: Submódulo 2.3 - Benefícios Mensais e Diários
C36: A | D36: Auxílio Transporte | F36: =HLOOKUP($B$5,'Dados Gerais'!$D$6:$BI$101,85) -> 0 | H36: * Nota 1 - O valor informado deverá ser o custo real do benefício (descontado o valor eventualmente pago pelo empregado).
C37: B | D37: Auxílio Alimentação | F37: =HLOOKUP($B$5,'Dados Gerais'!$D$6:$BI$101,92) -> 0 | H37: * Nota 2 - Observar a previsão dos benefícios contidos em Acordos, Convenções e Dissídios Coletivos de Trabalho e o disposto no art. 6º da IN 5/2017
C38: C | D38: Assistência Médica e Familiar | F38: =HLOOKUP($B$5,'Dados Gerais'!$D$6:$BI$109,100) -> 0
C39: D | D39: Seguro de vida / auxílio funeral | F39: =HLOOKUP($B$5,'Dados Gerais'!$D$6:$BI$145,109) -> 0
C40: E | D40: Assistência odontológica | F40: =HLOOKUP($B$5,'Dados Gerais'!$D$6:$BI$145,115) -> 0
C41: F | D41: Auxílio creche | F41: =HLOOKUP($B$5,'Dados Gerais'!$D$6:$BI$145,121) -> 0
C42: G | D42: Auxílio vestuário especial | F42: =HLOOKUP($B$5,'Dados Gerais'!$D$6:$BI$145,127) -> 0
C43: H | D43: Benefício social familiar | F43: =HLOOKUP($B$5,'Dados Gerais'!$D$6:$BI$145,133) -> 0
C44: I | D44: Outros (especificar) | F44: =HLOOKUP($B$5,'Dados Gerais'!$D$6:$BI$145,115) -> 0
C45: J | D45: Outros (especificar) | F45: =HLOOKUP($B$5,'Dados Gerais'!$D$6:$BI$145,115) -> 0
D47: QUADRO-RESUMO DO MÓDULO 2
D48: 2.1 - Adicional de Férias | E48: =SUM(E21:E22) -> 0.0303 | F48: =F21+F22 -> 0
D49: 2.2 - Encargos Previdenciários (GPS), Fundo de Garantia por Tempo de Serviço (FGTS) e Contribuições | E49: =SUM(E25:E33) -> 0.348 | F49: =SUM(F25:F33) -> 0
D50: 2.3 - Benefícios Mensais e Diários | F50: =SUM(F36:F45) -> 0
D52: TOTAL DOS ENCARGOS E BENEFÍCIOS | F52: =TRUNC(SUM(F48:F50),2) -> 0
B54: MÓDULO 3 - PREVISÃO PARA RESCISÃO | E54: Percentuais | F54: Valor
C55: A | D55: ='Encargos Sociais'!D36 -> Aviso Prévio Indenizado (Art. 7º, inciso XXI, da CF/1988 e arts. 477, 487, §1º, e 491 da CLT) | E55: ='Encargos Sociais'!E36 -> 0.0042 | F55: =TRUNC(E55*($F$17+$F$48+$F$80),2) -> 0 | H55: * Nota 1 - Base de cálculo - remuneração + ausências + 1/3 férias
C56: B | D56: ='Encargos Sociais'!D37 -> Incidência do FGTS sobre o Aviso Prévio Indenizado (Súmula 305 TST) | E56: ='Encargos Sociais'!E37 -> 0.0003 | F56: 0
C57: C | D57: ='Encargos Sociais'!D38 -> Multa do FGTS sobre o Aviso Prévio Indenizado (Art. 18, §1º, da Lei 8.036/1990) | E57: ='Encargos Sociais'!E38 -> 0 | F57: 0
C58: D | D58: ='Encargos Sociais'!D39 -> Aviso Prévio Trabalhado (Art. 488, parágrafo único, CLT) | E58: ='Encargos Sociais'!E39 -> 0.0097 | F58: 0
C59: E | D59: ='Encargos Sociais'!D40 -> Incidência de GPS, FGTS e outras contribuições sobre o Aviso Prévio Trabalhado | E59: ='Encargos Sociais'!E40 -> 0.0034 | F59: 0
C60: F | D60: ='Encargos Sociais'!D41 -> Multa do FGTS | E60: ='Encargos Sociais'!E41 -> 0.032 | F60: 0
D62: TOTAL DE PREVISÃO PARA RESCISÃO | F62: =TRUNC(SUM(F55:F60),2) -> 0
B64: MÓDULO 4 - CUSTO DO PROFISSIONAL AUSENTE | E64: Percentuais | F64: Valor
B65: Submódulo 4.1 - Ausências Legais
C66: A | D66: ='Encargos Sociais'!D25 -> Férias (Arts. 129 e 130, inc. I, da CLT) | E66: ='Encargos Sociais'!E25 -> 0.0909 | F66: =TRUNC(E66*$F$17,2) -> 0 | H66: * Nota 1 - O Módulo 4 refere-se às previsões para custear ausências do próprio profissional (titular do cargo)
C67: B | D67: ='Encargos Sociais'!D26 -> Ausências Legais (Arts. 131 e 473 da CLT) | E67: ='Encargos Sociais'!E26 -> 0.0079 | F67: 0 | H67: * Nota 2 - As férias foram calculadas dividindo-se por 11, para comportar os 11 meses presentes e ainda o ausente do posto
C68: C | D68: ='Encargos Sociais'!D27 -> Licença-Paternidade (Art. 7º, XIX, e art. 10, §1º, do ADCT, CF/1988 e Art. 1º, II, da Lei 11.770/2008) | E68: ='Encargos Sociais'!E27 -> 0.0008 | F68: 0
C69: D | D69: ='Encargos Sociais'!D28 -> Ausência por Acidente de Trabalho (Art. 131, III, da CLT) | E69: ='Encargos Sociais'!E28 -> 0.0009 | F69: 0
C70: E | D70: ='Encargos Sociais'!D29 -> Afastamento Maternidade (Art. 71 da Lei nº 8.213/1991) | E70: ='Encargos Sociais'!E29 -> 0.0033 | F70: 0
C71: F | D71: ='Encargos Sociais'!D30 -> Auxílio Enfermidade - Doença (Art. 59 da Lei nº 8.213/1991) | E71: ='Encargos Sociais'!E30 -> 0.0071 | F71: 0
B73: Submódulo 4.2 - Intrajornada
C74: A | D74: Intervalo para repouso ou alimentação | E74: ='Encargos Sociais'!E33 -> 0 | F74: =ROUND(E74*$F$17,2) -> 0
D76: QUADRO-RESUMO DO MÓDULO 4 | F76: Valor
D77: 4.1 - Ausências Legais | E77: =SUM(E66:E71) -> 0.1109 | F77: =SUM(F66:F71) -> 0
D78: 4.2 - Intrajornada | E78: =E74 -> 0 | F78: =ROUND(E78*$F$17,2) -> 0
D80: TOTAL DE CUSTO DO PROFFIONAL AUSENTE E INTERVALO INTRAJORNADA | F80: =TRUNC(SUM(F77:F78),2) -> 0
B82: MÓDULO 5 - INSUMOS DIVERSOS | F82: Valor
C83: A | D83: Uniformes - aquisição | F83: =TRUNC(HLOOKUP($B$5,Uniformes!$J$3:$DY$5,3,0)/12,2) -> 0
C84: B | D84: Materiais de consumo relacionados ao posto - aquisição | F84: 0
C85: C | D85: Ferramentas relacionadas ao posto - remuneração da sua depreciação / manutenção | F85: 0
C86: D | D86: Equipamentos relacionados ao posto - remuneração da sua depreciação / manutenção | F86: 0
C87: E | D87: Equipamentos de Proteção Individual - EPI - aquisição | F87: =TRUNC(HLOOKUP($B$5,EPI!$J$3:$DX$5,3,0)/12,2) -> 0
D89: TOTAL DE INSUMOS DIVERSOS | F89: =SUM(F83:F88) -> 0 | H89: * Nota - Valores mensais por empregado
B91: MÓDULO 6 - CUSTOS INDIRETOS, TRIBUTOS E LUCRO - BDI | E91: Percentuais | F91: Valor
C92: A | D92: Custos Indiretos | E92: ='BDI - Geral'!E7 -> 0.027
C93: A.1 | D93: Administração Central | E93: ='BDI - Geral'!E8 -> 0.0216
C94: A.2 | D94: Seguros, Garantias e Riscos | E94: ='BDI - Geral'!E9 -> 0.0054
C95: B | D95: Lucro | E95: ='BDI - Geral'!E11 -> 0.0334
C96: C | D96: Tributos | E96: =SUM(E97:E98) -> 0.124
C97: C.1 | D97: Tributos Federais (COFINS, PIS e CPRB) | E97: ='BDI - Geral'!E19 -> 0.074
C98: C.2 | D98: Tributos Distritais (ISS) | E98: ='BDI - Geral'!E24 -> 0.05
C99: D | D99: Despesas Financeiras | E99: ='BDI - Geral'!E14 -> 0.0061
D101: TOTAL DE BDI | E101: ='BDI - Geral'!E27 -> 0.2189 | F101: =TRUNC(E101*E109,2) -> 0
D103: QUADRO-RESUMO DO CUSTO MENSAL POR EMPREGADO - SEM O 13º | E103: Valor
D104: Módulo 1 - Composição da Remuneração | E104: =F17 -> 0
D105: Módulo 2 - Encargos e Benefícios Anuais, Mensais e Diários | E105: =F52 -> 0
D106: Módulo 3 - Provisão para Rescisão | E106: =F62 -> 0
D107: Módulo 4 - Custo de Reposição do Profissional Ausente | E107: =F80 -> 0
D108: Módulo 5 - Insumos Diversos | E108: =F89 -> 0
D109: SUBTOTAL (A+B+C+D+E) | E109: =SUM(E104:E108) -> 0
D110: Módulo 6 - Custos Indiretos, Tributos e Lucro | E110: =F101 -> 0
D112: TOTAL DO POSTO | E112: =SUM(E109:E110) -> 0
B114: MÓDULO 7 - DESTAQUE DO MÓDULO 2 - 13º SALÁRIO | E114: Percentuais | F114: Valor
C115: A | D115: 13º Salário | E115: ='[1]Encargos Sociais'!E32*12/11 -> 0.09916363636 | F115: =ROUND(E115*F$17,2) -> 0 | H115: * Nota 1 - Incluindo-se a reincidência das férias do substituto sobre o titular
C116: B | D116: Encargos Sociais sobre o 13º Salário (submódulo 2.2 e módulo 3) | E116: =SUM($E$25:$E$33)+SUM($E$55:$E$60) -> 0.3976 | F116: =ROUND(E116*$F$115,2) -> 0 | H116: * Nota 2 - 13º e reflexos calculados à parte a fim de aprovisionamento
C117: C | D117: BDI sobre o 13º Salário | E117: =E101 -> 0.2189 | F117: =ROUND(E117*($F$115+$F$116),2) -> 0
D119: TOTAL DO DESTAQUE DO 13º SALÁRIO | F119: =SUM(F115:F117) -> 0
D121: QUADRO-RESUMO DO CUSTO MENSAL POR EMPREGADO | E121: Valor
D122: Custo total - sem o 13º Salário | E122: =ROUND(E112,2) -> 0
D123: Destaque do 13º Salário (valor mensal) | E123: =ROUND(F119,2) -> 0
D125: TOTAL DO POSTO | E125: =E122+E123 -> 0

Sheet 9 (hidden)
B2: PLANILHA DE ESTIMATIVA DE CUSTOS
B3: Padrão IN 05/2017 e IN 07/2018 - MPDG - Medição por posto presente
B5: 9 | D5: =HLOOKUP($B$5,'Dados Gerais'!$D$6:$BI$22,6) -> 0 | E5: QUANTIDADE | F5: =HLOOKUP($B$5,'Dados Gerais'!$D$6:$BI$22,10) -> 0
B6: CCT | D6: =HLOOKUP($B$5,'Dados Gerais'!$D$6:$BI$22,16) -> 0 | E6: DATA-BASE | F6: =HLOOKUP($B$5,'Dados Gerais'!$D$6:$BI$22,17) -> 00:00:00
B8: MÓDULO 1 - COMPOSIÇÃO DA REMUNERAÇÃO | F8: Valor
C9: A | D9: Salário-Base | F9: =HLOOKUP($B$5,'Dados Gerais'!$D$6:$BI$22,8) -> 0
C10: B | D10: Adicional de Periculosidade | F10: =HLOOKUP($B$5,'Dados Gerais'!$D$6:$BI$41,26) -> 0
C11: C | D11: Adicional de Insalubridade | F11: =HLOOKUP($B$5,'Dados Gerais'!$D$6:$BI$41,32) -> 0
C12: D | D12: Adicional Noturno | F12: =HLOOKUP($B$5,'Dados Gerais'!$D$6:$BI$54,49) -> 0 | H12: * Nota 1 - O Módulo 1 refere-se ao valor mensal devido ao empregado pela prestação do serviço no período de 12 meses.
C13: E | D13: Adicional de Hora Extra | F13: =HLOOKUP($B$5,'Dados Gerais'!$D$6:$BI$71,66) -> 0 | H13: * Nota 2 - O adicional de hora extra no feriado trabalhado foi suprimido pela Lei 13.467/17
C14: F | D14: Gratificação | F14: =HLOOKUP($B$5,'Dados Gerais'!$D$6:$BI$71,34) -> 0 | H14: * Nota 3 - ART. 7º, § 2º, DA LEI Nº 605/49.Sendo mensalista o obreiro, o adicional noturno pago de forma fixa já é considerado integrado para os efeitos do pagamento do repouso semanal remunerado, nos termos do art. 7º, § 2º, da Lei nº 605/49.
C15: G | D15: Sobraviso | F15: =HLOOKUP($B$5,'Dados Gerais'!$D$6:$BI$71,36) -> 0 | H15: * Nota 3 - ART. 7º, § 2º, DA LEI Nº 605/49.Sendo mensalista o obreiro, o adicional noturno pago de forma fixa já é considerado integrado para os efeitos do pagamento do repouso semanal remunerado, nos termos do art. 7º, § 2º, da Lei nº 605/49.
D17: TOTAL DA REMUNERAÇÃO | F17: =TRUNC(SUM(F9:F15),2) -> 0
B19: MÓDULO 2 - ENCARGOS E BENEFÍCIOS ANUAIS, MENSAIS E DIÁRIOS | E19: Percentuais | F19: Valor
B20: Submódulo 2.1 - 13º Salário, Férias e Adicional de Férias
C21: A | D21: 13º Salário - Calculado no Módulo 7 - Destacado | E21: 0 | F21: =TRUNC(E21*F$17,2) -> 0
C22: B | D22: Adicional de Férias | E22: ='Encargos Sociais'!E31 -> 0.0303 | F22: =TRUNC(E22*(F$17),2) -> 0 | H22: * Nota 1 - O adicional de férias foi calculado dividindo-se por 11, para comportar os 11 meses presentes e ainda o ausente do posto
B24: Submódulo 2.2 - Encargos Previdenciários (GPS), Fundo de Garantia por Tempo de Serviço (FGTS) e Outras Contribuições
C25: A | D25: ='Encargos Sociais'!D14 -> INSS (art. 22, inciso I, Lei nº 8.212/91) | E25: ='Encargos Sociais'!E14 -> 0.2 | F25: =TRUNC(E25*($F$17+$F$80+$F$22-F69),2) -> 0 | H25: * Nota 1 - Os percentuais dos encargos previdenciários, do FGTS e demais contribuições são estabelecidos por legislação vigente.
C26: B | D26: ='Encargos Sociais'!D15 -> Salário Educação (art. 3º, inciso I, Decreto nº 87.043/82) | E26: ='Encargos Sociais'!E15 -> 0.025 | F26: =TRUNC(E26*($F$17+$F$80+$F$22),2) -> 0 | H26: * Nota 2 - O SAT, a depender do grau de risco do serviço, irá variar entre 1%, para risco leve, de 2%, para risco médio, e de 3% para risco grave.
C27: C | D27: ='Encargos Sociais'!D16 -> SAT/RAT (art. 22, II, Lei 8.212/91 e Anexo V, Decreto 6.042/07) - Enquadramento 8211-3/00 | E27: ='Encargos Sociais'!E16 -> 0.01 | F27: 0 | H27: * Nota 3 - Base de cálculo - remuneração + ausências + terço constitucional (férias) - exceto INSS sobre ausência por acidente de trabalho
C28: D | D28: ='Encargos Sociais'!D17 -> SESC ou SESI (art. 30, Lei nº 8.036/90 e art. 1º, Lei 8.154/90) | E28: ='Encargos Sociais'!E17 -> 0.015 | F28: 0
C29: E | D29: ='Encargos Sociais'!D18 -> SENAI ou SENAC (Decreto nº 2.318/86) | E29: ='Encargos Sociais'!E18 -> 0.01 | F29: 0
C30: F | D30: ='Encargos Sociais'!D19 -> SEBRAE (§ 3º, art. 8º, Lei 8.029/90, alterada pela Lei nº 8.154/90) | E30: ='Encargos Sociais'!E19 -> 0.006 | F30: 0
C31: G | D31: ='Encargos Sociais'!D20 -> INCRA (art. 1º, I, Decreto Lei 1.146/70 e Lei 7.787, de 30/06/89) | E31: ='Encargos Sociais'!E20 -> 0.002 | F31: 0
C32: H | D32: ='Encargos Sociais'!D21 -> FGTS (Lei Complementar nº 110/01 e art. 30, Lei nº 8.036/90) | E32: ='Encargos Sociais'!E21 -> 0.08 | F32: 0
C33: I | D33: ='Encargos Sociais'!D22 -> SECONCI (Convenções Coletivas de Trabalho da construção) | E33: ='Encargos Sociais'!E22 -> 0 | F33: 0
B35: Submódulo 2.3 - Benefícios Mensais e Diários
C36: A | D36: Auxílio Transporte | F36: =HLOOKUP($B$5,'Dados Gerais'!$D$6:$BI$101,85) -> 0 | H36: * Nota 1 - O valor informado deverá ser o custo real do benefício (descontado o valor eventualmente pago pelo empregado).
C37: B | D37: Auxílio Alimentação | F37: =HLOOKUP($B$5,'Dados Gerais'!$D$6:$BI$101,92) -> 0 | H37: * Nota 2 - Observar a previsão dos benefícios contidos em Acordos, Convenções e Dissídios Coletivos de Trabalho e o disposto no art. 6º da IN 5/2017
C38: C | D38: Assistência Médica e Familiar | F38: =HLOOKUP($B$5,'Dados Gerais'!$D$6:$BI$109,100) -> 0
C39: D | D39: Seguro de vida / auxílio funeral | F39: =HLOOKUP($B$5,'Dados Gerais'!$D$6:$BI$145,109) -> 0
C40: E | D40: Assistência odontológica | F40: =HLOOKUP($B$5,'Dados Gerais'!$D$6:$BI$145,115) -> 0
C41: F | D41: Auxílio creche | F41: =HLOOKUP($B$5,'Dados Gerais'!$D$6:$BI$145,121) -> 0
C42: G | D42: Auxílio vestuário especial | F42: =HLOOKUP($B$5,'Dados Gerais'!$D$6:$BI$145,127) -> 0
C43: H | D43: Benefício social familiar | F43: =HLOOKUP($B$5,'Dados Gerais'!$D$6:$BI$145,133) -> 0
C44: I | D44: Outros (especificar) | F44: =HLOOKUP($B$5,'Dados Gerais'!$D$6:$BI$145,115) -> 0
C45: J | D45: Outros (especificar) | F45: =HLOOKUP($B$5,'Dados Gerais'!$D$6:$BI$145,115) -> 0
D47: QUADRO-RESUMO DO MÓDULO 2
D48: 2.1 - Adicional de Férias | E48: =SUM(E21:E22) -> 0.0303 | F48: =F21+F22 -> 0
D49: 2.2 - Encargos Previdenciários (GPS), Fundo de Garantia por Tempo de Serviço (FGTS) e Contribuições | E49: =SUM(E25:E33) -> 0.348 | F49: =SUM(F25:F33) -> 0
D50: 2.3 - Benefícios Mensais e Diários | F50: =SUM(F36:F45) -> 0
D52: TOTAL DOS ENCARGOS E BENEFÍCIOS | F52: =TRUNC(SUM(F48:F50),2) -> 0
B54: MÓDULO 3 - PREVISÃO PARA RESCISÃO | E54: Percentuais | F54: Valor
C55: A | D55: ='Encargos Sociais'!D36 -> Aviso Prévio Indenizado (Art. 7º, inciso XXI, da CF/1988 e arts. 477, 487, §1º, e 491 da CLT) | E55: ='Encargos Sociais'!E36 -> 0.0042 | F55: =TRUNC(E55*($F$17+$F$48+$F$80),2) -> 0 | H55: * Nota 1 - Base de cálculo - remuneração + ausências + 1/3 férias
C56: B | D56: ='Encargos Sociais'!D37 -> Incidência do FGTS sobre o Aviso Prévio Indenizado (Súmula 305 TST) | E56: ='Encargos Sociais'!E37 -> 0.0003 | F56: 0
C57: C | D57: ='Encargos Sociais'!D38 -> Multa do FGTS sobre o Aviso Prévio Indenizado (Art. 18, §1º, da Lei 8.036/1990) | E57: ='Encargos Sociais'!E38 -> 0 | F57: 0
C58: D | D58: ='Encargos Sociais'!D39 -> Aviso Prévio Trabalhado (Art. 488, parágrafo único, CLT) | E58: ='Encargos Sociais'!E39 -> 0.0097 | F58: 0
C59: E | D59: ='Encargos Sociais'!D40 -> Incidência de GPS, FGTS e outras contribuições sobre o Aviso Prévio Trabalhado | E59: ='Encargos Sociais'!E40 -> 0.0034 | F59: 0
C60: F | D60: ='Encargos Sociais'!D41 -> Multa do FGTS | E60: ='Encargos Sociais'!E41 -> 0.032 | F60: 0
D62: TOTAL DE PREVISÃO PARA RESCISÃO | F62: =TRUNC(SUM(F55:F60),2) -> 0
B64: MÓDULO 4 - CUSTO DO PROFISSIONAL AUSENTE | E64: Percentuais | F64: Valor
B65: Submódulo 4.1 - Ausências Legais
C66: A | D66: ='Encargos Sociais'!D25 -> Férias (Arts. 129 e 130, inc. I, da CLT) | E66: ='Encargos Sociais'!E25 -> 0.0909 | F66: =TRUNC(E66*$F$17,2) -> 0 | H66: * Nota 1 - O Módulo 4 refere-se às previsões para custear ausências do próprio profissional (titular do cargo)
C67: B | D67: ='Encargos Sociais'!D26 -> Ausências Legais (Arts. 131 e 473 da CLT) | E67: ='Encargos Sociais'!E26 -> 0.0079 | F67: 0 | H67: * Nota 2 - As férias foram calculadas dividindo-se por 11, para comportar os 11 meses presentes e ainda o ausente do posto
C68: C | D68: ='Encargos Sociais'!D27 -> Licença-Paternidade (Art. 7º, XIX, e art. 10, §1º, do ADCT, CF/1988 e Art. 1º, II, da Lei 11.770/2008) | E68: ='Encargos Sociais'!E27 -> 0.0008 | F68: 0
C69: D | D69: ='Encargos Sociais'!D28 -> Ausência por Acidente de Trabalho (Art. 131, III, da CLT) | E69: ='Encargos Sociais'!E28 -> 0.0009 | F69: 0
C70: E | D70: ='Encargos Sociais'!D29 -> Afastamento Maternidade (Art. 71 da Lei nº 8.213/1991) | E70: ='Encargos Sociais'!E29 -> 0.0033 | F70: 0
C71: F | D71: ='Encargos Sociais'!D30 -> Auxílio Enfermidade - Doença (Art. 59 da Lei nº 8.213/1991) | E71: ='Encargos Sociais'!E30 -> 0.0071 | F71: 0
B73: Submódulo 4.2 - Intrajornada
C74: A | D74: Intervalo para repouso ou alimentação | E74: ='Encargos Sociais'!E33 -> 0 | F74: =ROUND(E74*$F$17,2) -> 0
D76: QUADRO-RESUMO DO MÓDULO 4 | F76: Valor
D77: 4.1 - Ausências Legais | E77: =SUM(E66:E71) -> 0.1109 | F77: =SUM(F66:F71) -> 0
D78: 4.2 - Intrajornada | E78: =E74 -> 0 | F78: =ROUND(E78*$F$17,2) -> 0
D80: TOTAL DE CUSTO DO PROFFIONAL AUSENTE E INTERVALO INTRAJORNADA | F80: =TRUNC(SUM(F77:F78),2) -> 0
B82: MÓDULO 5 - INSUMOS DIVERSOS | F82: Valor
C83: A | D83: Uniformes - aquisição | F83: =TRUNC(HLOOKUP($B$5,Uniformes!$J$3:$DY$5,3,0)/12,2) -> 0
C84: B | D84: Materiais de consumo relacionados ao posto - aquisição | F84: 0
C85: C | D85: Ferramentas relacionadas ao posto - remuneração da sua depreciação / manutenção | F85: 0
C86: D | D86: Equipamentos relacionados ao posto - remuneração da sua depreciação / manutenção | F86: 0
C87: E | D87: Equipamentos de Proteção Individual - EPI - aquisição | F87: =TRUNC(HLOOKUP($B$5,EPI!$J$3:$DX$5,3,0)/12,2) -> 0
D89: TOTAL DE INSUMOS DIVERSOS | F89: =SUM(F83:F88) -> 0 | H89: * Nota - Valores mensais por empregado
B91: MÓDULO 6 - CUSTOS INDIRETOS, TRIBUTOS E LUCRO - BDI | E91: Percentuais | F91: Valor
C92: A | D92: Custos Indiretos | E92: ='BDI - Geral'!E7 -> 0.027
C93: A.1 | D93: Administração Central | E93: ='BDI - Geral'!E8 -> 0.0216
C94: A.2 | D94: Seguros, Garantias e Riscos | E94: ='BDI - Geral'!E9 -> 0.0054
C95: B | D95: Lucro | E95: ='BDI - Geral'!E11 -> 0.0334
C96: C | D96: Tributos | E96: =SUM(E97:E98) -> 0.124
C97: C.1 | D97: Tributos Federais (COFINS, PIS e CPRB) | E97: ='BDI - Geral'!E19 -> 0.074
C98: C.2 | D98: Tributos Distritais (ISS) | E98: ='BDI - Geral'!E24 -> 0.05
C99: D | D99: Despesas Financeiras | E99: ='BDI - Geral'!E14 -> 0.0061
D101: TOTAL DE BDI | E101: ='BDI - Geral'!E27 -> 0.2189 | F101: =TRUNC(E101*E109,2) -> 0
D103: QUADRO-RESUMO DO CUSTO MENSAL POR EMPREGADO - SEM O 13º | E103: Valor
D104: Módulo 1 - Composição da Remuneração | E104: =F17 -> 0
D105: Módulo 2 - Encargos e Benefícios Anuais, Mensais e Diários | E105: =F52 -> 0
D106: Módulo 3 - Provisão para Rescisão | E106: =F62 -> 0
D107: Módulo 4 - Custo de Reposição do Profissional Ausente | E107: =F80 -> 0
D108: Módulo 5 - Insumos Diversos | E108: =F89 -> 0
D109: SUBTOTAL (A+B+C+D+E) | E109: =SUM(E104:E108) -> 0
D110: Módulo 6 - Custos Indiretos, Tributos e Lucro | E110: =F101 -> 0
D112: TOTAL DO POSTO | E112: =SUM(E109:E110) -> 0
B114: MÓDULO 7 - DESTAQUE DO MÓDULO 2 - 13º SALÁRIO | E114: Percentuais | F114: Valor
C115: A | D115: 13º Salário | E115: ='[1]Encargos Sociais'!E32*12/11 -> 0.09916363636 | F115: =ROUND(E115*F$17,2) -> 0 | H115: * Nota 1 - Incluindo-se a reincidência das férias do substituto sobre o titular
C116: B | D116: Encargos Sociais sobre o 13º Salário (submódulo 2.2 e módulo 3) | E116: =SUM($E$25:$E$33)+SUM($E$55:$E$60) -> 0.3976 | F116: =ROUND(E116*$F$115,2) -> 0 | H116: * Nota 2 - 13º e reflexos calculados à parte a fim de aprovisionamento
C117: C | D117: BDI sobre o 13º Salário | E117: =E101 -> 0.2189 | F117: =ROUND(E117*($F$115+$F$116),2) -> 0
D119: TOTAL DO DESTAQUE DO 13º SALÁRIO | F119: =SUM(F115:F117) -> 0
D121: QUADRO-RESUMO DO CUSTO MENSAL POR EMPREGADO | E121: Valor
D122: Custo total - sem o 13º Salário | E122: =ROUND(E112,2) -> 0
D123: Destaque do 13º Salário (valor mensal) | E123: =ROUND(F119,2) -> 0
D125: TOTAL DO POSTO | E125: =E122+E123 -> 0

Sheet 10 (hidden)
B2: PLANILHA DE ESTIMATIVA DE CUSTOS
B3: Padrão IN 05/2017 e IN 07/2018 - MPDG - Medição por posto presente
B5: 10 | D5: =HLOOKUP($B$5,'Dados Gerais'!$D$6:$BI$22,6) -> 0 | E5: QUANTIDADE | F5: =HLOOKUP($B$5,'Dados Gerais'!$D$6:$BI$22,10) -> 0
B6: CCT | D6: =HLOOKUP($B$5,'Dados Gerais'!$D$6:$BI$22,16) -> 0 | E6: DATA-BASE | F6: =HLOOKUP($B$5,'Dados Gerais'!$D$6:$BI$22,17) -> 00:00:00
B8: MÓDULO 1 - COMPOSIÇÃO DA REMUNERAÇÃO | F8: Valor
C9: A | D9: Salário-Base | F9: =HLOOKUP($B$5,'Dados Gerais'!$D$6:$BI$22,8) -> 0
C10: B | D10: Adicional de Periculosidade | F10: =HLOOKUP($B$5,'Dados Gerais'!$D$6:$BI$41,26) -> 0
C11: C | D11: Adicional de Insalubridade | F11: =HLOOKUP($B$5,'Dados Gerais'!$D$6:$BI$41,32) -> 0
C12: D | D12: Adicional Noturno | F12: =HLOOKUP($B$5,'Dados Gerais'!$D$6:$BI$54,49) -> 0 | H12: * Nota 1 - O Módulo 1 refere-se ao valor mensal devido ao empregado pela prestação do serviço no período de 12 meses.
C13: E | D13: Adicional de Hora Extra | F13: =HLOOKUP($B$5,'Dados Gerais'!$D$6:$BI$71,66) -> 0 | H13: * Nota 2 - O adicional de hora extra no feriado trabalhado foi suprimido pela Lei 13.467/17
C14: F | D14: Gratificação | F14: =HLOOKUP($B$5,'Dados Gerais'!$D$6:$BI$71,34) -> 0 | H14: * Nota 3 - ART. 7º, § 2º, DA LEI Nº 605/49.Sendo mensalista o obreiro, o adicional noturno pago de forma fixa já é considerado integrado para os efeitos do pagamento do repouso semanal remunerado, nos termos do art. 7º, § 2º, da Lei nº 605/49.
C15: G | D15: Sobraviso | F15: =HLOOKUP($B$5,'Dados Gerais'!$D$6:$BI$71,36) -> 0 | H15: * Nota 3 - ART. 7º, § 2º, DA LEI Nº 605/49.Sendo mensalista o obreiro, o adicional noturno pago de forma fixa já é considerado integrado para os efeitos do pagamento do repouso semanal remunerado, nos termos do art. 7º, § 2º, da Lei nº 605/49.
D17: TOTAL DA REMUNERAÇÃO | F17: =TRUNC(SUM(F9:F15),2) -> 0
B19: MÓDULO 2 - ENCARGOS E BENEFÍCIOS ANUAIS, MENSAIS E DIÁRIOS | E19: Percentuais | F19: Valor
B20: Submódulo 2.1 - 13º Salário, Férias e Adicional de Férias
C21: A | D21: 13º Salário - Calculado no Módulo 7 - Destacado | E21: 0 | F21: =TRUNC(E21*F$17,2) -> 0
C22: B | D22: Adicional de Férias | E22: ='Encargos Sociais'!E31 -> 0.0303 | F22: =TRUNC(E22*(F$17),2) -> 0 | H22: * Nota 1 - O adicional de férias foi calculado dividindo-se por 11, para comportar os 11 meses presentes e ainda o ausente do posto
B24: Submódulo 2.2 - Encargos Previdenciários (GPS), Fundo de Garantia por Tempo de Serviço (FGTS) e Outras Contribuições
C25: A | D25: ='Encargos Sociais'!D14 -> INSS (art. 22, inciso I, Lei nº 8.212/91) | E25: ='Encargos Sociais'!E14 -> 0.2 | F25: =TRUNC(E25*($F$17+$F$80+$F$22-F69),2) -> 0 | H25: * Nota 1 - Os percentuais dos encargos previdenciários, do FGTS e demais contribuições são estabelecidos por legislação vigente.
C26: B | D26: ='Encargos Sociais'!D15 -> Salário Educação (art. 3º, inciso I, Decreto nº 87.043/82) | E26: ='Encargos Sociais'!E15 -> 0.025 | F26: =TRUNC(E26*($F$17+$F$80+$F$22),2) -> 0 | H26: * Nota 2 - O SAT, a depender do grau de risco do serviço, irá variar entre 1%, para risco leve, de 2%, para risco médio, e de 3% para risco grave.
C27: C | D27: ='Encargos Sociais'!D16 -> SAT/RAT (art. 22, II, Lei 8.212/91 e Anexo V, Decreto 6.042/07) - Enquadramento 8211-3/00 | E27: ='Encargos Sociais'!E16 -> 0.01 | F27: 0 | H27: * Nota 3 - Base de cálculo - remuneração + ausências + terço constitucional (férias) - exceto INSS sobre ausência por acidente de trabalho
C28: D | D28: ='Encargos Sociais'!D17 -> SESC ou SESI (art. 30, Lei nº 8.036/90 e art. 1º, Lei 8.154/90) | E28: ='Encargos Sociais'!E17 -> 0.015 | F28: 0
C29: E | D29: ='Encargos Sociais'!D18 -> SENAI ou SENAC (Decreto nº 2.318/86) | E29: ='Encargos Sociais'!E18 -> 0.01 | F29: 0
C30: F | D30: ='Encargos Sociais'!D19 -> SEBRAE (§ 3º, art. 8º, Lei 8.029/90, alterada pela Lei nº 8.154/90) | E30: ='Encargos Sociais'!E19 -> 0.006 | F30: 0
C31: G | D31: ='Encargos Sociais'!D20 -> INCRA (art. 1º, I, Decreto Lei 1.146/70 e Lei 7.787, de 30/06/89) | E31: ='Encargos Sociais'!E20 -> 0.002 | F31: 0
C32: H | D32: ='Encargos Sociais'!D21 -> FGTS (Lei Complementar nº 110/01 e art. 30, Lei nº 8.036/90) | E32: ='Encargos Sociais'!E21 -> 0.08 | F32: 0
C33: I | D33: ='Encargos Sociais'!D22 -> SECONCI (Convenções Coletivas de Trabalho da construção) | E33: ='Encargos Sociais'!E22 -> 0 | F33: 0
B35: Submódulo 2.3 - Benefícios Mensais e Diários
C36: A | D36: Auxílio Transporte | F36: =HLOOKUP($B$5,'Dados Gerais'!$D$6:$BI$101,85) -> 0 | H36: * Nota 1 - O valor informado deverá ser o custo real do benefício (descontado o valor eventualmente pago pelo empregado).
C37: B | D37: Auxílio Alimentação | F37: =HLOOKUP($B$5,'Dados Gerais'!$D$6:$BI$101,92) -> 0 | H37: * Nota 2 - Observar a previsão dos benefícios contidos em Acordos, Convenções e Dissídios Coletivos de Trabalho e o disposto no art. 6º da IN 5/2017
C38: C | D38: Assistência Médica e Familiar | F38: =HLOOKUP($B$5,'Dados Gerais'!$D$6:$BI$109,100) -> 0
C39: D | D39: Seguro de vida / auxílio funeral | F39: =HLOOKUP($B$5,'Dados Gerais'!$D$6:$BI$145,109) -> 0
C40: E | D40: Assistência odontológica | F40: =HLOOKUP($B$5,'Dados Gerais'!$D$6:$BI$145,115) -> 0
C41: F | D41: Auxílio creche | F41: =HLOOKUP($B$5,'Dados Gerais'!$D$6:$BI$145,121) -> 0
C42: G | D42: Auxílio vestuário especial | F42: =HLOOKUP($B$5,'Dados Gerais'!$D$6:$BI$145,127) -> 0
C43: H | D43: Benefício social familiar | F43: =HLOOKUP($B$5,'Dados Gerais'!$D$6:$BI$145,133) -> 0
C44: I | D44: Outros (especificar) | F44: =HLOOKUP($B$5,'Dados Gerais'!$D$6:$BI$145,115) -> 0
C45: J | D45: Outros (especificar) | F45: =HLOOKUP($B$5,'Dados Gerais'!$D$6:$BI$145,115) -> 0
D47: QUADRO-RESUMO DO MÓDULO 2
D48: 2.1 - Adicional de Férias | E48: =SUM(E21:E22) -> 0.0303 | F48: =F21+F22 -> 0
D49: 2.2 - Encargos Previdenciários (GPS), Fundo de Garantia por Tempo de Serviço (FGTS) e Contribuições | E49: =SUM(E25:E33) -> 0.348 | F49: =SUM(F25:F33) -> 0
D50: 2.3 - Benefícios Mensais e Diários | F50: =SUM(F36:F45) -> 0
D52: TOTAL DOS ENCARGOS E BENEFÍCIOS | F52: =TRUNC(SUM(F48:F50),2) -> 0
B54: MÓDULO 3 - PREVISÃO PARA RESCISÃO | E54: Percentuais | F54: Valor
C55: A | D55: ='Encargos Sociais'!D36 -> Aviso Prévio Indenizado (Art. 7º, inciso XXI, da CF/1988 e arts. 477, 487, §1º, e 491 da CLT) | E55: ='Encargos Sociais'!E36 -> 0.0042 | F55: =TRUNC(E55*($F$17+$F$48+$F$80),2) -> 0 | H55: * Nota 1 - Base de cálculo - remuneração + ausências + 1/3 férias
C56: B | D56: ='Encargos Sociais'!D37 -> Incidência do FGTS sobre o Aviso Prévio Indenizado (Súmula 305 TST) | E56: ='Encargos Sociais'!E37 -> 0.0003 | F56: 0
C57: C | D57: ='Encargos Sociais'!D38 -> Multa do FGTS sobre o Aviso Prévio Indenizado (Art. 18, §1º, da Lei 8.036/1990) | E57: ='Encargos Sociais'!E38 -> 0 | F57: 0
C58: D | D58: ='Encargos Sociais'!D39 -> Aviso Prévio Trabalhado (Art. 488, parágrafo único, CLT) | E58: ='Encargos Sociais'!E39 -> 0.0097 | F58: 0
C59: E | D59: ='Encargos Sociais'!D40 -> Incidência de GPS, FGTS e outras contribuições sobre o Aviso Prévio Trabalhado | E59: ='Encargos Sociais'!E40 -> 0.0034 | F59: 0
C60: F | D60: ='Encargos Sociais'!D41 -> Multa do FGTS | E60: ='Encargos Sociais'!E41 -> 0.032 | F60: 0
D62: TOTAL DE PREVISÃO PARA RESCISÃO | F62: =TRUNC(SUM(F55:F60),2) -> 0
B64: MÓDULO 4 - CUSTO DO PROFISSIONAL AUSENTE | E64: Percentuais | F64: Valor
B65: Submódulo 4.1 - Ausências Legais
C66: A | D66: ='Encargos Sociais'!D25 -> Férias (Arts. 129 e 130, inc. I, da CLT) | E66: ='Encargos Sociais'!E25 -> 0.0909 | F66: =TRUNC(E66*$F$17,2) -> 0 | H66: * Nota 1 - O Módulo 4 refere-se às previsões para custear ausências do próprio profissional (titular do cargo)
C67: B | D67: ='Encargos Sociais'!D26 -> Ausências Legais (Arts. 131 e 473 da CLT) | E67: ='Encargos Sociais'!E26 -> 0.0079 | F67: 0 | H67: * Nota 2 - As férias foram calculadas dividindo-se por 11, para comportar os 11 meses presentes e ainda o ausente do posto
C68: C | D68: ='Encargos Sociais'!D27 -> Licença-Paternidade (Art. 7º, XIX, e art. 10, §1º, do ADCT, CF/1988 e Art. 1º, II, da Lei 11.770/2008) | E68: ='Encargos Sociais'!E27 -> 0.0008 | F68: 0
C69: D | D69: ='Encargos Sociais'!D28 -> Ausência por Acidente de Trabalho (Art. 131, III, da CLT) | E69: ='Encargos Sociais'!E28 -> 0.0009 | F69: 0
C70: E | D70: ='Encargos Sociais'!D29 -> Afastamento Maternidade (Art. 71 da Lei nº 8.213/1991) | E70: ='Encargos Sociais'!E29 -> 0.0033 | F70: 0
C71: F | D71: ='Encargos Sociais'!D30 -> Auxílio Enfermidade - Doença (Art. 59 da Lei nº 8.213/1991) | E71: ='Encargos Sociais'!E30 -> 0.0071 | F71: 0
B73: Submódulo 4.2 - Intrajornada
C74: A | D74: Intervalo para repouso ou alimentação | E74: ='Encargos Sociais'!E33 -> 0 | F74: =ROUND(E74*$F$17,2) -> 0
D76: QUADRO-RESUMO DO MÓDULO 4 | F76: Valor
D77: 4.1 - Ausências Legais | E77: =SUM(E66:E71) -> 0.1109 | F77: =SUM(F66:F71) -> 0
D78: 4.2 - Intrajornada | E78: =E74 -> 0 | F78: =ROUND(E78*$F$17,2) -> 0
D80: TOTAL DE CUSTO DO PROFFIONAL AUSENTE E INTERVALO INTRAJORNADA | F80: =TRUNC(SUM(F77:F78),2) -> 0
B82: MÓDULO 5 - INSUMOS DIVERSOS | F82: Valor
C83: A | D83: Uniformes - aquisição | F83: =TRUNC(HLOOKUP($B$5,Uniformes!$J$3:$DY$5,3,0)/12,2) -> 0
C84: B | D84: Materiais de consumo relacionados ao posto - aquisição | F84: 0
C85: C | D85: Ferramentas relacionadas ao posto - remuneração da sua depreciação / manutenção | F85: 0
C86: D | D86: Equipamentos relacionados ao posto - remuneração da sua depreciação / manutenção | F86: 0
C87: E | D87: Equipamentos de Proteção Individual - EPI - aquisição | F87: =TRUNC(HLOOKUP($B$5,EPI!$J$3:$DX$5,3,0)/12,2) -> 0
D89: TOTAL DE INSUMOS DIVERSOS | F89: =SUM(F83:F88) -> 0 | H89: * Nota - Valores mensais por empregado
B91: MÓDULO 6 - CUSTOS INDIRETOS, TRIBUTOS E LUCRO - BDI | E91: Percentuais | F91: Valor
C92: A | D92: Custos Indiretos | E92: ='BDI - Geral'!E7 -> 0.027
C93: A.1 | D93: Administração Central | E93: ='BDI - Geral'!E8 -> 0.0216
C94: A.2 | D94: Seguros, Garantias e Riscos | E94: ='BDI - Geral'!E9 -> 0.0054
C95: B | D95: Lucro | E95: ='BDI - Geral'!E11 -> 0.0334
C96: C | D96: Tributos | E96: =SUM(E97:E98) -> 0.124
C97: C.1 | D97: Tributos Federais (COFINS, PIS e CPRB) | E97: ='BDI - Geral'!E19 -> 0.074
C98: C.2 | D98: Tributos Distritais (ISS) | E98: ='BDI - Geral'!E24 -> 0.05
C99: D | D99: Despesas Financeiras | E99: ='BDI - Geral'!E14 -> 0.0061
D101: TOTAL DE BDI | E101: ='BDI - Geral'!E27 -> 0.2189 | F101: =TRUNC(E101*E109,2) -> 0
D103: QUADRO-RESUMO DO CUSTO MENSAL POR EMPREGADO - SEM O 13º | E103: Valor
D104: Módulo 1 - Composição da Remuneração | E104: =F17 -> 0
D105: Módulo 2 - Encargos e Benefícios Anuais, Mensais e Diários | E105: =F52 -> 0
D106: Módulo 3 - Provisão para Rescisão | E106: =F62 -> 0
D107: Módulo 4 - Custo de Reposição do Profissional Ausente | E107: =F80 -> 0
D108: Módulo 5 - Insumos Diversos | E108: =F89 -> 0
D109: SUBTOTAL (A+B+C+D+E) | E109: =SUM(E104:E108) -> 0
D110: Módulo 6 - Custos Indiretos, Tributos e Lucro | E110: =F101 -> 0
D112: TOTAL DO POSTO | E112: =SUM(E109:E110) -> 0
B114: MÓDULO 7 - DESTAQUE DO MÓDULO 2 - 13º SALÁRIO | E114: Percentuais | F114: Valor
C115: A | D115: 13º Salário | E115: ='[1]Encargos Sociais'!E32*12/11 -> 0.09916363636 | F115: =ROUND(E115*F$17,2) -> 0 | H115: * Nota 1 - Incluindo-se a reincidência das férias do substituto sobre o titular
C116: B | D116: Encargos Sociais sobre o 13º Salário (submódulo 2.2 e módulo 3) | E116: =SUM($E$25:$E$33)+SUM($E$55:$E$60) -> 0.3976 | F116: =ROUND(E116*$F$115,2) -> 0 | H116: * Nota 2 - 13º e reflexos calculados à parte a fim de aprovisionamento
C117: C | D117: BDI sobre o 13º Salário | E117: =E101 -> 0.2189 | F117: =ROUND(E117*($F$115+$F$116),2) -> 0
D119: TOTAL DO DESTAQUE DO 13º SALÁRIO | F119: =SUM(F115:F117) -> 0
D121: QUADRO-RESUMO DO CUSTO MENSAL POR EMPREGADO | E121: Valor
D122: Custo total - sem o 13º Salário | E122: =ROUND(E112,2) -> 0
D123: Destaque do 13º Salário (valor mensal) | E123: =ROUND(F119,2) -> 0
D125: TOTAL DO POSTO | E125: =E122+E123 -> 0

Sheet 11 (hidden)
B2: PLANILHA DE ESTIMATIVA DE CUSTOS
B3: Padrão IN 05/2017 e IN 07/2018 - MPDG - Medição por posto presente
B5: 11 | D5: =HLOOKUP($B$5,'Dados Gerais'!$D$6:$BI$22,6) -> 0 | E5: QUANTIDADE | F5: =HLOOKUP($B$5,'Dados Gerais'!$D$6:$BI$22,10) -> 0
B6: CCT | D6: =HLOOKUP($B$5,'Dados Gerais'!$D$6:$BI$22,16) -> 0 | E6: DATA-BASE | F6: =HLOOKUP($B$5,'Dados Gerais'!$D$6:$BI$22,17) -> 00:00:00
B8: MÓDULO 1 - COMPOSIÇÃO DA REMUNERAÇÃO | F8: Valor
C9: A | D9: Salário-Base | F9: =HLOOKUP($B$5,'Dados Gerais'!$D$6:$BI$22,8) -> 0
C10: B | D10: Adicional de Periculosidade | F10: =HLOOKUP($B$5,'Dados Gerais'!$D$6:$BI$41,26) -> 0
C11: C | D11: Adicional de Insalubridade | F11: =HLOOKUP($B$5,'Dados Gerais'!$D$6:$BI$41,32) -> 0
C12: D | D12: Adicional Noturno | F12: =HLOOKUP($B$5,'Dados Gerais'!$D$6:$BI$54,49) -> 0 | H12: * Nota 1 - O Módulo 1 refere-se ao valor mensal devido ao empregado pela prestação do serviço no período de 12 meses.
C13: E | D13: Adicional de Hora Extra | F13: =HLOOKUP($B$5,'Dados Gerais'!$D$6:$BI$71,66) -> 0 | H13: * Nota 2 - O adicional de hora extra no feriado trabalhado foi suprimido pela Lei 13.467/17
C14: F | D14: Gratificação | F14: =HLOOKUP($B$5,'Dados Gerais'!$D$6:$BI$71,34) -> 0 | H14: * Nota 3 - ART. 7º, § 2º, DA LEI Nº 605/49.Sendo mensalista o obreiro, o adicional noturno pago de forma fixa já é considerado integrado para os efeitos do pagamento do repouso semanal remunerado, nos termos do art. 7º, § 2º, da Lei nº 605/49.
C15: G | D15: Sobraviso | F15: =HLOOKUP($B$5,'Dados Gerais'!$D$6:$BI$71,36) -> 0 | H15: * Nota 3 - ART. 7º, § 2º, DA LEI Nº 605/49.Sendo mensalista o obreiro, o adicional noturno pago de forma fixa já é considerado integrado para os efeitos do pagamento do repouso semanal remunerado, nos termos do art. 7º, § 2º, da Lei nº 605/49.
D17: TOTAL DA REMUNERAÇÃO | F17: =TRUNC(SUM(F9:F15),2) -> 0
B19: MÓDULO 2 - ENCARGOS E BENEFÍCIOS ANUAIS, MENSAIS E DIÁRIOS | E19: Percentuais | F19: Valor
B20: Submódulo 2.1 - 13º Salário, Férias e Adicional de Férias
C21: A | D21: 13º Salário - Calculado no Módulo 7 - Destacado | E21: 0 | F21: =TRUNC(E21*F$17,2) -> 0
C22: B | D22: Adicional de Férias | E22: ='Encargos Sociais'!E31 -> 0.0303 | F22: =TRUNC(E22*(F$17),2) -> 0 | H22: * Nota 1 - O adicional de férias foi calculado dividindo-se por 11, para comportar os 11 meses presentes e ainda o ausente do posto
B24: Submódulo 2.2 - Encargos Previdenciários (GPS), Fundo de Garantia por Tempo de Serviço (FGTS) e Outras Contribuições
C25: A | D25: ='Encargos Sociais'!D14 -> INSS (art. 22, inciso I, Lei nº 8.212/91) | E25: ='Encargos Sociais'!E14 -> 0.2 | F25: =TRUNC(E25*($F$17+$F$80+$F$22-F69),2) -> 0 | H25: * Nota 1 - Os percentuais dos encargos previdenciários, do FGTS e demais contribuições são estabelecidos por legislação vigente.
C26: B | D26: ='Encargos Sociais'!D15 -> Salário Educação (art. 3º, inciso I, Decreto nº 87.043/82) | E26: ='Encargos Sociais'!E15 -> 0.025 | F26: =TRUNC(E26*($F$17+$F$80+$F$22),2) -> 0 | H26: * Nota 2 - O SAT, a depender do grau de risco do serviço, irá variar entre 1%, para risco leve, de 2%, para risco médio, e de 3% para risco grave.
C27: C | D27: ='Encargos Sociais'!D16 -> SAT/RAT (art. 22, II, Lei 8.212/91 e Anexo V, Decreto 6.042/07) - Enquadramento 8211-3/00 | E27: ='Encargos Sociais'!E16 -> 0.01 | F27: 0 | H27: * Nota 3 - Base de cálculo - remuneração + ausências + terço constitucional (férias) - exceto INSS sobre ausência por acidente de trabalho
C28: D | D28: ='Encargos Sociais'!D17 -> SESC ou SESI (art. 30, Lei nº 8.036/90 e art. 1º, Lei 8.154/90) | E28: ='Encargos Sociais'!E17 -> 0.015 | F28: 0
C29: E | D29: ='Encargos Sociais'!D18 -> SENAI ou SENAC (Decreto nº 2.318/86) | E29: ='Encargos Sociais'!E18 -> 0.01 | F29: 0
C30: F | D30: ='Encargos Sociais'!D19 -> SEBRAE (§ 3º, art. 8º, Lei 8.029/90, alterada pela Lei nº 8.154/90) | E30: ='Encargos Sociais'!E19 -> 0.006 | F30: 0
C31: G | D31: ='Encargos Sociais'!D20 -> INCRA (art. 1º, I, Decreto Lei 1.146/70 e Lei 7.787, de 30/06/89) | E31: ='Encargos Sociais'!E20 -> 0.002 | F31: 0
C32: H | D32: ='Encargos Sociais'!D21 -> FGTS (Lei Complementar nº 110/01 e art. 30, Lei nº 8.036/90) | E32: ='Encargos Sociais'!E21 -> 0.08 | F32: 0
C33: I | D33: ='Encargos Sociais'!D22 -> SECONCI (Convenções Coletivas de Trabalho da construção) | E33: ='Encargos Sociais'!E22 -> 0 | F33: 0
B35: Submódulo 2.3 - Benefícios Mensais e Diários
C36: A | D36: Auxílio Transporte | F36: =HLOOKUP($B$5,'Dados Gerais'!$D$6:$BI$101,85) -> 0 | H36: * Nota 1 - O valor informado deverá ser o custo real do benefício (descontado o valor eventualmente pago pelo empregado).
C37: B | D37: Auxílio Alimentação | F37: =HLOOKUP($B$5,'Dados Gerais'!$D$6:$BI$101,92) -> 0 | H37: * Nota 2 - Observar a previsão dos benefícios contidos em Acordos, Convenções e Dissídios Coletivos de Trabalho e o disposto no art. 6º da IN 5/2017
C38: C | D38: Assistência Médica e Familiar | F38: =HLOOKUP($B$5,'Dados Gerais'!$D$6:$BI$109,100) -> 0
C39: D | D39: Seguro de vida / auxílio funeral | F39: =HLOOKUP($B$5,'Dados Gerais'!$D$6:$BI$145,109) -> 0
C40: E | D40: Assistência odontológica | F40: =HLOOKUP($B$5,'Dados Gerais'!$D$6:$BI$145,115) -> 0
C41: F | D41: Auxílio creche | F41: =HLOOKUP($B$5,'Dados Gerais'!$D$6:$BI$145,121) -> 0
C42: G | D42: Auxílio vestuário especial | F42: =HLOOKUP($B$5,'Dados Gerais'!$D$6:$BI$145,127) -> 0
C43: H | D43: Benefício social familiar | F43: =HLOOKUP($B$5,'Dados Gerais'!$D$6:$BI$145,133) -> 0
C44: I | D44: Outros (especificar) | F44: =HLOOKUP($B$5,'Dados Gerais'!$D$6:$BI$145,115) -> 0
C45: J | D45: Outros (especificar) | F45: =HLOOKUP($B$5,'Dados Gerais'!$D$6:$BI$145,115) -> 0
D47: QUADRO-RESUMO DO MÓDULO 2
D48: 2.1 - Adicional de Férias | E48: =SUM(E21:E22) -> 0.0303 | F48: =F21+F22 -> 0
D49: 2.2 - Encargos Previdenciários (GPS), Fundo de Garantia por Tempo de Serviço (FGTS) e Contribuições | E49: =SUM(E25:E33) -> 0.348 | F49: =SUM(F25:F33) -> 0
D50: 2.3 - Benefícios Mensais e Diários | F50: =SUM(F36:F45) -> 0
D52: TOTAL DOS ENCARGOS E BENEFÍCIOS | F52: =TRUNC(SUM(F48:F50),2) -> 0
B54: MÓDULO 3 - PREVISÃO PARA RESCISÃO | E54: Percentuais | F54: Valor
C55: A | D55: ='Encargos Sociais'!D36 -> Aviso Prévio Indenizado (Art. 7º, inciso XXI, da CF/1988 e arts. 477, 487, §1º, e 491 da CLT) | E55: ='Encargos Sociais'!E36 -> 0.0042 | F55: =TRUNC(E55*($F$17+$F$48+$F$80),2) -> 0 | H55: * Nota 1 - Base de cálculo - remuneração + ausências + 1/3 férias
C56: B | D56: ='Encargos Sociais'!D37 -> Incidência do FGTS sobre o Aviso Prévio Indenizado (Súmula 305 TST) | E56: ='Encargos Sociais'!E37 -> 0.0003 | F56: 0
C57: C | D57: ='Encargos Sociais'!D38 -> Multa do FGTS sobre o Aviso Prévio Indenizado (Art. 18, §1º, da Lei 8.036/1990) | E57: ='Encargos Sociais'!E38 -> 0 | F57: 0
C58: D | D58: ='Encargos Sociais'!D39 -> Aviso Prévio Trabalhado (Art. 488, parágrafo único, CLT) | E58: ='Encargos Sociais'!E39 -> 0.0097 | F58: 0
C59: E | D59: ='Encargos Sociais'!D40 -> Incidência de GPS, FGTS e outras contribuições sobre o Aviso Prévio Trabalhado | E59: ='Encargos Sociais'!E40 -> 0.0034 | F59: 0
C60: F | D60: ='Encargos Sociais'!D41 -> Multa do FGTS | E60: ='Encargos Sociais'!E41 -> 0.032 | F60: 0
D62: TOTAL DE PREVISÃO PARA RESCISÃO | F62: =TRUNC(SUM(F55:F60),2) -> 0
B64: MÓDULO 4 - CUSTO DO PROFISSIONAL AUSENTE | E64: Percentuais | F64: Valor
B65: Submódulo 4.1 - Ausências Legais
C66: A | D66: ='Encargos Sociais'!D25 -> Férias (Arts. 129 e 130, inc. I, da CLT) | E66: ='Encargos Sociais'!E25 -> 0.0909 | F66: =TRUNC(E66*$F$17,2) -> 0 | H66: * Nota 1 - O Módulo 4 refere-se às previsões para custear ausências do próprio profissional (titular do cargo)
C67: B | D67: ='Encargos Sociais'!D26 -> Ausências Legais (Arts. 131 e 473 da CLT) | E67: ='Encargos Sociais'!E26 -> 0.0079 | F67: 0 | H67: * Nota 2 - As férias foram calculadas dividindo-se por 11, para comportar os 11 meses presentes e ainda o ausente do posto
C68: C | D68: ='Encargos Sociais'!D27 -> Licença-Paternidade (Art. 7º, XIX, e art. 10, §1º, do ADCT, CF/1988 e Art. 1º, II, da Lei 11.770/2008) | E68: ='Encargos Sociais'!E27 -> 0.0008 | F68: 0
C69: D | D69: ='Encargos Sociais'!D28 -> Ausência por Acidente de Trabalho (Art. 131, III, da CLT) | E69: ='Encargos Sociais'!E28 -> 0.0009 | F69: 0
C70: E | D70: ='Encargos Sociais'!D29 -> Afastamento Maternidade (Art. 71 da Lei nº 8.213/1991) | E70: ='Encargos Sociais'!E29 -> 0.0033 | F70: 0
C71: F | D71: ='Encargos Sociais'!D30 -> Auxílio Enfermidade - Doença (Art. 59 da Lei nº 8.213/1991) | E71: ='Encargos Sociais'!E30 -> 0.0071 | F71: 0
B73: Submódulo 4.2 - Intrajornada
C74: A | D74: Intervalo para repouso ou alimentação | E74: ='Encargos Sociais'!E33 -> 0 | F74: =ROUND(E74*$F$17,2) -> 0
D76: QUADRO-RESUMO DO MÓDULO 4 | F76: Valor
D77: 4.1 - Ausências Legais | E77: =SUM(E66:E71) -> 0.1109 | F77: =SUM(F66:F71) -> 0
D78: 4.2 - Intrajornada | E78: =E74 -> 0 | F78: =ROUND(E78*$F$17,2) -> 0
D80: TOTAL DE CUSTO DO PROFFIONAL AUSENTE E INTERVALO INTRAJORNADA | F80: =TRUNC(SUM(F77:F78),2) -> 0
B82: MÓDULO 5 - INSUMOS DIVERSOS | F82: Valor
C83: A | D83: Uniformes - aquisição | F83: =TRUNC(HLOOKUP($B$5,Uniformes!$J$3:$DY$5,3,0)/12,2) -> 0
C84: B | D84: Materiais de consumo relacionados ao posto - aquisição | F84: 0
C85: C | D85: Ferramentas relacionadas ao posto - remuneração da sua depreciação / manutenção | F85: 0
C86: D | D86: Equipamentos relacionados ao posto - remuneração da sua depreciação / manutenção | F86: 0
C87: E | D87: Equipamentos de Proteção Individual - EPI - aquisição | F87: =TRUNC(HLOOKUP($B$5,EPI!$J$3:$DX$5,3,0)/12,2) -> 0
D89: TOTAL DE INSUMOS DIVERSOS | F89: =SUM(F83:F88) -> 0 | H89: * Nota - Valores mensais por empregado
B91: MÓDULO 6 - CUSTOS INDIRETOS, TRIBUTOS E LUCRO - BDI | E91: Percentuais | F91: Valor
C92: A | D92: Custos Indiretos | E92: ='BDI - Geral'!E7 -> 0.027
C93: A.1 | D93: Administração Central | E93: ='BDI - Geral'!E8 -> 0.0216
C94: A.2 | D94: Seguros, Garantias e Riscos | E94: ='BDI - Geral'!E9 -> 0.0054
C95: B | D95: Lucro | E95: ='BDI - Geral'!E11 -> 0.0334
C96: C | D96: Tributos | E96: =SUM(E97:E98) -> 0.124
C97: C.1 | D97: Tributos Federais (COFINS, PIS e CPRB) | E97: ='BDI - Geral'!E19 -> 0.074
C98: C.2 | D98: Tributos Distritais (ISS) | E98: ='BDI - Geral'!E24 -> 0.05
C99: D | D99: Despesas Financeiras | E99: ='BDI - Geral'!E14 -> 0.0061
D101: TOTAL DE BDI | E101: ='BDI - Geral'!E27 -> 0.2189 | F101: =TRUNC(E101*E109,2) -> 0
D103: QUADRO-RESUMO DO CUSTO MENSAL POR EMPREGADO - SEM O 13º | E103: Valor
D104: Módulo 1 - Composição da Remuneração | E104: =F17 -> 0
D105: Módulo 2 - Encargos e Benefícios Anuais, Mensais e Diários | E105: =F52 -> 0
D106: Módulo 3 - Provisão para Rescisão | E106: =F62 -> 0
D107: Módulo 4 - Custo de Reposição do Profissional Ausente | E107: =F80 -> 0
D108: Módulo 5 - Insumos Diversos | E108: =F89 -> 0
D109: SUBTOTAL (A+B+C+D+E) | E109: =SUM(E104:E108) -> 0
D110: Módulo 6 - Custos Indiretos, Tributos e Lucro | E110: =F101 -> 0
D112: TOTAL DO POSTO | E112: =SUM(E109:E110) -> 0
B114: MÓDULO 7 - DESTAQUE DO MÓDULO 2 - 13º SALÁRIO | E114: Percentuais | F114: Valor
C115: A | D115: 13º Salário | E115: ='[1]Encargos Sociais'!E32*12/11 -> 0.09916363636 | F115: =ROUND(E115*F$17,2) -> 0 | H115: * Nota 1 - Incluindo-se a reincidência das férias do substituto sobre o titular
C116: B | D116: Encargos Sociais sobre o 13º Salário (submódulo 2.2 e módulo 3) | E116: =SUM($E$25:$E$33)+SUM($E$55:$E$60) -> 0.3976 | F116: =ROUND(E116*$F$115,2) -> 0 | H116: * Nota 2 - 13º e reflexos calculados à parte a fim de aprovisionamento
C117: C | D117: BDI sobre o 13º Salário | E117: =E101 -> 0.2189 | F117: =ROUND(E117*($F$115+$F$116),2) -> 0
D119: TOTAL DO DESTAQUE DO 13º SALÁRIO | F119: =SUM(F115:F117) -> 0
D121: QUADRO-RESUMO DO CUSTO MENSAL POR EMPREGADO | E121: Valor
D122: Custo total - sem o 13º Salário | E122: =ROUND(E112,2) -> 0
D123: Destaque do 13º Salário (valor mensal) | E123: =ROUND(F119,2) -> 0
D125: TOTAL DO POSTO | E125: =E122+E123 -> 0

Sheet 12 (hidden)
B2: PLANILHA DE ESTIMATIVA DE CUSTOS
B3: Padrão IN 05/2017 e IN 07/2018 - MPDG - Medição por posto presente
B5: 12 | D5: =HLOOKUP($B$5,'Dados Gerais'!$D$6:$BI$22,6) -> 0 | E5: QUANTIDADE | F5: =HLOOKUP($B$5,'Dados Gerais'!$D$6:$BI$22,10) -> 0
B6: CCT | D6: =HLOOKUP($B$5,'Dados Gerais'!$D$6:$BI$22,16) -> 0 | E6: DATA-BASE | F6: =HLOOKUP($B$5,'Dados Gerais'!$D$6:$BI$22,17) -> 00:00:00
B8: MÓDULO 1 - COMPOSIÇÃO DA REMUNERAÇÃO | F8: Valor
C9: A | D9: Salário-Base | F9: =HLOOKUP($B$5,'Dados Gerais'!$D$6:$BI$22,8) -> 0
C10: B | D10: Adicional de Periculosidade | F10: =HLOOKUP($B$5,'Dados Gerais'!$D$6:$BI$41,26) -> 0
C11: C | D11: Adicional de Insalubridade | F11: =HLOOKUP($B$5,'Dados Gerais'!$D$6:$BI$41,32) -> 0
C12: D | D12: Adicional Noturno | F12: =HLOOKUP($B$5,'Dados Gerais'!$D$6:$BI$54,49) -> 0 | H12: * Nota 1 - O Módulo 1 refere-se ao valor mensal devido ao empregado pela prestação do serviço no período de 12 meses.
C13: E | D13: Adicional de Hora Extra | F13: =HLOOKUP($B$5,'Dados Gerais'!$D$6:$BI$71,66) -> 0 | H13: * Nota 2 - O adicional de hora extra no feriado trabalhado foi suprimido pela Lei 13.467/17
C14: F | D14: Gratificação | F14: =HLOOKUP($B$5,'Dados Gerais'!$D$6:$BI$71,34) -> 0 | H14: * Nota 3 - ART. 7º, § 2º, DA LEI Nº 605/49.Sendo mensalista o obreiro, o adicional noturno pago de forma fixa já é considerado integrado para os efeitos do pagamento do repouso semanal remunerado, nos termos do art. 7º, § 2º, da Lei nº 605/49.
C15: G | D15: Sobraviso | F15: =HLOOKUP($B$5,'Dados Gerais'!$D$6:$BI$71,36) -> 0 | H15: * Nota 3 - ART. 7º, § 2º, DA LEI Nº 605/49.Sendo mensalista o obreiro, o adicional noturno pago de forma fixa já é considerado integrado para os efeitos do pagamento do repouso semanal remunerado, nos termos do art. 7º, § 2º, da Lei nº 605/49.
D17: TOTAL DA REMUNERAÇÃO | F17: =TRUNC(SUM(F9:F15),2) -> 0
B19: MÓDULO 2 - ENCARGOS E BENEFÍCIOS ANUAIS, MENSAIS E DIÁRIOS | E19: Percentuais | F19: Valor
B20: Submódulo 2.1 - 13º Salário, Férias e Adicional de Férias
C21: A | D21: 13º Salário - Calculado no Módulo 7 - Destacado | E21: 0 | F21: =TRUNC(E21*F$17,2) -> 0
C22: B | D22: Adicional de Férias | E22: ='Encargos Sociais'!E31 -> 0.0303 | F22: =TRUNC(E22*(F$17),2) -> 0 | H22: * Nota 1 - O adicional de férias foi calculado dividindo-se por 11, para comportar os 11 meses presentes e ainda o ausente do posto
B24: Submódulo 2.2 - Encargos Previdenciários (GPS), Fundo de Garantia por Tempo de Serviço (FGTS) e Outras Contribuições
C25: A | D25: ='Encargos Sociais'!D14 -> INSS (art. 22, inciso I, Lei nº 8.212/91) | E25: ='Encargos Sociais'!E14 -> 0.2 | F25: =TRUNC(E25*($F$17+$F$80+$F$22-F69),2) -> 0 | H25: * Nota 1 - Os percentuais dos encargos previdenciários, do FGTS e demais contribuições são estabelecidos por legislação vigente.
C26: B | D26: ='Encargos Sociais'!D15 -> Salário Educação (art. 3º, inciso I, Decreto nº 87.043/82) | E26: ='Encargos Sociais'!E15 -> 0.025 | F26: =TRUNC(E26*($F$17+$F$80+$F$22),2) -> 0 | H26: * Nota 2 - O SAT, a depender do grau de risco do serviço, irá variar entre 1%, para risco leve, de 2%, para risco médio, e de 3% para risco grave.
C27: C | D27: ='Encargos Sociais'!D16 -> SAT/RAT (art. 22, II, Lei 8.212/91 e Anexo V, Decreto 6.042/07) - Enquadramento 8211-3/00 | E27: ='Encargos Sociais'!E16 -> 0.01 | F27: 0 | H27: * Nota 3 - Base de cálculo - remuneração + ausências + terço constitucional (férias) - exceto INSS sobre ausência por acidente de trabalho
C28: D | D28: ='Encargos Sociais'!D17 -> SESC ou SESI (art. 30, Lei nº 8.036/90 e art. 1º, Lei 8.154/90) | E28: ='Encargos Sociais'!E17 -> 0.015 | F28: 0
C29: E | D29: ='Encargos Sociais'!D18 -> SENAI ou SENAC (Decreto nº 2.318/86) | E29: ='Encargos Sociais'!E18 -> 0.01 | F29: 0
C30: F | D30: ='Encargos Sociais'!D19 -> SEBRAE (§ 3º, art. 8º, Lei 8.029/90, alterada pela Lei nº 8.154/90) | E30: ='Encargos Sociais'!E19 -> 0.006 | F30: 0
C31: G | D31: ='Encargos Sociais'!D20 -> INCRA (art. 1º, I, Decreto Lei 1.146/70 e Lei 7.787, de 30/06/89) | E31: ='Encargos Sociais'!E20 -> 0.002 | F31: 0
C32: H | D32: ='Encargos Sociais'!D21 -> FGTS (Lei Complementar nº 110/01 e art. 30, Lei nº 8.036/90) | E32: ='Encargos Sociais'!E21 -> 0.08 | F32: 0
C33: I | D33: ='Encargos Sociais'!D22 -> SECONCI (Convenções Coletivas de Trabalho da construção) | E33: ='Encargos Sociais'!E22 -> 0 | F33: 0
B35: Submódulo 2.3 - Benefícios Mensais e Diários
C36: A | D36: Auxílio Transporte | F36: =HLOOKUP($B$5,'Dados Gerais'!$D$6:$BI$101,85) -> 0 | H36: * Nota 1 - O valor informado deverá ser o custo real do benefício (descontado o valor eventualmente pago pelo empregado).
C37: B | D37: Auxílio Alimentação | F37: =HLOOKUP($B$5,'Dados Gerais'!$D$6:$BI$101,92) -> 0 | H37: * Nota 2 - Observar a previsão dos benefícios contidos em Acordos, Convenções e Dissídios Coletivos de Trabalho e o disposto no art. 6º da IN 5/2017
C38: C | D38: Assistência Médica e Familiar | F38: =HLOOKUP($B$5,'Dados Gerais'!$D$6:$BI$109,100) -> 0
C39: D | D39: Seguro de vida / auxílio funeral | F39: =HLOOKUP($B$5,'Dados Gerais'!$D$6:$BI$145,109) -> 0
C40: E | D40: Assistência odontológica | F40: =HLOOKUP($B$5,'Dados Gerais'!$D$6:$BI$145,115) -> 0
C41: F | D41: Auxílio creche | F41: =HLOOKUP($B$5,'Dados Gerais'!$D$6:$BI$145,121) -> 0
C42: G | D42: Auxílio vestuário especial | F42: =HLOOKUP($B$5,'Dados Gerais'!$D$6:$BI$145,127) -> 0
C43: H | D43: Benefício social familiar | F43: =HLOOKUP($B$5,'Dados Gerais'!$D$6:$BI$145,133) -> 0
C44: I | D44: Outros (especificar) | F44: =HLOOKUP($B$5,'Dados Gerais'!$D$6:$BI$145,115) -> 0
C45: J | D45: Outros (especificar) | F45: =HLOOKUP($B$5,'Dados Gerais'!$D$6:$BI$145,115) -> 0
D47: QUADRO-RESUMO DO MÓDULO 2
D48: 2.1 - Adicional de Férias | E48: =SUM(E21:E22) -> 0.0303 | F48: =F21+F22 -> 0
D49: 2.2 - Encargos Previdenciários (GPS), Fundo de Garantia por Tempo de Serviço (FGTS) e Contribuições | E49: =SUM(E25:E33) -> 0.348 | F49: =SUM(F25:F33) -> 0
D50: 2.3 - Benefícios Mensais e Diários | F50: =SUM(F36:F45) -> 0
D52: TOTAL DOS ENCARGOS E BENEFÍCIOS | F52: =TRUNC(SUM(F48:F50),2) -> 0
B54: MÓDULO 3 - PREVISÃO PARA RESCISÃO | E54: Percentuais | F54: Valor
C55: A | D55: ='Encargos Sociais'!D36 -> Aviso Prévio Indenizado (Art. 7º, inciso XXI, da CF/1988 e arts. 477, 487, §1º, e 491 da CLT) | E55: ='Encargos Sociais'!E36 -> 0.0042 | F55: =TRUNC(E55*($F$17+$F$48+$F$80),2) -> 0 | H55: * Nota 1 - Base de cálculo - remuneração + ausências + 1/3 férias
C56: B | D56: ='Encargos Sociais'!D37 -> Incidência do FGTS sobre o Aviso Prévio Indenizado (Súmula 305 TST) | E56: ='Encargos Sociais'!E37 -> 0.0003 | F56: 0
C57: C | D57: ='Encargos Sociais'!D38 -> Multa do FGTS sobre o Aviso Prévio Indenizado (Art. 18, §1º, da Lei 8.036/1990) | E57: ='Encargos Sociais'!E38 -> 0 | F57: 0
C58: D | D58: ='Encargos Sociais'!D39 -> Aviso Prévio Trabalhado (Art. 488, parágrafo único, CLT) | E58: ='Encargos Sociais'!E39 -> 0.0097 | F58: 0
C59: E | D59: ='Encargos Sociais'!D40 -> Incidência de GPS, FGTS e outras contribuições sobre o Aviso Prévio Trabalhado | E59: ='Encargos Sociais'!E40 -> 0.0034 | F59: 0
C60: F | D60: ='Encargos Sociais'!D41 -> Multa do FGTS | E60: ='Encargos Sociais'!E41 -> 0.032 | F60: 0
D62: TOTAL DE PREVISÃO PARA RESCISÃO | F62: =TRUNC(SUM(F55:F60),2) -> 0
B64: MÓDULO 4 - CUSTO DO PROFISSIONAL AUSENTE | E64: Percentuais | F64: Valor
B65: Submódulo 4.1 - Ausências Legais
C66: A | D66: ='Encargos Sociais'!D25 -> Férias (Arts. 129 e 130, inc. I, da CLT) | E66: ='Encargos Sociais'!E25 -> 0.0909 | F66: =TRUNC(E66*$F$17,2) -> 0 | H66: * Nota 1 - O Módulo 4 refere-se às previsões para custear ausências do próprio profissional (titular do cargo)
C67: B | D67: ='Encargos Sociais'!D26 -> Ausências Legais (Arts. 131 e 473 da CLT) | E67: ='Encargos Sociais'!E26 -> 0.0079 | F67: 0 | H67: * Nota 2 - As férias foram calculadas dividindo-se por 11, para comportar os 11 meses presentes e ainda o ausente do posto
C68: C | D68: ='Encargos Sociais'!D27 -> Licença-Paternidade (Art. 7º, XIX, e art. 10, §1º, do ADCT, CF/1988 e Art. 1º, II, da Lei 11.770/2008) | E68: ='Encargos Sociais'!E27 -> 0.0008 | F68: 0
C69: D | D69: ='Encargos Sociais'!D28 -> Ausência por Acidente de Trabalho (Art. 131, III, da CLT) | E69: ='Encargos Sociais'!E28 -> 0.0009 | F69: 0
C70: E | D70: ='Encargos Sociais'!D29 -> Afastamento Maternidade (Art. 71 da Lei nº 8.213/1991) | E70: ='Encargos Sociais'!E29 -> 0.0033 | F70: 0
C71: F | D71: ='Encargos Sociais'!D30 -> Auxílio Enfermidade - Doença (Art. 59 da Lei nº 8.213/1991) | E71: ='Encargos Sociais'!E30 -> 0.0071 | F71: 0
B73: Submódulo 4.2 - Intrajornada
C74: A | D74: Intervalo para repouso ou alimentação | E74: ='Encargos Sociais'!E33 -> 0 | F74: =ROUND(E74*$F$17,2) -> 0
D76: QUADRO-RESUMO DO MÓDULO 4 | F76: Valor
D77: 4.1 - Ausências Legais | E77: =SUM(E66:E71) -> 0.1109 | F77: =SUM(F66:F71) -> 0
D78: 4.2 - Intrajornada | E78: =E74 -> 0 | F78: =ROUND(E78*$F$17,2) -> 0
D80: TOTAL DE CUSTO DO PROFFIONAL AUSENTE E INTERVALO INTRAJORNADA | F80: =TRUNC(SUM(F77:F78),2) -> 0
B82: MÓDULO 5 - INSUMOS DIVERSOS | F82: Valor
C83: A | D83: Uniformes - aquisição | F83: =TRUNC(HLOOKUP($B$5,Uniformes!$J$3:$DY$5,3,0)/12,2) -> 0
C84: B | D84: Materiais de consumo relacionados ao posto - aquisição | F84: 0
C85: C | D85: Ferramentas relacionadas ao posto - remuneração da sua depreciação / manutenção | F85: 0
C86: D | D86: Equipamentos relacionados ao posto - remuneração da sua depreciação / manutenção | F86: 0
C87: E | D87: Equipamentos de Proteção Individual - EPI - aquisição | F87: =TRUNC(HLOOKUP($B$5,EPI!$J$3:$DX$5,3,0)/12,2) -> 0
D89: TOTAL DE INSUMOS DIVERSOS | F89: =SUM(F83:F88) -> 0 | H89: * Nota - Valores mensais por empregado
B91: MÓDULO 6 - CUSTOS INDIRETOS, TRIBUTOS E LUCRO - BDI | E91: Percentuais | F91: Valor
C92: A | D92: Custos Indiretos | E92: ='BDI - Geral'!E7 -> 0.027
C93: A.1 | D93: Administração Central | E93: ='BDI - Geral'!E8 -> 0.0216
C94: A.2 | D94: Seguros, Garantias e Riscos | E94: ='BDI - Geral'!E9 -> 0.0054
C95: B | D95: Lucro | E95: ='BDI - Geral'!E11 -> 0.0334
C96: C | D96: Tributos | E96: =SUM(E97:E98) -> 0.124
C97: C.1 | D97: Tributos Federais (COFINS, PIS e CPRB) | E97: ='BDI - Geral'!E19 -> 0.074
C98: C.2 | D98: Tributos Distritais (ISS) | E98: ='BDI - Geral'!E24 -> 0.05
C99: D | D99: Despesas Financeiras | E99: ='BDI - Geral'!E14 -> 0.0061
D101: TOTAL DE BDI | E101: ='BDI - Geral'!E27 -> 0.2189 | F101: =TRUNC(E101*E109,2) -> 0
D103: QUADRO-RESUMO DO CUSTO MENSAL POR EMPREGADO - SEM O 13º | E103: Valor
D104: Módulo 1 - Composição da Remuneração | E104: =F17 -> 0
D105: Módulo 2 - Encargos e Benefícios Anuais, Mensais e Diários | E105: =F52 -> 0
D106: Módulo 3 - Provisão para Rescisão | E106: =F62 -> 0
D107: Módulo 4 - Custo de Reposição do Profissional Ausente | E107: =F80 -> 0
D108: Módulo 5 - Insumos Diversos | E108: =F89 -> 0
D109: SUBTOTAL (A+B+C+D+E) | E109: =SUM(E104:E108) -> 0
D110: Módulo 6 - Custos Indiretos, Tributos e Lucro | E110: =F101 -> 0
D112: TOTAL DO POSTO | E112: =SUM(E109:E110) -> 0
B114: MÓDULO 7 - DESTAQUE DO MÓDULO 2 - 13º SALÁRIO | E114: Percentuais | F114: Valor
C115: A | D115: 13º Salário | E115: ='[1]Encargos Sociais'!E32*12/11 -> 0.09916363636 | F115: =ROUND(E115*F$17,2) -> 0 | H115: * Nota 1 - Incluindo-se a reincidência das férias do substituto sobre o titular
C116: B | D116: Encargos Sociais sobre o 13º Salário (submódulo 2.2 e módulo 3) | E116: =SUM($E$25:$E$33)+SUM($E$55:$E$60) -> 0.3976 | F116: =ROUND(E116*$F$115,2) -> 0 | H116: * Nota 2 - 13º e reflexos calculados à parte a fim de aprovisionamento
C117: C | D117: BDI sobre o 13º Salário | E117: =E101 -> 0.2189 | F117: =ROUND(E117*($F$115+$F$116),2) -> 0
D119: TOTAL DO DESTAQUE DO 13º SALÁRIO | F119: =SUM(F115:F117) -> 0
D121: QUADRO-RESUMO DO CUSTO MENSAL POR EMPREGADO | E121: Valor
D122: Custo total - sem o 13º Salário | E122: =ROUND(E112,2) -> 0
D123: Destaque do 13º Salário (valor mensal) | E123: =ROUND(F119,2) -> 0
D125: TOTAL DO POSTO | E125: =E122+E123 -> 0

Sheet 13 (hidden)
B2: PLANILHA DE ESTIMATIVA DE CUSTOS
B3: Padrão IN 05/2017 e IN 07/2018 - MPDG - Medição por posto presente
B5: 13 | D5: =HLOOKUP($B$5,'Dados Gerais'!$D$6:$BI$22,6) -> 0 | E5: QUANTIDADE | F5: =HLOOKUP($B$5,'Dados Gerais'!$D$6:$BI$22,10) -> 0
B6: CCT | D6: =HLOOKUP($B$5,'Dados Gerais'!$D$6:$BI$22,16) -> 0 | E6: DATA-BASE | F6: =HLOOKUP($B$5,'Dados Gerais'!$D$6:$BI$22,17) -> 00:00:00
B8: MÓDULO 1 - COMPOSIÇÃO DA REMUNERAÇÃO | F8: Valor
C9: A | D9: Salário-Base | F9: =HLOOKUP($B$5,'Dados Gerais'!$D$6:$BI$22,8) -> 0
C10: B | D10: Adicional de Periculosidade | F10: =HLOOKUP($B$5,'Dados Gerais'!$D$6:$BI$41,26) -> 0
C11: C | D11: Adicional de Insalubridade | F11: =HLOOKUP($B$5,'Dados Gerais'!$D$6:$BI$41,32) -> 0
C12: D | D12: Adicional Noturno | F12: =HLOOKUP($B$5,'Dados Gerais'!$D$6:$BI$54,49) -> 0 | H12: * Nota 1 - O Módulo 1 refere-se ao valor mensal devido ao empregado pela prestação do serviço no período de 12 meses.
C13: E | D13: Adicional de Hora Extra | F13: =HLOOKUP($B$5,'Dados Gerais'!$D$6:$BI$71,66) -> 0 | H13: * Nota 2 - O adicional de hora extra no feriado trabalhado foi suprimido pela Lei 13.467/17
C14: F | D14: Gratificação | F14: =HLOOKUP($B$5,'Dados Gerais'!$D$6:$BI$71,34) -> 0 | H14: * Nota 3 - ART. 7º, § 2º, DA LEI Nº 605/49.Sendo mensalista o obreiro, o adicional noturno pago de forma fixa já é considerado integrado para os efeitos do pagamento do repouso semanal remunerado, nos termos do art. 7º, § 2º, da Lei nº 605/49.
C15: G | D15: Sobraviso | F15: =HLOOKUP($B$5,'Dados Gerais'!$D$6:$BI$71,36) -> 0 | H15: * Nota 3 - ART. 7º, § 2º, DA LEI Nº 605/49.Sendo mensalista o obreiro, o adicional noturno pago de forma fixa já é considerado integrado para os efeitos do pagamento do repouso semanal remunerado, nos termos do art. 7º, § 2º, da Lei nº 605/49.
D17: TOTAL DA REMUNERAÇÃO | F17: =TRUNC(SUM(F9:F15),2) -> 0
B19: MÓDULO 2 - ENCARGOS E BENEFÍCIOS ANUAIS, MENSAIS E DIÁRIOS | E19: Percentuais | F19: Valor
B20: Submódulo 2.1 - 13º Salário, Férias e Adicional de Férias
C21: A | D21: 13º Salário - Calculado no Módulo 7 - Destacado | E21: 0 | F21: =TRUNC(E21*F$17,2) -> 0
C22: B | D22: Adicional de Férias | E22: ='Encargos Sociais'!E31 -> 0.0303 | F22: =TRUNC(E22*(F$17),2) -> 0 | H22: * Nota 1 - O adicional de férias foi calculado dividindo-se por 11, para comportar os 11 meses presentes e ainda o ausente do posto
B24: Submódulo 2.2 - Encargos Previdenciários (GPS), Fundo de Garantia por Tempo de Serviço (FGTS) e Outras Contribuições
C25: A | D25: ='Encargos Sociais'!D14 -> INSS (art. 22, inciso I, Lei nº 8.212/91) | E25: ='Encargos Sociais'!E14 -> 0.2 | F25: =TRUNC(E25*($F$17+$F$80+$F$22-F69),2) -> 0 | H25: * Nota 1 - Os percentuais dos encargos previdenciários, do FGTS e demais contribuições são estabelecidos por legislação vigente.
C26: B | D26: ='Encargos Sociais'!D15 -> Salário Educação (art. 3º, inciso I, Decreto nº 87.043/82) | E26: ='Encargos Sociais'!E15 -> 0.025 | F26: =TRUNC(E26*($F$17+$F$80+$F$22),2) -> 0 | H26: * Nota 2 - O SAT, a depender do grau de risco do serviço, irá variar entre 1%, para risco leve, de 2%, para risco médio, e de 3% para risco grave.
C27: C | D27: ='Encargos Sociais'!D16 -> SAT/RAT (art. 22, II, Lei 8.212/91 e Anexo V, Decreto 6.042/07) - Enquadramento 8211-3/00 | E27: ='Encargos Sociais'!E16 -> 0.01 | F27: 0 | H27: * Nota 3 - Base de cálculo - remuneração + ausências + terço constitucional (férias) - exceto INSS sobre ausência por acidente de trabalho
C28: D | D28: ='Encargos Sociais'!D17 -> SESC ou SESI (art. 30, Lei nº 8.036/90 e art. 1º, Lei 8.154/90) | E28: ='Encargos Sociais'!E17 -> 0.015 | F28: 0
C29: E | D29: ='Encargos Sociais'!D18 -> SENAI ou SENAC (Decreto nº 2.318/86) | E29: ='Encargos Sociais'!E18 -> 0.01 | F29: 0
C30: F | D30: ='Encargos Sociais'!D19 -> SEBRAE (§ 3º, art. 8º, Lei 8.029/90, alterada pela Lei nº 8.154/90) | E30: ='Encargos Sociais'!E19 -> 0.006 | F30: 0
C31: G | D31: ='Encargos Sociais'!D20 -> INCRA (art. 1º, I, Decreto Lei 1.146/70 e Lei 7.787, de 30/06/89) | E31: ='Encargos Sociais'!E20 -> 0.002 | F31: 0
C32: H | D32: ='Encargos Sociais'!D21 -> FGTS (Lei Complementar nº 110/01 e art. 30, Lei nº 8.036/90) | E32: ='Encargos Sociais'!E21 -> 0.08 | F32: 0
C33: I | D33: ='Encargos Sociais'!D22 -> SECONCI (Convenções Coletivas de Trabalho da construção) | E33: ='Encargos Sociais'!E22 -> 0 | F33: 0
B35: Submódulo 2.3 - Benefícios Mensais e Diários
C36: A | D36: Auxílio Transporte | F36: =HLOOKUP($B$5,'Dados Gerais'!$D$6:$BI$101,85) -> 0 | H36: * Nota 1 - O valor informado deverá ser o custo real do benefício (descontado o valor eventualmente pago pelo empregado).
C37: B | D37: Auxílio Alimentação | F37: =HLOOKUP($B$5,'Dados Gerais'!$D$6:$BI$101,92) -> 0 | H37: * Nota 2 - Observar a previsão dos benefícios contidos em Acordos, Convenções e Dissídios Coletivos de Trabalho e o disposto no art. 6º da IN 5/2017
C38: C | D38: Assistência Médica e Familiar | F38: =HLOOKUP($B$5,'Dados Gerais'!$D$6:$BI$109,100) -> 0
C39: D | D39: Seguro de vida / auxílio funeral | F39: =HLOOKUP($B$5,'Dados Gerais'!$D$6:$BI$145,109) -> 0
C40: E | D40: Assistência odontológica | F40: =HLOOKUP($B$5,'Dados Gerais'!$D$6:$BI$145,115) -> 0
C41: F | D41: Auxílio creche | F41: =HLOOKUP($B$5,'Dados Gerais'!$D$6:$BI$145,121) -> 0
C42: G | D42: Auxílio vestuário especial | F42: =HLOOKUP($B$5,'Dados Gerais'!$D$6:$BI$145,127) -> 0
C43: H | D43: Benefício social familiar | F43: =HLOOKUP($B$5,'Dados Gerais'!$D$6:$BI$145,133) -> 0
C44: I | D44: Outros (especificar) | F44: =HLOOKUP($B$5,'Dados Gerais'!$D$6:$BI$145,115) -> 0
C45: J | D45: Outros (especificar) | F45: =HLOOKUP($B$5,'Dados Gerais'!$D$6:$BI$145,115) -> 0
D47: QUADRO-RESUMO DO MÓDULO 2
D48: 2.1 - Adicional de Férias | E48: =SUM(E21:E22) -> 0.0303 | F48: =F21+F22 -> 0
D49: 2.2 - Encargos Previdenciários (GPS), Fundo de Garantia por Tempo de Serviço (FGTS) e Contribuições | E49: =SUM(E25:E33) -> 0.348 | F49: =SUM(F25:F33) -> 0
D50: 2.3 - Benefícios Mensais e Diários | F50: =SUM(F36:F45) -> 0
D52: TOTAL DOS ENCARGOS E BENEFÍCIOS | F52: =TRUNC(SUM(F48:F50),2) -> 0
B54: MÓDULO 3 - PREVISÃO PARA RESCISÃO | E54: Percentuais | F54: Valor
C55: A | D55: ='Encargos Sociais'!D36 -> Aviso Prévio Indenizado (Art. 7º, inciso XXI, da CF/1988 e arts. 477, 487, §1º, e 491 da CLT) | E55: ='Encargos Sociais'!E36 -> 0.0042 | F55: =TRUNC(E55*($F$17+$F$48+$F$80),2) -> 0 | H55: * Nota 1 - Base de cálculo - remuneração + ausências + 1/3 férias
C56: B | D56: ='Encargos Sociais'!D37 -> Incidência do FGTS sobre o Aviso Prévio Indenizado (Súmula 305 TST) | E56: ='Encargos Sociais'!E37 -> 0.0003 | F56: 0
C57: C | D57: ='Encargos Sociais'!D38 -> Multa do FGTS sobre o Aviso Prévio Indenizado (Art. 18, §1º, da Lei 8.036/1990) | E57: ='Encargos Sociais'!E38 -> 0 | F57: 0
C58: D | D58: ='Encargos Sociais'!D39 -> Aviso Prévio Trabalhado (Art. 488, parágrafo único, CLT) | E58: ='Encargos Sociais'!E39 -> 0.0097 | F58: 0
C59: E | D59: ='Encargos Sociais'!D40 -> Incidência de GPS, FGTS e outras contribuições sobre o Aviso Prévio Trabalhado | E59: ='Encargos Sociais'!E40 -> 0.0034 | F59: 0
C60: F | D60: ='Encargos Sociais'!D41 -> Multa do FGTS | E60: ='Encargos Sociais'!E41 -> 0.032 | F60: 0
D62: TOTAL DE PREVISÃO PARA RESCISÃO | F62: =TRUNC(SUM(F55:F60),2) -> 0
B64: MÓDULO 4 - CUSTO DO PROFISSIONAL AUSENTE | E64: Percentuais | F64: Valor
B65: Submódulo 4.1 - Ausências Legais
C66: A | D66: ='Encargos Sociais'!D25 -> Férias (Arts. 129 e 130, inc. I, da CLT) | E66: ='Encargos Sociais'!E25 -> 0.0909 | F66: =TRUNC(E66*$F$17,2) -> 0 | H66: * Nota 1 - O Módulo 4 refere-se às previsões para custear ausências do próprio profissional (titular do cargo)
C67: B | D67: ='Encargos Sociais'!D26 -> Ausências Legais (Arts. 131 e 473 da CLT) | E67: ='Encargos Sociais'!E26 -> 0.0079 | F67: 0 | H67: * Nota 2 - As férias foram calculadas dividindo-se por 11, para comportar os 11 meses presentes e ainda o ausente do posto
C68: C | D68: ='Encargos Sociais'!D27 -> Licença-Paternidade (Art. 7º, XIX, e art. 10, §1º, do ADCT, CF/1988 e Art. 1º, II, da Lei 11.770/2008) | E68: ='Encargos Sociais'!E27 -> 0.0008 | F68: 0
C69: D | D69: ='Encargos Sociais'!D28 -> Ausência por Acidente de Trabalho (Art. 131, III, da CLT) | E69: ='Encargos Sociais'!E28 -> 0.0009 | F69: 0
C70: E | D70: ='Encargos Sociais'!D29 -> Afastamento Maternidade (Art. 71 da Lei nº 8.213/1991) | E70: ='Encargos Sociais'!E29 -> 0.0033 | F70: 0
C71: F | D71: ='Encargos Sociais'!D30 -> Auxílio Enfermidade - Doença (Art. 59 da Lei nº 8.213/1991) | E71: ='Encargos Sociais'!E30 -> 0.0071 | F71: 0
B73: Submódulo 4.2 - Intrajornada
C74: A | D74: Intervalo para repouso ou alimentação | E74: ='Encargos Sociais'!E33 -> 0 | F74: =ROUND(E74*$F$17,2) -> 0
D76: QUADRO-RESUMO DO MÓDULO 4 | F76: Valor
D77: 4.1 - Ausências Legais | E77: =SUM(E66:E71) -> 0.1109 | F77: =SUM(F66:F71) -> 0
D78: 4.2 - Intrajornada | E78: =E74 -> 0 | F78: =ROUND(E78*$F$17,2) -> 0
D80: TOTAL DE CUSTO DO PROFFIONAL AUSENTE E INTERVALO INTRAJORNADA | F80: =TRUNC(SUM(F77:F78),2) -> 0
B82: MÓDULO 5 - INSUMOS DIVERSOS | F82: Valor
C83: A | D83: Uniformes - aquisição | F83: =TRUNC(HLOOKUP($B$5,Uniformes!$J$3:$DY$5,3,0)/12,2) -> 0
C84: B | D84: Materiais de consumo relacionados ao posto - aquisição | F84: 0
C85: C | D85: Ferramentas relacionadas ao posto - remuneração da sua depreciação / manutenção | F85: 0
C86: D | D86: Equipamentos relacionados ao posto - remuneração da sua depreciação / manutenção | F86: 0
C87: E | D87: Equipamentos de Proteção Individual - EPI - aquisição | F87: =TRUNC(HLOOKUP($B$5,EPI!$J$3:$DX$5,3,0)/12,2) -> 0
D89: TOTAL DE INSUMOS DIVERSOS | F89: =SUM(F83:F88) -> 0 | H89: * Nota - Valores mensais por empregado
B91: MÓDULO 6 - CUSTOS INDIRETOS, TRIBUTOS E LUCRO - BDI | E91: Percentuais | F91: Valor
C92: A | D92: Custos Indiretos | E92: ='BDI - Geral'!E7 -> 0.027
C93: A.1 | D93: Administração Central | E93: ='BDI - Geral'!E8 -> 0.0216
C94: A.2 | D94: Seguros, Garantias e Riscos | E94: ='BDI - Geral'!E9 -> 0.0054
C95: B | D95: Lucro | E95: ='BDI - Geral'!E11 -> 0.0334
C96: C | D96: Tributos | E96: =SUM(E97:E98) -> 0.124
C97: C.1 | D97: Tributos Federais (COFINS, PIS e CPRB) | E97: ='BDI - Geral'!E19 -> 0.074
C98: C.2 | D98: Tributos Distritais (ISS) | E98: ='BDI - Geral'!E24 -> 0.05
C99: D | D99: Despesas Financeiras | E99: ='BDI - Geral'!E14 -> 0.0061
D101: TOTAL DE BDI | E101: ='BDI - Geral'!E27 -> 0.2189 | F101: =TRUNC(E101*E109,2) -> 0
D103: QUADRO-RESUMO DO CUSTO MENSAL POR EMPREGADO - SEM O 13º | E103: Valor
D104: Módulo 1 - Composição da Remuneração | E104: =F17 -> 0
D105: Módulo 2 - Encargos e Benefícios Anuais, Mensais e Diários | E105: =F52 -> 0
D106: Módulo 3 - Provisão para Rescisão | E106: =F62 -> 0
D107: Módulo 4 - Custo de Reposição do Profissional Ausente | E107: =F80 -> 0
D108: Módulo 5 - Insumos Diversos | E108: =F89 -> 0
D109: SUBTOTAL (A+B+C+D+E) | E109: =SUM(E104:E108) -> 0
D110: Módulo 6 - Custos Indiretos, Tributos e Lucro | E110: =F101 -> 0
D112: TOTAL DO POSTO | E112: =SUM(E109:E110) -> 0
B114: MÓDULO 7 - DESTAQUE DO MÓDULO 2 - 13º SALÁRIO | E114: Percentuais | F114: Valor
C115: A | D115: 13º Salário | E115: ='[1]Encargos Sociais'!E32*12/11 -> 0.09916363636 | F115: =ROUND(E115*F$17,2) -> 0 | H115: * Nota 1 - Incluindo-se a reincidência das férias do substituto sobre o titular
C116: B | D116: Encargos Sociais sobre o 13º Salário (submódulo 2.2 e módulo 3) | E116: =SUM($E$25:$E$33)+SUM($E$55:$E$60) -> 0.3976 | F116: =ROUND(E116*$F$115,2) -> 0 | H116: * Nota 2 - 13º e reflexos calculados à parte a fim de aprovisionamento
C117: C | D117: BDI sobre o 13º Salário | E117: =E101 -> 0.2189 | F117: =ROUND(E117*($F$115+$F$116),2) -> 0
D119: TOTAL DO DESTAQUE DO 13º SALÁRIO | F119: =SUM(F115:F117) -> 0
D121: QUADRO-RESUMO DO CUSTO MENSAL POR EMPREGADO | E121: Valor
D122: Custo total - sem o 13º Salário | E122: =ROUND(E112,2) -> 0
D123: Destaque do 13º Salário (valor mensal) | E123: =ROUND(F119,2) -> 0
D125: TOTAL DO POSTO | E125: =E122+E123 -> 0

Sheet 14 (hidden)
B2: PLANILHA DE ESTIMATIVA DE CUSTOS
B3: Padrão IN 05/2017 e IN 07/2018 - MPDG - Medição por posto presente
B5: 14 | D5: =HLOOKUP($B$5,'Dados Gerais'!$D$6:$BI$22,6) -> 0 | E5: QUANTIDADE | F5: =HLOOKUP($B$5,'Dados Gerais'!$D$6:$BI$22,10) -> 0
B6: CCT | D6: =HLOOKUP($B$5,'Dados Gerais'!$D$6:$BI$22,16) -> 0 | E6: DATA-BASE | F6: =HLOOKUP($B$5,'Dados Gerais'!$D$6:$BI$22,17) -> 00:00:00
B8: MÓDULO 1 - COMPOSIÇÃO DA REMUNERAÇÃO | F8: Valor
C9: A | D9: Salário-Base | F9: =HLOOKUP($B$5,'Dados Gerais'!$D$6:$BI$22,8) -> 0
C10: B | D10: Adicional de Periculosidade | F10: =HLOOKUP($B$5,'Dados Gerais'!$D$6:$BI$41,26) -> 0
C11: C | D11: Adicional de Insalubridade | F11: =HLOOKUP($B$5,'Dados Gerais'!$D$6:$BI$41,32) -> 0
C12: D | D12: Adicional Noturno | F12: =HLOOKUP($B$5,'Dados Gerais'!$D$6:$BI$54,49) -> 0 | H12: * Nota 1 - O Módulo 1 refere-se ao valor mensal devido ao empregado pela prestação do serviço no período de 12 meses.
C13: E | D13: Adicional de Hora Extra | F13: =HLOOKUP($B$5,'Dados Gerais'!$D$6:$BI$71,66) -> 0 | H13: * Nota 2 - O adicional de hora extra no feriado trabalhado foi suprimido pela Lei 13.467/17
C14: F | D14: Gratificação | F14: =HLOOKUP($B$5,'Dados Gerais'!$D$6:$BI$71,34) -> 0 | H14: * Nota 3 - ART. 7º, § 2º, DA LEI Nº 605/49.Sendo mensalista o obreiro, o adicional noturno pago de forma fixa já é considerado integrado para os efeitos do pagamento do repouso semanal remunerado, nos termos do art. 7º, § 2º, da Lei nº 605/49.
C15: G | D15: Sobraviso | F15: =HLOOKUP($B$5,'Dados Gerais'!$D$6:$BI$71,36) -> 0 | H15: * Nota 3 - ART. 7º, § 2º, DA LEI Nº 605/49.Sendo mensalista o obreiro, o adicional noturno pago de forma fixa já é considerado integrado para os efeitos do pagamento do repouso semanal remunerado, nos termos do art. 7º, § 2º, da Lei nº 605/49.
D17: TOTAL DA REMUNERAÇÃO | F17: =TRUNC(SUM(F9:F15),2) -> 0
B19: MÓDULO 2 - ENCARGOS E BENEFÍCIOS ANUAIS, MENSAIS E DIÁRIOS | E19: Percentuais | F19: Valor
B20: Submódulo 2.1 - 13º Salário, Férias e Adicional de Férias
C21: A | D21: 13º Salário - Calculado no Módulo 7 - Destacado | E21: 0 | F21: =TRUNC(E21*F$17,2) -> 0
C22: B | D22: Adicional de Férias | E22: ='Encargos Sociais'!E31 -> 0.0303 | F22: =TRUNC(E22*(F$17),2) -> 0 | H22: * Nota 1 - O adicional de férias foi calculado dividindo-se por 11, para comportar os 11 meses presentes e ainda o ausente do posto
B24: Submódulo 2.2 - Encargos Previdenciários (GPS), Fundo de Garantia por Tempo de Serviço (FGTS) e Outras Contribuições
C25: A | D25: ='Encargos Sociais'!D14 -> INSS (art. 22, inciso I, Lei nº 8.212/91) | E25: ='Encargos Sociais'!E14 -> 0.2 | F25: =TRUNC(E25*($F$17+$F$80+$F$22-F69),2) -> 0 | H25: * Nota 1 - Os percentuais dos encargos previdenciários, do FGTS e demais contribuições são estabelecidos por legislação vigente.
C26: B | D26: ='Encargos Sociais'!D15 -> Salário Educação (art. 3º, inciso I, Decreto nº 87.043/82) | E26: ='Encargos Sociais'!E15 -> 0.025 | F26: =TRUNC(E26*($F$17+$F$80+$F$22),2) -> 0 | H26: * Nota 2 - O SAT, a depender do grau de risco do serviço, irá variar entre 1%, para risco leve, de 2%, para risco médio, e de 3% para risco grave.
C27: C | D27: ='Encargos Sociais'!D16 -> SAT/RAT (art. 22, II, Lei 8.212/91 e Anexo V, Decreto 6.042/07) - Enquadramento 8211-3/00 | E27: ='Encargos Sociais'!E16 -> 0.01 | F27: 0 | H27: * Nota 3 - Base de cálculo - remuneração + ausências + terço constitucional (férias) - exceto INSS sobre ausência por acidente de trabalho
C28: D | D28: ='Encargos Sociais'!D17 -> SESC ou SESI (art. 30, Lei nº 8.036/90 e art. 1º, Lei 8.154/90) | E28: ='Encargos Sociais'!E17 -> 0.015 | F28: 0
C29: E | D29: ='Encargos Sociais'!D18 -> SENAI ou SENAC (Decreto nº 2.318/86) | E29: ='Encargos Sociais'!E18 -> 0.01 | F29: 0
C30: F | D30: ='Encargos Sociais'!D19 -> SEBRAE (§ 3º, art. 8º, Lei 8.029/90, alterada pela Lei nº 8.154/90) | E30: ='Encargos Sociais'!E19 -> 0.006 | F30: 0
C31: G | D31: ='Encargos Sociais'!D20 -> INCRA (art. 1º, I, Decreto Lei 1.146/70 e Lei 7.787, de 30/06/89) | E31: ='Encargos Sociais'!E20 -> 0.002 | F31: 0
C32: H | D32: ='Encargos Sociais'!D21 -> FGTS (Lei Complementar nº 110/01 e art. 30, Lei nº 8.036/90) | E32: ='Encargos Sociais'!E21 -> 0.08 | F32: 0
C33: I | D33: ='Encargos Sociais'!D22 -> SECONCI (Convenções Coletivas de Trabalho da construção) | E33: ='Encargos Sociais'!E22 -> 0 | F33: 0
B35: Submódulo 2.3 - Benefícios Mensais e Diários
C36: A | D36: Auxílio Transporte | F36: =HLOOKUP($B$5,'Dados Gerais'!$D$6:$BI$101,85) -> 0 | H36: * Nota 1 - O valor informado deverá ser o custo real do benefício (descontado o valor eventualmente pago pelo empregado).
C37: B | D37: Auxílio Alimentação | F37: =HLOOKUP($B$5,'Dados Gerais'!$D$6:$BI$101,92) -> 0 | H37: * Nota 2 - Observar a previsão dos benefícios contidos em Acordos, Convenções e Dissídios Coletivos de Trabalho e o disposto no art. 6º da IN 5/2017
C38: C | D38: Assistência Médica e Familiar | F38: =HLOOKUP($B$5,'Dados Gerais'!$D$6:$BI$109,100) -> 0
C39: D | D39: Seguro de vida / auxílio funeral | F39: =HLOOKUP($B$5,'Dados Gerais'!$D$6:$BI$145,109) -> 0
C40: E | D40: Assistência odontológica | F40: =HLOOKUP($B$5,'Dados Gerais'!$D$6:$BI$145,115) -> 0
C41: F | D41: Auxílio creche | F41: =HLOOKUP($B$5,'Dados Gerais'!$D$6:$BI$145,121) -> 0
C42: G | D42: Auxílio vestuário especial | F42: =HLOOKUP($B$5,'Dados Gerais'!$D$6:$BI$145,127) -> 0
C43: H | D43: Benefício social familiar | F43: =HLOOKUP($B$5,'Dados Gerais'!$D$6:$BI$145,133) -> 0
C44: I | D44: Outros (especificar) | F44: =HLOOKUP($B$5,'Dados Gerais'!$D$6:$BI$145,115) -> 0
C45: J | D45: Outros (especificar) | F45: =HLOOKUP($B$5,'Dados Gerais'!$D$6:$BI$145,115) -> 0
D47: QUADRO-RESUMO DO MÓDULO 2
D48: 2.1 - Adicional de Férias | E48: =SUM(E21:E22) -> 0.0303 | F48: =F21+F22 -> 0
D49: 2.2 - Encargos Previdenciários (GPS), Fundo de Garantia por Tempo de Serviço (FGTS) e Contribuições | E49: =SUM(E25:E33) -> 0.348 | F49: =SUM(F25:F33) -> 0
D50: 2.3 - Benefícios Mensais e Diários | F50: =SUM(F36:F45) -> 0
D52: TOTAL DOS ENCARGOS E BENEFÍCIOS | F52: =TRUNC(SUM(F48:F50),2) -> 0
B54: MÓDULO 3 - PREVISÃO PARA RESCISÃO | E54: Percentuais | F54: Valor
C55: A | D55: ='Encargos Sociais'!D36 -> Aviso Prévio Indenizado (Art. 7º, inciso XXI, da CF/1988 e arts. 477, 487, §1º, e 491 da CLT) | E55: ='Encargos Sociais'!E36 -> 0.0042 | F55: =TRUNC(E55*($F$17+$F$48+$F$80),2) -> 0 | H55: * Nota 1 - Base de cálculo - remuneração + ausências + 1/3 férias
C56: B | D56: ='Encargos Sociais'!D37 -> Incidência do FGTS sobre o Aviso Prévio Indenizado (Súmula 305 TST) | E56: ='Encargos Sociais'!E37 -> 0.0003 | F56: 0
C57: C | D57: ='Encargos Sociais'!D38 -> Multa do FGTS sobre o Aviso Prévio Indenizado (Art. 18, §1º, da Lei 8.036/1990) | E57: ='Encargos Sociais'!E38 -> 0 | F57: 0
C58: D | D58: ='Encargos Sociais'!D39 -> Aviso Prévio Trabalhado (Art. 488, parágrafo único, CLT) | E58: ='Encargos Sociais'!E39 -> 0.0097 | F58: 0
C59: E | D59: ='Encargos Sociais'!D40 -> Incidência de GPS, FGTS e outras contribuições sobre o Aviso Prévio Trabalhado | E59: ='Encargos Sociais'!E40 -> 0.0034 | F59: 0
C60: F | D60: ='Encargos Sociais'!D41 -> Multa do FGTS | E60: ='Encargos Sociais'!E41 -> 0.032 | F60: 0
D62: TOTAL DE PREVISÃO PARA RESCISÃO | F62: =TRUNC(SUM(F55:F60),2) -> 0
B64: MÓDULO 4 - CUSTO DO PROFISSIONAL AUSENTE | E64: Percentuais | F64: Valor
B65: Submódulo 4.1 - Ausências Legais
C66: A | D66: ='Encargos Sociais'!D25 -> Férias (Arts. 129 e 130, inc. I, da CLT) | E66: ='Encargos Sociais'!E25 -> 0.0909 | F66: =TRUNC(E66*$F$17,2) -> 0 | H66: * Nota 1 - O Módulo 4 refere-se às previsões para custear ausências do próprio profissional (titular do cargo)
C67: B | D67: ='Encargos Sociais'!D26 -> Ausências Legais (Arts. 131 e 473 da CLT) | E67: ='Encargos Sociais'!E26 -> 0.0079 | F67: 0 | H67: * Nota 2 - As férias foram calculadas dividindo-se por 11, para comportar os 11 meses presentes e ainda o ausente do posto
C68: C | D68: ='Encargos Sociais'!D27 -> Licença-Paternidade (Art. 7º, XIX, e art. 10, §1º, do ADCT, CF/1988 e Art. 1º, II, da Lei 11.770/2008) | E68: ='Encargos Sociais'!E27 -> 0.0008 | F68: 0
C69: D | D69: ='Encargos Sociais'!D28 -> Ausência por Acidente de Trabalho (Art. 131, III, da CLT) | E69: ='Encargos Sociais'!E28 -> 0.0009 | F69: 0
C70: E | D70: ='Encargos Sociais'!D29 -> Afastamento Maternidade (Art. 71 da Lei nº 8.213/1991) | E70: ='Encargos Sociais'!E29 -> 0.0033 | F70: 0
C71: F | D71: ='Encargos Sociais'!D30 -> Auxílio Enfermidade - Doença (Art. 59 da Lei nº 8.213/1991) | E71: ='Encargos Sociais'!E30 -> 0.0071 | F71: 0
B73: Submódulo 4.2 - Intrajornada
C74: A | D74: Intervalo para repouso ou alimentação | E74: ='Encargos Sociais'!E33 -> 0 | F74: =ROUND(E74*$F$17,2) -> 0
D76: QUADRO-RESUMO DO MÓDULO 4 | F76: Valor
D77: 4.1 - Ausências Legais | E77: =SUM(E66:E71) -> 0.1109 | F77: =SUM(F66:F71) -> 0
D78: 4.2 - Intrajornada | E78: =E74 -> 0 | F78: =ROUND(E78*$F$17,2) -> 0
D80: TOTAL DE CUSTO DO PROFFIONAL AUSENTE E INTERVALO INTRAJORNADA | F80: =TRUNC(SUM(F77:F78),2) -> 0
B82: MÓDULO 5 - INSUMOS DIVERSOS | F82: Valor
C83: A | D83: Uniformes - aquisição | F83: =TRUNC(HLOOKUP($B$5,Uniformes!$J$3:$DY$5,3,0)/12,2) -> 0
C84: B | D84: Materiais de consumo relacionados ao posto - aquisição | F84: 0
C85: C | D85: Ferramentas relacionadas ao posto - remuneração da sua depreciação / manutenção | F85: 0
C86: D | D86: Equipamentos relacionados ao posto - remuneração da sua depreciação / manutenção | F86: 0
C87: E | D87: Equipamentos de Proteção Individual - EPI - aquisição | F87: =TRUNC(HLOOKUP($B$5,EPI!$J$3:$DX$5,3,0)/12,2) -> 0
D89: TOTAL DE INSUMOS DIVERSOS | F89: =SUM(F83:F88) -> 0 | H89: * Nota - Valores mensais por empregado
B91: MÓDULO 6 - CUSTOS INDIRETOS, TRIBUTOS E LUCRO - BDI | E91: Percentuais | F91: Valor
C92: A | D92: Custos Indiretos | E92: ='BDI - Geral'!E7 -> 0.027
C93: A.1 | D93: Administração Central | E93: ='BDI - Geral'!E8 -> 0.0216
C94: A.2 | D94: Seguros, Garantias e Riscos | E94: ='BDI - Geral'!E9 -> 0.0054
C95: B | D95: Lucro | E95: ='BDI - Geral'!E11 -> 0.0334
C96: C | D96: Tributos | E96: =SUM(E97:E98) -> 0.124
C97: C.1 | D97: Tributos Federais (COFINS, PIS e CPRB) | E97: ='BDI - Geral'!E19 -> 0.074
C98: C.2 | D98: Tributos Distritais (ISS) | E98: ='BDI - Geral'!E24 -> 0.05
C99: D | D99: Despesas Financeiras | E99: ='BDI - Geral'!E14 -> 0.0061
D101: TOTAL DE BDI | E101: ='BDI - Geral'!E27 -> 0.2189 | F101: =TRUNC(E101*E109,2) -> 0
D103: QUADRO-RESUMO DO CUSTO MENSAL POR EMPREGADO - SEM O 13º | E103: Valor
D104: Módulo 1 - Composição da Remuneração | E104: =F17 -> 0
D105: Módulo 2 - Encargos e Benefícios Anuais, Mensais e Diários | E105: =F52 -> 0
D106: Módulo 3 - Provisão para Rescisão | E106: =F62 -> 0
D107: Módulo 4 - Custo de Reposição do Profissional Ausente | E107: =F80 -> 0
D108: Módulo 5 - Insumos Diversos | E108: =F89 -> 0
D109: SUBTOTAL (A+B+C+D+E) | E109: =SUM(E104:E108) -> 0
D110: Módulo 6 - Custos Indiretos, Tributos e Lucro | E110: =F101 -> 0
D112: TOTAL DO POSTO | E112: =SUM(E109:E110) -> 0
B114: MÓDULO 7 - DESTAQUE DO MÓDULO 2 - 13º SALÁRIO | E114: Percentuais | F114: Valor
C115: A | D115: 13º Salário | E115: ='[1]Encargos Sociais'!E32*12/11 -> 0.09916363636 | F115: =ROUND(E115*F$17,2) -> 0 | H115: * Nota 1 - Incluindo-se a reincidência das férias do substituto sobre o titular
C116: B | D116: Encargos Sociais sobre o 13º Salário (submódulo 2.2 e módulo 3) | E116: =SUM($E$25:$E$33)+SUM($E$55:$E$60) -> 0.3976 | F116: =ROUND(E116*$F$115,2) -> 0 | H116: * Nota 2 - 13º e reflexos calculados à parte a fim de aprovisionamento
C117: C | D117: BDI sobre o 13º Salário | E117: =E101 -> 0.2189 | F117: =ROUND(E117*($F$115+$F$116),2) -> 0
D119: TOTAL DO DESTAQUE DO 13º SALÁRIO | F119: =SUM(F115:F117) -> 0
D121: QUADRO-RESUMO DO CUSTO MENSAL POR EMPREGADO | E121: Valor
D122: Custo total - sem o 13º Salário | E122: =ROUND(E112,2) -> 0
D123: Destaque do 13º Salário (valor mensal) | E123: =ROUND(F119,2) -> 0
D125: TOTAL DO POSTO | E125: =E122+E123 -> 0

Sheet 15 (hidden)
B2: PLANILHA DE ESTIMATIVA DE CUSTOS
B3: Padrão IN 05/2017 e IN 07/2018 - MPDG - Medição por posto presente
B5: 15 | D5: =HLOOKUP($B$5,'Dados Gerais'!$D$6:$BI$22,6) -> 0 | E5: QUANTIDADE | F5: =HLOOKUP($B$5,'Dados Gerais'!$D$6:$BI$22,10) -> 0
B6: CCT | D6: =HLOOKUP($B$5,'Dados Gerais'!$D$6:$BI$22,16) -> 0 | E6: DATA-BASE | F6: =HLOOKUP($B$5,'Dados Gerais'!$D$6:$BI$22,17) -> 00:00:00
B8: MÓDULO 1 - COMPOSIÇÃO DA REMUNERAÇÃO | F8: Valor
C9: A | D9: Salário-Base | F9: =HLOOKUP($B$5,'Dados Gerais'!$D$6:$BI$22,8) -> 0
C10: B | D10: Adicional de Periculosidade | F10: =HLOOKUP($B$5,'Dados Gerais'!$D$6:$BI$41,26) -> 0
C11: C | D11: Adicional de Insalubridade | F11: =HLOOKUP($B$5,'Dados Gerais'!$D$6:$BI$41,32) -> 0
C12: D | D12: Adicional Noturno | F12: =HLOOKUP($B$5,'Dados Gerais'!$D$6:$BI$54,49) -> 0 | H12: * Nota 1 - O Módulo 1 refere-se ao valor mensal devido ao empregado pela prestação do serviço no período de 12 meses.
C13: E | D13: Adicional de Hora Extra | F13: =HLOOKUP($B$5,'Dados Gerais'!$D$6:$BI$71,66) -> 0 | H13: * Nota 2 - O adicional de hora extra no feriado trabalhado foi suprimido pela Lei 13.467/17
C14: F | D14: Gratificação | F14: =HLOOKUP($B$5,'Dados Gerais'!$D$6:$BI$71,34) -> 0 | H14: * Nota 3 - ART. 7º, § 2º, DA LEI Nº 605/49.Sendo mensalista o obreiro, o adicional noturno pago de forma fixa já é considerado integrado para os efeitos do pagamento do repouso semanal remunerado, nos termos do art. 7º, § 2º, da Lei nº 605/49.
C15: G | D15: Sobraviso | F15: =HLOOKUP($B$5,'Dados Gerais'!$D$6:$BI$71,36) -> 0 | H15: * Nota 3 - ART. 7º, § 2º, DA LEI Nº 605/49.Sendo mensalista o obreiro, o adicional noturno pago de forma fixa já é considerado integrado para os efeitos do pagamento do repouso semanal remunerado, nos termos do art. 7º, § 2º, da Lei nº 605/49.
D17: TOTAL DA REMUNERAÇÃO | F17: =TRUNC(SUM(F9:F15),2) -> 0
B19: MÓDULO 2 - ENCARGOS E BENEFÍCIOS ANUAIS, MENSAIS E DIÁRIOS | E19: Percentuais | F19: Valor
B20: Submódulo 2.1 - 13º Salário, Férias e Adicional de Férias
C21: A | D21: 13º Salário - Calculado no Módulo 7 - Destacado | E21: 0 | F21: =TRUNC(E21*F$17,2) -> 0
C22: B | D22: Adicional de Férias | E22: ='Encargos Sociais'!E31 -> 0.0303 | F22: =TRUNC(E22*(F$17),2) -> 0 | H22: * Nota 1 - O adicional de férias foi calculado dividindo-se por 11, para comportar os 11 meses presentes e ainda o ausente do posto
B24: Submódulo 2.2 - Encargos Previdenciários (GPS), Fundo de Garantia por Tempo de Serviço (FGTS) e Outras Contribuições
C25: A | D25: ='Encargos Sociais'!D14 -> INSS (art. 22, inciso I, Lei nº 8.212/91) | E25: ='Encargos Sociais'!E14 -> 0.2 | F25: =TRUNC(E25*($F$17+$F$80+$F$22-F69),2) -> 0 | H25: * Nota 1 - Os percentuais dos encargos previdenciários, do FGTS e demais contribuições são estabelecidos por legislação vigente.
C26: B | D26: ='Encargos Sociais'!D15 -> Salário Educação (art. 3º, inciso I, Decreto nº 87.043/82) | E26: ='Encargos Sociais'!E15 -> 0.025 | F26: =TRUNC(E26*($F$17+$F$80+$F$22),2) -> 0 | H26: * Nota 2 - O SAT, a depender do grau de risco do serviço, irá variar entre 1%, para risco leve, de 2%, para risco médio, e de 3% para risco grave.
C27: C | D27: ='Encargos Sociais'!D16 -> SAT/RAT (art. 22, II, Lei 8.212/91 e Anexo V, Decreto 6.042/07) - Enquadramento 8211-3/00 | E27: ='Encargos Sociais'!E16 -> 0.01 | F27: 0 | H27: * Nota 3 - Base de cálculo - remuneração + ausências + terço constitucional (férias) - exceto INSS sobre ausência por acidente de trabalho
C28: D | D28: ='Encargos Sociais'!D17 -> SESC ou SESI (art. 30, Lei nº 8.036/90 e art. 1º, Lei 8.154/90) | E28: ='Encargos Sociais'!E17 -> 0.015 | F28: 0
C29: E | D29: ='Encargos Sociais'!D18 -> SENAI ou SENAC (Decreto nº 2.318/86) | E29: ='Encargos Sociais'!E18 -> 0.01 | F29: 0
C30: F | D30: ='Encargos Sociais'!D19 -> SEBRAE (§ 3º, art. 8º, Lei 8.029/90, alterada pela Lei nº 8.154/90) | E30: ='Encargos Sociais'!E19 -> 0.006 | F30: 0
C31: G | D31: ='Encargos Sociais'!D20 -> INCRA (art. 1º, I, Decreto Lei 1.146/70 e Lei 7.787, de 30/06/89) | E31: ='Encargos Sociais'!E20 -> 0.002 | F31: 0
C32: H | D32: ='Encargos Sociais'!D21 -> FGTS (Lei Complementar nº 110/01 e art. 30, Lei nº 8.036/90) | E32: ='Encargos Sociais'!E21 -> 0.08 | F32: 0
C33: I | D33: ='Encargos Sociais'!D22 -> SECONCI (Convenções Coletivas de Trabalho da construção) | E33: ='Encargos Sociais'!E22 -> 0 | F33: 0
B35: Submódulo 2.3 - Benefícios Mensais e Diários
C36: A | D36: Auxílio Transporte | F36: =HLOOKUP($B$5,'Dados Gerais'!$D$6:$BI$101,85) -> 0 | H36: * Nota 1 - O valor informado deverá ser o custo real do benefício (descontado o valor eventualmente pago pelo empregado).
C37: B | D37: Auxílio Alimentação | F37: =HLOOKUP($B$5,'Dados Gerais'!$D$6:$BI$101,92) -> 0 | H37: * Nota 2 - Observar a previsão dos benefícios contidos em Acordos, Convenções e Dissídios Coletivos de Trabalho e o disposto no art. 6º da IN 5/2017
C38: C | D38: Assistência Médica e Familiar | F38: =HLOOKUP($B$5,'Dados Gerais'!$D$6:$BI$109,100) -> 0
C39: D | D39: Seguro de vida / auxílio funeral | F39: =HLOOKUP($B$5,'Dados Gerais'!$D$6:$BI$145,109) -> 0
C40: E | D40: Assistência odontológica | F40: =HLOOKUP($B$5,'Dados Gerais'!$D$6:$BI$145,115) -> 0
C41: F | D41: Auxílio creche | F41: =HLOOKUP($B$5,'Dados Gerais'!$D$6:$BI$145,121) -> 0
C42: G | D42: Auxílio vestuário especial | F42: =HLOOKUP($B$5,'Dados Gerais'!$D$6:$BI$145,127) -> 0
C43: H | D43: Benefício social familiar | F43: =HLOOKUP($B$5,'Dados Gerais'!$D$6:$BI$145,133) -> 0
C44: I | D44: Outros (especificar) | F44: =HLOOKUP($B$5,'Dados Gerais'!$D$6:$BI$145,115) -> 0
C45: J | D45: Outros (especificar) | F45: =HLOOKUP($B$5,'Dados Gerais'!$D$6:$BI$145,115) -> 0
D47: QUADRO-RESUMO DO MÓDULO 2
D48: 2.1 - Adicional de Férias | E48: =SUM(E21:E22) -> 0.0303 | F48: =F21+F22 -> 0
D49: 2.2 - Encargos Previdenciários (GPS), Fundo de Garantia por Tempo de Serviço (FGTS) e Contribuições | E49: =SUM(E25:E33) -> 0.348 | F49: =SUM(F25:F33) -> 0
D50: 2.3 - Benefícios Mensais e Diários | F50: =SUM(F36:F45) -> 0
D52: TOTAL DOS ENCARGOS E BENEFÍCIOS | F52: =TRUNC(SUM(F48:F50),2) -> 0
B54: MÓDULO 3 - PREVISÃO PARA RESCISÃO | E54: Percentuais | F54: Valor
C55: A | D55: ='Encargos Sociais'!D36 -> Aviso Prévio Indenizado (Art. 7º, inciso XXI, da CF/1988 e arts. 477, 487, §1º, e 491 da CLT) | E55: ='Encargos Sociais'!E36 -> 0.0042 | F55: =TRUNC(E55*($F$17+$F$48+$F$80),2) -> 0 | H55: * Nota 1 - Base de cálculo - remuneração + ausências + 1/3 férias
C56: B | D56: ='Encargos Sociais'!D37 -> Incidência do FGTS sobre o Aviso Prévio Indenizado (Súmula 305 TST) | E56: ='Encargos Sociais'!E37 -> 0.0003 | F56: 0
C57: C | D57: ='Encargos Sociais'!D38 -> Multa do FGTS sobre o Aviso Prévio Indenizado (Art. 18, §1º, da Lei 8.036/1990) | E57: ='Encargos Sociais'!E38 -> 0 | F57: 0
C58: D | D58: ='Encargos Sociais'!D39 -> Aviso Prévio Trabalhado (Art. 488, parágrafo único, CLT) | E58: ='Encargos Sociais'!E39 -> 0.0097 | F58: 0
C59: E | D59: ='Encargos Sociais'!D40 -> Incidência de GPS, FGTS e outras contribuições sobre o Aviso Prévio Trabalhado | E59: ='Encargos Sociais'!E40 -> 0.0034 | F59: 0
C60: F | D60: ='Encargos Sociais'!D41 -> Multa do FGTS | E60: ='Encargos Sociais'!E41 -> 0.032 | F60: 0
D62: TOTAL DE PREVISÃO PARA RESCISÃO | F62: =TRUNC(SUM(F55:F60),2) -> 0
B64: MÓDULO 4 - CUSTO DO PROFISSIONAL AUSENTE | E64: Percentuais | F64: Valor
B65: Submódulo 4.1 - Ausências Legais
C66: A | D66: ='Encargos Sociais'!D25 -> Férias (Arts. 129 e 130, inc. I, da CLT) | E66: ='Encargos Sociais'!E25 -> 0.0909 | F66: =TRUNC(E66*$F$17,2) -> 0 | H66: * Nota 1 - O Módulo 4 refere-se às previsões para custear ausências do próprio profissional (titular do cargo)
C67: B | D67: ='Encargos Sociais'!D26 -> Ausências Legais (Arts. 131 e 473 da CLT) | E67: ='Encargos Sociais'!E26 -> 0.0079 | F67: 0 | H67: * Nota 2 - As férias foram calculadas dividindo-se por 11, para comportar os 11 meses presentes e ainda o ausente do posto
C68: C | D68: ='Encargos Sociais'!D27 -> Licença-Paternidade (Art. 7º, XIX, e art. 10, §1º, do ADCT, CF/1988 e Art. 1º, II, da Lei 11.770/2008) | E68: ='Encargos Sociais'!E27 -> 0.0008 | F68: 0
C69: D | D69: ='Encargos Sociais'!D28 -> Ausência por Acidente de Trabalho (Art. 131, III, da CLT) | E69: ='Encargos Sociais'!E28 -> 0.0009 | F69: 0
C70: E | D70: ='Encargos Sociais'!D29 -> Afastamento Maternidade (Art. 71 da Lei nº 8.213/1991) | E70: ='Encargos Sociais'!E29 -> 0.0033 | F70: 0
C71: F | D71: ='Encargos Sociais'!D30 -> Auxílio Enfermidade - Doença (Art. 59 da Lei nº 8.213/1991) | E71: ='Encargos Sociais'!E30 -> 0.0071 | F71: 0
B73: Submódulo 4.2 - Intrajornada
C74: A | D74: Intervalo para repouso ou alimentação | E74: ='Encargos Sociais'!E33 -> 0 | F74: =ROUND(E74*$F$17,2) -> 0
D76: QUADRO-RESUMO DO MÓDULO 4 | F76: Valor
D77: 4.1 - Ausências Legais | E77: =SUM(E66:E71) -> 0.1109 | F77: =SUM(F66:F71) -> 0
D78: 4.2 - Intrajornada | E78: =E74 -> 0 | F78: =ROUND(E78*$F$17,2) -> 0
D80: TOTAL DE CUSTO DO PROFFIONAL AUSENTE E INTERVALO INTRAJORNADA | F80: =TRUNC(SUM(F77:F78),2) -> 0
B82: MÓDULO 5 - INSUMOS DIVERSOS | F82: Valor
C83: A | D83: Uniformes - aquisição | F83: =TRUNC(HLOOKUP($B$5,Uniformes!$J$3:$DY$5,3,0)/12,2) -> 0
C84: B | D84: Materiais de consumo relacionados ao posto - aquisição | F84: 0
C85: C | D85: Ferramentas relacionadas ao posto - remuneração da sua depreciação / manutenção | F85: 0
C86: D | D86: Equipamentos relacionados ao posto - remuneração da sua depreciação / manutenção | F86: 0
C87: E | D87: Equipamentos de Proteção Individual - EPI - aquisição | F87: =TRUNC(HLOOKUP($B$5,EPI!$J$3:$DX$5,3,0)/12,2) -> 0
D89: TOTAL DE INSUMOS DIVERSOS | F89: =SUM(F83:F88) -> 0 | H89: * Nota - Valores mensais por empregado
B91: MÓDULO 6 - CUSTOS INDIRETOS, TRIBUTOS E LUCRO - BDI | E91: Percentuais | F91: Valor
C92: A | D92: Custos Indiretos | E92: ='BDI - Geral'!E7 -> 0.027
C93: A.1 | D93: Administração Central | E93: ='BDI - Geral'!E8 -> 0.0216
C94: A.2 | D94: Seguros, Garantias e Riscos | E94: ='BDI - Geral'!E9 -> 0.0054
C95: B | D95: Lucro | E95: ='BDI - Geral'!E11 -> 0.0334
C96: C | D96: Tributos | E96: =SUM(E97:E98) -> 0.124
C97: C.1 | D97: Tributos Federais (COFINS, PIS e CPRB) | E97: ='BDI - Geral'!E19 -> 0.074
C98: C.2 | D98: Tributos Distritais (ISS) | E98: ='BDI - Geral'!E24 -> 0.05
C99: D | D99: Despesas Financeiras | E99: ='BDI - Geral'!E14 -> 0.0061
D101: TOTAL DE BDI | E101: ='BDI - Geral'!E27 -> 0.2189 | F101: =TRUNC(E101*E109,2) -> 0
D103: QUADRO-RESUMO DO CUSTO MENSAL POR EMPREGADO - SEM O 13º | E103: Valor
D104: Módulo 1 - Composição da Remuneração | E104: =F17 -> 0
D105: Módulo 2 - Encargos e Benefícios Anuais, Mensais e Diários | E105: =F52 -> 0
D106: Módulo 3 - Provisão para Rescisão | E106: =F62 -> 0
D107: Módulo 4 - Custo de Reposição do Profissional Ausente | E107: =F80 -> 0
D108: Módulo 5 - Insumos Diversos | E108: =F89 -> 0
D109: SUBTOTAL (A+B+C+D+E) | E109: =SUM(E104:E108) -> 0
D110: Módulo 6 - Custos Indiretos, Tributos e Lucro | E110: =F101 -> 0
D112: TOTAL DO POSTO | E112: =SUM(E109:E110) -> 0
B114: MÓDULO 7 - DESTAQUE DO MÓDULO 2 - 13º SALÁRIO | E114: Percentuais | F114: Valor
C115: A | D115: 13º Salário | E115: ='[1]Encargos Sociais'!E32*12/11 -> 0.09916363636 | F115: =ROUND(E115*F$17,2) -> 0 | H115: * Nota 1 - Incluindo-se a reincidência das férias do substituto sobre o titular
C116: B | D116: Encargos Sociais sobre o 13º Salário (submódulo 2.2 e módulo 3) | E116: =SUM($E$25:$E$33)+SUM($E$55:$E$60) -> 0.3976 | F116: =ROUND(E116*$F$115,2) -> 0 | H116: * Nota 2 - 13º e reflexos calculados à parte a fim de aprovisionamento
C117: C | D117: BDI sobre o 13º Salário | E117: =E101 -> 0.2189 | F117: =ROUND(E117*($F$115+$F$116),2) -> 0
D119: TOTAL DO DESTAQUE DO 13º SALÁRIO | F119: =SUM(F115:F117) -> 0
D121: QUADRO-RESUMO DO CUSTO MENSAL POR EMPREGADO | E121: Valor
D122: Custo total - sem o 13º Salário | E122: =ROUND(E112,2) -> 0
D123: Destaque do 13º Salário (valor mensal) | E123: =ROUND(F119,2) -> 0
D125: TOTAL DO POSTO | E125: =E122+E123 -> 0

Sheet 16 (hidden)
B2: PLANILHA DE ESTIMATIVA DE CUSTOS
B3: Padrão IN 05/2017 e IN 07/2018 - MPDG - Medição por posto presente
B5: 16 | D5: =HLOOKUP($B$5,'Dados Gerais'!$D$6:$BI$22,6) -> 0 | E5: QUANTIDADE | F5: =HLOOKUP($B$5,'Dados Gerais'!$D$6:$BI$22,10) -> 0
B6: CCT | D6: =HLOOKUP($B$5,'Dados Gerais'!$D$6:$BI$22,16) -> 0 | E6: DATA-BASE | F6: =HLOOKUP($B$5,'Dados Gerais'!$D$6:$BI$22,17) -> 00:00:00
B8: MÓDULO 1 - COMPOSIÇÃO DA REMUNERAÇÃO | F8: Valor
C9: A | D9: Salário-Base | F9: =HLOOKUP($B$5,'Dados Gerais'!$D$6:$BI$22,8) -> 0
C10: B | D10: Adicional de Periculosidade | F10: =HLOOKUP($B$5,'Dados Gerais'!$D$6:$BI$41,26) -> 0
C11: C | D11: Adicional de Insalubridade | F11: =HLOOKUP($B$5,'Dados Gerais'!$D$6:$BI$41,32) -> 0
C12: D | D12: Adicional Noturno | F12: =HLOOKUP($B$5,'Dados Gerais'!$D$6:$BI$54,49) -> 0 | H12: * Nota 1 - O Módulo 1 refere-se ao valor mensal devido ao empregado pela prestação do serviço no período de 12 meses.
C13: E | D13: Adicional de Hora Extra | F13: =HLOOKUP($B$5,'Dados Gerais'!$D$6:$BI$71,66) -> 0 | H13: * Nota 2 - O adicional de hora extra no feriado trabalhado foi suprimido pela Lei 13.467/17
C14: F | D14: Gratificação | F14: =HLOOKUP($B$5,'Dados Gerais'!$D$6:$BI$71,34) -> 0 | H14: * Nota 3 - ART. 7º, § 2º, DA LEI Nº 605/49.Sendo mensalista o obreiro, o adicional noturno pago de forma fixa já é considerado integrado para os efeitos do pagamento do repouso semanal remunerado, nos termos do art. 7º, § 2º, da Lei nº 605/49.
C15: G | D15: Sobraviso | F15: =HLOOKUP($B$5,'Dados Gerais'!$D$6:$BI$71,36) -> 0 | H15: * Nota 3 - ART. 7º, § 2º, DA LEI Nº 605/49.Sendo mensalista o obreiro, o adicional noturno pago de forma fixa já é considerado integrado para os efeitos do pagamento do repouso semanal remunerado, nos termos do art. 7º, § 2º, da Lei nº 605/49.
D17: TOTAL DA REMUNERAÇÃO | F17: =TRUNC(SUM(F9:F15),2) -> 0
B19: MÓDULO 2 - ENCARGOS E BENEFÍCIOS ANUAIS, MENSAIS E DIÁRIOS | E19: Percentuais | F19: Valor
B20: Submódulo 2.1 - 13º Salário, Férias e Adicional de Férias
C21: A | D21: 13º Salário - Calculado no Módulo 7 - Destacado | E21: 0 | F21: =TRUNC(E21*F$17,2) -> 0
C22: B | D22: Adicional de Férias | E22: ='Encargos Sociais'!E31 -> 0.0303 | F22: =TRUNC(E22*(F$17),2) -> 0 | H22: * Nota 1 - O adicional de férias foi calculado dividindo-se por 11, para comportar os 11 meses presentes e ainda o ausente do posto
B24: Submódulo 2.2 - Encargos Previdenciários (GPS), Fundo de Garantia por Tempo de Serviço (FGTS) e Outras Contribuições
C25: A | D25: ='Encargos Sociais'!D14 -> INSS (art. 22, inciso I, Lei nº 8.212/91) | E25: ='Encargos Sociais'!E14 -> 0.2 | F25: =TRUNC(E25*($F$17+$F$80+$F$22-F69),2) -> 0 | H25: * Nota 1 - Os percentuais dos encargos previdenciários, do FGTS e demais contribuições são estabelecidos por legislação vigente.
C26: B | D26: ='Encargos Sociais'!D15 -> Salário Educação (art. 3º, inciso I, Decreto nº 87.043/82) | E26: ='Encargos Sociais'!E15 -> 0.025 | F26: =TRUNC(E26*($F$17+$F$80+$F$22),2) -> 0 | H26: * Nota 2 - O SAT, a depender do grau de risco do serviço, irá variar entre 1%, para risco leve, de 2%, para risco médio, e de 3% para risco grave.
C27: C | D27: ='Encargos Sociais'!D16 -> SAT/RAT (art. 22, II, Lei 8.212/91 e Anexo V, Decreto 6.042/07) - Enquadramento 8211-3/00 | E27: ='Encargos Sociais'!E16 -> 0.01 | F27: 0 | H27: * Nota 3 - Base de cálculo - remuneração + ausências + terço constitucional (férias) - exceto INSS sobre ausência por acidente de trabalho
C28: D | D28: ='Encargos Sociais'!D17 -> SESC ou SESI (art. 30, Lei nº 8.036/90 e art. 1º, Lei 8.154/90) | E28: ='Encargos Sociais'!E17 -> 0.015 | F28: 0
C29: E | D29: ='Encargos Sociais'!D18 -> SENAI ou SENAC (Decreto nº 2.318/86) | E29: ='Encargos Sociais'!E18 -> 0.01 | F29: 0
C30: F | D30: ='Encargos Sociais'!D19 -> SEBRAE (§ 3º, art. 8º, Lei 8.029/90, alterada pela Lei nº 8.154/90) | E30: ='Encargos Sociais'!E19 -> 0.006 | F30: 0
C31: G | D31: ='Encargos Sociais'!D20 -> INCRA (art. 1º, I, Decreto Lei 1.146/70 e Lei 7.787, de 30/06/89) | E31: ='Encargos Sociais'!E20 -> 0.002 | F31: 0
C32: H | D32: ='Encargos Sociais'!D21 -> FGTS (Lei Complementar nº 110/01 e art. 30, Lei nº 8.036/90) | E32: ='Encargos Sociais'!E21 -> 0.08 | F32: 0
C33: I | D33: ='Encargos Sociais'!D22 -> SECONCI (Convenções Coletivas de Trabalho da construção) | E33: ='Encargos Sociais'!E22 -> 0 | F33: 0
B35: Submódulo 2.3 - Benefícios Mensais e Diários
C36: A | D36: Auxílio Transporte | F36: =HLOOKUP($B$5,'Dados Gerais'!$D$6:$BI$101,85) -> 0 | H36: * Nota 1 - O valor informado deverá ser o custo real do benefício (descontado o valor eventualmente pago pelo empregado).
C37: B | D37: Auxílio Alimentação | F37: =HLOOKUP($B$5,'Dados Gerais'!$D$6:$BI$101,92) -> 0 | H37: * Nota 2 - Observar a previsão dos benefícios contidos em Acordos, Convenções e Dissídios Coletivos de Trabalho e o disposto no art. 6º da IN 5/2017
C38: C | D38: Assistência Médica e Familiar | F38: =HLOOKUP($B$5,'Dados Gerais'!$D$6:$BI$109,100) -> 0
C39: D | D39: Seguro de vida / auxílio funeral | F39: =HLOOKUP($B$5,'Dados Gerais'!$D$6:$BI$145,109) -> 0
C40: E | D40: Assistência odontológica | F40: =HLOOKUP($B$5,'Dados Gerais'!$D$6:$BI$145,115) -> 0
C41: F | D41: Auxílio creche | F41: =HLOOKUP($B$5,'Dados Gerais'!$D$6:$BI$145,121) -> 0
C42: G | D42: Auxílio vestuário especial | F42: =HLOOKUP($B$5,'Dados Gerais'!$D$6:$BI$145,127) -> 0
C43: H | D43: Benefício social familiar | F43: =HLOOKUP($B$5,'Dados Gerais'!$D$6:$BI$145,133) -> 0
C44: I | D44: Outros (especificar) | F44: =HLOOKUP($B$5,'Dados Gerais'!$D$6:$BI$145,115) -> 0
C45: J | D45: Outros (especificar) | F45: =HLOOKUP($B$5,'Dados Gerais'!$D$6:$BI$145,115) -> 0
D47: QUADRO-RESUMO DO MÓDULO 2
D48: 2.1 - Adicional de Férias | E48: =SUM(E21:E22) -> 0.0303 | F48: =F21+F22 -> 0
D49: 2.2 - Encargos Previdenciários (GPS), Fundo de Garantia por Tempo de Serviço (FGTS) e Contribuições | E49: =SUM(E25:E33) -> 0.348 | F49: =SUM(F25:F33) -> 0
D50: 2.3 - Benefícios Mensais e Diários | F50: =SUM(F36:F45) -> 0
D52: TOTAL DOS ENCARGOS E BENEFÍCIOS | F52: =TRUNC(SUM(F48:F50),2) -> 0
B54: MÓDULO 3 - PREVISÃO PARA RESCISÃO | E54: Percentuais | F54: Valor
C55: A | D55: ='Encargos Sociais'!D36 -> Aviso Prévio Indenizado (Art. 7º, inciso XXI, da CF/1988 e arts. 477, 487, §1º, e 491 da CLT) | E55: ='Encargos Sociais'!E36 -> 0.0042 | F55: =TRUNC(E55*($F$17+$F$48+$F$80),2) -> 0 | H55: * Nota 1 - Base de cálculo - remuneração + ausências + 1/3 férias
C56: B | D56: ='Encargos Sociais'!D37 -> Incidência do FGTS sobre o Aviso Prévio Indenizado (Súmula 305 TST) | E56: ='Encargos Sociais'!E37 -> 0.0003 | F56: 0
C57: C | D57: ='Encargos Sociais'!D38 -> Multa do FGTS sobre o Aviso Prévio Indenizado (Art. 18, §1º, da Lei 8.036/1990) | E57: ='Encargos Sociais'!E38 -> 0 | F57: 0
C58: D | D58: ='Encargos Sociais'!D39 -> Aviso Prévio Trabalhado (Art. 488, parágrafo único, CLT) | E58: ='Encargos Sociais'!E39 -> 0.0097 | F58: 0
C59: E | D59: ='Encargos Sociais'!D40 -> Incidência de GPS, FGTS e outras contribuições sobre o Aviso Prévio Trabalhado | E59: ='Encargos Sociais'!E40 -> 0.0034 | F59: 0
C60: F | D60: ='Encargos Sociais'!D41 -> Multa do FGTS | E60: ='Encargos Sociais'!E41 -> 0.032 | F60: 0
D62: TOTAL DE PREVISÃO PARA RESCISÃO | F62: =TRUNC(SUM(F55:F60),2) -> 0
B64: MÓDULO 4 - CUSTO DO PROFISSIONAL AUSENTE | E64: Percentuais | F64: Valor
B65: Submódulo 4.1 - Ausências Legais
C66: A | D66: ='Encargos Sociais'!D25 -> Férias (Arts. 129 e 130, inc. I, da CLT) | E66: ='Encargos Sociais'!E25 -> 0.0909 | F66: =TRUNC(E66*$F$17,2) -> 0 | H66: * Nota 1 - O Módulo 4 refere-se às previsões para custear ausências do próprio profissional (titular do cargo)
C67: B | D67: ='Encargos Sociais'!D26 -> Ausências Legais (Arts. 131 e 473 da CLT) | E67: ='Encargos Sociais'!E26 -> 0.0079 | F67: 0 | H67: * Nota 2 - As férias foram calculadas dividindo-se por 11, para comportar os 11 meses presentes e ainda o ausente do posto
C68: C | D68: ='Encargos Sociais'!D27 -> Licença-Paternidade (Art. 7º, XIX, e art. 10, §1º, do ADCT, CF/1988 e Art. 1º, II, da Lei 11.770/2008) | E68: ='Encargos Sociais'!E27 -> 0.0008 | F68: 0
C69: D | D69: ='Encargos Sociais'!D28 -> Ausência por Acidente de Trabalho (Art. 131, III, da CLT) | E69: ='Encargos Sociais'!E28 -> 0.0009 | F69: 0
C70: E | D70: ='Encargos Sociais'!D29 -> Afastamento Maternidade (Art. 71 da Lei nº 8.213/1991) | E70: ='Encargos Sociais'!E29 -> 0.0033 | F70: 0
C71: F | D71: ='Encargos Sociais'!D30 -> Auxílio Enfermidade - Doença (Art. 59 da Lei nº 8.213/1991) | E71: ='Encargos Sociais'!E30 -> 0.0071 | F71: 0
B73: Submódulo 4.2 - Intrajornada
C74: A | D74: Intervalo para repouso ou alimentação | E74: ='Encargos Sociais'!E33 -> 0 | F74: =ROUND(E74*$F$17,2) -> 0
D76: QUADRO-RESUMO DO MÓDULO 4 | F76: Valor
D77: 4.1 - Ausências Legais | E77: =SUM(E66:E71) -> 0.1109 | F77: =SUM(F66:F71) -> 0
D78: 4.2 - Intrajornada | E78: =E74 -> 0 | F78: =ROUND(E78*$F$17,2) -> 0
D80: TOTAL DE CUSTO DO PROFFIONAL AUSENTE E INTERVALO INTRAJORNADA | F80: =TRUNC(SUM(F77:F78),2) -> 0
B82: MÓDULO 5 - INSUMOS DIVERSOS | F82: Valor
C83: A | D83: Uniformes - aquisição | F83: =TRUNC(HLOOKUP($B$5,Uniformes!$J$3:$DY$5,3,0)/12,2) -> 0
C84: B | D84: Materiais de consumo relacionados ao posto - aquisição | F84: 0
C85: C | D85: Ferramentas relacionadas ao posto - remuneração da sua depreciação / manutenção | F85: 0
C86: D | D86: Equipamentos relacionados ao posto - remuneração da sua depreciação / manutenção | F86: 0
C87: E | D87: Equipamentos de Proteção Individual - EPI - aquisição | F87: =TRUNC(HLOOKUP($B$5,EPI!$J$3:$DX$5,3,0)/12,2) -> 0
D89: TOTAL DE INSUMOS DIVERSOS | F89: =SUM(F83:F88) -> 0 | H89: * Nota - Valores mensais por empregado
B91: MÓDULO 6 - CUSTOS INDIRETOS, TRIBUTOS E LUCRO - BDI | E91: Percentuais | F91: Valor
C92: A | D92: Custos Indiretos | E92: ='BDI - Geral'!E7 -> 0.027
C93: A.1 | D93: Administração Central | E93: ='BDI - Geral'!E8 -> 0.0216
C94: A.2 | D94: Seguros, Garantias e Riscos | E94: ='BDI - Geral'!E9 -> 0.0054
C95: B | D95: Lucro | E95: ='BDI - Geral'!E11 -> 0.0334
C96: C | D96: Tributos | E96: =SUM(E97:E98) -> 0.124
C97: C.1 | D97: Tributos Federais (COFINS, PIS e CPRB) | E97: ='BDI - Geral'!E19 -> 0.074
C98: C.2 | D98: Tributos Distritais (ISS) | E98: ='BDI - Geral'!E24 -> 0.05
C99: D | D99: Despesas Financeiras | E99: ='BDI - Geral'!E14 -> 0.0061
D101: TOTAL DE BDI | E101: ='BDI - Geral'!E27 -> 0.2189 | F101: =TRUNC(E101*E109,2) -> 0
D103: QUADRO-RESUMO DO CUSTO MENSAL POR EMPREGADO - SEM O 13º | E103: Valor
D104: Módulo 1 - Composição da Remuneração | E104: =F17 -> 0
D105: Módulo 2 - Encargos e Benefícios Anuais, Mensais e Diários | E105: =F52 -> 0
D106: Módulo 3 - Provisão para Rescisão | E106: =F62 -> 0
D107: Módulo 4 - Custo de Reposição do Profissional Ausente | E107: =F80 -> 0
D108: Módulo 5 - Insumos Diversos | E108: =F89 -> 0
D109: SUBTOTAL (A+B+C+D+E) | E109: =SUM(E104:E108) -> 0
D110: Módulo 6 - Custos Indiretos, Tributos e Lucro | E110: =F101 -> 0
D112: TOTAL DO POSTO | E112: =SUM(E109:E110) -> 0
B114: MÓDULO 7 - DESTAQUE DO MÓDULO 2 - 13º SALÁRIO | E114: Percentuais | F114: Valor
C115: A | D115: 13º Salário | E115: ='[1]Encargos Sociais'!E32*12/11 -> 0.09916363636 | F115: =ROUND(E115*F$17,2) -> 0 | H115: * Nota 1 - Incluindo-se a reincidência das férias do substituto sobre o titular
C116: B | D116: Encargos Sociais sobre o 13º Salário (submódulo 2.2 e módulo 3) | E116: =SUM($E$25:$E$33)+SUM($E$55:$E$60) -> 0.3976 | F116: =ROUND(E116*$F$115,2) -> 0 | H116: * Nota 2 - 13º e reflexos calculados à parte a fim de aprovisionamento
C117: C | D117: BDI sobre o 13º Salário | E117: =E101 -> 0.2189 | F117: =ROUND(E117*($F$115+$F$116),2) -> 0
D119: TOTAL DO DESTAQUE DO 13º SALÁRIO | F119: =SUM(F115:F117) -> 0
D121: QUADRO-RESUMO DO CUSTO MENSAL POR EMPREGADO | E121: Valor
D122: Custo total - sem o 13º Salário | E122: =ROUND(E112,2) -> 0
D123: Destaque do 13º Salário (valor mensal) | E123: =ROUND(F119,2) -> 0
D125: TOTAL DO POSTO | E125: =E122+E123 -> 0

Sheet 17 (hidden)
B2: PLANILHA DE ESTIMATIVA DE CUSTOS
B3: Padrão IN 05/2017 e IN 07/2018 - MPDG - Medição por posto presente
B5: 17 | D5: =HLOOKUP($B$5,'Dados Gerais'!$D$6:$BI$22,6) -> 0 | E5: QUANTIDADE | F5: =HLOOKUP($B$5,'Dados Gerais'!$D$6:$BI$22,10) -> 0
B6: CCT | D6: =HLOOKUP($B$5,'Dados Gerais'!$D$6:$BI$22,16) -> 0 | E6: DATA-BASE | F6: =HLOOKUP($B$5,'Dados Gerais'!$D$6:$BI$22,17) -> 00:00:00
B8: MÓDULO 1 - COMPOSIÇÃO DA REMUNERAÇÃO | F8: Valor
C9: A | D9: Salário-Base | F9: =HLOOKUP($B$5,'Dados Gerais'!$D$6:$BI$22,8) -> 0
C10: B | D10: Adicional de Periculosidade | F10: =HLOOKUP($B$5,'Dados Gerais'!$D$6:$BI$41,26) -> 0
C11: C | D11: Adicional de Insalubridade | F11: =HLOOKUP($B$5,'Dados Gerais'!$D$6:$BI$41,32) -> 0
C12: D | D12: Adicional Noturno | F12: =HLOOKUP($B$5,'Dados Gerais'!$D$6:$BI$54,49) -> 0 | H12: * Nota 1 - O Módulo 1 refere-se ao valor mensal devido ao empregado pela prestação do serviço no período de 12 meses.
C13: E | D13: Adicional de Hora Extra | F13: =HLOOKUP($B$5,'Dados Gerais'!$D$6:$BI$71,66) -> 0 | H13: * Nota 2 - O adicional de hora extra no feriado trabalhado foi suprimido pela Lei 13.467/17
C14: F | D14: Gratificação | F14: =HLOOKUP($B$5,'Dados Gerais'!$D$6:$BI$71,34) -> 0 | H14: * Nota 3 - ART. 7º, § 2º, DA LEI Nº 605/49.Sendo mensalista o obreiro, o adicional noturno pago de forma fixa já é considerado integrado para os efeitos do pagamento do repouso semanal remunerado, nos termos do art. 7º, § 2º, da Lei nº 605/49.
C15: G | D15: Sobraviso | F15: =HLOOKUP($B$5,'Dados Gerais'!$D$6:$BI$71,36) -> 0 | H15: * Nota 3 - ART. 7º, § 2º, DA LEI Nº 605/49.Sendo mensalista o obreiro, o adicional noturno pago de forma fixa já é considerado integrado para os efeitos do pagamento do repouso semanal remunerado, nos termos do art. 7º, § 2º, da Lei nº 605/49.
D17: TOTAL DA REMUNERAÇÃO | F17: =TRUNC(SUM(F9:F15),2) -> 0
B19: MÓDULO 2 - ENCARGOS E BENEFÍCIOS ANUAIS, MENSAIS E DIÁRIOS | E19: Percentuais | F19: Valor
B20: Submódulo 2.1 - 13º Salário, Férias e Adicional de Férias
C21: A | D21: 13º Salário - Calculado no Módulo 7 - Destacado | E21: 0 | F21: =TRUNC(E21*F$17,2) -> 0
C22: B | D22: Adicional de Férias | E22: ='Encargos Sociais'!E31 -> 0.0303 | F22: =TRUNC(E22*(F$17),2) -> 0 | H22: * Nota 1 - O adicional de férias foi calculado dividindo-se por 11, para comportar os 11 meses presentes e ainda o ausente do posto
B24: Submódulo 2.2 - Encargos Previdenciários (GPS), Fundo de Garantia por Tempo de Serviço (FGTS) e Outras Contribuições
C25: A | D25: ='Encargos Sociais'!D14 -> INSS (art. 22, inciso I, Lei nº 8.212/91) | E25: ='Encargos Sociais'!E14 -> 0.2 | F25: =TRUNC(E25*($F$17+$F$80+$F$22-F69),2) -> 0 | H25: * Nota 1 - Os percentuais dos encargos previdenciários, do FGTS e demais contribuições são estabelecidos por legislação vigente.
C26: B | D26: ='Encargos Sociais'!D15 -> Salário Educação (art. 3º, inciso I, Decreto nº 87.043/82) | E26: ='Encargos Sociais'!E15 -> 0.025 | F26: =TRUNC(E26*($F$17+$F$80+$F$22),2) -> 0 | H26: * Nota 2 - O SAT, a depender do grau de risco do serviço, irá variar entre 1%, para risco leve, de 2%, para risco médio, e de 3% para risco grave.
C27: C | D27: ='Encargos Sociais'!D16 -> SAT/RAT (art. 22, II, Lei 8.212/91 e Anexo V, Decreto 6.042/07) - Enquadramento 8211-3/00 | E27: ='Encargos Sociais'!E16 -> 0.01 | F27: 0 | H27: * Nota 3 - Base de cálculo - remuneração + ausências + terço constitucional (férias) - exceto INSS sobre ausência por acidente de trabalho
C28: D | D28: ='Encargos Sociais'!D17 -> SESC ou SESI (art. 30, Lei nº 8.036/90 e art. 1º, Lei 8.154/90) | E28: ='Encargos Sociais'!E17 -> 0.015 | F28: 0
C29: E | D29: ='Encargos Sociais'!D18 -> SENAI ou SENAC (Decreto nº 2.318/86) | E29: ='Encargos Sociais'!E18 -> 0.01 | F29: 0
C30: F | D30: ='Encargos Sociais'!D19 -> SEBRAE (§ 3º, art. 8º, Lei 8.029/90, alterada pela Lei nº 8.154/90) | E30: ='Encargos Sociais'!E19 -> 0.006 | F30: 0
C31: G | D31: ='Encargos Sociais'!D20 -> INCRA (art. 1º, I, Decreto Lei 1.146/70 e Lei 7.787, de 30/06/89) | E31: ='Encargos Sociais'!E20 -> 0.002 | F31: 0
C32: H | D32: ='Encargos Sociais'!D21 -> FGTS (Lei Complementar nº 110/01 e art. 30, Lei nº 8.036/90) | E32: ='Encargos Sociais'!E21 -> 0.08 | F32: 0
C33: I | D33: ='Encargos Sociais'!D22 -> SECONCI (Convenções Coletivas de Trabalho da construção) | E33: ='Encargos Sociais'!E22 -> 0 | F33: 0
B35: Submódulo 2.3 - Benefícios Mensais e Diários
C36: A | D36: Auxílio Transporte | F36: =HLOOKUP($B$5,'Dados Gerais'!$D$6:$BI$101,85) -> 0 | H36: * Nota 1 - O valor informado deverá ser o custo real do benefício (descontado o valor eventualmente pago pelo empregado).
C37: B | D37: Auxílio Alimentação | F37: =HLOOKUP($B$5,'Dados Gerais'!$D$6:$BI$101,92) -> 0 | H37: * Nota 2 - Observar a previsão dos benefícios contidos em Acordos, Convenções e Dissídios Coletivos de Trabalho e o disposto no art. 6º da IN 5/2017
C38: C | D38: Assistência Médica e Familiar | F38: =HLOOKUP($B$5,'Dados Gerais'!$D$6:$BI$109,100) -> 0
C39: D | D39: Seguro de vida / auxílio funeral | F39: =HLOOKUP($B$5,'Dados Gerais'!$D$6:$BI$145,109) -> 0
C40: E | D40: Assistência odontológica | F40: =HLOOKUP($B$5,'Dados Gerais'!$D$6:$BI$145,115) -> 0
C41: F | D41: Auxílio creche | F41: =HLOOKUP($B$5,'Dados Gerais'!$D$6:$BI$145,121) -> 0
C42: G | D42: Auxílio vestuário especial | F42: =HLOOKUP($B$5,'Dados Gerais'!$D$6:$BI$145,127) -> 0
C43: H | D43: Benefício social familiar | F43: =HLOOKUP($B$5,'Dados Gerais'!$D$6:$BI$145,133) -> 0
C44: I | D44: Outros (especificar) | F44: =HLOOKUP($B$5,'Dados Gerais'!$D$6:$BI$145,115) -> 0
C45: J | D45: Outros (especificar) | F45: =HLOOKUP($B$5,'Dados Gerais'!$D$6:$BI$145,115) -> 0
D47: QUADRO-RESUMO DO MÓDULO 2
D48: 2.1 - Adicional de Férias | E48: =SUM(E21:E22) -> 0.0303 | F48: =F21+F22 -> 0
D49: 2.2 - Encargos Previdenciários (GPS), Fundo de Garantia por Tempo de Serviço (FGTS) e Contribuições | E49: =SUM(E25:E33) -> 0.348 | F49: =SUM(F25:F33) -> 0
D50: 2.3 - Benefícios Mensais e Diários | F50: =SUM(F36:F45) -> 0
D52: TOTAL DOS ENCARGOS E BENEFÍCIOS | F52: =TRUNC(SUM(F48:F50),2) -> 0
B54: MÓDULO 3 - PREVISÃO PARA RESCISÃO | E54: Percentuais | F54: Valor
C55: A | D55: ='Encargos Sociais'!D36 -> Aviso Prévio Indenizado (Art. 7º, inciso XXI, da CF/1988 e arts. 477, 487, §1º, e 491 da CLT) | E55: ='Encargos Sociais'!E36 -> 0.0042 | F55: =TRUNC(E55*($F$17+$F$48+$F$80),2) -> 0 | H55: * Nota 1 - Base de cálculo - remuneração + ausências + 1/3 férias
C56: B | D56: ='Encargos Sociais'!D37 -> Incidência do FGTS sobre o Aviso Prévio Indenizado (Súmula 305 TST) | E56: ='Encargos Sociais'!E37 -> 0.0003 | F56: 0
C57: C | D57: ='Encargos Sociais'!D38 -> Multa do FGTS sobre o Aviso Prévio Indenizado (Art. 18, §1º, da Lei 8.036/1990) | E57: ='Encargos Sociais'!E38 -> 0 | F57: 0
C58: D | D58: ='Encargos Sociais'!D39 -> Aviso Prévio Trabalhado (Art. 488, parágrafo único, CLT) | E58: ='Encargos Sociais'!E39 -> 0.0097 | F58: 0
C59: E | D59: ='Encargos Sociais'!D40 -> Incidência de GPS, FGTS e outras contribuições sobre o Aviso Prévio Trabalhado | E59: ='Encargos Sociais'!E40 -> 0.0034 | F59: 0
C60: F | D60: ='Encargos Sociais'!D41 -> Multa do FGTS | E60: ='Encargos Sociais'!E41 -> 0.032 | F60: 0
D62: TOTAL DE PREVISÃO PARA RESCISÃO | F62: =TRUNC(SUM(F55:F60),2) -> 0
B64: MÓDULO 4 - CUSTO DO PROFISSIONAL AUSENTE | E64: Percentuais | F64: Valor
B65: Submódulo 4.1 - Ausências Legais
C66: A | D66: ='Encargos Sociais'!D25 -> Férias (Arts. 129 e 130, inc. I, da CLT) | E66: ='Encargos Sociais'!E25 -> 0.0909 | F66: =TRUNC(E66*$F$17,2) -> 0 | H66: * Nota 1 - O Módulo 4 refere-se às previsões para custear ausências do próprio profissional (titular do cargo)
C67: B | D67: ='Encargos Sociais'!D26 -> Ausências Legais (Arts. 131 e 473 da CLT) | E67: ='Encargos Sociais'!E26 -> 0.0079 | F67: 0 | H67: * Nota 2 - As férias foram calculadas dividindo-se por 11, para comportar os 11 meses presentes e ainda o ausente do posto
C68: C | D68: ='Encargos Sociais'!D27 -> Licença-Paternidade (Art. 7º, XIX, e art. 10, §1º, do ADCT, CF/1988 e Art. 1º, II, da Lei 11.770/2008) | E68: ='Encargos Sociais'!E27 -> 0.0008 | F68: 0
C69: D | D69: ='Encargos Sociais'!D28 -> Ausência por Acidente de Trabalho (Art. 131, III, da CLT) | E69: ='Encargos Sociais'!E28 -> 0.0009 | F69: 0
C70: E | D70: ='Encargos Sociais'!D29 -> Afastamento Maternidade (Art. 71 da Lei nº 8.213/1991) | E70: ='Encargos Sociais'!E29 -> 0.0033 | F70: 0
C71: F | D71: ='Encargos Sociais'!D30 -> Auxílio Enfermidade - Doença (Art. 59 da Lei nº 8.213/1991) | E71: ='Encargos Sociais'!E30 -> 0.0071 | F71: 0
B73: Submódulo 4.2 - Intrajornada
C74: A | D74: Intervalo para repouso ou alimentação | E74: ='Encargos Sociais'!E33 -> 0 | F74: =ROUND(E74*$F$17,2) -> 0
D76: QUADRO-RESUMO DO MÓDULO 4 | F76: Valor
D77: 4.1 - Ausências Legais | E77: =SUM(E66:E71) -> 0.1109 | F77: =SUM(F66:F71) -> 0
D78: 4.2 - Intrajornada | E78: =E74 -> 0 | F78: =ROUND(E78*$F$17,2) -> 0
D80: TOTAL DE CUSTO DO PROFFIONAL AUSENTE E INTERVALO INTRAJORNADA | F80: =TRUNC(SUM(F77:F78),2) -> 0
B82: MÓDULO 5 - INSUMOS DIVERSOS | F82: Valor
C83: A | D83: Uniformes - aquisição | F83: =TRUNC(HLOOKUP($B$5,Uniformes!$J$3:$DY$5,3,0)/12,2) -> 0
C84: B | D84: Materiais de consumo relacionados ao posto - aquisição | F84: 0
C85: C | D85: Ferramentas relacionadas ao posto - remuneração da sua depreciação / manutenção | F85: 0
C86: D | D86: Equipamentos relacionados ao posto - remuneração da sua depreciação / manutenção | F86: 0
C87: E | D87: Equipamentos de Proteção Individual - EPI - aquisição | F87: =TRUNC(HLOOKUP($B$5,EPI!$J$3:$DX$5,3,0)/12,2) -> 0
D89: TOTAL DE INSUMOS DIVERSOS | F89: =SUM(F83:F88) -> 0 | H89: * Nota - Valores mensais por empregado
B91: MÓDULO 6 - CUSTOS INDIRETOS, TRIBUTOS E LUCRO - BDI | E91: Percentuais | F91: Valor
C92: A | D92: Custos Indiretos | E92: ='BDI - Geral'!E7 -> 0.027
C93: A.1 | D93: Administração Central | E93: ='BDI - Geral'!E8 -> 0.0216
C94: A.2 | D94: Seguros, Garantias e Riscos | E94: ='BDI - Geral'!E9 -> 0.0054
C95: B | D95: Lucro | E95: ='BDI - Geral'!E11 -> 0.0334
C96: C | D96: Tributos | E96: =SUM(E97:E98) -> 0.124
C97: C.1 | D97: Tributos Federais (COFINS, PIS e CPRB) | E97: ='BDI - Geral'!E19 -> 0.074
C98: C.2 | D98: Tributos Distritais (ISS) | E98: ='BDI - Geral'!E24 -> 0.05
C99: D | D99: Despesas Financeiras | E99: ='BDI - Geral'!E14 -> 0.0061
D101: TOTAL DE BDI | E101: ='BDI - Geral'!E27 -> 0.2189 | F101: =TRUNC(E101*E109,2) -> 0
D103: QUADRO-RESUMO DO CUSTO MENSAL POR EMPREGADO - SEM O 13º | E103: Valor
D104: Módulo 1 - Composição da Remuneração | E104: =F17 -> 0
D105: Módulo 2 - Encargos e Benefícios Anuais, Mensais e Diários | E105: =F52 -> 0
D106: Módulo 3 - Provisão para Rescisão | E106: =F62 -> 0
D107: Módulo 4 - Custo de Reposição do Profissional Ausente | E107: =F80 -> 0
D108: Módulo 5 - Insumos Diversos | E108: =F89 -> 0
D109: SUBTOTAL (A+B+C+D+E) | E109: =SUM(E104:E108) -> 0
D110: Módulo 6 - Custos Indiretos, Tributos e Lucro | E110: =F101 -> 0
D112: TOTAL DO POSTO | E112: =SUM(E109:E110) -> 0
B114: MÓDULO 7 - DESTAQUE DO MÓDULO 2 - 13º SALÁRIO | E114: Percentuais | F114: Valor
C115: A | D115: 13º Salário | E115: ='[1]Encargos Sociais'!E32*12/11 -> 0.09916363636 | F115: =ROUND(E115*F$17,2) -> 0 | H115: * Nota 1 - Incluindo-se a reincidência das férias do substituto sobre o titular
C116: B | D116: Encargos Sociais sobre o 13º Salário (submódulo 2.2 e módulo 3) | E116: =SUM($E$25:$E$33)+SUM($E$55:$E$60) -> 0.3976 | F116: =ROUND(E116*$F$115,2) -> 0 | H116: * Nota 2 - 13º e reflexos calculados à parte a fim de aprovisionamento
C117: C | D117: BDI sobre o 13º Salário | E117: =E101 -> 0.2189 | F117: =ROUND(E117*($F$115+$F$116),2) -> 0
D119: TOTAL DO DESTAQUE DO 13º SALÁRIO | F119: =SUM(F115:F117) -> 0
D121: QUADRO-RESUMO DO CUSTO MENSAL POR EMPREGADO | E121: Valor
D122: Custo total - sem o 13º Salário | E122: =ROUND(E112,2) -> 0
D123: Destaque do 13º Salário (valor mensal) | E123: =ROUND(F119,2) -> 0
D125: TOTAL DO POSTO | E125: =E122+E123 -> 0

Sheet 18 (hidden)
B2: PLANILHA DE ESTIMATIVA DE CUSTOS
B3: Padrão IN 05/2017 e IN 07/2018 - MPDG - Medição por posto presente
B5: 18 | D5: =HLOOKUP($B$5,'Dados Gerais'!$D$6:$BI$22,6) -> 0 | E5: QUANTIDADE | F5: =HLOOKUP($B$5,'Dados Gerais'!$D$6:$BI$22,10) -> 0
B6: CCT | D6: =HLOOKUP($B$5,'Dados Gerais'!$D$6:$BI$22,16) -> 0 | E6: DATA-BASE | F6: =HLOOKUP($B$5,'Dados Gerais'!$D$6:$BI$22,17) -> 00:00:00
B8: MÓDULO 1 - COMPOSIÇÃO DA REMUNERAÇÃO | F8: Valor
C9: A | D9: Salário-Base | F9: =HLOOKUP($B$5,'Dados Gerais'!$D$6:$BI$22,8) -> 0
C10: B | D10: Adicional de Periculosidade | F10: =HLOOKUP($B$5,'Dados Gerais'!$D$6:$BI$41,26) -> 0
C11: C | D11: Adicional de Insalubridade | F11: =HLOOKUP($B$5,'Dados Gerais'!$D$6:$BI$41,32) -> 0
C12: D | D12: Adicional Noturno | F12: =HLOOKUP($B$5,'Dados Gerais'!$D$6:$BI$54,49) -> 0 | H12: * Nota 1 - O Módulo 1 refere-se ao valor mensal devido ao empregado pela prestação do serviço no período de 12 meses.
C13: E | D13: Adicional de Hora Extra | F13: =HLOOKUP($B$5,'Dados Gerais'!$D$6:$BI$71,66) -> 0 | H13: * Nota 2 - O adicional de hora extra no feriado trabalhado foi suprimido pela Lei 13.467/17
C14: F | D14: Gratificação | F14: =HLOOKUP($B$5,'Dados Gerais'!$D$6:$BI$71,34) -> 0 | H14: * Nota 3 - ART. 7º, § 2º, DA LEI Nº 605/49.Sendo mensalista o obreiro, o adicional noturno pago de forma fixa já é considerado integrado para os efeitos do pagamento do repouso semanal remunerado, nos termos do art. 7º, § 2º, da Lei nº 605/49.
C15: G | D15: Sobraviso | F15: =HLOOKUP($B$5,'Dados Gerais'!$D$6:$BI$71,36) -> 0 | H15: * Nota 3 - ART. 7º, § 2º, DA LEI Nº 605/49.Sendo mensalista o obreiro, o adicional noturno pago de forma fixa já é considerado integrado para os efeitos do pagamento do repouso semanal remunerado, nos termos do art. 7º, § 2º, da Lei nº 605/49.
D17: TOTAL DA REMUNERAÇÃO | F17: =TRUNC(SUM(F9:F15),2) -> 0
B19: MÓDULO 2 - ENCARGOS E BENEFÍCIOS ANUAIS, MENSAIS E DIÁRIOS | E19: Percentuais | F19: Valor
B20: Submódulo 2.1 - 13º Salário, Férias e Adicional de Férias
C21: A | D21: 13º Salário - Calculado no Módulo 7 - Destacado | E21: 0 | F21: =TRUNC(E21*F$17,2) -> 0
C22: B | D22: Adicional de Férias | E22: ='Encargos Sociais'!E31 -> 0.0303 | F22: =TRUNC(E22*(F$17),2) -> 0 | H22: * Nota 1 - O adicional de férias foi calculado dividindo-se por 11, para comportar os 11 meses presentes e ainda o ausente do posto
B24: Submódulo 2.2 - Encargos Previdenciários (GPS), Fundo de Garantia por Tempo de Serviço (FGTS) e Outras Contribuições
C25: A | D25: ='Encargos Sociais'!D14 -> INSS (art. 22, inciso I, Lei nº 8.212/91) | E25: ='Encargos Sociais'!E14 -> 0.2 | F25: =TRUNC(E25*($F$17+$F$80+$F$22-F69),2) -> 0 | H25: * Nota 1 - Os percentuais dos encargos previdenciários, do FGTS e demais contribuições são estabelecidos por legislação vigente.
C26: B | D26: ='Encargos Sociais'!D15 -> Salário Educação (art. 3º, inciso I, Decreto nº 87.043/82) | E26: ='Encargos Sociais'!E15 -> 0.025 | F26: =TRUNC(E26*($F$17+$F$80+$F$22),2) -> 0 | H26: * Nota 2 - O SAT, a depender do grau de risco do serviço, irá variar entre 1%, para risco leve, de 2%, para risco médio, e de 3% para risco grave.
C27: C | D27: ='Encargos Sociais'!D16 -> SAT/RAT (art. 22, II, Lei 8.212/91 e Anexo V, Decreto 6.042/07) - Enquadramento 8211-3/00 | E27: ='Encargos Sociais'!E16 -> 0.01 | F27: 0 | H27: * Nota 3 - Base de cálculo - remuneração + ausências + terço constitucional (férias) - exceto INSS sobre ausência por acidente de trabalho
C28: D | D28: ='Encargos Sociais'!D17 -> SESC ou SESI (art. 30, Lei nº 8.036/90 e art. 1º, Lei 8.154/90) | E28: ='Encargos Sociais'!E17 -> 0.015 | F28: 0
C29: E | D29: ='Encargos Sociais'!D18 -> SENAI ou SENAC (Decreto nº 2.318/86) | E29: ='Encargos Sociais'!E18 -> 0.01 | F29: 0
C30: F | D30: ='Encargos Sociais'!D19 -> SEBRAE (§ 3º, art. 8º, Lei 8.029/90, alterada pela Lei nº 8.154/90) | E30: ='Encargos Sociais'!E19 -> 0.006 | F30: 0
C31: G | D31: ='Encargos Sociais'!D20 -> INCRA (art. 1º, I, Decreto Lei 1.146/70 e Lei 7.787, de 30/06/89) | E31: ='Encargos Sociais'!E20 -> 0.002 | F31: 0
C32: H | D32: ='Encargos Sociais'!D21 -> FGTS (Lei Complementar nº 110/01 e art. 30, Lei nº 8.036/90) | E32: ='Encargos Sociais'!E21 -> 0.08 | F32: 0
C33: I | D33: ='Encargos Sociais'!D22 -> SECONCI (Convenções Coletivas de Trabalho da construção) | E33: ='Encargos Sociais'!E22 -> 0 | F33: 0
B35: Submódulo 2.3 - Benefícios Mensais e Diários
C36: A | D36: Auxílio Transporte | F36: =HLOOKUP($B$5,'Dados Gerais'!$D$6:$BI$101,85) -> 0 | H36: * Nota 1 - O valor informado deverá ser o custo real do benefício (descontado o valor eventualmente pago pelo empregado).
C37: B | D37: Auxílio Alimentação | F37: =HLOOKUP($B$5,'Dados Gerais'!$D$6:$BI$101,92) -> 0 | H37: * Nota 2 - Observar a previsão dos benefícios contidos em Acordos, Convenções e Dissídios Coletivos de Trabalho e o disposto no art. 6º da IN 5/2017
C38: C | D38: Assistência Médica e Familiar | F38: =HLOOKUP($B$5,'Dados Gerais'!$D$6:$BI$109,100) -> 0
C39: D | D39: Seguro de vida / auxílio funeral | F39: =HLOOKUP($B$5,'Dados Gerais'!$D$6:$BI$145,109) -> 0
C40: E | D40: Assistência odontológica | F40: =HLOOKUP($B$5,'Dados Gerais'!$D$6:$BI$145,115) -> 0
C41: F | D41: Auxílio creche | F41: =HLOOKUP($B$5,'Dados Gerais'!$D$6:$BI$145,121) -> 0
C42: G | D42: Auxílio vestuário especial | F42: =HLOOKUP($B$5,'Dados Gerais'!$D$6:$BI$145,127) -> 0
C43: H | D43: Benefício social familiar | F43: =HLOOKUP($B$5,'Dados Gerais'!$D$6:$BI$145,133) -> 0
C44: I | D44: Outros (especificar) | F44: =HLOOKUP($B$5,'Dados Gerais'!$D$6:$BI$145,115) -> 0
C45: J | D45: Outros (especificar) | F45: =HLOOKUP($B$5,'Dados Gerais'!$D$6:$BI$145,115) -> 0
D47: QUADRO-RESUMO DO MÓDULO 2
D48: 2.1 - Adicional de Férias | E48: =SUM(E21:E22) -> 0.0303 | F48: =F21+F22 -> 0
D49: 2.2 - Encargos Previdenciários (GPS), Fundo de Garantia por Tempo de Serviço (FGTS) e Contribuições | E49: =SUM(E25:E33) -> 0.348 | F49: =SUM(F25:F33) -> 0
D50: 2.3 - Benefícios Mensais e Diários | F50: =SUM(F36:F45) -> 0
D52: TOTAL DOS ENCARGOS E BENEFÍCIOS | F52: =TRUNC(SUM(F48:F50),2) -> 0
B54: MÓDULO 3 - PREVISÃO PARA RESCISÃO | E54: Percentuais | F54: Valor
C55: A | D55: ='Encargos Sociais'!D36 -> Aviso Prévio Indenizado (Art. 7º, inciso XXI, da CF/1988 e arts. 477, 487, §1º, e 491 da CLT) | E55: ='Encargos Sociais'!E36 -> 0.0042 | F55: =TRUNC(E55*($F$17+$F$48+$F$80),2) -> 0 | H55: * Nota 1 - Base de cálculo - remuneração + ausências + 1/3 férias
C56: B | D56: ='Encargos Sociais'!D37 -> Incidência do FGTS sobre o Aviso Prévio Indenizado (Súmula 305 TST) | E56: ='Encargos Sociais'!E37 -> 0.0003 | F56: 0
C57: C | D57: ='Encargos Sociais'!D38 -> Multa do FGTS sobre o Aviso Prévio Indenizado (Art. 18, §1º, da Lei 8.036/1990) | E57: ='Encargos Sociais'!E38 -> 0 | F57: 0
C58: D | D58: ='Encargos Sociais'!D39 -> Aviso Prévio Trabalhado (Art. 488, parágrafo único, CLT) | E58: ='Encargos Sociais'!E39 -> 0.0097 | F58: 0
C59: E | D59: ='Encargos Sociais'!D40 -> Incidência de GPS, FGTS e outras contribuições sobre o Aviso Prévio Trabalhado | E59: ='Encargos Sociais'!E40 -> 0.0034 | F59: 0
C60: F | D60: ='Encargos Sociais'!D41 -> Multa do FGTS | E60: ='Encargos Sociais'!E41 -> 0.032 | F60: 0
D62: TOTAL DE PREVISÃO PARA RESCISÃO | F62: =TRUNC(SUM(F55:F60),2) -> 0
B64: MÓDULO 4 - CUSTO DO PROFISSIONAL AUSENTE | E64: Percentuais | F64: Valor
B65: Submódulo 4.1 - Ausências Legais
C66: A | D66: ='Encargos Sociais'!D25 -> Férias (Arts. 129 e 130, inc. I, da CLT) | E66: ='Encargos Sociais'!E25 -> 0.0909 | F66: =TRUNC(E66*$F$17,2) -> 0 | H66: * Nota 1 - O Módulo 4 refere-se às previsões para custear ausências do próprio profissional (titular do cargo)
C67: B | D67: ='Encargos Sociais'!D26 -> Ausências Legais (Arts. 131 e 473 da CLT) | E67: ='Encargos Sociais'!E26 -> 0.0079 | F67: 0 | H67: * Nota 2 - As férias foram calculadas dividindo-se por 11, para comportar os 11 meses presentes e ainda o ausente do posto
C68: C | D68: ='Encargos Sociais'!D27 -> Licença-Paternidade (Art. 7º, XIX, e art. 10, §1º, do ADCT, CF/1988 e Art. 1º, II, da Lei 11.770/2008) | E68: ='Encargos Sociais'!E27 -> 0.0008 | F68: 0
C69: D | D69: ='Encargos Sociais'!D28 -> Ausência por Acidente de Trabalho (Art. 131, III, da CLT) | E69: ='Encargos Sociais'!E28 -> 0.0009 | F69: 0
C70: E | D70: ='Encargos Sociais'!D29 -> Afastamento Maternidade (Art. 71 da Lei nº 8.213/1991) | E70: ='Encargos Sociais'!E29 -> 0.0033 | F70: 0
C71: F | D71: ='Encargos Sociais'!D30 -> Auxílio Enfermidade - Doença (Art. 59 da Lei nº 8.213/1991) | E71: ='Encargos Sociais'!E30 -> 0.0071 | F71: 0
B73: Submódulo 4.2 - Intrajornada
C74: A | D74: Intervalo para repouso ou alimentação | E74: ='Encargos Sociais'!E33 -> 0 | F74: =ROUND(E74*$F$17,2) -> 0
D76: QUADRO-RESUMO DO MÓDULO 4 | F76: Valor
D77: 4.1 - Ausências Legais | E77: =SUM(E66:E71) -> 0.1109 | F77: =SUM(F66:F71) -> 0
D78: 4.2 - Intrajornada | E78: =E74 -> 0 | F78: =ROUND(E78*$F$17,2) -> 0
D80: TOTAL DE CUSTO DO PROFFIONAL AUSENTE E INTERVALO INTRAJORNADA | F80: =TRUNC(SUM(F77:F78),2) -> 0
B82: MÓDULO 5 - INSUMOS DIVERSOS | F82: Valor
C83: A | D83: Uniformes - aquisição | F83: =TRUNC(HLOOKUP($B$5,Uniformes!$J$3:$DY$5,3,0)/12,2) -> 0
C84: B | D84: Materiais de consumo relacionados ao posto - aquisição | F84: 0
C85: C | D85: Ferramentas relacionadas ao posto - remuneração da sua depreciação / manutenção | F85: 0
C86: D | D86: Equipamentos relacionados ao posto - remuneração da sua depreciação / manutenção | F86: 0
C87: E | D87: Equipamentos de Proteção Individual - EPI - aquisição | F87: =TRUNC(HLOOKUP($B$5,EPI!$J$3:$DX$5,3,0)/12,2) -> 0
D89: TOTAL DE INSUMOS DIVERSOS | F89: =SUM(F83:F88) -> 0 | H89: * Nota - Valores mensais por empregado
B91: MÓDULO 6 - CUSTOS INDIRETOS, TRIBUTOS E LUCRO - BDI | E91: Percentuais | F91: Valor
C92: A | D92: Custos Indiretos | E92: ='BDI - Geral'!E7 -> 0.027
C93: A.1 | D93: Administração Central | E93: ='BDI - Geral'!E8 -> 0.0216
C94: A.2 | D94: Seguros, Garantias e Riscos | E94: ='BDI - Geral'!E9 -> 0.0054
C95: B | D95: Lucro | E95: ='BDI - Geral'!E11 -> 0.0334
C96: C | D96: Tributos | E96: =SUM(E97:E98) -> 0.124
C97: C.1 | D97: Tributos Federais (COFINS, PIS e CPRB) | E97: ='BDI - Geral'!E19 -> 0.074
C98: C.2 | D98: Tributos Distritais (ISS) | E98: ='BDI - Geral'!E24 -> 0.05
C99: D | D99: Despesas Financeiras | E99: ='BDI - Geral'!E14 -> 0.0061
D101: TOTAL DE BDI | E101: ='BDI - Geral'!E27 -> 0.2189 | F101: =TRUNC(E101*E109,2) -> 0
D103: QUADRO-RESUMO DO CUSTO MENSAL POR EMPREGADO - SEM O 13º | E103: Valor
D104: Módulo 1 - Composição da Remuneração | E104: =F17 -> 0
D105: Módulo 2 - Encargos e Benefícios Anuais, Mensais e Diários | E105: =F52 -> 0
D106: Módulo 3 - Provisão para Rescisão | E106: =F62 -> 0
D107: Módulo 4 - Custo de Reposição do Profissional Ausente | E107: =F80 -> 0
D108: Módulo 5 - Insumos Diversos | E108: =F89 -> 0
D109: SUBTOTAL (A+B+C+D+E) | E109: =SUM(E104:E108) -> 0
D110: Módulo 6 - Custos Indiretos, Tributos e Lucro | E110: =F101 -> 0
D112: TOTAL DO POSTO | E112: =SUM(E109:E110) -> 0
B114: MÓDULO 7 - DESTAQUE DO MÓDULO 2 - 13º SALÁRIO | E114: Percentuais | F114: Valor
C115: A | D115: 13º Salário | E115: ='[1]Encargos Sociais'!E32*12/11 -> 0.09916363636 | F115: =ROUND(E115*F$17,2) -> 0 | H115: * Nota 1 - Incluindo-se a reincidência das férias do substituto sobre o titular
C116: B | D116: Encargos Sociais sobre o 13º Salário (submódulo 2.2 e módulo 3) | E116: =SUM($E$25:$E$33)+SUM($E$55:$E$60) -> 0.3976 | F116: =ROUND(E116*$F$115,2) -> 0 | H116: * Nota 2 - 13º e reflexos calculados à parte a fim de aprovisionamento
C117: C | D117: BDI sobre o 13º Salário | E117: =E101 -> 0.2189 | F117: =ROUND(E117*($F$115+$F$116),2) -> 0
D119: TOTAL DO DESTAQUE DO 13º SALÁRIO | F119: =SUM(F115:F117) -> 0
D121: QUADRO-RESUMO DO CUSTO MENSAL POR EMPREGADO | E121: Valor
D122: Custo total - sem o 13º Salário | E122: =ROUND(E112,2) -> 0
D123: Destaque do 13º Salário (valor mensal) | E123: =ROUND(F119,2) -> 0
D125: TOTAL DO POSTO | E125: =E122+E123 -> 0

Sheet 19 (hidden)
B2: PLANILHA DE ESTIMATIVA DE CUSTOS
B3: Padrão IN 05/2017 e IN 07/2018 - MPDG - Medição por posto presente
B5: 19 | D5: =HLOOKUP($B$5,'Dados Gerais'!$D$6:$BI$22,6) -> 0 | E5: QUANTIDADE | F5: =HLOOKUP($B$5,'Dados Gerais'!$D$6:$BI$22,10) -> 0
B6: CCT | D6: =HLOOKUP($B$5,'Dados Gerais'!$D$6:$BI$22,16) -> 0 | E6: DATA-BASE | F6: =HLOOKUP($B$5,'Dados Gerais'!$D$6:$BI$22,17) -> 00:00:00
B8: MÓDULO 1 - COMPOSIÇÃO DA REMUNERAÇÃO | F8: Valor
C9: A | D9: Salário-Base | F9: =HLOOKUP($B$5,'Dados Gerais'!$D$6:$BI$22,8) -> 0
C10: B | D10: Adicional de Periculosidade | F10: =HLOOKUP($B$5,'Dados Gerais'!$D$6:$BI$41,26) -> 0
C11: C | D11: Adicional de Insalubridade | F11: =HLOOKUP($B$5,'Dados Gerais'!$D$6:$BI$41,32) -> 0
C12: D | D12: Adicional Noturno | F12: =HLOOKUP($B$5,'Dados Gerais'!$D$6:$BI$54,49) -> 0 | H12: * Nota 1 - O Módulo 1 refere-se ao valor mensal devido ao empregado pela prestação do serviço no período de 12 meses.
C13: E | D13: Adicional de Hora Extra | F13: =HLOOKUP($B$5,'Dados Gerais'!$D$6:$BI$71,66) -> 0 | H13: * Nota 2 - O adicional de hora extra no feriado trabalhado foi suprimido pela Lei 13.467/17
C14: F | D14: Gratificação | F14: =HLOOKUP($B$5,'Dados Gerais'!$D$6:$BI$71,34) -> 0 | H14: * Nota 3 - ART. 7º, § 2º, DA LEI Nº 605/49.Sendo mensalista o obreiro, o adicional noturno pago de forma fixa já é considerado integrado para os efeitos do pagamento do repouso semanal remunerado, nos termos do art. 7º, § 2º, da Lei nº 605/49.
C15: G | D15: Sobraviso | F15: =HLOOKUP($B$5,'Dados Gerais'!$D$6:$BI$71,36) -> 0 | H15: * Nota 3 - ART. 7º, § 2º, DA LEI Nº 605/49.Sendo mensalista o obreiro, o adicional noturno pago de forma fixa já é considerado integrado para os efeitos do pagamento do repouso semanal remunerado, nos termos do art. 7º, § 2º, da Lei nº 605/49.
D17: TOTAL DA REMUNERAÇÃO | F17: =TRUNC(SUM(F9:F15),2) -> 0
B19: MÓDULO 2 - ENCARGOS E BENEFÍCIOS ANUAIS, MENSAIS E DIÁRIOS | E19: Percentuais | F19: Valor
B20: Submódulo 2.1 - 13º Salário, Férias e Adicional de Férias
C21: A | D21: 13º Salário - Calculado no Módulo 7 - Destacado | E21: 0 | F21: =TRUNC(E21*F$17,2) -> 0
C22: B | D22: Adicional de Férias | E22: ='Encargos Sociais'!E31 -> 0.0303 | F22: =TRUNC(E22*(F$17),2) -> 0 | H22: * Nota 1 - O adicional de férias foi calculado dividindo-se por 11, para comportar os 11 meses presentes e ainda o ausente do posto
B24: Submódulo 2.2 - Encargos Previdenciários (GPS), Fundo de Garantia por Tempo de Serviço (FGTS) e Outras Contribuições
C25: A | D25: ='Encargos Sociais'!D14 -> INSS (art. 22, inciso I, Lei nº 8.212/91) | E25: ='Encargos Sociais'!E14 -> 0.2 | F25: =TRUNC(E25*($F$17+$F$80+$F$22-F69),2) -> 0 | H25: * Nota 1 - Os percentuais dos encargos previdenciários, do FGTS e demais contribuições são estabelecidos por legislação vigente.
C26: B | D26: ='Encargos Sociais'!D15 -> Salário Educação (art. 3º, inciso I, Decreto nº 87.043/82) | E26: ='Encargos Sociais'!E15 -> 0.025 | F26: =TRUNC(E26*($F$17+$F$80+$F$22),2) -> 0 | H26: * Nota 2 - O SAT, a depender do grau de risco do serviço, irá variar entre 1%, para risco leve, de 2%, para risco médio, e de 3% para risco grave.
C27: C | D27: ='Encargos Sociais'!D16 -> SAT/RAT (art. 22, II, Lei 8.212/91 e Anexo V, Decreto 6.042/07) - Enquadramento 8211-3/00 | E27: ='Encargos Sociais'!E16 -> 0.01 | F27: 0 | H27: * Nota 3 - Base de cálculo - remuneração + ausências + terço constitucional (férias) - exceto INSS sobre ausência por acidente de trabalho
C28: D | D28: ='Encargos Sociais'!D17 -> SESC ou SESI (art. 30, Lei nº 8.036/90 e art. 1º, Lei 8.154/90) | E28: ='Encargos Sociais'!E17 -> 0.015 | F28: 0
C29: E | D29: ='Encargos Sociais'!D18 -> SENAI ou SENAC (Decreto nº 2.318/86) | E29: ='Encargos Sociais'!E18 -> 0.01 | F29: 0
C30: F | D30: ='Encargos Sociais'!D19 -> SEBRAE (§ 3º, art. 8º, Lei 8.029/90, alterada pela Lei nº 8.154/90) | E30: ='Encargos Sociais'!E19 -> 0.006 | F30: 0
C31: G | D31: ='Encargos Sociais'!D20 -> INCRA (art. 1º, I, Decreto Lei 1.146/70 e Lei 7.787, de 30/06/89) | E31: ='Encargos Sociais'!E20 -> 0.002 | F31: 0
C32: H | D32: ='Encargos Sociais'!D21 -> FGTS (Lei Complementar nº 110/01 e art. 30, Lei nº 8.036/90) | E32: ='Encargos Sociais'!E21 -> 0.08 | F32: 0
C33: I | D33: ='Encargos Sociais'!D22 -> SECONCI (Convenções Coletivas de Trabalho da construção) | E33: ='Encargos Sociais'!E22 -> 0 | F33: 0
B35: Submódulo 2.3 - Benefícios Mensais e Diários
C36: A | D36: Auxílio Transporte | F36: =HLOOKUP($B$5,'Dados Gerais'!$D$6:$BI$101,85) -> 0 | H36: * Nota 1 - O valor informado deverá ser o custo real do benefício (descontado o valor eventualmente pago pelo empregado).
C37: B | D37: Auxílio Alimentação | F37: =HLOOKUP($B$5,'Dados Gerais'!$D$6:$BI$101,92) -> 0 | H37: * Nota 2 - Observar a previsão dos benefícios contidos em Acordos, Convenções e Dissídios Coletivos de Trabalho e o disposto no art. 6º da IN 5/2017
C38: C | D38: Assistência Médica e Familiar | F38: =HLOOKUP($B$5,'Dados Gerais'!$D$6:$BI$109,100) -> 0
C39: D | D39: Seguro de vida / auxílio funeral | F39: =HLOOKUP($B$5,'Dados Gerais'!$D$6:$BI$145,109) -> 0
C40: E | D40: Assistência odontológica | F40: =HLOOKUP($B$5,'Dados Gerais'!$D$6:$BI$145,115) -> 0
C41: F | D41: Auxílio creche | F41: =HLOOKUP($B$5,'Dados Gerais'!$D$6:$BI$145,121) -> 0
C42: G | D42: Auxílio vestuário especial | F42: =HLOOKUP($B$5,'Dados Gerais'!$D$6:$BI$145,127) -> 0
C43: H | D43: Benefício social familiar | F43: =HLOOKUP($B$5,'Dados Gerais'!$D$6:$BI$145,133) -> 0
C44: I | D44: Outros (especificar) | F44: =HLOOKUP($B$5,'Dados Gerais'!$D$6:$BI$145,115) -> 0
C45: J | D45: Outros (especificar) | F45: =HLOOKUP($B$5,'Dados Gerais'!$D$6:$BI$145,115) -> 0
D47: QUADRO-RESUMO DO MÓDULO 2
D48: 2.1 - Adicional de Férias | E48: =SUM(E21:E22) -> 0.0303 | F48: =F21+F22 -> 0
D49: 2.2 - Encargos Previdenciários (GPS), Fundo de Garantia por Tempo de Serviço (FGTS) e Contribuições | E49: =SUM(E25:E33) -> 0.348 | F49: =SUM(F25:F33) -> 0
D50: 2.3 - Benefícios Mensais e Diários | F50: =SUM(F36:F45) -> 0
D52: TOTAL DOS ENCARGOS E BENEFÍCIOS | F52: =TRUNC(SUM(F48:F50),2) -> 0
B54: MÓDULO 3 - PREVISÃO PARA RESCISÃO | E54: Percentuais | F54: Valor
C55: A | D55: ='Encargos Sociais'!D36 -> Aviso Prévio Indenizado (Art. 7º, inciso XXI, da CF/1988 e arts. 477, 487, §1º, e 491 da CLT) | E55: ='Encargos Sociais'!E36 -> 0.0042 | F55: =TRUNC(E55*($F$17+$F$48+$F$80),2) -> 0 | H55: * Nota 1 - Base de cálculo - remuneração + ausências + 1/3 férias
C56: B | D56: ='Encargos Sociais'!D37 -> Incidência do FGTS sobre o Aviso Prévio Indenizado (Súmula 305 TST) | E56: ='Encargos Sociais'!E37 -> 0.0003 | F56: 0
C57: C | D57: ='Encargos Sociais'!D38 -> Multa do FGTS sobre o Aviso Prévio Indenizado (Art. 18, §1º, da Lei 8.036/1990) | E57: ='Encargos Sociais'!E38 -> 0 | F57: 0
C58: D | D58: ='Encargos Sociais'!D39 -> Aviso Prévio Trabalhado (Art. 488, parágrafo único, CLT) | E58: ='Encargos Sociais'!E39 -> 0.0097 | F58: 0
C59: E | D59: ='Encargos Sociais'!D40 -> Incidência de GPS, FGTS e outras contribuições sobre o Aviso Prévio Trabalhado | E59: ='Encargos Sociais'!E40 -> 0.0034 | F59: 0
C60: F | D60: ='Encargos Sociais'!D41 -> Multa do FGTS | E60: ='Encargos Sociais'!E41 -> 0.032 | F60: 0
D62: TOTAL DE PREVISÃO PARA RESCISÃO | F62: =TRUNC(SUM(F55:F60),2) -> 0
B64: MÓDULO 4 - CUSTO DO PROFISSIONAL AUSENTE | E64: Percentuais | F64: Valor
B65: Submódulo 4.1 - Ausências Legais
C66: A | D66: ='Encargos Sociais'!D25 -> Férias (Arts. 129 e 130, inc. I, da CLT) | E66: ='Encargos Sociais'!E25 -> 0.0909 | F66: =TRUNC(E66*$F$17,2) -> 0 | H66: * Nota 1 - O Módulo 4 refere-se às previsões para custear ausências do próprio profissional (titular do cargo)
C67: B | D67: ='Encargos Sociais'!D26 -> Ausências Legais (Arts. 131 e 473 da CLT) | E67: ='Encargos Sociais'!E26 -> 0.0079 | F67: 0 | H67: * Nota 2 - As férias foram calculadas dividindo-se por 11, para comportar os 11 meses presentes e ainda o ausente do posto
C68: C | D68: ='Encargos Sociais'!D27 -> Licença-Paternidade (Art. 7º, XIX, e art. 10, §1º, do ADCT, CF/1988 e Art. 1º, II, da Lei 11.770/2008) | E68: ='Encargos Sociais'!E27 -> 0.0008 | F68: 0
C69: D | D69: ='Encargos Sociais'!D28 -> Ausência por Acidente de Trabalho (Art. 131, III, da CLT) | E69: ='Encargos Sociais'!E28 -> 0.0009 | F69: 0
C70: E | D70: ='Encargos Sociais'!D29 -> Afastamento Maternidade (Art. 71 da Lei nº 8.213/1991) | E70: ='Encargos Sociais'!E29 -> 0.0033 | F70: 0
C71: F | D71: ='Encargos Sociais'!D30 -> Auxílio Enfermidade - Doença (Art. 59 da Lei nº 8.213/1991) | E71: ='Encargos Sociais'!E30 -> 0.0071 | F71: 0
B73: Submódulo 4.2 - Intrajornada
C74: A | D74: Intervalo para repouso ou alimentação | E74: ='Encargos Sociais'!E33 -> 0 | F74: =ROUND(E74*$F$17,2) -> 0
D76: QUADRO-RESUMO DO MÓDULO 4 | F76: Valor
D77: 4.1 - Ausências Legais | E77: =SUM(E66:E71) -> 0.1109 | F77: =SUM(F66:F71) -> 0
D78: 4.2 - Intrajornada | E78: =E74 -> 0 | F78: =ROUND(E78*$F$17,2) -> 0
D80: TOTAL DE CUSTO DO PROFFIONAL AUSENTE E INTERVALO INTRAJORNADA | F80: =TRUNC(SUM(F77:F78),2) -> 0
B82: MÓDULO 5 - INSUMOS DIVERSOS | F82: Valor
C83: A | D83: Uniformes - aquisição | F83: =TRUNC(HLOOKUP($B$5,Uniformes!$J$3:$DY$5,3,0)/12,2) -> 0
C84: B | D84: Materiais de consumo relacionados ao posto - aquisição | F84: 0
C85: C | D85: Ferramentas relacionadas ao posto - remuneração da sua depreciação / manutenção | F85: 0
C86: D | D86: Equipamentos relacionados ao posto - remuneração da sua depreciação / manutenção | F86: 0
C87: E | D87: Equipamentos de Proteção Individual - EPI - aquisição | F87: =TRUNC(HLOOKUP($B$5,EPI!$J$3:$DX$5,3,0)/12,2) -> 0
D89: TOTAL DE INSUMOS DIVERSOS | F89: =SUM(F83:F88) -> 0 | H89: * Nota - Valores mensais por empregado
B91: MÓDULO 6 - CUSTOS INDIRETOS, TRIBUTOS E LUCRO - BDI | E91: Percentuais | F91: Valor
C92: A | D92: Custos Indiretos | E92: ='BDI - Geral'!E7 -> 0.027
C93: A.1 | D93: Administração Central | E93: ='BDI - Geral'!E8 -> 0.0216
C94: A.2 | D94: Seguros, Garantias e Riscos | E94: ='BDI - Geral'!E9 -> 0.0054
C95: B | D95: Lucro | E95: ='BDI - Geral'!E11 -> 0.0334
C96: C | D96: Tributos | E96: =SUM(E97:E98) -> 0.124
C97: C.1 | D97: Tributos Federais (COFINS, PIS e CPRB) | E97: ='BDI - Geral'!E19 -> 0.074
C98: C.2 | D98: Tributos Distritais (ISS) | E98: ='BDI - Geral'!E24 -> 0.05
C99: D | D99: Despesas Financeiras | E99: ='BDI - Geral'!E14 -> 0.0061
D101: TOTAL DE BDI | E101: ='BDI - Geral'!E27 -> 0.2189 | F101: =TRUNC(E101*E109,2) -> 0
D103: QUADRO-RESUMO DO CUSTO MENSAL POR EMPREGADO - SEM O 13º | E103: Valor
D104: Módulo 1 - Composição da Remuneração | E104: =F17 -> 0
D105: Módulo 2 - Encargos e Benefícios Anuais, Mensais e Diários | E105: =F52 -> 0
D106: Módulo 3 - Provisão para Rescisão | E106: =F62 -> 0
D107: Módulo 4 - Custo de Reposição do Profissional Ausente | E107: =F80 -> 0
D108: Módulo 5 - Insumos Diversos | E108: =F89 -> 0
D109: SUBTOTAL (A+B+C+D+E) | E109: =SUM(E104:E108) -> 0
D110: Módulo 6 - Custos Indiretos, Tributos e Lucro | E110: =F101 -> 0
D112: TOTAL DO POSTO | E112: =SUM(E109:E110) -> 0
B114: MÓDULO 7 - DESTAQUE DO MÓDULO 2 - 13º SALÁRIO | E114: Percentuais | F114: Valor
C115: A | D115: 13º Salário | E115: ='[1]Encargos Sociais'!E32*12/11 -> 0.09916363636 | F115: =ROUND(E115*F$17,2) -> 0 | H115: * Nota 1 - Incluindo-se a reincidência das férias do substituto sobre o titular
C116: B | D116: Encargos Sociais sobre o 13º Salário (submódulo 2.2 e módulo 3) | E116: =SUM($E$25:$E$33)+SUM($E$55:$E$60) -> 0.3976 | F116: =ROUND(E116*$F$115,2) -> 0 | H116: * Nota 2 - 13º e reflexos calculados à parte a fim de aprovisionamento
C117: C | D117: BDI sobre o 13º Salário | E117: =E101 -> 0.2189 | F117: =ROUND(E117*($F$115+$F$116),2) -> 0
D119: TOTAL DO DESTAQUE DO 13º SALÁRIO | F119: =SUM(F115:F117) -> 0
D121: QUADRO-RESUMO DO CUSTO MENSAL POR EMPREGADO | E121: Valor
D122: Custo total - sem o 13º Salário | E122: =ROUND(E112,2) -> 0
D123: Destaque do 13º Salário (valor mensal) | E123: =ROUND(F119,2) -> 0
D125: TOTAL DO POSTO | E125: =E122+E123 -> 0

Sheet 2
B2: PLANILHA DE ESTIMATIVA DE CUSTOS
B3: Padrão IN 05/2017 e IN 07/2018 - MPDG - Medição por posto presente
B5: 2 | D5: =HLOOKUP($B$5,'Dados Gerais'!$D$6:$BI$22,6) -> ENCARREGADO GERAL | E5: QUANTIDADE | F5: =HLOOKUP($B$5,'Dados Gerais'!$D$6:$BI$22,10) -> 1
B6: CCT | D6: =HLOOKUP($B$5,'Dados Gerais'!$D$6:$BI$22,16) -> SEAC/DF x SINDISERVIÇOS/DF CCT 2025/2026 N.º DF000042/2025 | E6: DATA-BASE | F6: =HLOOKUP($B$5,'Dados Gerais'!$D$6:$BI$22,17) -> 2025-01-01
B8: MÓDULO 1 - COMPOSIÇÃO DA REMUNERAÇÃO | F8: Valor
C9: A | D9: Salário-Base | F9: =HLOOKUP($B$5,'Dados Gerais'!$D$6:$BI$22,8) -> 6937.73
C10: B | D10: Adicional de Periculosidade | F10: =HLOOKUP($B$5,'Dados Gerais'!$D$6:$BI$41,26) -> 0
C11: C | D11: Adicional de Insalubridade | F11: =HLOOKUP($B$5,'Dados Gerais'!$D$6:$BI$41,32) -> 0
C12: D | D12: Adicional Noturno | F12: =HLOOKUP($B$5,'Dados Gerais'!$D$6:$BI$54,49) -> 0 | H12: * Nota 1 - O Módulo 1 refere-se ao valor mensal devido ao empregado pela prestação do serviço no período de 12 meses.
C13: E | D13: Adicional de Hora Extra | F13: =HLOOKUP($B$5,'Dados Gerais'!$D$6:$BI$71,66) -> 0 | H13: * Nota 2 - O adicional de hora extra no feriado trabalhado foi suprimido pela Lei 13.467/17
C14: F | D14: Gratificação | F14: =HLOOKUP($B$5,'Dados Gerais'!$D$6:$BI$71,34) -> 0 | H14: * Nota 3 - ART. 7º, § 2º, DA LEI Nº 605/49.Sendo mensalista o obreiro, o adicional noturno pago de forma fixa já é considerado integrado para os efeitos do pagamento do repouso semanal remunerado, nos termos do art. 7º, § 2º, da Lei nº 605/49.
C15: G | D15: Sobraviso | F15: =HLOOKUP($B$5,'Dados Gerais'!$D$6:$BI$71,36) -> 0
D17: TOTAL DA REMUNERAÇÃO | F17: =TRUNC(SUM(F9:F15),2) -> 6937.73
B19: MÓDULO 2 - ENCARGOS E BENEFÍCIOS ANUAIS, MENSAIS E DIÁRIOS | E19: Percentuais | F19: Valor
B20: Submódulo 2.1 - Férias e Adicional de Férias
C21: A | D21: 13º Salário | E21: ='Encargos Sociais'!$E$32 -> 0.0909 | F21: =ROUND(E21*F$17,2) -> 630.64 | H21: * Nota 1 - O 13º salário foi calculado dividindo-se por 11, para comportar os 11 meses presentes e ainda o ausente do posto
C22: B | D22: Adicional de Férias | E22: ='Encargos Sociais'!E31 -> 0.0303 | F22: =TRUNC(E22*(F$17),2) -> 210.21 | H22: * Nota 2 - O adicional de férias foi calculado dividindo-se por 11, para comportar os 11 meses presentes e ainda o ausente do posto
B24: Submódulo 2.2 - Encargos Previdenciários (GPS), Fundo de Garantia por Tempo de Serviço (FGTS) e Outras Contribuições
C25: A | D25: ='Encargos Sociais'!D14 -> INSS (art. 22, inciso I, Lei nº 8.212/91) | E25: ='Encargos Sociais'!E14 -> 0.2 | F25: =TRUNC(E25*($F$17+$F$21+$F$22+$F$80-$F$69),2) -> 1708.34 | H25: * Nota 1 - Os percentuais dos encargos previdenciários, do FGTS e demais contribuições são estabelecidos por legislação vigente.
C26: B | D26: ='Encargos Sociais'!D15 -> Salário Educação (art. 3º, inciso I, Decreto nº 87.043/82) | E26: ='Encargos Sociais'!E15 -> 0.025 | F26: =TRUNC(E26*($F$17+$F$21+$F$22+$F$80),2) -> 213.69 | H26: * Nota 2 - O SAT, a depender do grau de risco do serviço, irá variar entre 1%, para risco leve, de 2%, para risco médio, e de 3% para risco grave.
C27: C | D27: ='Encargos Sociais'!D16 -> SAT/RAT (art. 22, II, Lei 8.212/91 e Anexo V, Decreto 6.042/07) - Enquadramento 8211-3/00 | E27: ='Encargos Sociais'!E16 -> 0.01 | F27: =TRUNC(E27*($F$17+$F$21+$F$22+$F$80),2) -> 85.47 | H27: * Nota 3 - Base de cálculo - remuneração + ausências + 13º salário + terço constitucional (férias) - exceto INSS sobre ausência por acidente de trabalho
C28: D | D28: ='Encargos Sociais'!D17 -> SESC ou SESI (art. 30, Lei nº 8.036/90 e art. 1º, Lei 8.154/90) | E28: ='Encargos Sociais'!E17 -> 0.015 | F28: 128.21
C29: E | D29: ='Encargos Sociais'!D18 -> SENAI ou SENAC (Decreto nº 2.318/86) | E29: ='Encargos Sociais'!E18 -> 0.01 | F29: 85.47
C30: F | D30: ='Encargos Sociais'!D19 -> SEBRAE (§ 3º, art. 8º, Lei 8.029/90, alterada pela Lei nº 8.154/90) | E30: ='Encargos Sociais'!E19 -> 0.006 | F30: 51.28
C31: G | D31: ='Encargos Sociais'!D20 -> INCRA (art. 1º, I, Decreto Lei 1.146/70 e Lei 7.787, de 30/06/89) | E31: ='Encargos Sociais'!E20 -> 0.002 | F31: 17.09
C32: H | D32: ='Encargos Sociais'!D21 -> FGTS (Lei Complementar nº 110/01 e art. 30, Lei nº 8.036/90) | E32: ='Encargos Sociais'!E21 -> 0.08 | F32: 683.83
C33: I | D33: ='Encargos Sociais'!D22 -> SECONCI (Convenções Coletivas de Trabalho da construção) | E33: ='Encargos Sociais'!E22 -> 0 | F33: 0
B35: Submódulo 2.3 - Benefícios Mensais e Diários
C36: A | D36: Auxílio Transporte | F36: =HLOOKUP($B$5,'Dados Gerais'!$D$6:$BI$144,85) -> 0 | H36: * Nota 1 - O valor informado deverá ser o custo real do benefício (descontado o valor eventualmente pago pelo empregado).
C37: B | D37: Auxílio Alimentação | F37: =HLOOKUP($B$5,'Dados Gerais'!$D$6:$BI$144,96) -> 1048.3 | H37: * Nota 2 - Observar a previsão dos benefícios contidos em Acordos, Convenções e Dissídios Coletivos de Trabalho e o disposto no art. 6º da IN 5/2017
C38: C | D38: Assistência Médica e Familiar | F38: =HLOOKUP($B$5,'Dados Gerais'!$D$6:$BI$144,104) -> 0
C39: D | D39: Seguro de vida / auxílio funeral | F39: =HLOOKUP($B$5,'Dados Gerais'!$D$6:$BI$144,113) -> 3.61
C40: E | D40: Assistência odontológica | F40: =HLOOKUP($B$5,'Dados Gerais'!$D$6:$BI$144,119) -> 0
C41: F | D41: Auxílio creche | F41: =HLOOKUP($B$5,'Dados Gerais'!$D$6:$BI$144,125) -> 0
C42: G | D42: Auxílio vestuário especial | F42: =HLOOKUP($B$5,'Dados Gerais'!$D$6:$BI$144,130) -> 0
C43: H | D43: Benefício social familiar | F43: =HLOOKUP($B$5,'Dados Gerais'!$D$6:$BI$144,137) -> 0
C44: I | D44: Outros (especificar) | F44: 0
C45: J | D45: Outros (especificar) | F45: 0
D47: QUADRO-RESUMO DO MÓDULO 2
D48: 2.1 - 13º salário e Adicional de Férias | E48: =SUM(E21:E22) -> 0.1212 | F48: =F21+F22 -> 840.85
D49: 2.2 - Encargos Previdenciários (GPS), Fundo de Garantia por Tempo de Serviço (FGTS) e Contribuições | E49: =SUM(E25:E33) -> 0.348 | F49: =SUM(F25:F33) -> 2973.38
D50: 2.3 - Benefícios Mensais e Diários | F50: =SUM(F36:F45) -> 1051.91
D52: TOTAL DOS ENCARGOS E BENEFÍCIOS | F52: =TRUNC(SUM(F48:F50),2) -> 4866.14
B54: MÓDULO 3 - PROVISÃO PARA RESCISÃO | E54: Percentuais | F54: Valor
C55: A | D55: ='Encargos Sociais'!D36 -> Aviso Prévio Indenizado (Art. 7º, inciso XXI, da CF/1988 e arts. 477, 487, §1º, e 491 da CLT) | E55: ='Encargos Sociais'!E36 -> 0.0042 | F55: =TRUNC(E55*($F$17+$F$48+$F$80),2) -> 35.9 | H55: * Nota 1 - Base de cálculo - remuneração + ausências + 1/3 férias + 13º
C56: B | D56: ='Encargos Sociais'!D37 -> Incidência do FGTS sobre o Aviso Prévio Indenizado (Súmula 305 TST) | E56: ='Encargos Sociais'!E37 -> 0.0003 | F56: =TRUNC(E56*($F$17+$F$48+$F$80),2) -> 2.56
C57: C | D57: ='Encargos Sociais'!D38 -> Multa do FGTS sobre o Aviso Prévio Indenizado (Art. 18, §1º, da Lei 8.036/1990) | E57: ='Encargos Sociais'!E38 -> 0 | F57: =TRUNC(E57*($F$17+$F$48+$F$80),2) -> 0 | H57: * Nota 2 - zerado pois foi considerada toda a incidência da multa do FGTS na letra F
C58: D | D58: ='Encargos Sociais'!D39 -> Aviso Prévio Trabalhado (Art. 488, parágrafo único, CLT) | E58: ='Encargos Sociais'!E39 -> 0.0097 | F58: =TRUNC(E58*($F$17),2) -> 67.29
C59: E | D59: ='Encargos Sociais'!D40 -> Incidência de GPS, FGTS e outras contribuições sobre o Aviso Prévio Trabalhado | E59: ='Encargos Sociais'!E40 -> 0.0034 | F59: =TRUNC(E59*($F$17),2) -> 23.58
C60: F | D60: ='Encargos Sociais'!D41 -> Multa do FGTS | E60: ='Encargos Sociais'!E41 -> 0.032 | F60: =TRUNC(E60*($F$17+$F$48+$F$80),2) -> 273.53
D62: TOTAL DE PROVISÃO PARA RESCISÃO | F62: =TRUNC(SUM(F55:F60),2) -> 402.86
B64: MÓDULO 4 - CUSTO DO PROFISSIONAL AUSENTE | E64: Percentuais | F64: Valor
B65: Submódulo 4.1 - Ausências Legais
C66: A | D66: ='Encargos Sociais'!D25 -> Férias (Arts. 129 e 130, inc. I, da CLT) | E66: ='Encargos Sociais'!E25 -> 0.0909 | F66: =TRUNC(E66*$F$17,2) -> 630.63 | H66: * Nota 1 - O Módulo 4 refere-se às previsões para custear ausências do próprio profissional (titular do cargo)
C67: B | D67: ='Encargos Sociais'!D26 -> Ausências Legais (Arts. 131 e 473 da CLT) | E67: ='Encargos Sociais'!E26 -> 0.0079 | F67: 54.8 | H67: * Nota 2 - As férias foram calculadas dividindo-se por 11, para comportar os 11 meses presentes e ainda o ausente do posto
C68: C | D68: ='Encargos Sociais'!D27 -> Licença-Paternidade (Art. 7º, XIX, e art. 10, §1º, do ADCT, CF/1988 e Art. 1º, II, da Lei 11.770/2008) | E68: ='Encargos Sociais'!E27 -> 0.0008 | F68: 5.55
C69: D | D69: ='Encargos Sociais'!D28 -> Ausência por Acidente de Trabalho (Art. 131, III, da CLT) | E69: ='Encargos Sociais'!E28 -> 0.0009 | F69: 6.24
C70: E | D70: ='Encargos Sociais'!D29 -> Afastamento Maternidade (Art. 71 da Lei nº 8.213/1991) | E70: ='Encargos Sociais'!E29 -> 0.0033 | F70: 22.89
C71: F | D71: ='Encargos Sociais'!D30 -> Auxílio Enfermidade - Doença (Art. 59 da Lei nº 8.213/1991) | E71: ='Encargos Sociais'!E30 -> 0.0071 | F71: 49.25
B73: Submódulo 4.2 - Intrajornada
C74: A | D74: Intervalo para repouso ou alimentação | E74: ='Encargos Sociais'!E33 -> 0 | F74: =ROUND(E74*$F$17,2) -> 0
D76: QUADRO-RESUMO DO MÓDULO 4 | F76: Valor
D77: 4.1 - Ausências Legais | E77: =SUM(E66:E71) -> 0.1109 | F77: =SUM(F66:F71) -> 769.36
D78: 4.2 - Intrajornada | E78: =E74 -> 0 | F78: =ROUND(E78*$F$17,2) -> 0
D80: TOTAL DE CUSTO DO PROFISSIONAL AUSENTE E INTERVALO INTRAJORNADA | F80: =TRUNC(SUM(F77:F78),2) -> 769.36
B82: MÓDULO 5 - INSUMOS DIVERSOS | F82: Valor
C83: A | D83: Uniformes - aquisição | F83: =TRUNC(HLOOKUP($B$5,Uniformes!$J$3:$DY$5,3,0)/12,2) -> 0
C84: B | D84: Materiais de consumo relacionados ao posto - aquisição | F84: 0
C85: C | D85: Ferramentas relacionadas ao posto - remuneração da sua depreciação / manutenção | F85: 0
C86: D | D86: Equipamentos relacionados ao posto - remuneração da sua depreciação / manutenção | F86: 0
C87: E | D87: Equipamentos de Proteção Individual - EPI - aquisição | F87: =TRUNC(HLOOKUP($B$5,EPI!$J$3:$DX$5,3,0)/12,2) -> 0
D89: TOTAL DE INSUMOS DIVERSOS | F89: =SUM(F83:F88) -> 0 | H89: * Nota - Valores mensais por empregado
B91: MÓDULO 6 - CUSTOS INDIRETOS, TRIBUTOS E LUCRO - BDI | E91: Percentuais | F91: Valor
C92: A | D92: Custos Indiretos | E92: ='BDI - Geral'!E7 -> 0.027
C93: A.1 | D93: Administração Central | E93: ='BDI - Geral'!E8 -> 0.0216
C94: A.2 | D94: Seguros, Garantias e Riscos | E94: ='BDI - Geral'!E9 -> 0.0054
C95: B | D95: Lucro | E95: ='BDI - Geral'!E11 -> 0.0334
C96: C | D96: Tributos | E96: =SUM(E97:E98) -> 0.124
C97: C.1 | D97: Tributos Federais (COFINS, PIS e CPRB) | E97: ='BDI - Geral'!E19 -> 0.074
C98: C.2 | D98: Tributos Distritais (ISS) | E98: ='BDI - Geral'!E24 -> 0.05
C99: D | D99: Despesas Financeiras | E99: ='BDI - Geral'!E14 -> 0.0061
D101: TOTAL DE BDI | E101: ='BDI - Geral'!E27 -> 0.2189 | F101: =TRUNC(E101*E109,2) -> 2840.46
D103: QUADRO-RESUMO DO CUSTO MENSAL POR EMPREGADO | E103: Valor
D104: Módulo 1 - Composição da Remuneração | E104: =F17 -> 6937.73
D105: Módulo 2 - Encargos e Benefícios Anuais, Mensais e Diários | E105: =F52 -> 4866.14
D106: Módulo 3 - Provisão para Rescisão | E106: =F62 -> 402.86
D107: Módulo 4 - Custo do Profissional Ausente | E107: =F80 -> 769.36
D108: Módulo 5 - Insumos Diversos | E108: =F89 -> 0
D109: SUBTOTAL (A+B+C+D+E) | E109: =SUM(E104:E108) -> 12976.09
D110: Módulo 6 - Custos Indiretos, Tributos e Lucro | E110: =F101 -> 2840.46
D112: TOTAL DO POSTO | E112: =SUM(E109:E110) -> 15816.55

Sheet Dados Gerais
B4: INFORMAÇÕES DE ENTRADA
D6: 1 | E6: 2 | F6: 3 | G6: 4 | H6: 5 | I6: 6 | J6: 7 | K6: 8 | L6: 9 | M6: 10 | N6: 11 | O6: 12 | P6: 13 | Q6: 14 | R6: 15 | S6: 16 | T6: 17 | U6: 18 | V6: 19 | W6: 20 | BC6: 54 | BD6: 55 | BE6: 56 | BF6: 57 | BG6: 58 | BH6: 59 | BI6: 60
D7: CARGO 1 | E7: CARGO 2 | F7: CARGO 3 | G7: CARGO 4 | H7: CARGO 5 | I7: CARGO 6 | J7: CARGO 7 | K7: CARGO 8 | L7: CARGO 9 | M7: CARGO 10 | N7: CARGO 11 | O7: CARGO 12 | P7: CARGO 13 | Q7: CARGO 14 | R7: CARGO 15 | S7: CARGO 16 | T7: CARGO 17 | U7: CARGO 18 | V7: CARGO 19 | W7: CARGO 20 | BC7: CARGO 54 | BD7: CARGO 55 | BE7: CARGO 56 | BF7: CARGO 57 | BG7: CARGO 58 | BH7: CARGO 59 | BI7: CARGO 60
B8: INFORMAÇÕES BÁSICAS
B10: DESCRIÇÃO DOS POSTOS DE SERVIÇO
D11: TÉCNICO DE APOIO ADMINISTRATIVO | E11: ENCARREGADO GERAL
B12: REMUNERAÇÕES
D13: 4932.41 | E13: 6937.73
B14: QUANTIDADE DE POSTOS
D15: =133+15+20 -> 168 | E15: 1
B16: JORNADA
C17: HORAS/DIA | D17: 08:00:00 | E17: 08:00:00
C18: DIAS/MÊS | D18: 22 | E18: 22
C19: HORAS/MÊS | D19: =44*5 -> 220 | E19: =44*5 -> 220
B20: CCT UTILIZADA
C21: SINDICATOS E REFERÊNCIA | D21: SEAC/DF x SINDISERVIÇOS/DF CCT 2025/2026 N.º DF000042/2025 | E21: SEAC/DF x SINDISERVIÇOS/DF CCT 2025/2026 N.º DF000042/2025
C22: DATA-BASE | D22: 2025-01-01 | E22: 2025-01-01
B24: ADICIONAIS LEGAIS E GRATIFICAÇÕES
B26: PERICULOSIDADE (PERCENTUAL)
D27: 0 | E27: 0
B28: BASE DE CÁLCULO DO ADICIONAL DE PERICULOSIDADE (SALÁRIO BÁSICO)
D29: =D13 -> 4932.41 | E29: =E13 -> 6937.73
B30: VALOR MENSAL DO ADICIONAL DE PERICULOSIDADE
D31: =ROUND(D27*D13,2) -> 0 | E31: =ROUND(E27*E13,2) -> 0
B32: INSALUBRIDADE (PERCENTUAL)
D33: 0 | E33: 0
B34: BASE DE CÁLCULO DO ADICIONAL DE INSALUBRIDADE (SALÁRIO MÍNIMO LEGAL)
D35: 1518 | E35: 1518
B36: VALOR MENSAL DO ADICIONAL DE INSALUBRIDADE
D37: =ROUND(D33*D35,2) -> 0 | E37: =ROUND(E33*E35,2) -> 0
B38: GRATIFICAÇÃO - VALOR MENSAL (R$)
D39: 0 | E39: 0
B40: SOBREAVISO - VALOR MENSAL (R$)
D41: 0 | E41: 0
B43: ADICIONAL NOTURNO
B45: INCIDÊNCIA (PERCENTUAL)
C46: *conforme cláusula décima da CCT | D46: 0.2 | E46: 0.2
B47: HORAS REAIS POR DIA
C48: *considerando 1 hora de intervalo para alimentação | D48: 0 | E48: 0
B49: HORAS FICTAS POR DIA
D50: =D48*8/7 -> 0 | E50: =E48*8/7 -> 0
B51: BASE DE CÁLCULO DO ADICIONAL NOTURNO (INCLUINDO ADICIONAIS E GRATIFICAÇÕES)
D52: =D13+D31+D37+D41 -> 4932.41 | E52: =E13+E31+E37+E41 -> 6937.73
B53: VALOR MENSAL DO ADICIONAL NOTURNO (HORA NORMAL + HORA REDUZIDA) - POR POSTO
D54: =ROUND(D50*D18*D46*D52/D19,2) -> 0 | E54: =ROUND(E50*E18*E46*E52/E19,2) -> 0
B56: ADICIONAL DE HORA EXTRA
B58: INCIDÊNCIA (PERCENTUAL 1)
D59: 0.5 | E59: 0.5
B60: HORAS EXTRAS POR MÊS (PERCENTUAL 1)
D61: 0 | E61: 0
B62: VALOR MENSAL DO ADICIONAL DE HORAS EXTRAS (PERCENTUAL 1) - POR POSTO
D63: =ROUND(D61*D59*D13/D19,2) -> 0 | E63: =ROUND(E61*E59*E13/E19,2) -> 0
B64: INCIDÊNCIA (PERCENTUAL 2)
D65: 1 | E65: 1
B66: HORAS EXTRAS POR MÊS (PERCENTUAL 2)
D67: 0 | E67: 0
B68: VALOR MENSAL DO ADICIONAL DE HORAS EXTRAS (PERCENTUAL 2) - POR POSTO
D69: =ROUND(D67*D65*D13/D19,2) -> 0 | E69: =ROUND(E67*E65*E13/E19,2) -> 0
B70: TOTAL MENSAL DOS ADICIONAIS DE HORAS EXTRAS - POR POSTO
D71: =D69+D63 -> 0 | E71: =E69+E63 -> 0
B73: BENEFÍCIOS COMUNS - AUXÍLIO TRANSPORTE
B75: DISTRIBUIÇÃO ESTIMADA DE PROCEDÊNCIA
C76: Cidade-satélite | D76: =100%-D77 -> 0.9467 | E76: =100%-E77 -> 0.9467
C77: Região do entorno (média ponderada do contrato atual) | D77: =ROUND(9/SUM($D$15:$V$15),4) -> 0.0533 | E77: =ROUND(9/SUM($D$15:$V$15),4) -> 0.0533
C78: Esplanada - apenas para os que vêm do entorno | D78: =D77 -> 0.0533 | E78: =E77 -> 0.0533
B79: VALORES DOS VALES
C80: Cidade-satélite | D80: 5.5 | E80: 5.5
C81: Região do entorno (média ponderada do contrato atual) | D81: 10.35 | E81: 10.35
C82: Esplanada | D82: 2.75 | E82: 2.75
B83: VALOR MENSAL BRUTO DE PAGAMENTO - POR POSTO
D84: =ROUND((D76*D80+D77*D81+D78*D82)*2*D18,2) -> 259.82 | E84: =ROUND((E76*E80+E77*E81+E78*E82)*2*E18,2) -> 259.82
B85: PERCENTUAL DE DESCONTO
D86: 0.06 | E86: 0.06
B87: VALOR MENSAL DO DESCONTO - POR POSTO
D88: =ROUND(D86*D13,2) -> 295.94 | E88: =ROUND(E86*E13,2) -> 416.26
B89: VALOR MENSAL LÍQUIDO DO VALE TRANSPORTE - POR POSTO
D90: =IF(D84>D88,D84-D88,0) -> 0 | E90: =IF(E84>E88,E84-E88,0) -> 0
D91: =D90*D15 -> 0 | E91: =E90*E15 -> 0
B92: BENEFÍCIOS COMUNS - AUXÍLIO ALIMENTAÇÃO
C94: VALOR CCT | D94: 44.3 | E94: 44.3
C95: VALOR CD | D95: 47.65 | E95: =D95 -> 47.65
B96: VALOR MENSAL DO AUXÍLIO ALIMENTAÇÃO - POR POSTO
D97: =ROUND(LARGE($D$94:$D$95,1)*$D$18,2) -> 1048.3 | E97: =ROUND(LARGE($D$94:$D$95,1)*$D$18,2) -> 1048.3
B98: VALOR MENSAL DO AUXÍLIO ALIMENTAÇÃO FÉRIAS - POR POSTO - CCT - 1/11 avos
D99: 0 | E99: 0
B100: VALOR TOTAL MENSAL DO AUXÍLIO ALIMENTAÇÃO INCLUSIVE FÉRIAS - POR POSTO
D101: =D97+D99 -> 1048.3 | E101: =E97+E99 -> 1048.3
D102: =D101*D15 -> 176114.4 | E102: =E101*E15 -> 1048.3
B103: BENEFÍCIOS ESPECIAIS - ASSISTÊNCIA MÉDICA E FAMILIAR
C105: OBRIGAÇÃO DE PAGTO | D105: NÃO | E105: NÃO
C106: VALOR CCT
C107: VALOR MERCADO
B108: VALOR MENSAL DO AUXÍLIO ESPECIAL - ASSISTÊNCIA MÉDICA E FAMILIAR - POR POSTO
D109: =IF(D105="SIM",ROUND(SMALL(D106:D107,1),2),0) -> 0 | E109: =IF(E105="SIM",ROUND(SMALL(E106:E107,1),2),0) -> 0
B111: BENEFÍCIOS ESPECIAIS - SEGURO DE VIDA E AUXÍLIO-FUNERAL, AUX ODONT, AUX CRECHE
B113: SEGURO DE VIDA E AUXÍLIO FUNERAL
C114: OBRIGAÇÃO DE PAGTO | D114: SIM | E114: SIM | W114: =V114 -> 0 | BC114: 0 | BD114: 0 | BE114: 0 | BF114: 0 | BG114: 0 | BH114: 0 | BI114: 0
C115: VALOR CCT | D115: 3.61 | E115: 3.61 | W115: 0 | BC115: 0 | BD115: 0 | BE115: 0 | BF115: 0 | BG115: 0 | BH115: 0 | BI115: 0
C116: VALOR MERCADO | W116: 0 | BC116: 0 | BD116: 0 | BE116: 0 | BF116: 0 | BG116: 0 | BH116: 0 | BI116: 0
B117: VALOR MENSAL DO AUXÍLIO ESPECIAL - SEGURO DE VIDA E AUXÍLIO FUNERAL - POR POSTO
D118: =IF(D114="SIM",ROUND(SMALL(D115:D116,1),2),0) -> 3.61 | E118: 3.61 | W118: =V118 -> 0 | BC118: 0 | BD118: 0 | BE118: 0 | BF118: 0 | BG118: 0 | BH118: 0 | BI118: 0
B119: AUXÍLIO ODONTOLÓGICO
C120: OBRIGAÇÃO DE PAGTO | D120: NÃO | E120: NÃO | W120: =V120 -> 0 | BC120: 0 | BD120: 0 | BE120: 0 | BF120: 0 | BG120: 0 | BH120: 0 | BI120: 0
C121: VALOR CCT | D121: 0 | E121: 0 | W121: 0 | BC121: 0 | BD121: 0 | BE121: 0 | BF121: 0 | BG121: 0 | BH121: 0 | BI121: 0
C122: VALOR MERCADO | D122: 0 | E122: 0 | W122: 0 | BC122: 0 | BD122: 0 | BE122: 0 | BF122: 0 | BG122: 0 | BH122: 0 | BI122: 0
B123: VALOR MENSAL DO AUXÍLIO ESPECIAL - AUXILIO ODONTOLOGICO - POR POSTO
D124: =IF(D120="SIM",ROUND(SMALL(D121:D122,1),2),0) -> 0 | E124: 0 | W124: =V124 -> 0 | BC124: 0 | BD124: 0 | BE124: 0 | BF124: 0 | BG124: 0 | BH124: 0 | BI124: 0
B125: REEMBOLSO CRECHE
C126: OBRIGAÇÃO DE PAGTO | D126: NÃO | E126: NÃO | W126: =V126 -> 0 | BC126: 0 | BD126: 0 | BE126: 0 | BF126: 0 | BG126: 0 | BH126: 0 | BI126: 0
C127: VALOR CCT | D127: 0 | E127: 0 | W127: 0 | BC127: 0 | BD127: 0 | BE127: 0 | BF127: 0 | BG127: 0 | BH127: 0 | BI127: 0
C128: VALOR CALCULADO - % PESSOAS COM CRIANCAS ATE 6A - 20% | D128: 0 | E128: 0 | W128: 0 | BC128: 0 | BD128: 0 | BE128: 0 | BF128: 0 | BG128: 0 | BH128: 0 | BI128: 0
B129: VALOR MENSAL DO AUXÍLIO ESPECIAL - REEMBOLSO CRECHE - POR POSTO
D130: =IF(D126="SIM",ROUND(SMALL(D127:D128,1),2),0) -> 0 | E130: =IF(E126="SIM",ROUND(SMALL(E127:E128,1),2),0) -> 0 | W130: =V130 -> 0 | BC130: 0 | BD130: 0 | BE130: 0 | BF130: 0 | BG130: 0 | BH130: 0 | BI130: 0
B131: AUXÍLIO VESTUÁRIO ESPECIAL
C132: OBRIGAÇÃO DE PAGTO | D132: NÃO | E132: NÃO | W132: =V132 -> 0 | BC132: 0 | BD132: 0 | BE132: 0 | BF132: 0 | BG132: 0 | BH132: 0 | BI132: 0
C133: VALOR CCT | D133: 0 | E133: 0 | W133: 0 | BC133: 0 | BD133: 0 | BE133: 0 | BF133: 0 | BG133: 0 | BH133: 0 | BI133: 0
C134: VALOR MERCADO | D134: 0 | E134: 0 | W134: 0 | BC134: 0 | BD134: 0 | BE134: 0 | BF134: 0 | BG134: 0 | BH134: 0 | BI134: 0
B135: VALOR MENSAL DO AUXÍLIO ESPECIAL - VESTUTUÁRIO - POR POSTO
D136: =IF(D132="SIM",ROUND(SMALL(D133:D134,1),2),0) -> 0 | E136: =IF(E132="SIM",ROUND(SMALL(E133:E134,1),2),0) -> 0 | W136: =V136 -> 0 | BC136: 0 | BD136: 0 | BE136: 0 | BF136: 0 | BG136: 0 | BH136: 0 | BI136: 0
B137: BENEFÍCIO SOCIAL FAMILAR (§2º e §16º da CLÁUSULA 18ª DA CCT - obrigatório para empresas com menos de 100 empregados)
C138: OBRIGAÇÃO DE PAGTO | D138: NÃO | E138: NÃO | W138: =V138 -> 0 | BC138: 0 | BD138: 0 | BE138: 0 | BF138: 0 | BG138: 0 | BH138: 0 | BI138: 0
C139: VALOR CCT | W139: 0 | BC139: 0 | BD139: 0 | BE139: 0 | BF139: 0 | BG139: 0 | BH139: 0 | BI139: 0
C140: VALOR MERCADO | D140: 0 | E140: 0 | W140: 0 | BC140: 0 | BD140: 0 | BE140: 0 | BF140: 0 | BG140: 0 | BH140: 0 | BI140: 0
B141: VALOR MENSAL DO AUXÍLIO ESPECIAL - BENEFÍCIO SOCIAL FAMILIAR - POR POSTO
D142: =IF(D138="SIM",ROUND(SMALL(D139:D140,1),2),0) -> 0 | E142: =IF(E138="SIM",ROUND(SMALL(E139:E140,1),2),0) -> 0 | W142: =V142 -> 0 | BC142: 0 | BD142: 0 | BE142: 0 | BF142: 0 | BG142: 0 | BH142: 0 | BI142: 0
B143: TOTAL MENSAL DOS AUXÍLIOS ESPECIAIS - POR POSTO
D144: =+D118+D124+D130+D136+D142 -> 3.61 | E144: =+E118+E124+E130+E136+E142 -> 3.61 | W144: =V144 -> 0 | BC144: 0 | BD144: 0 | BE144: 0 | BF144: 0 | BG144: 0 | BH144: 0 | BI144: 0

Sheet Encargos Sociais
B4: ENCARGOS SOCIAIS SOBRE A MÃO DE OBRA
E5: Percentuais
B7: Referência:
C8: SINAPI/MPU
B10: Categorias:
C11: TODAS, EXCETO PLANTONISTAS
B13: GRUPO A: Encargos Sociais Básicos - Previdenciários (GPS), Fundo de Garantia por Tempo de Serviço (FGTS) e Outras Contribuições | E13: =ROUND(SUM(E14:E22),4) -> 0.348
C14: A | D14: INSS (art. 22, inciso I, Lei nº 8.212/91) | E14: 0.2
C15: B | D15: Salário Educação (art. 3º, inciso I, Decreto nº 87.043/82) | E15: 0.025 | G15: * Nota 1 - Os percentuais dos encargos previdenciários, do FGTS e demais contribuições são estabelecidos por legislação vigente.
C16: C | D16: SAT/RAT (art. 22, II, Lei 8.212/91 e Anexo V, Decreto 6.042/07) - Enquadramento 8211-3/00 | E16: 0.01 | G16: * Nota 2 - O SAT, a depender do grau de risco do serviço, irá variar entre 1%, para risco leve, de 2%, para risco médio, e de 3% para risco grave.
C17: D | D17: SESC ou SESI (art. 30, Lei nº 8.036/90 e art. 1º, Lei 8.154/90) | E17: 0.015 | G17: * Nota 3 - Os percentuais do Submódulo 2.2 incidem sobre o Módulo 1, o Submódulo 2.1, o Módulo 3, o Módulo 4 e o Módulo 6.
C18: E | D18: SENAI ou SENAC (Decreto nº 2.318/86) | E18: 0.01
C19: F | D19: SEBRAE (§ 3º, art. 8º, Lei 8.029/90, alterada pela Lei nº 8.154/90) | E19: 0.006
C20: G | D20: INCRA (art. 1º, I, Decreto Lei 1.146/70 e Lei 7.787, de 30/06/89) | E20: 0.002
C21: H | D21: FGTS (Lei Complementar nº 110/01 e art. 30, Lei nº 8.036/90) | E21: 0.08
C22: I | D22: SECONCI (Convenções Coletivas de Trabalho da construção) | E22: 0
B24: GRUPO B: Encargos Sociais Relacionados ao Custo do Profissional Ausente - Ausências Legais | E24: =ROUND(SUM(E25:E33),4) -> 0.2321
C25: A | D25: Férias (Arts. 129 e 130, inc. I, da CLT) | E25: =ROUND(1/11,4) -> 0.0909 | G25: * Nota 1 - As alíneas “A” a “F” referem-se somente ao custo que será pago ao repositor pelos dias trabalhados quando da necessidade de substituir a mão de obra alocada na prestação do serviço.
C26: B | D26: Ausências Legais (Arts. 131 e 473 da CLT) | E26: =ROUND(2/252,4) -> 0.0079 | G26: * Nota 2 - Adotou-se a estimativa do SINAPI de 2 dias por ano. Em 252 dias úteis por ano.
C27: C | D27: Licença-Paternidade (Art. 7º, XIX, e art. 10, §1º, do ADCT, CF/1988 e Art. 1º, II, da Lei 11.770/2008) | E27: =ROUND((5/(30*12))*0.0596,4) -> 0.0008 | G27: * Nota 3 - Utilizada a a estimativa de 5 dias de afastamento e a probabilidade de um trabalhador requerer a Licença Paternidade em 5,96%, conforme SINAPI (Anuário Estatístico da Previdência Social - 2017)
C28: D | D28: Ausência por Acidente de Trabalho (Art. 131, III, da CLT) | E28: =ROUND(0.0205*15/360,4) -> 0.0009 | G28: * Nota 4 - Utilzada a estatística de 2,05% dos contribuintes beneficiados com a emissão do auxílio, conforme Anuário Estatístico da Previdência Social. Afastamento de 15 dias a cargo da empresa.
C29: E | D29: Afastamento Maternidade (Art. 71 da Lei nº 8.213/1991) | E29: =ROUND(0.0508*(120/360)*(30+30*4/3)/360,4) -> 0.0033 | G29: * Nota 5 - Utilizada a estimativa de 120 dias de afastamento, e a probabilidade de uma trabalhadora requerer a Licença Maternidade em 5,08%, conforme SINAPI (citando dados do IBGE 2017) - A própria previdência paga o benefício pelos 120 dias, contudo o empregador arca com o 13º e com as férias
C30: F | D30: Auxílio Enfermidade - Doença (Art. 59 da Lei nº 8.213/1991) | E30: =ROUND(((0.0376*15)+2)/360,4) -> 0.0071 | G30: * Nota 6 - Utilizada a estatística de 3,76% dos contribuintes beneficiados com o auxílio, conforme Anuário Estatístico da Previdência Social de 2016 (acrescidos de 2 dias ao ano, para os quais o trabalhador nem requer o benefício da Previdência - conforme SINAPI)
C31: G | D31: Adicional de Férias (componente do Submódulo 2.1) | E31: =ROUND(1/3*1/11,4) -> 0.0303 | G31: * Nota 7 - O adicional de férias contido no Submódulo 2.1 corresponde a 1/3 da remuneração que, por sua vez, é dividida por 11 contome Nota 1.
C32: H | D32: 13º Salário (destacado na planilha de custos) | E32: =ROUND(1/11,4) -> 0.0909 | G32: * Nota 8 - Provisiona-se, mensalmente, o proporcional a 1/11 dos valores referentes a gratificação natalina
C33: I | D33: Intervalo para repouso ou alimentação (componente do Submódulo 4.2) | E33: 0
B35: GRUPO C: Encargos Sociais Relacionados à Previsão para Rescisão Trabalhista | E35: =ROUND(SUM(E36:E41),4) -> 0.0496
C36: A | D36: Aviso Prévio Indenizado (Art. 7º, inciso XXI, da CF/1988 e arts. 477, 487, §1º, e 491 da CLT) | E36: =ROUND(D54*30/360,4) -> 0.0042 | G36: * Nota 1 - Considerou-se 5% de demitidos sem justa causa ao ano e recebendo aviso indenizado (30 dias de aviso prévio / 360 dias ao ano)
C37: B | D37: Incidência do FGTS sobre o Aviso Prévio Indenizado (Súmula 305 TST) | E37: =ROUND(E21*E36,4) -> 0.0003
C38: C | D38: Multa do FGTS sobre o Aviso Prévio Indenizado (Art. 18, §1º, da Lei 8.036/1990) | E38: 0 | G38: * Nota 2 - como 100% da multa do FGTS está incidindo sobre o APT que será paga ao final do contrato, não é necessário prever a multa no API
C39: D | D39: Aviso Prévio Trabalhado (Art. 488, parágrafo único, CLT) | E39: =ROUND((7)*100%/(D56*30),4) -> 0.0097 | G39: * Nota 3 - Considerou-se demissões de 100% ao final do prazo do contrato. Assim, calcula-se 7 dias de aviso prévio trabalhado dividido pelo prazo do contrato.
C40: E | D40: Incidência de GPS, FGTS e outras contribuições sobre o Aviso Prévio Trabalhado | E40: =ROUND(E39*E13,4) -> 0.0034
C41: F | D41: Multa do FGTS | E41: =ROUND((0.4*E21),4) -> 0.032 | G41: * Nota 4 - 40% multa para o empregador x 8% FGTS
B43: GRUPO D: Reincidências | E43: =ROUND(SUM(E44:E44),4) -> 0.0808
C44: A | D44: Reincidência do Grupo A sobre o Grupo B | E44: =ROUND(E13*E24,4) -> 0.0808
D46: SOMATÓRIO - ENCARGOS SOCIAIS SOBRE A MÃO DE OBRA | E46: =E43+E35+E24+E13 -> 0.7105
C50: ENCARGOS SEM O 13º
D51: =E46-E32-E32*E13 -> 0.5879668
C53: % DEMITIDOS AO LONGO DO ANO
D54: 0.05
C55: PRAZO DO CONTRATO (EM MESES)
D56: 24

Sheet Encargos Sociais - HE (hidden)
B4: ENCARGOS SOCIAIS SOBRE A MÃO DE OBRA
E5: Percentuais
B7: Referência:
C8: SINAPI/MPU
B10: Categorias:
C11: TODAS, EXCETO PLANTONISTAS
B13: GRUPO A: Encargos Sociais Básicos - Previdenciários (GPS), Fundo de Garantia por Tempo de Serviço (FGTS) e Outras Contribuições | E13: =ROUND(SUM(E14:E22),4) -> 0.348
C14: ='Encargos Sociais'!C14 -> A | D14: ='Encargos Sociais'!D14 -> INSS (art. 22, inciso I, Lei nº 8.212/91) | E14: ='Encargos Sociais'!E14 -> 0.2
C15: ='Encargos Sociais'!C15 -> B | D15: ='Encargos Sociais'!D15 -> Salário Educação (art. 3º, inciso I, Decreto nº 87.043/82) | E15: ='Encargos Sociais'!E15 -> 0.025 | G15: * Nota 1 - Os percentuais dos encargos previdenciários, do FGTS e demais contribuições são estabelecidos por legislação vigente.
C16: ='Encargos Sociais'!C16 -> C | D16: ='Encargos Sociais'!D16 -> SAT/RAT (art. 22, II, Lei 8.212/91 e Anexo V, Decreto 6.042/07) - Enquadramento 8211-3/00 | E16: ='Encargos Sociais'!E16 -> 0.01 | G16: * Nota 2 - O SAT, a depender do grau de risco do serviço, irá variar entre 1%, para risco leve, de 2%, para risco médio, e de 3% para risco grave.
C17: ='Encargos Sociais'!C17 -> D | D17: ='Encargos Sociais'!D17 -> SESC ou SESI (art. 30, Lei nº 8.036/90 e art. 1º, Lei 8.154/90) | E17: ='Encargos Sociais'!E17 -> 0.015 | G17: * Nota 3 - Os percentuais do Submódulo 2.2 incidem sobre o Módulo 1, o Submódulo 2.1, o Módulo 3, o Módulo 4 e o Módulo 6.
C18: ='Encargos Sociais'!C18 -> E | D18: ='Encargos Sociais'!D18 -> SENAI ou SENAC (Decreto nº 2.318/86) | E18: ='Encargos Sociais'!E18 -> 0.01
C19: ='Encargos Sociais'!C19 -> F | D19: ='Encargos Sociais'!D19 -> SEBRAE (§ 3º, art. 8º, Lei 8.029/90, alterada pela Lei nº 8.154/90) | E19: ='Encargos Sociais'!E19 -> 0.006
C20: ='Encargos Sociais'!C20 -> G | D20: ='Encargos Sociais'!D20 -> INCRA (art. 1º, I, Decreto Lei 1.146/70 e Lei 7.787, de 30/06/89) | E20: ='Encargos Sociais'!E20 -> 0.002
C21: ='Encargos Sociais'!C21 -> H | D21: ='Encargos Sociais'!D21 -> FGTS (Lei Complementar nº 110/01 e art. 30, Lei nº 8.036/90) | E21: ='Encargos Sociais'!E21 -> 0.08
C22: ='Encargos Sociais'!C22 -> I | D22: ='Encargos Sociais'!D22 -> SECONCI (Convenções Coletivas de Trabalho da construção) | E22: ='Encargos Sociais'!E22 -> 0
B24: GRUPO B: Encargos Sociais Relacionados ao Custo do Profissional Ausente - Ausências Legais | E24: =ROUND(SUM(E25:E33),4) -> 0.3988
C25: ='Encargos Sociais'!C25 -> A | D25: ='Encargos Sociais'!D25 -> Férias (Arts. 129 e 130, inc. I, da CLT) | E25: ='Encargos Sociais'!E25 -> 0.0909 | G25: * Nota 1 - As alíneas “A” a “F” referem-se somente ao custo que será pago ao repositor pelos dias trabalhados quando da necessidade de substituir a mão de obra alocada na prestação do serviço.
C26: ='Encargos Sociais'!C26 -> B | D26: ='Encargos Sociais'!D26 -> Ausências Legais (Arts. 131 e 473 da CLT) | E26: ='Encargos Sociais'!E26 -> 0.0079 | G26: * Nota 2 - Adotou-se a estimativa do SINAPI de 2 dias por ano. Em 252 dias úteis por ano.
C27: ='Encargos Sociais'!C27 -> C | D27: ='Encargos Sociais'!D27 -> Licença-Paternidade (Art. 7º, XIX, e art. 10, §1º, do ADCT, CF/1988 e Art. 1º, II, da Lei 11.770/2008) | E27: ='Encargos Sociais'!E27 -> 0.0008 | G27: * Nota 3 - Utilizada a proporção de 50% para homens, 5 dias de afastamento, e a probabilidade de um trabalhador requerer a Licença Paternidade em 5,96%, conforme SINAPI (Anuário Estatístico da Previdência Social - 2017)
C28: ='Encargos Sociais'!C28 -> D | D28: ='Encargos Sociais'!D28 -> Ausência por Acidente de Trabalho (Art. 131, III, da CLT) | E28: ='Encargos Sociais'!E28 -> 0.0009 | G28: * Nota 4 - Utilzada a estatística de 2,05% dos contribuintes beneficiados com a emissão do auxílio, conforme Anuário Estatístico da Previdência Social. Afastamento de 15 dias a cargo da empresa.
C29: ='Encargos Sociais'!C29 -> E | D29: ='Encargos Sociais'!D29 -> Afastamento Maternidade (Art. 71 da Lei nº 8.213/1991) | E29: ='Encargos Sociais'!E29 -> 0.0033 | G29: * Nota 5 - Utilizada a estimativa de 120 dias de afastamento, e a probabilidade de uma trabalhadora requerer a Licença Maternidade em 5,08%, conforme SINAPI (citando dados do IBGE 2017) - A própria previdência paga o benefício pelos 120 dias, contudo o empregador arca com o 13º e com as férias
C30: ='Encargos Sociais'!C30 -> F | D30: ='Encargos Sociais'!D30 -> Auxílio Enfermidade - Doença (Art. 59 da Lei nº 8.213/1991) | E30: ='Encargos Sociais'!E30 -> 0.0071 | G30: * Nota 6 - Utilizada a estatística de 3,76% dos contribuintes beneficiados com o auxílio, conforme Anuário Estatístico da Previdência Social de 2016 (acrescidos de 2 dias ao ano, para os quais o trabalhador nem requer o benefício da Previdência - conforme SINAPI)
C31: ='Encargos Sociais'!C31 -> G | D31: ='Encargos Sociais'!D31 -> Adicional de Férias (componente do Submódulo 2.1) | E31: ='Encargos Sociais'!E31 -> 0.0303 | G31: * Nota 7 - O adicional de férias contido no Submódulo 2.1 corresponde a 1/3 da remuneração que, por sua vez, é dividida por 11 contome Nota 1.
C32: ='Encargos Sociais'!C32 -> H | D32: ='Encargos Sociais'!D32 -> 13º Salário (destacado na planilha de custos) | E32: ='Encargos Sociais'!E32 -> 0.0909 | G32: * Nota 8 - Provisiona-se, mensalmente, o proporcional a 1/12 dos valores referentes a gratificação natalina e adicional de férias.
C33: I | D33: Repouso Semanal Remunerado (DSR) | E33: =5/30 -> 0.1666666667
B35: GRUPO C: Encargos Sociais Relacionados à Previsão para Rescisão Trabalhista | E35: =ROUND(SUM(E36:E41),4) -> 0.0496
C36: ='Encargos Sociais'!C36 -> A | D36: ='Encargos Sociais'!D36 -> Aviso Prévio Indenizado (Art. 7º, inciso XXI, da CF/1988 e arts. 477, 487, §1º, e 491 da CLT) | E36: ='Encargos Sociais'!E36 -> 0.0042 | G36: * Nota 1 - Considerou-se 5% de demitidos sem justa causa ao ano e recebendo aviso indenizado (30 dias de aviso prévio / 360 dias ao ano)
C37: ='Encargos Sociais'!C37 -> B | D37: ='Encargos Sociais'!D37 -> Incidência do FGTS sobre o Aviso Prévio Indenizado (Súmula 305 TST) | E37: ='Encargos Sociais'!E37 -> 0.0003
C38: ='Encargos Sociais'!C38 -> C | D38: ='Encargos Sociais'!D38 -> Multa do FGTS sobre o Aviso Prévio Indenizado (Art. 18, §1º, da Lei 8.036/1990) | E38: ='Encargos Sociais'!E38 -> 0 | G38: * Nota 2 - Incide sobre a Remuneração + 13º salário (1/12) + Férias (1/12) + Adicional de Férias (1/36) x 40% multa para o empregador x 8% FGTS x taxa de rotatividade estimada 5%
C39: ='Encargos Sociais'!C39 -> D | D39: ='Encargos Sociais'!D39 -> Aviso Prévio Trabalhado (Art. 488, parágrafo único, CLT) | E39: ='Encargos Sociais'!E39 -> 0.0097 | G39: * Nota 3 - Considerou-se demissões de 100% ao final do prazo do contrato. Assim, calcula-se 7 dias de aviso prévio trabalhado dividido pelo prazo do contrato.
C40: ='Encargos Sociais'!C40 -> E | D40: ='Encargos Sociais'!D40 -> Incidência de GPS, FGTS e outras contribuições sobre o Aviso Prévio Trabalhado | E40: ='Encargos Sociais'!E40 -> 0.0034
C41: ='Encargos Sociais'!C41 -> F | D41: ='Encargos Sociais'!D41 -> Multa do FGTS | E41: ='Encargos Sociais'!E41 -> 0.032 | G41: * Nota 4 - Incide sobre a Remuneração + 13º salário (1/12) + Férias (1/12) + Adicional de Férias (1/36) x 40% multa para o empregador x 8% FGTS
B43: GRUPO D: Reincidências | E43: =ROUND(SUM(E44:E44),4) -> 0.1388
C44: A | D44: Reincidência do Grupo A sobre o Grupo B | E44: =ROUND(E13*E24,4) -> 0.1388
D46: SOMATÓRIO - ENCARGOS SOCIAIS SOBRE A MÃO DE OBRA | E46: =E43+E35+E24+E13 -> 0.9352
C50: ENCARGOS SEM O 13º
D51: =E46-E32-E32*E13 -> 0.8126668
C53: % DEMITIDOS AO LONGO DO ANO
D54: 0.05
C55: PRAZO DO CONTRATO (EM MESES)
D56: 30

Sheet Encargos Sociais - Plant (hidden)
B4: ENCARGOS SOCIAIS SOBRE A MÃO DE OBRA
E5: Percentuais
B7: Referência:
C8: SINAPI/MPU
B10: Categorias:
C11: 8, 9, 13, 14
B13: GRUPO A: Encargos Sociais Básicos - Previdenciários (GPS), Fundo de Garantia por Tempo de Serviço (FGTS) e Outras Contribuições | E13: =ROUND(SUM(E14:E22),4) -> 0.358
C14: A | D14: INSS (art. 22, inciso I, Lei nº 8.212/91) | E14: 0.2
C15: B | D15: Salário Educação (art. 3º, inciso I, Decreto nº 87.043/82) | E15: 0.025 | G15: * Nota 1 - Os percentuais dos encargos previdenciários, do FGTS e demais contribuições são estabelecidos por legislação vigente.
C16: C | D16: SAT/RAT (art. 22, II, Lei 8.212/91 e Anexo V, Decreto 6.042/07) - Enquadramento 9103-1/00 | E16: 0.01 | G16: * Nota 2 - O SAT, a depender do grau de risco do serviço, irá variar entre 1%, para risco leve, de 2%, para risco médio, e de 3% para risco grave.
C17: D | D17: SESC ou SESI (art. 30, Lei nº 8.036/90 e art. 1º, Lei 8.154/90) | E17: 0.015 | G17: * Nota 3 - Os percentuais do Submódulo 2.2 incidem sobre o Módulo 1, o Submódulo 2.1, o Módulo 3, o Módulo 4 e o Módulo 6.
C18: E | D18: SENAI ou SENAC (Decreto nº 2.318/86) | E18: 0.01
C19: F | D19: SEBRAE (§ 3º, art. 8º, Lei 8.029/90, alterada pela Lei nº 8.154/90) | E19: 0.006
C20: G | D20: INCRA (art. 1º, I, Decreto Lei 1.146/70 e Lei 7.787, de 30/06/89) | E20: 0.002
C21: H | D21: FGTS (Lei Complementar nº 110/01 e art. 30, Lei nº 8.036/90) | E21: 0.08
C22: I | D22: SECONCI (Convenções Coletivas de Trabalho da construção) | E22: 0.01
B24: GRUPO B: Encargos Sociais Relacionados ao Custo do Profissional Ausente - Ausências Legais | E24: =ROUND(SUM(E25:E33),4) -> 0.2578
C25: A | D25: Férias (Arts. 129 e 130, inc. I, da CLT) | E25: =ROUND(1/11,4) -> 0.0909 | G25: * Nota 1 - As alíneas “A” a “F” referem-se somente ao custo que será pago ao repositor pelos dias trabalhados quando da necessidade de substituir a mão de obra alocada na prestação do serviço.
C26: B | D26: Ausências Legais (Arts. 131 e 473 da CLT) | E26: =ROUND(2/252,4) -> 0.0079 | G26: * Nota 2 - Adotou-se a estimativa do SINAPI de 2 dias por ano. Em 252 dias úteis por ano.
C27: C | D27: Licença-Paternidade (Art. 7º, XIX, e art. 10, §1º, do ADCT, CF/1988 e Art. 1º, II, da Lei 11.770/2008) | E27: =ROUND((5/(30*12))*0.0596,4) -> 0.0008 | G27: * Nota 3 - Utilizada a proporção de 50% para homens, 5 dias de afastamento, e a probabilidade de um trabalhador requerer a Licença Paternidade em 5,96%, conforme SINAPI (Anuário Estatístico da Previdência Social - 2017)
C28: D | D28: Ausência por Acidente de Trabalho (Art. 131, III, da CLT) | E28: =ROUND(0.0205*15/360,4) -> 0.0009 | G28: * Nota 4 - Utilzada a estatística de 2,05% dos contribuintes beneficiados com a emissão do auxílio, conforme Anuário Estatístico da Previdência Social. Afastamento de 15 dias a cargo da empresa.
C29: E | D29: Afastamento Maternidade (Art. 71 da Lei nº 8.213/1991) | E29: =ROUND(0.0508*(120/360)*(30+30*4/3)/360,4) -> 0.0033 | G29: * Nota 5 - Utilizada a estimativa de 120 dias de afastamento, e a probabilidade de uma trabalhadora requerer a Licença Maternidade em 5,08%, conforme SINAPI (citando dados do IBGE 2017) - A própria previdência paga o benefício pelos 120 dias, contudo o empregador arca com o 13º e com as férias
C30: F | D30: Auxílio Enfermidade - Doença (Art. 59 da Lei nº 8.213/1991) | E30: =ROUND(((0.0376*15)+2)/360,4) -> 0.0071 | G30: * Nota 6 - Utilizada a estatística de 3,76% dos contribuintes beneficiados com o auxílio, conforme Anuário Estatístico da Previdência Social de 2016 (acrescidos de 2 dias ao ano, para os quais o trabalhador nem requer o benefício da Previdência - conforme SINAPI)
C31: G | D31: Adicional de Férias (componente do Submódulo 2.1) | E31: =ROUND(1/3*1/11,4) -> 0.0303 | G31: * Nota 7 - O adicional de férias contido no Submódulo 2.1 corresponde a 1/3 da remuneração que, por sua vez, é dividida por 12 contome Nota 1.
C32: H | D32: 13º Salário (destacado na planilha de custos) | E32: 0.0833 | G32: * Nota 8 - Provisiona-se, mensalmente, o proporcional a 1/12 dos valores referentes a gratificação natalina e adicional de férias.
C33: I | D33: Feriados remunerados (plantonistas) | E33: =12/360 -> 0.03333333333 | G33: * Nota 9 - Em média, 12 feriados anuais
B35: GRUPO C: Encargos Sociais Relacionados à Previsão para Rescisão Trabalhista | E35: =ROUND(SUM(E36:E41),4) -> 0.0464
C36: A | D36: Aviso Prévio Indenizado (Art. 7º, inciso XXI, da CF/1988 e arts. 477, 487, §1º, e 491 da CLT) | E36: =ROUND(0.035*30/300,4) -> 0.0035 | G36: * Nota 1 - Considerou-se 3,5% de demitidos sem justa causa ao ano e recebendo aviso indenizado
C37: B | D37: Incidência do FGTS sobre o Aviso Prévio Indenizado (Súmula 305 TST) | E37: =ROUND(E21*E36,4) -> 0.0003
C38: C | D38: Multa do FGTS e Contribuição Social sobre o Aviso Prévio Indenizado (Art. 18, §1º, da Lei 8.036/1990 e art. 1º da LC nº 110/2001) | E38: =ROUND(0.4*E21*0.035,4) -> 0.0011 | G38: * Nota 2 - Incide sobre a Remuneração + 13º salário (1/12) + Férias (1/12) + Adicional de Férias (1/36) x 40% multa para o empregador x 8% FGTS x taxa de rotatividade estimada 3,5%
C39: D | D39: Aviso Prévio Trabalhado (Art. 488, parágrafo único, CLT) | E39: =ROUND((7/360)*12/30,4) -> 0.0078 | G39: * Nota 3 - Considerou-se demissões de 100% ao final do contrato, com um prazo médio estimado de 30 meses
C40: E | D40: Incidência de GPS, FGTS e outras contribuições sobre o Aviso Prévio Trabalhado | E40: =ROUND(E39*E13,4) -> 0.0028
C41: F | D41: Multa do FGTS e Contribuição Social sobre o Aviso Prévio Trabalhado | E41: =ROUND((0.4*E21*(1-0.035)),4) -> 0.0309 | G41: * Nota 4 - Incide sobre a Remuneração + 13º salário (1/12) + Férias (1/12) + Adicional de Férias (1/36) x 40% multa para o empregador x 8% FGTS x (1- taxa de rotatividade estimada Nota2)
B43: GRUPO D: Reincidências | E43: =ROUND(SUM(E44:E44),4) -> 0.0923
C44: A | D44: Reincidência do Grupo A sobre o Grupo B | E44: =ROUND(E13*E24,4) -> 0.0923
D46: SOMATÓRIO - ENCARGOS SOCIAIS SOBRE A MÃO DE OBRA | E46: =E43+E35+E24+E13 -> 0.7545

Sheet BDI - Geral
B4: COMPOSIÇÃO DA TAXA DE CUSTOS INDIRETOS, TRIBUTOS E LUCRO - BDI
B5: APLICAÇÃO: MÃO DE OBRA, 13º, HORAS EXTRAS (SOB DEMANDA), SREP, EPI, UNIFORMES, FERRAMENTAS, EQUIPAMENTOS, MATERIAIS DE CONSUMO,PROFISSIONAIS NÃO RESIDENTES, VEÍCULOS E SERVIÇOS ADICIONAIS | E5: Percentuais
B7: Custos Indiretos da Contratada | E7: =SUM(E8:E9) -> 0.027
C8: A | D8: Administração Central - Inclui despesas para o atendimento às exigências da NR-04 | E8: 0.0216 | G8: * Nota 1 - O Somatório da Administração Central com o Lucro deve ser inferior a 12%
C9: B | D9: Seguros, Garantias e Riscos | E9: =0.34%+0.2% -> 0.0054 | G9: * Nota 2 - O risco previsto para o porte do contrato majorado em mais 0,20% devido ao não pagamento dos insumos componentes do custo do posto quando da ausência do mesmo.
B11: Lucro | E11: =SUM(E12:E12) -> 0.0334
C12: A | D12: Lucro Real sobre os Custos Administrados | E12: 0.0334
B14: Despesas Financeiras | E14: =E15 -> 0.0061
C15: A | D15: Cálculo Baseado no Prazo para a Restituição dos Desembolsos Realizados pelo Contratado e na Taxa de Retorno Arbitrada | E15: =ROUND((1+E17)^(E16/252)-1,4) -> 0.0061 | G15: * Nota 1 - DF = [(1+TR)^(DU/252)]/100
C16: A.1 | D16: Dias Úteis Considerados | E16: 11 | G16: * Nota 2 - Diferença de dias entre o desembolso, pelo contratado, e o pagamento, pela Câmara
C17: A.2 | D17: Taxa de Retorno | E17: 0.15 | G17: * Nota 3 - A taxa sugerida é a meta da SELIC
B19: Impostos - Tributos Federais | E19: =SUM(E20:E22) -> 0.074
C20: A | D20: Contribuição para o Financiamento da Seguridade Social - COFINS | E20: =ROUND(0.8*7.6%,4) -> 0.0608 | G20: * Nota 1 - Redução de 20% considerando as deduções permitidas em Lei, conforme SENGE, citado pelo TCU - Acórdão 2622/2013
C21: B | D21: Programa de Integração Social - PIS | E21: =ROUND(0.8*1.65%,4) -> 0.0132 | G21: * Nota 2 - Redução de 20% considerando as deduções permitidas em Lei, conforme SENGE, citado pelo TCU - Acórdão 2622/2013
C22: C | D22: Contribuição Previdenciária sobre a Receita Bruta - CPRB | E22: 0 | G22: * Nota 3 - Lei 12.546/2011 - Verificar atualizações e setores beneficiados
B24: Impostos - Tributos Distritais | E24: =SUM(E25:E25) -> 0.05
C25: A | D25: Imposto sobre Serviço de Qualquer Natureza - ISS | E25: 0.05 | G25: * Nota 1 - Adotada a alíquota de 5% considerando o enquadramento como fornecimento de mão de obra contratada pelo prestador, serviço previsto no item 17.05 do Manual do Substitutivo Tributário do ISS/DF e artigo 27 do Decreto 25.508/2005 do GDF
D27: SOMATÓRIO - BDI | E27: =ROUND((((1+E7)*(1+E11)*(1+E14)/(1-E19-E24))-1),4) -> 0.2189 | G27: * Nota 1 - [(1+AC+SGR)*(1+L)*(1+DF)/(1-CONFINS-PIS-CPRB-ISS)]-1

Sheet BDI - Demanda (hidden)
B4: COMPOSIÇÃO DA TAXA DE CUSTOS INDIRETOS, TRIBUTOS E LUCRO - BDI
B5: APLICAÇÃO: TRANSPORTE POR CHAMADO (SOB DEMANDA), MATERIAIS E SERVIÇOS PARA INSTALAÇÃO (SOB DEMANDA), MATERIAIS E SERVIÇOS PARA MANUTENÇÃO CORRETIVA (SOB DEMANDA) | E5: Percentuais
B7: Custos Indiretos da Contratada | E7: =SUM(E8:E9) -> 0.025
C8: A | D8: Administração Central - Inclui despesas para o atendimento às exigências da NR-04 | E8: 0.0216 | G8: * Nota 1 - O Somatório da Administração Central com o Lucro deve ser inferior a 12%
C9: B | D9: Seguros, Garantias e Riscos | E9: =0.34% -> 0.0034
B11: Lucro | E11: =SUM(E12:E12) -> 0.0334
C12: A | D12: Lucro Real sobre os Custos Administrados | E12: 0.0334
B14: Despesas Financeiras | E14: =E15 -> 0.0058
C15: A | D15: Cálculo Baseado no Prazo para a Restituição dos Desembolsos Realizados pelo Contratado e na Taxa de Retorno Arbitrada | E15: =ROUND((1+E17)^(E16/252)-1,4) -> 0.0058 | G15: * Nota 1 - DF = [(1+TR)^(DU/252)]/100
C16: A.1 | D16: Dias Úteis Considerados | E16: 11 | G16: * Nota 2 - Diferença de dias entre o desembolso, pelo contratado, e o pagamento, pela Câmara
C17: A.2 | D17: Taxa de Retorno | E17: 0.1425 | G17: * Nota 3 - A taxa sugerida é a meta da SELIC
B19: Impostos - Tributos Federais | E19: =SUM(E20:E22) -> 0.0453
C20: A | D20: Contribuição para o Financiamento da Seguridade Social - COFINS | E20: =ROUND(7.6%*10%,4) -> 0.0076 | G20: * Nota 1 - Redução da base de cálculo para 10%, equivalente à estimativa de valor agregado sobre os itens sob demanda.
C21: B | D21: Programa de Integração Social - PIS | E21: =ROUND(1.65%*10%,4) -> 0.0017 | G21: * Nota 2 - Redução da base de cálculo para 10%, equivalente à estimativa de valor agregado sobre os itens sob demanda.
C22: C | D22: Contribuição Previdenciária sobre a Receita Bruta - CPRB | E22: =80%*4.5% -> 0.036 | G22: * Nota 3 - Lei 12.546/2011 - Verificar atualizações e setores beneficiados
B24: Impostos - Tributos Distritais | E24: =SUM(E25:E25) -> 0.05
C25: A | D25: Imposto sobre Serviço de Qualquer Natureza - ISS | E25: 0.05 | G25: * Nota 1 - Adotada a alíquota de 5% considerando o enquadramento como fornecimento de mão de obra contratada pelo prestador, serviço previsto no item 17.05 do Manual do Substitutivo Tributário do ISS/DF e artigo 27 do Decreto 25.508/2005 do GDF
D27: SOMATÓRIO - BDI | E27: =ROUND((((1+E7)*(1+E11)*(1+E14)/(1-E19-E24))-1),4) -> 0.1776 | G27: * Nota 1 - [(1+AC+SGR)*(1+L)*(1+DF)/(1-CONFINS-PIS-CPRB-ISS)]-1

Sheet Uniformes (hidden)
B3: UNIFORMES - AQUISIÇÃO | J3: 1 | L3: =J3+1 -> 2 | N3: =L3+1 -> 3 | P3: =N3+1 -> 4 | R3: =P3+1 -> 5 | T3: =R3+1 -> 6 | V3: =T3+1 -> 7 | X3: =V3+1 -> 8 | Z3: =X3+1 -> 9 | AB3: =Z3+1 -> 10 | AD3: =AB3+1 -> 11 | AF3: =AD3+1 -> 12 | AH3: =AF3+1 -> 13 | AJ3: =AH3+1 -> 14 | AL3: =AJ3+1 -> 15 | AN3: =AL3+1 -> 16 | AP3: =AN3+1 -> 17 | AR3: =AP3+1 -> 18 | AT3: =AR3+1 -> 19 | AV3: =AT3+1 -> 20 | AX3: =AV3+1 -> 21 | AZ3: =AX3+1 -> 22 | BB3: =AZ3+1 -> 23 | BD3: =BB3+1 -> 24 | BF3: =BD3+1 -> 25 | BH3: =BF3+1 -> 26 | BJ3: =BH3+1 -> 27 | BL3: =BJ3+1 -> 28 | BN3: =BL3+1 -> 29 | BP3: =BN3+1 -> 30 | BR3: =BP3+1 -> 31 | BT3: =BR3+1 -> 32 | BV3: =BT3+1 -> 33 | BX3: =BV3+1 -> 34 | BZ3: =BX3+1 -> 35 | CB3: =BZ3+1 -> 36 | CD3: =CB3+1 -> 37 | CF3: =CD3+1 -> 38 | CH3: =CF3+1 -> 39 | CJ3: =CH3+1 -> 40 | CL3: =CJ3+1 -> 41 | CN3: =CL3+1 -> 42 | CP3: =CN3+1 -> 43 | CR3: =CP3+1 -> 44 | CT3: =CR3+1 -> 45 | CV3: =CT3+1 -> 46 | CX3: =CV3+1 -> 47 | CZ3: =CX3+1 -> 48 | DB3: =CZ3+1 -> 49 | DD3: =DB3+1 -> 50 | DF3: =DD3+1 -> 51 | DH3: =DF3+1 -> 52 | DJ3: =DH3+1 -> 53 | DL3: =DJ3+1 -> 54 | DN3: =DL3+1 -> 55 | DP3: =DN3+1 -> 56 | DR3: =DP3+1 -> 57 | DT3: =DR3+1 -> 58 | DV3: =DT3+1 -> 59 | DX3: =DV3+1 -> 60
J5: =TRUNC(SUM(K4:K267),2) -> 0 | L5: =TRUNC(SUM(M4:M267),2) -> 0 | N5: =TRUNC(SUM(O4:O267),2) -> 0 | P5: =TRUNC(SUM(Q4:Q267),2) -> 0 | R5: =TRUNC(SUM(S4:S267),2) -> 0 | T5: =TRUNC(SUM(U4:U267),2) -> 0 | V5: =TRUNC(SUM(W4:W267),2) -> 0 | X5: =TRUNC(SUM(Y4:Y267),2) -> 0 | Z5: =TRUNC(SUM(AA4:AA267),2) -> 0 | AB5: =TRUNC(SUM(AC4:AC267),2) -> 0 | AD5: =TRUNC(SUM(AE4:AE267),2) -> 0 | AF5: =TRUNC(SUM(AG4:AG267),2) -> 0 | AH5: =TRUNC(SUM(AI4:AI267),2) -> 0 | AJ5: =TRUNC(SUM(AK4:AK267),2) -> 0 | AL5: =TRUNC(SUM(AM4:AM267),2) -> 0 | AN5: =TRUNC(SUM(AO4:AO267),2) -> 0 | AP5: =TRUNC(SUM(AQ4:AQ267),2) -> 0 | AR5: =TRUNC(SUM(AS4:AS267),2) -> 0 | AT5: =TRUNC(SUM(AU4:AU267),2) -> 0 | AV5: =TRUNC(SUM(AW4:AW267),2) -> 0 | AX5: =TRUNC(SUM(AY4:AY267),2) -> 0 | AZ5: =TRUNC(SUM(BA4:BA267),2) -> 0 | BB5: =TRUNC(SUM(BC4:BC267),2) -> 0 | BD5: =TRUNC(SUM(BE4:BE267),2) -> 0 | BF5: =TRUNC(SUM(BG4:BG267),2) -> 0 | BH5: =TRUNC(SUM(BI4:BI267),2) -> 0 | BJ5: =TRUNC(SUM(BK4:BK267),2) -> 0 | BL5: =TRUNC(SUM(BM4:BM267),2) -> 0 | BN5: =TRUNC(SUM(BO4:BO267),2) -> 0 | BP5: =TRUNC(SUM(BQ4:BQ267),2) -> 0 | BR5: =TRUNC(SUM(BS4:BS267),2) -> 0 | BT5: =TRUNC(SUM(BU4:BU267),2) -> 0 | BV5: =TRUNC(SUM(BW4:BW267),2) -> 0 | BX5: =TRUNC(SUM(BY4:BY267),2) -> 0 | BZ5: =TRUNC(SUM(CA4:CA267),2) -> 0 | CB5: =TRUNC(SUM(CC4:CC267),2) -> 0 | CD5: =TRUNC(SUM(CE4:CE267),2) -> 0 | CF5: =TRUNC(SUM(CG4:CG267),2) -> 0 | CH5: =TRUNC(SUM(CI4:CI267),2) -> 0 | CJ5: =TRUNC(SUM(CK4:CK267),2) -> 0 | CL5: =TRUNC(SUM(CM4:CM267),2) -> 0 | CN5: =TRUNC(SUM(CO4:CO267),2) -> 0 | CP5: =TRUNC(SUM(CQ4:CQ267),2) -> 0 | CR5: =TRUNC(SUM(CS4:CS267),2) -> 0 | CT5: =TRUNC(SUM(CU4:CU267),2) -> 0 | CV5: =TRUNC(SUM(CW4:CW267),2) -> 0 | CX5: =TRUNC(SUM(CY4:CY267),2) -> 0 | CZ5: =TRUNC(SUM(DA4:DA267),2) -> 0 | DB5: =TRUNC(SUM(DC4:DC267),2) -> 0 | DD5: =TRUNC(SUM(DE4:DE267),2) -> 0 | DF5: =TRUNC(SUM(DG4:DG267),2) -> 0 | DH5: =TRUNC(SUM(DI4:DI267),2) -> 0 | DJ5: =TRUNC(SUM(DK4:DK267),2) -> 0 | DL5: =TRUNC(SUM(DM4:DM267),2) -> 0 | DN5: =TRUNC(SUM(DO4:DO267),2) -> 0 | DP5: =TRUNC(SUM(DQ4:DQ267),2) -> 0 | DR5: =TRUNC(SUM(DS4:DS267),2) -> 0 | DT5: =TRUNC(SUM(DU4:DU267),2) -> 0 | DV5: =TRUNC(SUM(DW4:DW267),2) -> 0 | DX5: =TRUNC(SUM(DY4:DY267),2) -> 0
C6: CATEGORIAS | G6: QUANTIDADE
J7: =IF($C7=J$3,1,0) -> 0 | L7: =IF($C7=L$3,1,0) -> 0 | N7: =IF($C7=N$3,1,0) -> 0 | P7: =IF($C7=P$3,1,0) -> 0 | R7: =IF($C7=R$3,1,0) -> 0 | T7: =IF($C7=T$3,1,0) -> 0 | V7: =IF($C7=V$3,1,0) -> 0 | X7: =IF($C7=X$3,1,0) -> 0 | Z7: =IF($C7=Z$3,1,0) -> 0 | AB7: =IF($C7=AB$3,1,0) -> 0 | AD7: =IF($C7=AD$3,1,0) -> 0 | AF7: =IF($C7=AF$3,1,0) -> 0 | AH7: =IF($C7=AH$3,1,0) -> 0 | AJ7: =IF($C7=AJ$3,1,0) -> 0 | AL7: =IF($C7=AL$3,1,0) -> 0 | AN7: =IF($C7=AN$3,1,0) -> 0 | AP7: =IF($C7=AP$3,1,0) -> 0 | AR7: =IF($C7=AR$3,1,0) -> 0 | AT7: =IF($C7=AT$3,1,0) -> 0 | AV7: =IF($C7=AV$3,1,0) -> 0 | AX7: =IF($C7=AX$3,1,0) -> 0 | AZ7: =IF($C7=AZ$3,1,0) -> 0 | BB7: =IF($C7=BB$3,1,0) -> 0 | BD7: =IF($C7=BD$3,1,0) -> 0 | BF7: =IF($C7=BF$3,1,0) -> 0 | BH7: =IF($C7=BH$3,1,0) -> 0 | BJ7: =IF($C7=BJ$3,1,0) -> 0 | BL7: =IF($C7=BL$3,1,0) -> 0 | BN7: =IF($C7=BN$3,1,0) -> 0 | BP7: =IF($C7=BP$3,1,0) -> 0 | BR7: =IF($C7=BR$3,1,0) -> 0 | BT7: =IF($C7=BT$3,1,0) -> 0 | BV7: =IF($C7=BV$3,1,0) -> 0 | BX7: =IF($C7=BX$3,1,0) -> 0 | BZ7: =IF($C7=BZ$3,1,0) -> 0 | CB7: =IF($C7=CB$3,1,0) -> 0 | CD7: =IF($C7=CD$3,1,0) -> 0 | CF7: =IF($C7=CF$3,1,0) -> 0 | CH7: =IF($C7=CH$3,1,0) -> 0 | CJ7: =IF($C7=CJ$3,1,0) -> 0 | CL7: =IF($C7=CL$3,1,0) -> 0 | CN7: =IF($C7=CN$3,1,0) -> 0 | CP7: =IF($C7=CP$3,1,0) -> 0 | CR7: =IF($C7=CR$3,1,0) -> 0 | CT7: =IF($C7=CT$3,1,0) -> 0 | CV7: =IF($C7=CV$3,1,0) -> 0 | CX7: =IF($C7=CX$3,1,0) -> 0 | CZ7: =IF($C7=CZ$3,1,0) -> 0 | DB7: =IF($C7=DB$3,1,0) -> 0 | DD7: =IF($C7=DD$3,1,0) -> 0 | DF7: =IF($C7=DF$3,1,0) -> 0 | DH7: =IF($C7=DH$3,1,0) -> 0 | DJ7: =IF($C7=DJ$3,1,0) -> 0 | DL7: =IF($C7=DL$3,1,0) -> 0 | DN7: =IF($C7=DN$3,1,0) -> 0 | DP7: =IF($C7=DP$3,1,0) -> 0 | DR7: =IF($C7=DR$3,1,0) -> 0 | DT7: =IF($C7=DT$3,1,0) -> 0 | DV7: =IF($C7=DV$3,1,0) -> 0 | DX7: =IF($C7=DX$3,1,0) -> 0
D8: =HLOOKUP($C8,'Dados Gerais'!$D$6:$V$11,6,0) ->  | G8: =HLOOKUP($C8,'Dados Gerais'!$D$6:$V$15,10,0) ->  | J8: =IF($C8=J$3,1,0) -> 0 | L8: 0 | N8: 0 | P8: 0 | R8: 0 | T8: 0 | V8: 0 | X8: 0 | Z8: 0 | AB8: 0 | AD8: 0 | AF8: 0 | AH8: 0 | AJ8: 0 | AL8: 0 | AN8: 0 | AP8: 0 | AR8: 0 | AT8: 0 | AV8: 0 | AX8: 0 | AZ8: 0 | BB8: 0 | BD8: 0 | BF8: 0 | BH8: 0 | BJ8: 0 | BL8: 0 | BN8: 0 | BP8: 0 | BR8: 0 | BT8: 0 | BV8: 0 | BX8: 0 | BZ8: 0 | CB8: 0 | CD8: 0 | CF8: 0 | CH8: 0 | CJ8: 0 | CL8: 0 | CN8: 0 | CP8: 0 | CR8: 0 | CT8: 0 | CV8: 0 | CX8: 0 | CZ8: 0 | DB8: 0 | DD8: 0 | DF8: 0 | DH8: 0 | DJ8: 0 | DL8: 0 | DN8: 0 | DP8: 0 | DR8: 0 | DT8: 0 | DV8: 0 | DX8: 0
J9: =IF($C9=J$3,1,0) -> 0 | L9: 0 | N9: 0 | P9: 0 | R9: 0 | T9: 0 | V9: 0 | X9: 0 | Z9: 0 | AB9: 0 | AD9: 0 | AF9: 0 | AH9: 0 | AJ9: 0 | AL9: 0 | AN9: 0 | AP9: 0 | AR9: 0 | AT9: 0 | AV9: 0 | AX9: 0 | AZ9: 0 | BB9: 0 | BD9: 0 | BF9: 0 | BH9: 0 | BJ9: 0 | BL9: 0 | BN9: 0 | BP9: 0 | BR9: 0 | BT9: 0 | BV9: 0 | BX9: 0 | BZ9: 0 | CB9: 0 | CD9: 0 | CF9: 0 | CH9: 0 | CJ9: 0 | CL9: 0 | CN9: 0 | CP9: 0 | CR9: 0 | CT9: 0 | CV9: 0 | CX9: 0 | CZ9: 0 | DB9: 0 | DD9: 0 | DF9: 0 | DH9: 0 | DJ9: 0 | DL9: 0 | DN9: 0 | DP9: 0 | DR9: 0 | DT9: 0 | DV9: 0 | DX9: 0
C11: ITEM | D11: DESCRIÇÃO | E11: QUANTIDADE POR TRABALHADOR/ANO | F11: UNIDADE | G11: VALOR
C13: 1 | D13: Terno masculino completo na cor azul noite, em microfibra | E13: 3 | F13: UNID | G13: 377.54 | K13: =IF(SUM(J$7:J$9)>0,$E13*$G13,0) -> 0 | M13: =IF(SUM(L$7:L$9)>0,$E13*$G13,0) -> 0 | O13: =IF(SUM(N$7:N$9)>0,$E13*$G13,0) -> 0 | Q13: =IF(SUM(P$7:P$9)>0,$E13*$G13,0) -> 0 | S13: =IF(SUM(R$7:R$9)>0,$E13*$G13,0) -> 0 | U13: =IF(SUM(T$7:T$9)>0,$E13*$G13,0) -> 0 | W13: =IF(SUM(V$7:V$9)>0,$E13*$G13,0) -> 0 | Y13: =IF(SUM(X$7:X$9)>0,$E13*$G13,0) -> 0 | AA13: =IF(SUM(Z$7:Z$9)>0,$E13*$G13,0) -> 0 | AC13: =IF(SUM(AB$7:AB$9)>0,$E13*$G13,0) -> 0 | AE13: =IF(SUM(AD$7:AD$9)>0,$E13*$G13,0) -> 0 | AG13: =IF(SUM(AF$7:AF$9)>0,$E13*$G13,0) -> 0 | AI13: =IF(SUM(AH$7:AH$9)>0,$E13*$G13,0) -> 0 | AK13: =IF(SUM(AJ$7:AJ$9)>0,$E13*$G13,0) -> 0 | AM13: =IF(SUM(AL$7:AL$9)>0,$E13*$G13,0) -> 0 | AO13: =IF(SUM(AN$7:AN$9)>0,$E13*$G13,0) -> 0 | AQ13: =IF(SUM(AP$7:AP$9)>0,$E13*$G13,0) -> 0 | AS13: =IF(SUM(AR$7:AR$9)>0,$E13*$G13,0) -> 0 | AU13: =IF(SUM(AT$7:AT$9)>0,$E13*$G13,0) -> 0 | AW13: =IF(SUM(AV$7:AV$9)>0,$E13*$G13,0) -> 0 | AY13: =IF(SUM(AX$7:AX$9)>0,$E13*$G13,0) -> 0 | BA13: =IF(SUM(AZ$7:AZ$9)>0,$E13*$G13,0) -> 0 | BC13: =IF(SUM(BB$7:BB$9)>0,$E13*$G13,0) -> 0 | BE13: =IF(SUM(BD$7:BD$9)>0,$E13*$G13,0) -> 0 | BG13: =IF(SUM(BF$7:BF$9)>0,$E13*$G13,0) -> 0 | BI13: =IF(SUM(BH$7:BH$9)>0,$E13*$G13,0) -> 0 | BK13: =IF(SUM(BJ$7:BJ$9)>0,$E13*$G13,0) -> 0 | BM13: =IF(SUM(BL$7:BL$9)>0,$E13*$G13,0) -> 0 | BO13: =IF(SUM(BN$7:BN$9)>0,$E13*$G13,0) -> 0 | BQ13: =IF(SUM(BP$7:BP$9)>0,$E13*$G13,0) -> 0 | BS13: =IF(SUM(BR$7:BR$9)>0,$E13*$G13,0) -> 0 | BU13: =IF(SUM(BT$7:BT$9)>0,$E13*$G13,0) -> 0 | BW13: =IF(SUM(BV$7:BV$9)>0,$E13*$G13,0) -> 0 | BY13: =IF(SUM(BX$7:BX$9)>0,$E13*$G13,0) -> 0 | CA13: =IF(SUM(BZ$7:BZ$9)>0,$E13*$G13,0) -> 0 | CC13: =IF(SUM(CB$7:CB$9)>0,$E13*$G13,0) -> 0 | CE13: =IF(SUM(CD$7:CD$9)>0,$E13*$G13,0) -> 0 | CG13: =IF(SUM(CF$7:CF$9)>0,$E13*$G13,0) -> 0 | CI13: =IF(SUM(CH$7:CH$9)>0,$E13*$G13,0) -> 0 | CK13: =IF(SUM(CJ$7:CJ$9)>0,$E13*$G13,0) -> 0 | CM13: =IF(SUM(CL$7:CL$9)>0,$E13*$G13,0) -> 0 | CO13: =IF(SUM(CN$7:CN$9)>0,$E13*$G13,0) -> 0 | CQ13: =IF(SUM(CP$7:CP$9)>0,$E13*$G13,0) -> 0 | CS13: =IF(SUM(CR$7:CR$9)>0,$E13*$G13,0) -> 0 | CU13: =IF(SUM(CT$7:CT$9)>0,$E13*$G13,0) -> 0 | CW13: =IF(SUM(CV$7:CV$9)>0,$E13*$G13,0) -> 0 | CY13: =IF(SUM(CX$7:CX$9)>0,$E13*$G13,0) -> 0 | DA13: =IF(SUM(CZ$7:CZ$9)>0,$E13*$G13,0) -> 0 | DC13: =IF(SUM(DB$7:DB$9)>0,$E13*$G13,0) -> 0 | DE13: =IF(SUM(DD$7:DD$9)>0,$E13*$G13,0) -> 0 | DG13: =IF(SUM(DF$7:DF$9)>0,$E13*$G13,0) -> 0 | DI13: =IF(SUM(DH$7:DH$9)>0,$E13*$G13,0) -> 0 | DK13: =IF(SUM(DJ$7:DJ$9)>0,$E13*$G13,0) -> 0 | DM13: =IF(SUM(DL$7:DL$9)>0,$E13*$G13,0) -> 0 | DO13: =IF(SUM(DN$7:DN$9)>0,$E13*$G13,0) -> 0 | DQ13: =IF(SUM(DP$7:DP$9)>0,$E13*$G13,0) -> 0 | DS13: =IF(SUM(DR$7:DR$9)>0,$E13*$G13,0) -> 0 | DU13: =IF(SUM(DT$7:DT$9)>0,$E13*$G13,0) -> 0 | DW13: =IF(SUM(DV$7:DV$9)>0,$E13*$G13,0) -> 0 | DY13: =IF(SUM(DX$7:DX$9)>0,$E13*$G13,0) -> 0
C14: 2 | D14: Camisa na cor branca, 100% algodão | E14: 4 | F14: UNID | G14: 118.3 | K14: =IF(SUM(J$7:J$9)>0,$E14*$G14,0) -> 0 | M14: =IF(SUM(L$7:L$9)>0,$E14*$G14,0) -> 0 | O14: =IF(SUM(N$7:N$9)>0,$E14*$G14,0) -> 0 | Q14: =IF(SUM(P$7:P$9)>0,$E14*$G14,0) -> 0 | S14: =IF(SUM(R$7:R$9)>0,$E14*$G14,0) -> 0 | U14: =IF(SUM(T$7:T$9)>0,$E14*$G14,0) -> 0 | W14: =IF(SUM(V$7:V$9)>0,$E14*$G14,0) -> 0 | Y14: =IF(SUM(X$7:X$9)>0,$E14*$G14,0) -> 0 | AA14: =IF(SUM(Z$7:Z$9)>0,$E14*$G14,0) -> 0 | AC14: =IF(SUM(AB$7:AB$9)>0,$E14*$G14,0) -> 0 | AE14: =IF(SUM(AD$7:AD$9)>0,$E14*$G14,0) -> 0 | AG14: =IF(SUM(AF$7:AF$9)>0,$E14*$G14,0) -> 0 | AI14: =IF(SUM(AH$7:AH$9)>0,$E14*$G14,0) -> 0 | AK14: =IF(SUM(AJ$7:AJ$9)>0,$E14*$G14,0) -> 0 | AM14: =IF(SUM(AL$7:AL$9)>0,$E14*$G14,0) -> 0 | AO14: =IF(SUM(AN$7:AN$9)>0,$E14*$G14,0) -> 0 | AQ14: =IF(SUM(AP$7:AP$9)>0,$E14*$G14,0) -> 0 | AS14: =IF(SUM(AR$7:AR$9)>0,$E14*$G14,0) -> 0 | AU14: =IF(SUM(AT$7:AT$9)>0,$E14*$G14,0) -> 0 | AW14: =IF(SUM(AV$7:AV$9)>0,$E14*$G14,0) -> 0 | AY14: =IF(SUM(AX$7:AX$9)>0,$E14*$G14,0) -> 0 | BA14: =IF(SUM(AZ$7:AZ$9)>0,$E14*$G14,0) -> 0 | BC14: =IF(SUM(BB$7:BB$9)>0,$E14*$G14,0) -> 0 | BE14: =IF(SUM(BD$7:BD$9)>0,$E14*$G14,0) -> 0 | BG14: =IF(SUM(BF$7:BF$9)>0,$E14*$G14,0) -> 0 | BI14: =IF(SUM(BH$7:BH$9)>0,$E14*$G14,0) -> 0 | BK14: =IF(SUM(BJ$7:BJ$9)>0,$E14*$G14,0) -> 0 | BM14: =IF(SUM(BL$7:BL$9)>0,$E14*$G14,0) -> 0 | BO14: =IF(SUM(BN$7:BN$9)>0,$E14*$G14,0) -> 0 | BQ14: =IF(SUM(BP$7:BP$9)>0,$E14*$G14,0) -> 0 | BS14: =IF(SUM(BR$7:BR$9)>0,$E14*$G14,0) -> 0 | BU14: =IF(SUM(BT$7:BT$9)>0,$E14*$G14,0) -> 0 | BW14: =IF(SUM(BV$7:BV$9)>0,$E14*$G14,0) -> 0 | BY14: =IF(SUM(BX$7:BX$9)>0,$E14*$G14,0) -> 0 | CA14: =IF(SUM(BZ$7:BZ$9)>0,$E14*$G14,0) -> 0 | CC14: =IF(SUM(CB$7:CB$9)>0,$E14*$G14,0) -> 0 | CE14: =IF(SUM(CD$7:CD$9)>0,$E14*$G14,0) -> 0 | CG14: =IF(SUM(CF$7:CF$9)>0,$E14*$G14,0) -> 0 | CI14: =IF(SUM(CH$7:CH$9)>0,$E14*$G14,0) -> 0 | CK14: =IF(SUM(CJ$7:CJ$9)>0,$E14*$G14,0) -> 0 | CM14: =IF(SUM(CL$7:CL$9)>0,$E14*$G14,0) -> 0 | CO14: =IF(SUM(CN$7:CN$9)>0,$E14*$G14,0) -> 0 | CQ14: =IF(SUM(CP$7:CP$9)>0,$E14*$G14,0) -> 0 | CS14: =IF(SUM(CR$7:CR$9)>0,$E14*$G14,0) -> 0 | CU14: =IF(SUM(CT$7:CT$9)>0,$E14*$G14,0) -> 0 | CW14: =IF(SUM(CV$7:CV$9)>0,$E14*$G14,0) -> 0 | CY14: =IF(SUM(CX$7:CX$9)>0,$E14*$G14,0) -> 0 | DA14: =IF(SUM(CZ$7:CZ$9)>0,$E14*$G14,0) -> 0 | DC14: =IF(SUM(DB$7:DB$9)>0,$E14*$G14,0) -> 0 | DE14: =IF(SUM(DD$7:DD$9)>0,$E14*$G14,0) -> 0 | DG14: =IF(SUM(DF$7:DF$9)>0,$E14*$G14,0) -> 0 | DI14: =IF(SUM(DH$7:DH$9)>0,$E14*$G14,0) -> 0 | DK14: =IF(SUM(DJ$7:DJ$9)>0,$E14*$G14,0) -> 0 | DM14: =IF(SUM(DL$7:DL$9)>0,$E14*$G14,0) -> 0 | DO14: =IF(SUM(DN$7:DN$9)>0,$E14*$G14,0) -> 0 | DQ14: =IF(SUM(DP$7:DP$9)>0,$E14*$G14,0) -> 0 | DS14: =IF(SUM(DR$7:DR$9)>0,$E14*$G14,0) -> 0 | DU14: =IF(SUM(DT$7:DT$9)>0,$E14*$G14,0) -> 0 | DW14: =IF(SUM(DV$7:DV$9)>0,$E14*$G14,0) -> 0 | DY14: 0
